Workbook

Sheet Overview
A1: Overview
A2: This spreadsheet tool was created to accompany the report titled The Impact of Genetic Testing on Life Insurance Mortality published by the Society of Actuaries (October 2018).
A4: Its purpose is to illustrate: a) the model point creation, b) the determination of related mortality loads (by genetic condition considered) and c) the overall impact on U.S. life insurance claim cashflows for one new business year in an environment where a legislated ban is in place limiting the use of genetic testing information for the purpose of underwriting life insurance. The assumptions pre-loaded in this workbook and the cash flow calculations are consistent with the first year of new business modeled in the U.S. Model described in the published report.
A7: Users are encouraged to explore the various inputs and calculations throughout the workbook to gain confort with the methods and assumptions employed. The model inputs can be altered to see how new business claim cash flows react to alternative assumption sets. The workbook has been protected, but to unlock the cell calculations or anything else within the file, use the password "UnlockGTFHModel".
A10: Disclaimer and Limitations: Munich Re prepared this spreadsheet tool (“Tool”) in conjunction with The Impact of Genetic Testing on Life Insurance Mortality report on behalf of the Society of Actuaries (“SOA”) Reinsurance Section, Product Development Section and Committee on Life Insurance Research as a service to members. The publicly available external reports and industry data referenced throughout this Tool have not been audited by Munich Re or SOA and Munich Re and SOA take no responsibility for the accuracy of the figures. This Tool, The Impact of Genetic Testing on Life Insurance Mortality report and its supporting documentation are for informational use only and should not be used as the sole basis for any conclusions regarding genetic testing and insurance. SOA and Munich Re make no warranty, guarantee, or representation, either expressed or implied, regarding the Tool, including its quality, accuracy, reliability, or suitability, and HEREBY DISCLAIM ANY WARRANTY REGARDING THE TOOL'S MERCHANTABILITY OR FITNESS FOR ANY PARTICULAR PURPOSE. SOA and Munich Re make no warranty that the Tool is free from errors, defects, worms, viruses or other elements or codes that manifest contaminating or destructive properties. In no event shall SOA or Munich Re be liable for any damages (including any lost profits, lost savings, or direct, indirect, incidental, consequential or other damages) in connection with or resulting from the use, misuse, reliance on, or performance of any aspect of the Tool including any instructions or documentation accompanying the Tool. SOA and Munich Re make no representation or warranty of non-infringement of proprietary rights of others with respect to the Tool. The entire risk as to the uses, outputs, analyses, results and performance of the Tool is assumed by the user. This Disclaimer applies regardless of whether the Tool is used alone or with other software.
A15: Copyright © 2018 by the Society of Actuaries. All rights reserved.

Sheet Instructions
A1: Instructions
A2: 1 - The tabs Extra Claims Cost Illustration and Sample Policy Illustration contain all calculations. Results of these are summarized in the Results Dashboard.
A3: 2 - The workbook is designed to calculate claims for one specified condition at a time. The macro 'Recalculate All Conditions' runs through all conditions in the table in Genetic Cond Assumptions, saving each conditions' present value of claims which are aggregated and shown in the Results Dashboard.
A4: 3 - All inputs in the workbook are in cells coloured yellow and are contained in the Results Dashboard or the various Input tabs.
A5: 4 - All output statistics of meaning in the workbook are in cells coloured orange and are contained in the Results Dashboard tab.
A6: 5 - The resulting total mortality (after applying mortality improvement) by model point is found in the Extra Claims Cost Illustration tab, highlighted green
A7: 6 - The resulting additional mortality vectors by model point (by sex, age and substandard identification) are found in the Extra Claims Cost Illustration tab, highlighted red. NOTE: Additional mortality vectors will reflect the baseline mortality rates inputted in the Base Mortality tab when a modeled genetic condition's substandard rating is described as a multiple extra.
A10: 7 - To resert all inputs to the workbook's original assumptions (e.g. those illustrated in the published report), click the button below named Revert to Original Model Assumptions.
A11: NOTE: This will erase all customized inputs you have entered so far - BE CAREFUL!

Sheet WorkBook Structure
A1: Results Dashboard
A2: - This tab includes the inputs for the more important assumptions as well a summary of all run results.
A4: Population Assumptions
A5: Population | B5: Total population in geography
A6: Genetic Testing Rate | B6: Percentage of population to get genetically tested annually | D6: 0.06666666667 | E6: Yes
A7: Percentage Seeking Insurance | B7: Percentage of those genetically tested that will seek insurance | D7: 0.05 | E7: No
A8: Policies Declined | B8: Percentage of policies denied from those seeking insurance | D8: 0.03333333333
A9: FA of Tested in 2016 | B9: Average size of anti-selected policy in the first year | D9: 0.025
A10: Tested Age | B10: The percentage of population within the specified age interval is assumed to be tested | D10: 0.01666666667
A12: Genetic Condition Related Assumptions
A13: Prevalence of gene mutation (1 in X) | B13: Prevalence of gene mutation
A14: Penetrance of clinical expression given mutation positive | B14: Probability that those with a particular gene characteristic will ultimately develop the related disease
A15: Multiple Rating | B15: Those with the disease classified as substandard lives will exhibit higher mortality expressed either as a percentage of standard (Multiple Rating) or as a number of additional deaths per year (Flat Extra). The Multiple Rating is applied to ultimate mortality.
A16: Flat Extra
A17: Predicted | B17: Percentage of those with the positive gene characteristic who be identified for being an increased risk by the underwriting process (either by family history or other early symptoms)
A18: % Male | B18: Percentage of those tested that are male
A19: Standard Period | B19: Number of years following testing for which the mortality of those who test positive is taken as standard, even if it is assumed that the disease will eventually emerge (0 assumes that higher mortality is applicable immediately from testing)
A20: Grading Period | B20: Number of years over which mortality is assumed to increase from standard to the full rating
A22: Model Results - Extra Claims Driven by Genetically Tested Policies
A23: Present Value Claims of 1 Year New Business | B23: Present value of claims from all projected years for all issue ages
A24: Cumulative Extra Load/Aggregate Load | B24: Mortality multiplicative load to apply to additional new business. The numerator is the present value of claims for all anti selected policies, the denominator is assuming these policies are all standard policies.
A25: Increase_in_Expeceted_New_Business_Claims | B25: Percentage increase in 1 year of new business claims from adding genetically tested policies to the baseline block of new business.
A27: Sample Policy Illustration - Extra Mortality For One Policy For One Condition
A28: Input assumptions for one policy (sex, age) and the graphs will illustrate the standard and substandard mortality for comparison purposes.
A30: Extra Claims Cost Illustration
A31: - This tab illustrates the total claim cost calculation for one Condition for one year of new business.
A32: - Results are calculated for each policy by issue year, sex and standard/ substandard rating. The results are then aggregated using the population distribution.
A34: Sample Policy Illustration
A35: - This tab illustrates the standard and substandard mortality for one policy.
A37: Baseline NB Claims
A38: - This tab includes projected claim cashflows from the representative Baseline block for 1 year of new businesss. It is used to determine the present value of claims expected for the market prior to a genetic testing restriction for underwriting.
A39: - Edit the Baseline block projected new business claims to compare the impact of adding genetically tested policies on a particular subset of the US Market or on expected claims from a particular company.
A40: NOTE - the size of the Population assumption should be adjusted to reflect the subset of the US market being considered when altering the Baseline block NB claims.
A42: Genetic Cond Assumptions
A43: - This tab includes all assumptions related to each genetic condition.
A44: - A blank row is included at the end of the table to include an additional condition if needed.
A46: Base Mortality
A47: - This tab includes the base mortality table for Male and Female separately. The table format used is Select Age 25 and only the non-smoker table is used.
A49: Mortality Improvement
A50: - This tab includes the mortality improvement assumption by attained age.
A52: Grading Patterns
A53: - This tab includes the pattern for how the mortality is assumed to increase from standard to full rating.
A55: Population Sex Age
A56: - This tab includes the population distribution by age.
A58: Other Assumptions
A59: - This tab includes assumptions such as Interest rate, lapses, and other assumptions specific to certain conditions.

Sheet Results Dashboard
A1: Results Dashboard
A3: POPULATION ASSUMPTIONS | D3: GENETIC CONDITION RELATED ASSUMPTIONS
A4: Population | B4: 320000000 | D4: Condition | E4: Prevalence of gene mutation (1 in X) | F4: Penetrance of clinincal expression given mutation positive | G4: Multiple Rating | H4: Flat Extra | I4: Predicted | J4: % Male | K4: Standard Period | L4: Grading Period
A5: Genetic Testing Rate | B5: 0.03333333333
A6: Percentage Seeking Insurance | B6: 0.75
A7: Policies Declined | B7: 0.05
A8: FA of Tested in 2016 | B8: 700000 | D8: Hypertrophic Cardiomyopathy (HTCM) | E8: =VLOOKUP(Condition,Table3[[#All],[Condition]:[Grading Period (years)]],2,0) -> 500 | F8: =VLOOKUP(Condition,Table3[[#All],[Condition]:[Grading Period (years)]],3,0) -> 0.69 | G8: =IF(VLOOKUP($D$8,Table3[[Condition]:[Grading Period (years)]],4,FALSE)>=1,VLOOKUP($D$8,Table3[[Condition]:[Grading Period (years)]],4,FALSE),"") ->  | H8: =IF(VLOOKUP($D$8,Table3[[Condition]:[Grading Period (years)]],4,FALSE)<1,VLOOKUP($D$8,Table3[[Condition]:[Grading Period (years)]],4,FALSE)*1000,0) -> 10 | I8: =VLOOKUP($D$8,Table3[[Condition]:[Grading Period (years)]],IF(I13="Yes",5,6),FALSE) -> 0.25 | J8: =VLOOKUP($D$8,Table3[[Condition]:[Grading Period (years)]],8,FALSE) -> 0.5 | K8: =VLOOKUP($D$8,Table3[[Condition]:[Grading Period (years)]],9,FALSE) -> 5 | L8: =VLOOKUP($D$8,Table3[[Condition]:[Grading Period (years)]],10,FALSE) -> 15
B10: Start | C10: End | I10: Is Family History Available to Underwriting?
A11: Tested Age | B11: 20 | C11: 54
A12: % Population in age group | B12: =SUMIFS('Population Sex Age'!$K$8:$K$25,'Population Sex Age'!$J$8:$J$25,">="&'Results Dashboard'!B11,'Population Sex Age'!$J$8:$J$25,"<"&'Results Dashboard'!$C$11)+SUMIFS('Population Sex Age'!$L$8:$L$25,'Population Sex Age'!$J$8:$J$25,">="&'Results Dashboard'!B11,'Population Sex Age'!$J$8:$J$25,"<"&'Results Dashboard'!$C$11) -> 0.4678734821
I13: Yes
B14: ILLUSTRATION OF MODEL POINT CREATION FOR ONE CONDITION
C15: START: Considered Population
C16: U.S. Population | F16: =Condition -> Hypertrophic Cardiomyopathy (HTCM) | I16: "Disease Develops" | K16: Male
C17: =B4/10^6&"M" -> 320M | I17: ="Penetrance ("&Penetrance*100&"%)" -> Penetrance (69%) | K17: Substandard
I18: =ROUND(Population*Testing_Rate/Prevalence*Seeking_Insurance*$B$12*(1-Declined)*(1-Predicted)*Penetrance,0) -> 3680 | K18: =ROUND(Population*Testing_Rate/Prevalence*Seeking_Insurance*$B$12*(1-Declined)*(1-Predicted)*Penetrance*Prop_Male,0) -> 1840
D20: "Gets Genetic Test" | H20: "Gets Assessed Standard" | K20: Female
D21: ="1yr Testing Rate (1/"&1/B5&")" -> 1yr Testing Rate (1/30) | H21: ="1-Predicted Rate ("&(1-Predicted)*100&"%)" -> 1-Predicted Rate (75%) | K21: Substandard
D22: =ROUND(Population*Testing_Rate/10^6,1)&"M" -> 10.7M | H22: =ROUND(Population*Testing_Rate/Prevalence*Seeking_Insurance*$B$12*(1-Declined)*(1-Predicted),0) -> 5334 | K22: =ROUND(Population*Testing_Rate/Prevalence*Seeking_Insurance*$B$12*(1-Declined)*(1-Predicted)*Penetrance*(1-Prop_Male),0) -> 1840
E24: "Gene Mutation Found" | G24: "Passes Other UW Criteria" | I24: "Disease Never Occurs" | K24: Male
E25: ="Prevalence (1 in "&Prevalence&")" -> Prevalence (1 in 500) | G25: ="1-Declined Rate ("&(1-Declined)*100&"%)" -> 1-Declined Rate (95%) | I25: ="1-Penetrance ("&(1-Penetrance)*100&"%)" -> 1-Penetrance (31%) | K25: Standard
E26: =ROUND(Population*Testing_Rate/Prevalence,0) -> 21333 | G26: =ROUND(Population*Testing_Rate/Prevalence*Seeking_Insurance*$B$12*(1-Declined),0) -> 7112 | I26: =ROUND(Population*Testing_Rate/Prevalence*Seeking_Insurance*$B$12*(1-Declined)*(1-Predicted)*(1-Penetrance),0) -> 1653 | K26: =ROUND(Population*Testing_Rate/Prevalence*Seeking_Insurance*$B$12*(1-Declined)*(1-Predicted)*(1-Penetrance)*Prop_Male,0) -> 827
F28: "Seeks Insurance" | K28: Female
F29: ="("&Seeking_Insurance*100&"% of ages "&Tested_Age_Start&" - "&Tested_Age_End&")" -> (75% of ages 20 - 54) | K29: Standard
F30: =ROUND(Population*Testing_Rate/Prevalence*Seeking_Insurance*$B$12,0) -> 7486 | K30: =ROUND(Population*Testing_Rate/Prevalence*Seeking_Insurance*$B$12*(1-Declined)*(1-Predicted)*(1-Penetrance)*(1-Prop_Male),0) -> 827
K31: END: Genetically Tested Model Points (# of Pols)
A34: Policies | D34: =Population -> 320000000 | E34: =D34*Testing_Rate -> 10666666.67 | F34: =E34/Prevalence -> 21333.33333 | G34: =F34*Seeking_Insurance*B12 -> 7485.975714 | H34: =G34*(1-Declined) -> 7111.676928 | I34: =H34*(1-Predicted) -> 5333.757696 | J34: =I34*Penetrance -> 3680.29281 | K34: =J34*Prop_Male -> 1840.146405
A35: SAMPLE POLICY ILLUSTRATION - EXTRA MORTALITY COST FOR ONE POLICY, FOR ONE CONDITION
A36: Illustration Assumptions | B36: Illustration Inputs | K36: Resulting Mortality Statistics | M36: Go To Calculation
A37: Underlying Mortality | B37: Insured | D37: UW Assessment | F37: Qx Assumptions
A38: Base: 2015 VBT RR100 NS ALB | B38: Sex | C38: F | D38: Multiple Rating | E38: =Multiple_Rating ->  | F38: Standard Period | G38: =Standard_Period -> 5 | H38: Application of Multiple | I38: Apply to Ultimate Rates | K38: Expected Age at Death
A39: Improvement: Mortality Improvement Rates for AG-38 for Year-End 2016 | B39: Issue Age (x) | C39: 50 | D39: Flat Extra/k | E39: =Flat_Extra -> 10 | F39: Grading Period | G39: =Grading_Period -> 15 | K39: Standard | L39: Substandard
B40: Smoke Status | C40: Non-Smoker | D40: Flat Extra Years | E40: 120 | F40: Apply Mortality Improvement? | G40: Yes | K40: ='Sample Policy Illustration'!K12 -> 88.79829868 | L40: ='Sample Policy Illustration'!L12 -> 85.63049153
A69: MODEL RESULTS - EXTRA CLAIMS DRIVEN BY GENETICALLY TESTED POLICIES
M70: Go To Calculation
B72: =Condition -> Hypertrophic Cardiomyopathy (HTCM) | F72: Genetically Tested Policies All Conditions | H72: Baseline New Business
A73: Modeled Group | B73: Present Value Claims of 1 Year New Business | C73: Cumulative Extra Load/Aggregate Load | E73: Modeled Group | F73: Present Value Claims of 1 Year New Business | G73: Cumulative Extra Load/Aggregate Load | H73: Present Value Claims from 1 Year New Business | I73: % Increase in Expeceted New Business Claims | J73: Modeled Group
A74: Male Substd | B74: =SUMIF('Extra Claims Cost Illustration'!$B$18:$B$157,'Results Dashboard'!A74,'Extra Claims Cost Illustration'!$PD$18:$PD$157) -> 179603354.8 | C74: =HLOOKUP(Condition,'Recalculate All Results Macro'!$B$5:$P$21,15,0) -> 12.16407668 | E74: Male Substd | F74: ='Recalculate All Results Macro'!P6 -> 732829058.9 | G74: ='Recalculate All Results Macro'!P19 -> 15.10057323 | H74: ='Baseline NB Claims'!B6 -> 2.923181162e+10 | I74: =SUM(F74:F75)/H74 -> 0.02556197611 | J74: Male
A75: Male Std | B75: =SUMIF('Extra Claims Cost Illustration'!$B$18:$B$157,'Results Dashboard'!A75,'Extra Claims Cost Illustration'!$PD$18:$PD$157) -> 4696868.551 | E75: Male Std | F75: ='Recalculate All Results Macro'!P7 -> 14393811.21
A76: Female SubStd | B76: =SUMIF('Extra Claims Cost Illustration'!$B$18:$B$157,'Results Dashboard'!A76,'Extra Claims Cost Illustration'!$PD$18:$PD$157) -> 179825061.9 | C76: =HLOOKUP(Condition,'Recalculate All Results Macro'!$B$5:$P$21,16,0) -> 15.11944388 | E76: Female SubStd | F76: ='Recalculate All Results Macro'!P8 -> 985684472.5 | G76: ='Recalculate All Results Macro'!P20 -> 18.63431689 | H76: ='Baseline NB Claims'!B7 -> 1.181172263e+10 | I76: =SUM(F76:F77)/H76 -> 0.08470496414 | J76: Female
A77: Female Std | B77: =SUMIF('Extra Claims Cost Illustration'!$B$18:$B$157,'Results Dashboard'!A77,'Extra Claims Cost Illustration'!$PD$18:$PD$157) -> 3764204.087 | E77: Female Std | F77: ='Recalculate All Results Macro'!P9 -> 14827068.98
A78: Total | B78: =SUM(B74:B77) -> 367889489.3 | C78: =HLOOKUP(Condition,'Recalculate All Results Macro'!$B$5:$P$21,17,0) -> 13.47887515 | E78: Total | F78: ='Recalculate All Results Macro'!P10 -> 1747734412 | G78: ='Recalculate All Results Macro'!P21 -> 16.93952082 | H78: =H76+H74 -> 4.104353424e+10 | I78: =F78/H78 -> 0.04258245407 | J78: Total

Sheet Extra Claims Cost Illustration
A1: Extra Claims Costs from Genetically Tested Policies | LB1: Long QT Syndrome (Long QT)
C4: Male Substd | D4: Male Std | E4: Female SubStd | F4: Female Std
A5: 1 | B5: 2 | C5: 3 | D5: 4 | E5: 5 | F5: 6 | G5: 7 | H5: 8 | I5: 9 | J5: 10 | K5: 11 | L5: 12 | M5: 13 | N5: 14 | O5: 15 | P5: 16 | Q5: 17 | R5: 18 | S5: 19 | T5: 20 | U5: 21 | V5: 22 | W5: 23 | X5: 24 | Y5: 25 | Z5: 26 | AA5: 27 | AB5: 28 | AC5: 29 | AD5: 30 | AE5: 31 | AF5: 32 | AG5: 33 | AH5: 34 | AI5: 35 | AJ5: 36 | AK5: 37 | AL5: 38 | AM5: 39 | AN5: 40 | AO5: 41 | AP5: 42 | AQ5: 43 | AR5: 44 | AS5: 45 | AT5: 46 | AU5: 47 | AV5: 48 | AW5: 49 | AX5: 50 | AY5: 51 | AZ5: 52 | BA5: 53 | BB5: 54 | BC5: 55 | BD5: 56 | BE5: 57 | BF5: 58 | BG5: 59 | BH5: 60 | BI5: 61 | BJ5: 62 | BK5: 63 | BL5: 64 | BM5: 65 | BN5: 66 | BO5: 67 | BP5: 68 | BQ5: 69 | BR5: 70 | BS5: 71 | BT5: 72 | BU5: 73 | BV5: 74 | BW5: 75 | BX5: 76 | BY5: 77 | BZ5: 78 | CA5: 79 | CB5: 80 | CC5: 81 | CD5: 82 | CE5: 83 | CF5: 84 | CG5: 85 | CH5: 86 | CI5: 87 | CJ5: 88 | CK5: 89
C7: Groups | I7: Mortality Adjustments for Substandard (%) | AX7: Mortality Adjustments for Flat Extra Addition (per 1000) | LB7: interest | LC7: =Interest -> 0.04 | PB7: Model Results: Claims Cost
A8: Condition | B8: Policies Purchased | C8: Male Substd | D8: Male Std | E8: Female SubStd | F8: Female Std | I8: 1 | J8: 2 | K8: 3 | L8: 4 | M8: 5 | N8: 6 | O8: 7 | P8: 8 | Q8: 9 | R8: 10 | S8: 11 | T8: 12 | U8: 13 | V8: 14 | W8: 15 | X8: 16 | Y8: 17 | Z8: 18 | AA8: 19 | AB8: 20 | AC8: 21 | AD8: 22 | AE8: 23 | AF8: 24 | AG8: 25 | AH8: 26 | AI8: 27 | AJ8: 28 | AK8: 29 | AL8: 30 | AM8: 31 | AN8: 32 | AO8: 33 | AP8: 34 | AQ8: 35 | AR8: 36 | AS8: 37 | AT8: 38 | AU8: 39 | AV8: 40 | AX8: 1 | AY8: 2 | AZ8: 3 | BA8: 4 | BB8: 5 | BC8: 6 | BD8: 7 | BE8: 8 | BF8: 9 | BG8: 10 | BH8: 11 | BI8: 12 | BJ8: 13 | BK8: 14 | BL8: 15 | BM8: 16 | BN8: 17 | BO8: 18 | BP8: 19 | BQ8: 20 | BR8: 21 | BS8: 22 | BT8: 23 | BU8: 24 | BV8: 25 | BW8: 26 | BX8: 27 | BY8: 28 | BZ8: 29 | CA8: 30 | CB8: 31 | CC8: 32 | CD8: 33 | CE8: 34 | CF8: 35 | CG8: 36 | CH8: 37 | CI8: 38 | CJ8: 39 | CK8: 40 | LB8: vt for mortality | LC8: =1/(1+$LC$7) -> 0.9615384615 | LD8: =LC8/(1+$LC$7) -> 0.924556213 | LE8: =LD8/(1+$LC$7) -> 0.8889963587 | LF8: 0.854804191 | LG8: 0.8219271068 | LH8: 0.7903145257 | LI8: 0.7599178132 | LJ8: 0.730690205 | LK8: 0.7025867356 | LL8: 0.6755641688 | LM8: 0.6495809316 | LN8: 0.6245970496 | LO8: 0.6005740861 | LP8: 0.5774750828 | LQ8: 0.5552645027 | LR8: 0.5339081757 | LS8: 0.5133732459 | LT8: 0.493628121 | LU8: 0.474642424 | LV8: 0.4563869462 | LW8: 0.4388336021 | LX8: 0.4219553867 | LY8: 0.4057263333 | LZ8: 0.3901214743 | MA8: 0.3751168023 | MB8: 0.3606892329 | MC8: 0.3468165701 | MD8: 0.3334774713 | ME8: 0.3206514147 | MF8: 0.308318668 | MG8: 0.2964602577 | MH8: 0.2850579401 | MI8: 0.2740941731 | MJ8: 0.2635520896 | MK8: 0.2534154707 | ML8: 0.2436687219 | MM8: 0.2342968479 | MN8: 0.2252854307 | MO8: 0.2166206064 | MP8: 0.2082890447 | MQ8: 0.2002779276 | MR8: 0.1925749303 | MS8: 0.1851682023 | MT8: 0.1780463483 | MU8: 0.1711984118 | MV8: 0.1646138575 | MW8: 0.1582825553 | MX8: 0.1521947647 | MY8: 0.1463411199 | MZ8: 0.1407126153 | NA8: 0.1353005917 | NB8: 0.1300967228 | NC8: 0.1250930027 | ND8: 0.1202817333 | NE8: 0.1156555128 | NF8: 0.1112072239 | NG8: 0.1069300229 | NH8: 0.1028173297 | NI8: 0.09886281706 | NJ8: 0.09506040102 | NK8: 0.09140423175 | NL8: 0.08788868438 | NM8: 0.08450835036 | NN8: 0.08125802919 | NO8: 0.07813272038 | NP8: 0.07512761575 | NQ8: =NP8/(1+$LC$7) -> 0.07223809207 | NR8: 0.06945970391 | NS8: 0.06678817684 | NT8: 0.0642194008 | NU8: 0.06174942385 | NV8: 0.05937444601 | NW8: 0.05709081347 | NX8: 0.05489501295 | NY8: 0.0527836663 | NZ8: 0.05075352529 | OA8: 0.04880146662 | OB8: 0.04692448714 | OC8: 0.04511969917 | OD8: 0.04338432613 | OE8: 0.0417156982 | OF8: 0.04011124827 | OG8: 0.03856850795 | OH8: 0.0370851038 | OI8: 0.03565875365 | OJ8: 0.03428726313 | OK8: 0.03296852224 | OL8: 0.03170050215 | OM8: 0.03048125207 | ON8: 0.02930889622 | OO8: 0.02818163098 | OP8: 0.0270977221 | OQ8: 0.02605550202 | OR8: 0.02505336732 | OS8: 0.02408977627 | OT8: 0.02316324642 | OU8: 0.02227235232 | OV8: 0.02141572339 | OW8: 0.02059204172 | OX8: 0.01980004011 | OY8: 0.01903850011 | PA8: Total | PB8: =SUM(PB9:PB12) -> 367889489.3
A9: =Condition -> Hypertrophic Cardiomyopathy (HTCM) | B9: =IFERROR('Results Dashboard'!I34,"") -> 5333.757696 | C9: =IFERROR($B9*(Penetrance*Prop_Male),"") -> 1840.146405 | D9: =IFERROR($B9*((1-Penetrance)*Prop_Male),"") -> 826.7324429 | E9: =IFERROR($B9*(Penetrance*(1-Prop_Male)),"") -> 1840.146405 | F9: =IFERROR($B9*((1-Penetrance)*(1-Prop_Male)),"") -> 826.7324429 | I9: =IF(I$8<=Standard_Period,0%,HLOOKUP(I$8-Standard_Period,Grading_Pattern,VLOOKUP(Grading_Period,Grading_Pattern_Lookup,2,FALSE),TRUE)*Extra_Mortality) -> 0 | J9: =IF(J$8<=Standard_Period,0%,HLOOKUP(J$8-Standard_Period,Grading_Pattern,VLOOKUP(Grading_Period,Grading_Pattern_Lookup,2,FALSE),TRUE)*Extra_Mortality) -> 0 | K9: =IF(K$8<=Standard_Period,0%,HLOOKUP(K$8-Standard_Period,Grading_Pattern,VLOOKUP(Grading_Period,Grading_Pattern_Lookup,2,FALSE),TRUE)*Extra_Mortality) -> 0 | L9: =IF(L$8<=Standard_Period,0%,HLOOKUP(L$8-Standard_Period,Grading_Pattern,VLOOKUP(Grading_Period,Grading_Pattern_Lookup,2,FALSE),TRUE)*Extra_Mortality) -> 0 | M9: =IF(M$8<=Standard_Period,0%,HLOOKUP(M$8-Standard_Period,Grading_Pattern,VLOOKUP(Grading_Period,Grading_Pattern_Lookup,2,FALSE),TRUE)*Extra_Mortality) -> 0 | N9: 0 | O9: 0 | P9: 0 | Q9: 0 | R9: 0 | S9: 0 | T9: 0 | U9: 0 | V9: 0 | W9: 0 | X9: 0 | Y9: 0 | Z9: 0 | AA9: 0 | AB9: 0 | AC9: 0 | AD9: 0 | AE9: 0 | AF9: 0 | AG9: 0 | AH9: 0 | AI9: 0 | AJ9: 0 | AK9: 0 | AL9: 0 | AM9: 0 | AN9: 0 | AO9: 0 | AP9: 0 | AQ9: 0 | AR9: 0 | AS9: 0 | AT9: 0 | AU9: 0 | AV9: =IF(AV$8<=Standard_Period,0%,HLOOKUP(AV$8-Standard_Period,Grading_Pattern,VLOOKUP(Grading_Period,Grading_Pattern_Lookup,2,FALSE),TRUE)*Extra_Mortality) -> 0 | AX9: =1000*IF(AX$8<=Standard_Period,0,HLOOKUP(AX$8-Standard_Period,Grading_Pattern,VLOOKUP(Grading_Period,Grading_Pattern_Lookup,2,0),0)*Flat_addition) -> 0 | AY9: 0 | AZ9: 0 | BA9: 0 | BB9: 0 | BC9: 0.3333333333 | BD9: 1 | BE9: 1.666666667 | BF9: 2.333333333 | BG9: 3 | BH9: 3.666666667 | BI9: 4.333333333 | BJ9: 5 | BK9: 5.666666667 | BL9: 6.333333333 | BM9: 7 | BN9: 7.666666667 | BO9: 8.333333333 | BP9: 9 | BQ9: 9.666666667 | BR9: 10 | BS9: 10 | BT9: 10 | BU9: 10 | BV9: 10 | BW9: 10 | BX9: 10 | BY9: 10 | BZ9: 10 | CA9: 10 | CB9: 10 | CC9: 10 | CD9: 10 | CE9: 10 | CF9: 10 | CG9: 10 | CH9: 10 | CI9: 10 | CJ9: 10 | CK9: 10 | LB9: vt for annuity | LC9: =+(1/((1+$LC$7)^LC$17)) -> 1 | LD9: =+(1/((1+$LC$7)^LD$17)) -> 0.9615384615 | LE9: 0.924556213 | LF9: 0.8889963587 | LG9: 0.854804191 | LH9: 0.8219271068 | LI9: 0.7903145257 | LJ9: 0.7599178132 | LK9: 0.730690205 | LL9: 0.7025867356 | LM9: 0.6755641688 | LN9: 0.6495809316 | LO9: 0.6245970496 | LP9: 0.6005740861 | LQ9: 0.5774750828 | LR9: 0.5552645027 | LS9: 0.5339081757 | LT9: 0.5133732459 | LU9: 0.493628121 | LV9: 0.474642424 | LW9: 0.4563869462 | LX9: 0.4388336021 | LY9: 0.4219553867 | LZ9: 0.4057263333 | MA9: 0.3901214743 | MB9: 0.3751168023 | MC9: 0.3606892329 | MD9: 0.3468165701 | ME9: 0.3334774713 | MF9: 0.3206514147 | MG9: 0.308318668 | MH9: 0.2964602577 | MI9: 0.2850579401 | MJ9: 0.2740941731 | MK9: 0.2635520896 | ML9: 0.2534154707 | MM9: 0.2436687219 | MN9: 0.2342968479 | MO9: 0.2252854307 | MP9: 0.2166206064 | MQ9: 0.2082890447 | MR9: 0.2002779276 | MS9: 0.1925749303 | MT9: 0.1851682023 | MU9: 0.1780463483 | MV9: 0.1711984118 | MW9: 0.1646138575 | MX9: 0.1582825553 | MY9: 0.1521947647 | MZ9: 0.1463411199 | NA9: 0.1407126153 | NB9: 0.1353005917 | NC9: 0.1300967228 | ND9: 0.1250930027 | NE9: 0.1202817333 | NF9: 0.1156555128 | NG9: 0.1112072239 | NH9: 0.1069300229 | NI9: 0.1028173297 | NJ9: 0.09886281706 | NK9: 0.09506040102 | NL9: 0.09140423175 | NM9: 0.08788868438 | NN9: 0.08450835036 | NO9: 0.08125802919 | NP9: =+(1/((1+$LC$7)^NP$17)) -> 0.07813272038 | NQ9: 0.07512761575 | NR9: 0.07223809207 | NS9: 0.06945970391 | NT9: 0.06678817684 | NU9: 0.0642194008 | NV9: 0.06174942385 | NW9: 0.05937444601 | NX9: 0.05709081347 | NY9: 0.05489501295 | NZ9: 0.0527836663 | OA9: 0.05075352529 | OB9: 0.04880146662 | OC9: 0.04692448714 | OD9: 0.04511969917 | OE9: 0.04338432613 | OF9: 0.0417156982 | OG9: 0.04011124827 | OH9: 0.03856850795 | OI9: 0.0370851038 | OJ9: 0.03565875365 | OK9: 0.03428726313 | OL9: 0.03296852224 | OM9: 0.03170050215 | ON9: 0.03048125207 | OO9: 0.02930889622 | OP9: 0.02818163098 | OQ9: 0.0270977221 | OR9: 0.02605550202 | OS9: 0.02505336732 | OT9: 0.02408977627 | OU9: 0.02316324642 | OV9: 0.02227235232 | OW9: 0.02141572339 | OX9: 0.02059204172 | OY9: 0.01980004011 | PA9: Male Substd | PB9: =IFERROR(SUMIF($B$18:$B$417,PA9,$PD$18:$PD$417),"") -> 179603354.8
A10: PV of Claim Costs Incurred | B10: =IFERROR(SUM(C10:F10),"") -> 367889489.3 | C10: =IFERROR(PB9,"") -> 179603354.8 | D10: =IFERROR(PB10,"") -> 4696868.551 | E10: =IFERROR(PB11,"") -> 179825061.9 | F10: =IFERROR(PB12,"") -> 3764204.087 | PA10: Male Std | PB10: =IFERROR(SUMIF($B$18:$B$417,PA10,$PD$18:$PD$417),"") -> 4696868.551
I11: Extra mortality | J11: =IFERROR(IF(Multiple_Rating>=1, Multiple_Rating-1,0),0) -> 0 | PA11: Female SubStd | PB11: =IFERROR(SUMIF($B$18:$B$417,PA11,$PD$18:$PD$417),"") -> 179825061.9
A12: Links to Navigate Sheet - Go To: | B12: Standard Mortality | C12: Additional Mortality | D12: Total Mortality (qx+t) (after improvement) | E12: tPx (End of Duration) | F12: PV Claims | I12: Flat addition | J12: =Flat_Extra/1000 -> 0.01 | PA12: Female Std | PB12: =IFERROR(SUMIF($B$18:$B$417,PA12,$PD$18:$PD$417),"") -> 3764204.087
E16: Standard Mortality | DC16: Additional Mortality | DD16: Duration | HB16: Total Mortality (qx+t) (after improvement) | LC16: tPx (End of Duration)
B17: Group | C17: Group Size | D17: Issue Age | E17: 1 | F17: 2 | G17: 3 | H17: 4 | I17: 5 | J17: 6 | K17: 7 | L17: 8 | M17: 9 | N17: 10 | O17: 11 | P17: 12 | Q17: 13 | R17: 14 | S17: 15 | T17: 16 | U17: 17 | V17: 18 | W17: 19 | X17: 20 | Y17: 21 | Z17: 22 | AA17: 23 | AB17: 24 | AC17: 25 | AD17: 26 | AE17: 27 | AF17: 28 | AG17: 29 | AH17: 30 | AI17: 31 | AJ17: 32 | AK17: 33 | AL17: 34 | AM17: 35 | AN17: 36 | AO17: 37 | AP17: 38 | AQ17: 39 | AR17: 40 | AS17: 41 | AT17: 42 | AU17: 43 | AV17: 44 | AW17: 45 | AX17: 46 | AY17: 47 | AZ17: 48 | BA17: 49 | BB17: 50 | BC17: 51 | BD17: 52 | BE17: 53 | BF17: 54 | BG17: 55 | BH17: 56 | BI17: 57 | BJ17: 58 | BK17: 59 | BL17: 60 | BM17: 61 | BN17: 62 | BO17: 63 | BP17: 64 | BQ17: 65 | BR17: 66 | BS17: 67 | BT17: 68 | BU17: 69 | BV17: 70 | BW17: 71 | BX17: 72 | BY17: 73 | BZ17: 74 | CA17: 75 | CB17: 76 | CC17: 77 | CD17: 78 | CE17: 79 | CF17: 80 | CG17: 81 | CH17: 82 | CI17: 83 | CJ17: 84 | CK17: 85 | CL17: 86 | CM17: 87 | CN17: 88 | CO17: 89 | CP17: 90 | CQ17: 91 | CR17: 92 | CS17: 93 | CT17: 94 | CU17: 95 | CV17: 96 | CW17: 97 | CX17: 98 | CY17: 99 | CZ17: 100 | DA17: 101 | DC17: 1 | DD17: 2 | DE17: 3 | DF17: 4 | DG17: 5 | DH17: 6 | DI17: 7 | DJ17: 8 | DK17: 9 | DL17: 10 | DM17: 11 | DN17: 12 | DO17: 13 | DP17: 14 | DQ17: 15 | DR17: 16 | DS17: 17 | DT17: 18 | DU17: 19 | DV17: 20 | DW17: 21 | DX17: 22 | DY17: 23 | DZ17: 24 | EA17: 25 | EB17: 26 | EC17: 27 | ED17: 28 | EE17: 29 | EF17: 30 | EG17: 31 | EH17: 32 | EI17: 33 | EJ17: 34 | EK17: 35 | EL17: 36 | EM17: 37 | EN17: 38 | EO17: 39 | EP17: 40 | EQ17: 41 | ER17: 42 | ES17: 43 | ET17: 44 | EU17: 45 | EV17: 46 | EW17: 47 | EX17: 48 | EY17: 49 | EZ17: 50 | FA17: 51 | FB17: 52 | FC17: 53 | FD17: 54 | FE17: 55 | FF17: 56 | FG17: 57 | FH17: 58 | FI17: 59 | FJ17: 60 | FK17: 61 | FL17: 62 | FM17: 63 | FN17: 64 | FO17: 65 | FP17: 66 | FQ17: 67 | FR17: 68 | FS17: 69 | FT17: 70 | FU17: 71 | FV17: 72 | FW17: 73 | FX17: 74 | FY17: 75 | FZ17: 76 | GA17: 77 | GB17: 78 | GC17: 79 | GD17: 80 | GE17: 81 | GF17: 82 | GG17: 83 | GH17: 84 | GI17: 85 | GJ17: 86 | GK17: 87 | GL17: 88 | GM17: 89 | GN17: 90 | GO17: 91 | GP17: 92 | GQ17: 93 | GR17: 94 | GS17: 95 | GT17: 96 | GU17: 97 | GV17: 98 | GW17: 99 | GX17: 100 | GY17: 101 | HB17: 1 | HC17: 2 | HD17: 3 | HE17: 4 | HF17: 5 | HG17: 6 | HH17: 7 | HI17: 8 | HJ17: 9 | HK17: 10 | HL17: 11 | HM17: 12 | HN17: 13 | HO17: 14 | HP17: 15 | HQ17: 16 | HR17: 17 | HS17: 18 | HT17: 19 | HU17: 20 | HV17: 21 | HW17: 22 | HX17: 23 | HY17: 24 | HZ17: 25 | IA17: 26 | IB17: 27 | IC17: 28 | ID17: 29 | IE17: 30 | IF17: 31 | IG17: 32 | IH17: 33 | II17: 34 | IJ17: 35 | IK17: 36 | IL17: 37 | IM17: 38 | IN17: 39 | IO17: 40 | IP17: 41 | IQ17: 42 | IR17: 43 | IS17: 44 | IT17: 45 | IU17: 46 | IV17: 47 | IW17: 48 | IX17: 49 | IY17: 50 | IZ17: 51 | JA17: 52 | JB17: 53 | JC17: 54 | JD17: 55 | JE17: 56 | JF17: 57 | JG17: 58 | JH17: 59 | JI17: 60 | JJ17: 61 | JK17: 62 | JL17: 63 | JM17: 64 | JN17: 65 | JO17: 66 | JP17: 67 | JQ17: 68 | JR17: 69 | JS17: 70 | JT17: 71 | JU17: 72 | JV17: 73 | JW17: 74 | JX17: 75 | JY17: 76 | JZ17: 77 | KA17: 78 | KB17: 79 | KC17: 80 | KD17: 81 | KE17: 82 | KF17: 83 | KG17: 84 | KH17: 85 | KI17: 86 | KJ17: 87 | KK17: 88 | KL17: 89 | KM17: 90 | KN17: 91 | KO17: 92 | KP17: 93 | KQ17: 94 | KR17: 95 | KS17: 96 | KT17: 97 | KU17: 98 | KV17: 99 | KW17: 100 | KX17: 101 | LA17: Lapse Rate | LB17: Conversion Rate | LC17: 0 | LD17: 1 | LE17: 2 | LF17: 3 | LG17: 4 | LH17: 5 | LI17: 6 | LJ17: 7 | LK17: 8 | LL17: 9 | LM17: 10 | LN17: 11 | LO17: 12 | LP17: 13 | LQ17: 14 | LR17: 15 | LS17: 16 | LT17: 17 | LU17: 18 | LV17: 19 | LW17: 20 | LX17: 21 | LY17: 22 | LZ17: 23 | MA17: 24 | MB17: 25 | MC17: 26 | MD17: 27 | ME17: 28 | MF17: 29 | MG17: 30 | MH17: 31 | MI17: 32 | MJ17: 33 | MK17: 34 | ML17: 35 | MM17: 36 | MN17: 37 | MO17: 38 | MP17: 39 | MQ17: 40 | MR17: 41 | MS17: 42 | MT17: 43 | MU17: 44 | MV17: 45 | MW17: 46 | MX17: 47 | MY17: 48 | MZ17: 49 | NA17: 50 | NB17: 51 | NC17: 52 | ND17: 53 | NE17: 54 | NF17: 55 | NG17: 56 | NH17: 57 | NI17: 58 | NJ17: 59 | NK17: 60 | NL17: 61 | NM17: 62 | NN17: 63 | NO17: 64 | NP17: 65 | NQ17: 66 | NR17: 67 | NS17: 68 | NT17: 69 | NU17: 70 | NV17: 71 | NW17: 72 | NX17: 73 | NY17: 74 | NZ17: 75 | OA17: 76 | OB17: 77 | OC17: 78 | OD17: 79 | OE17: 80 | OF17: 81 | OG17: 82 | OH17: 83 | OI17: 84 | OJ17: 85 | OK17: 86 | OL17: 87 | OM17: 88 | ON17: 89 | OO17: 90 | OP17: 91 | OQ17: 92 | OR17: 93 | OS17: 94 | OT17: 95 | OU17: 96 | OV17: 97 | OW17: 98 | OX17: 99 | OY17: 100 | PB17: Age Distribution | PC17: Ax | PD17: PV Claims
B18: Male Substd | C18: =HLOOKUP(B18,$C$8:$F$9,2,0) -> 1840.146405 | D18: ='Results Dashboard'!$B$11 -> 20 | E18: =IFERROR(IF(E$17<=25, VLOOKUP(E$17,'Base Mortality'!$A$6:$GU$31,$D18+IF(LEFT($B18,1)="M",104,2),FALSE), VLOOKUP($D18+E$17-1,IF(LEFT($B18,1)="M",'Base Mortality'!$CY$34:$CZ$154,'Base Mortality'!$A$34:$B$154),2,FALSE))* HLOOKUP(E$17,'Other Assumptions'!$B$3:$C$5,IF(LEFT($B18,1)="M",2,3),TRUE),"") -> 0.51 | F18: =IFERROR(IF(F$17<=25, VLOOKUP(F$17,'Base Mortality'!$A$6:$GU$31,$D18+IF(LEFT($B18,1)="M",104,2),FALSE), VLOOKUP($D18+F$17-1,IF(LEFT($B18,1)="M",'Base Mortality'!$CY$34:$CZ$154,'Base Mortality'!$A$34:$B$154),2,FALSE))* HLOOKUP(F$17,'Other Assumptions'!$B$3:$C$5,IF(LEFT($B18,1)="M",2,3),TRUE),"") -> 0.57 | G18: =IFERROR(IF(G$17<=25, VLOOKUP(G$17,'Base Mortality'!$A$6:$GU$31,$D18+IF(LEFT($B18,1)="M",104,2),FALSE), VLOOKUP($D18+G$17-1,IF(LEFT($B18,1)="M",'Base Mortality'!$CY$34:$CZ$154,'Base Mortality'!$A$34:$B$154),2,FALSE))* HLOOKUP(G$17,'Other Assumptions'!$B$3:$C$5,IF(LEFT($B18,1)="M",2,3),TRUE),"") -> 0.57 | H18: =IFERROR(IF(H$17<=25, VLOOKUP(H$17,'Base Mortality'!$A$6:$GU$31,$D18+IF(LEFT($B18,1)="M",104,2),FALSE), VLOOKUP($D18+H$17-1,IF(LEFT($B18,1)="M",'Base Mortality'!$CY$34:$CZ$154,'Base Mortality'!$A$34:$B$154),2,FALSE))* HLOOKUP(H$17,'Other Assumptions'!$B$3:$C$5,IF(LEFT($B18,1)="M",2,3),TRUE),"") -> 0.55 | I18: =IFERROR(IF(I$17<=25, VLOOKUP(I$17,'Base Mortality'!$A$6:$GU$31,$D18+IF(LEFT($B18,1)="M",104,2),FALSE), VLOOKUP($D18+I$17-1,IF(LEFT($B18,1)="M",'Base Mortality'!$CY$34:$CZ$154,'Base Mortality'!$A$34:$B$154),2,FALSE))* HLOOKUP(I$17,'Other Assumptions'!$B$3:$C$5,IF(LEFT($B18,1)="M",2,3),TRUE),"") -> 0.53 | J18: =IFERROR(IF(J$17<=25, VLOOKUP(J$17,'Base Mortality'!$A$6:$GU$31,$D18+IF(LEFT($B18,1)="M",104,2),FALSE), VLOOKUP($D18+J$17-1,IF(LEFT($B18,1)="M",'Base Mortality'!$CY$34:$CZ$154,'Base Mortality'!$A$34:$B$154),2,FALSE))* HLOOKUP(J$17,'Other Assumptions'!$B$3:$C$5,IF(LEFT($B18,1)="M",2,3),TRUE),"") -> 0.52 | K18: =IFERROR(IF(K$17<=25, VLOOKUP(K$17,'Base Mortality'!$A$6:$GU$31,$D18+IF(LEFT($B18,1)="M",104,2),FALSE), VLOOKUP($D18+K$17-1,IF(LEFT($B18,1)="M",'Base Mortality'!$CY$34:$CZ$154,'Base Mortality'!$A$34:$B$154),2,FALSE))* HLOOKUP(K$17,'Other Assumptions'!$B$3:$C$5,IF(LEFT($B18,1)="M",2,3),TRUE),"") -> 0.51 | L18: =IFERROR(IF(L$17<=25, VLOOKUP(L$17,'Base Mortality'!$A$6:$GU$31,$D18+IF(LEFT($B18,1)="M",104,2),FALSE), VLOOKUP($D18+L$17-1,IF(LEFT($B18,1)="M",'Base Mortality'!$CY$34:$CZ$154,'Base Mortality'!$A$34:$B$154),2,FALSE))* HLOOKUP(L$17,'Other Assumptions'!$B$3:$C$5,IF(LEFT($B18,1)="M",2,3),TRUE),"") -> 0.47 | M18: =IFERROR(IF(M$17<=25, VLOOKUP(M$17,'Base Mortality'!$A$6:$GU$31,$D18+IF(LEFT($B18,1)="M",104,2),FALSE), VLOOKUP($D18+M$17-1,IF(LEFT($B18,1)="M",'Base Mortality'!$CY$34:$CZ$154,'Base Mortality'!$A$34:$B$154),2,FALSE))* HLOOKUP(M$17,'Other Assumptions'!$B$3:$C$5,IF(LEFT($B18,1)="M",2,3),TRUE),"") -> 0.43 | N18: =IFERROR(IF(N$17<=25, VLOOKUP(N$17,'Base Mortality'!$A$6:$GU$31,$D18+IF(LEFT($B18,1)="M",104,2),FALSE), VLOOKUP($D18+N$17-1,IF(LEFT($B18,1)="M",'Base Mortality'!$CY$34:$CZ$154,'Base Mortality'!$A$34:$B$154),2,FALSE))* HLOOKUP(N$17,'Other Assumptions'!$B$3:$C$5,IF(LEFT($B18,1)="M",2,3),TRUE),"") -> 0.44 | O18: =IFERROR(IF(O$17<=25, VLOOKUP(O$17,'Base Mortality'!$A$6:$GU$31,$D18+IF(LEFT($B18,1)="M",104,2),FALSE), VLOOKUP($D18+O$17-1,IF(LEFT($B18,1)="M",'Base Mortality'!$CY$34:$CZ$154,'Base Mortality'!$A$34:$B$154),2,FALSE))* HLOOKUP(O$17,'Other Assumptions'!$B$3:$C$5,IF(LEFT($B18,1)="M",2,3),TRUE),"") -> 0.44 | P18: =IFERROR(IF(P$17<=25, VLOOKUP(P$17,'Base Mortality'!$A$6:$GU$31,$D18+IF(LEFT($B18,1)="M",104,2),FALSE), VLOOKUP($D18+P$17-1,IF(LEFT($B18,1)="M",'Base Mortality'!$CY$34:$CZ$154,'Base Mortality'!$A$34:$B$154),2,FALSE))* HLOOKUP(P$17,'Other Assumptions'!$B$3:$C$5,IF(LEFT($B18,1)="M",2,3),TRUE),"") -> 0.45 | Q18: =IFERROR(IF(Q$17<=25, VLOOKUP(Q$17,'Base Mortality'!$A$6:$GU$31,$D18+IF(LEFT($B18,1)="M",104,2),FALSE), VLOOKUP($D18+Q$17-1,IF(LEFT($B18,1)="M",'Base Mortality'!$CY$34:$CZ$154,'Base Mortality'!$A$34:$B$154),2,FALSE))* HLOOKUP(Q$17,'Other Assumptions'!$B$3:$C$5,IF(LEFT($B18,1)="M",2,3),TRUE),"") -> 0.46 | R18: =IFERROR(IF(R$17<=25, VLOOKUP(R$17,'Base Mortality'!$A$6:$GU$31,$D18+IF(LEFT($B18,1)="M",104,2),FALSE), VLOOKUP($D18+R$17-1,IF(LEFT($B18,1)="M",'Base Mortality'!$CY$34:$CZ$154,'Base Mortality'!$A$34:$B$154),2,FALSE))* HLOOKUP(R$17,'Other Assumptions'!$B$3:$C$5,IF(LEFT($B18,1)="M",2,3),TRUE),"") -> 0.51 | S18: =IFERROR(IF(S$17<=25, VLOOKUP(S$17,'Base Mortality'!$A$6:$GU$31,$D18+IF(LEFT($B18,1)="M",104,2),FALSE), VLOOKUP($D18+S$17-1,IF(LEFT($B18,1)="M",'Base Mortality'!$CY$34:$CZ$154,'Base Mortality'!$A$34:$B$154),2,FALSE))* HLOOKUP(S$17,'Other Assumptions'!$B$3:$C$5,IF(LEFT($B18,1)="M",2,3),TRUE),"") -> 0.57 | T18: =IFERROR(IF(T$17<=25, VLOOKUP(T$17,'Base Mortality'!$A$6:$GU$31,$D18+IF(LEFT($B18,1)="M",104,2),FALSE), VLOOKUP($D18+T$17-1,IF(LEFT($B18,1)="M",'Base Mortality'!$CY$34:$CZ$154,'Base Mortality'!$A$34:$B$154),2,FALSE))* HLOOKUP(T$17,'Other Assumptions'!$B$3:$C$5,IF(LEFT($B18,1)="M",2,3),TRUE),"") -> 0.62 | U18: =IFERROR(IF(U$17<=25, VLOOKUP(U$17,'Base Mortality'!$A$6:$GU$31,$D18+IF(LEFT($B18,1)="M",104,2),FALSE), VLOOKUP($D18+U$17-1,IF(LEFT($B18,1)="M",'Base Mortality'!$CY$34:$CZ$154,'Base Mortality'!$A$34:$B$154),2,FALSE))* HLOOKUP(U$17,'Other Assumptions'!$B$3:$C$5,IF(LEFT($B18,1)="M",2,3),TRUE),"") -> 0.71 | V18: =IFERROR(IF(V$17<=25, VLOOKUP(V$17,'Base Mortality'!$A$6:$GU$31,$D18+IF(LEFT($B18,1)="M",104,2),FALSE), VLOOKUP($D18+V$17-1,IF(LEFT($B18,1)="M",'Base Mortality'!$CY$34:$CZ$154,'Base Mortality'!$A$34:$B$154),2,FALSE))* HLOOKUP(V$17,'Other Assumptions'!$B$3:$C$5,IF(LEFT($B18,1)="M",2,3),TRUE),"") -> 0.82 | W18: =IFERROR(IF(W$17<=25, VLOOKUP(W$17,'Base Mortality'!$A$6:$GU$31,$D18+IF(LEFT($B18,1)="M",104,2),FALSE), VLOOKUP($D18+W$17-1,IF(LEFT($B18,1)="M",'Base Mortality'!$CY$34:$CZ$154,'Base Mortality'!$A$34:$B$154),2,FALSE))* HLOOKUP(W$17,'Other Assumptions'!$B$3:$C$5,IF(LEFT($B18,1)="M",2,3),TRUE),"") -> 0.94 | X18: =IFERROR(IF(X$17<=25, VLOOKUP(X$17,'Base Mortality'!$A$6:$GU$31,$D18+IF(LEFT($B18,1)="M",104,2),FALSE), VLOOKUP($D18+X$17-1,IF(LEFT($B18,1)="M",'Base Mortality'!$CY$34:$CZ$154,'Base Mortality'!$A$34:$B$154),2,FALSE))* HLOOKUP(X$17,'Other Assumptions'!$B$3:$C$5,IF(LEFT($B18,1)="M",2,3),TRUE),"") -> 1.07 | Y18: =IFERROR(IF(Y$17<=25, VLOOKUP(Y$17,'Base Mortality'!$A$6:$GU$31,$D18+IF(LEFT($B18,1)="M",104,2),FALSE), VLOOKUP($D18+Y$17-1,IF(LEFT($B18,1)="M",'Base Mortality'!$CY$34:$CZ$154,'Base Mortality'!$A$34:$B$154),2,FALSE))* HLOOKUP(Y$17,'Other Assumptions'!$B$3:$C$5,IF(LEFT($B18,1)="M",2,3),TRUE),"") -> 1.16 | Z18: =IFERROR(IF(Z$17<=25, VLOOKUP(Z$17,'Base Mortality'!$A$6:$GU$31,$D18+IF(LEFT($B18,1)="M",104,2),FALSE), VLOOKUP($D18+Z$17-1,IF(LEFT($B18,1)="M",'Base Mortality'!$CY$34:$CZ$154,'Base Mortality'!$A$34:$B$154),2,FALSE))* HLOOKUP(Z$17,'Other Assumptions'!$B$3:$C$5,IF(LEFT($B18,1)="M",2,3),TRUE),"") -> 1.22 | AA18: =IFERROR(IF(AA$17<=25, VLOOKUP(AA$17,'Base Mortality'!$A$6:$GU$31,$D18+IF(LEFT($B18,1)="M",104,2),FALSE), VLOOKUP($D18+AA$17-1,IF(LEFT($B18,1)="M",'Base Mortality'!$CY$34:$CZ$154,'Base Mortality'!$A$34:$B$154),2,FALSE))* HLOOKUP(AA$17,'Other Assumptions'!$B$3:$C$5,IF(LEFT($B18,1)="M",2,3),TRUE),"") -> 1.29 | AB18: =IFERROR(IF(AB$17<=25, VLOOKUP(AB$17,'Base Mortality'!$A$6:$GU$31,$D18+IF(LEFT($B18,1)="M",104,2),FALSE), VLOOKUP($D18+AB$17-1,IF(LEFT($B18,1)="M",'Base Mortality'!$CY$34:$CZ$154,'Base Mortality'!$A$34:$B$154),2,FALSE))* HLOOKUP(AB$17,'Other Assumptions'!$B$3:$C$5,IF(LEFT($B18,1)="M",2,3),TRUE),"") -> 1.38 | AC18: =IFERROR(IF(AC$17<=25, VLOOKUP(AC$17,'Base Mortality'!$A$6:$GU$31,$D18+IF(LEFT($B18,1)="M",104,2),FALSE), VLOOKUP($D18+AC$17-1,IF(LEFT($B18,1)="M",'Base Mortality'!$CY$34:$CZ$154,'Base Mortality'!$A$34:$B$154),2,FALSE))* HLOOKUP(AC$17,'Other Assumptions'!$B$3:$C$5,IF(LEFT($B18,1)="M",2,3),TRUE),"") -> 1.49 | AD18: =IFERROR(IF(AD$17<=25, VLOOKUP(AD$17,'Base Mortality'!$A$6:$GU$31,$D18+IF(LEFT($B18,1)="M",104,2),FALSE), VLOOKUP($D18+AD$17-1,IF(LEFT($B18,1)="M",'Base Mortality'!$CY$34:$CZ$154,'Base Mortality'!$A$34:$B$154),2,FALSE))* HLOOKUP(AD$17,'Other Assumptions'!$B$3:$C$5,IF(LEFT($B18,1)="M",2,3),TRUE),"") -> 0.9 | AE18: =IFERROR(IF(AE$17<=25, VLOOKUP(AE$17,'Base Mortality'!$A$6:$GU$31,$D18+IF(LEFT($B18,1)="M",104,2),FALSE), VLOOKUP($D18+AE$17-1,IF(LEFT($B18,1)="M",'Base Mortality'!$CY$34:$CZ$154,'Base Mortality'!$A$34:$B$154),2,FALSE))* HLOOKUP(AE$17,'Other Assumptions'!$B$3:$C$5,IF(LEFT($B18,1)="M",2,3),TRUE),"") -> 0.94 | AF18: =IFERROR(IF(AF$17<=25, VLOOKUP(AF$17,'Base Mortality'!$A$6:$GU$31,$D18+IF(LEFT($B18,1)="M",104,2),FALSE), VLOOKUP($D18+AF$17-1,IF(LEFT($B18,1)="M",'Base Mortality'!$CY$34:$CZ$154,'Base Mortality'!$A$34:$B$154),2,FALSE))* HLOOKUP(AF$17,'Other Assumptions'!$B$3:$C$5,IF(LEFT($B18,1)="M",2,3),TRUE),"") -> 0.99 | AG18: =IFERROR(IF(AG$17<=25, VLOOKUP(AG$17,'Base Mortality'!$A$6:$GU$31,$D18+IF(LEFT($B18,1)="M",104,2),FALSE), VLOOKUP($D18+AG$17-1,IF(LEFT($B18,1)="M",'Base Mortality'!$CY$34:$CZ$154,'Base Mortality'!$A$34:$B$154),2,FALSE))* HLOOKUP(AG$17,'Other Assumptions'!$B$3:$C$5,IF(LEFT($B18,1)="M",2,3),TRUE),"") -> 1.05 | AH18: =IFERROR(IF(AH$17<=25, VLOOKUP(AH$17,'Base Mortality'!$A$6:$GU$31,$D18+IF(LEFT($B18,1)="M",104,2),FALSE), VLOOKUP($D18+AH$17-1,IF(LEFT($B18,1)="M",'Base Mortality'!$CY$34:$CZ$154,'Base Mortality'!$A$34:$B$154),2,FALSE))* HLOOKUP(AH$17,'Other Assumptions'!$B$3:$C$5,IF(LEFT($B18,1)="M",2,3),TRUE),"") -> 1.13 | AI18: =IFERROR(IF(AI$17<=25, VLOOKUP(AI$17,'Base Mortality'!$A$6:$GU$31,$D18+IF(LEFT($B18,1)="M",104,2),FALSE), VLOOKUP($D18+AI$17-1,IF(LEFT($B18,1)="M",'Base Mortality'!$CY$34:$CZ$154,'Base Mortality'!$A$34:$B$154),2,FALSE))* HLOOKUP(AI$17,'Other Assumptions'!$B$3:$C$5,IF(LEFT($B18,1)="M",2,3),TRUE),"") -> 1.23 | AJ18: =IFERROR(IF(AJ$17<=25, VLOOKUP(AJ$17,'Base Mortality'!$A$6:$GU$31,$D18+IF(LEFT($B18,1)="M",104,2),FALSE), VLOOKUP($D18+AJ$17-1,IF(LEFT($B18,1)="M",'Base Mortality'!$CY$34:$CZ$154,'Base Mortality'!$A$34:$B$154),2,FALSE))* HLOOKUP(AJ$17,'Other Assumptions'!$B$3:$C$5,IF(LEFT($B18,1)="M",2,3),TRUE),"") -> 1.35 | AK18: =IFERROR(IF(AK$17<=25, VLOOKUP(AK$17,'Base Mortality'!$A$6:$GU$31,$D18+IF(LEFT($B18,1)="M",104,2),FALSE), VLOOKUP($D18+AK$17-1,IF(LEFT($B18,1)="M",'Base Mortality'!$CY$34:$CZ$154,'Base Mortality'!$A$34:$B$154),2,FALSE))* HLOOKUP(AK$17,'Other Assumptions'!$B$3:$C$5,IF(LEFT($B18,1)="M",2,3),TRUE),"") -> 1.51 | AL18: =IFERROR(IF(AL$17<=25, VLOOKUP(AL$17,'Base Mortality'!$A$6:$GU$31,$D18+IF(LEFT($B18,1)="M",104,2),FALSE), VLOOKUP($D18+AL$17-1,IF(LEFT($B18,1)="M",'Base Mortality'!$CY$34:$CZ$154,'Base Mortality'!$A$34:$B$154),2,FALSE))* HLOOKUP(AL$17,'Other Assumptions'!$B$3:$C$5,IF(LEFT($B18,1)="M",2,3),TRUE),"") -> 1.7 | AM18: =IFERROR(IF(AM$17<=25, VLOOKUP(AM$17,'Base Mortality'!$A$6:$GU$31,$D18+IF(LEFT($B18,1)="M",104,2),FALSE), VLOOKUP($D18+AM$17-1,IF(LEFT($B18,1)="M",'Base Mortality'!$CY$34:$CZ$154,'Base Mortality'!$A$34:$B$154),2,FALSE))* HLOOKUP(AM$17,'Other Assumptions'!$B$3:$C$5,IF(LEFT($B18,1)="M",2,3),TRUE),"") -> 1.9 | AN18: =IFERROR(IF(AN$17<=25, VLOOKUP(AN$17,'Base Mortality'!$A$6:$GU$31,$D18+IF(LEFT($B18,1)="M",104,2),FALSE), VLOOKUP($D18+AN$17-1,IF(LEFT($B18,1)="M",'Base Mortality'!$CY$34:$CZ$154,'Base Mortality'!$A$34:$B$154),2,FALSE))* HLOOKUP(AN$17,'Other Assumptions'!$B$3:$C$5,IF(LEFT($B18,1)="M",2,3),TRUE),"") -> 2.1 | AO18: =IFERROR(IF(AO$17<=25, VLOOKUP(AO$17,'Base Mortality'!$A$6:$GU$31,$D18+IF(LEFT($B18,1)="M",104,2),FALSE), VLOOKUP($D18+AO$17-1,IF(LEFT($B18,1)="M",'Base Mortality'!$CY$34:$CZ$154,'Base Mortality'!$A$34:$B$154),2,FALSE))* HLOOKUP(AO$17,'Other Assumptions'!$B$3:$C$5,IF(LEFT($B18,1)="M",2,3),TRUE),"") -> 2.3 | AP18: =IFERROR(IF(AP$17<=25, VLOOKUP(AP$17,'Base Mortality'!$A$6:$GU$31,$D18+IF(LEFT($B18,1)="M",104,2),FALSE), VLOOKUP($D18+AP$17-1,IF(LEFT($B18,1)="M",'Base Mortality'!$CY$34:$CZ$154,'Base Mortality'!$A$34:$B$154),2,FALSE))* HLOOKUP(AP$17,'Other Assumptions'!$B$3:$C$5,IF(LEFT($B18,1)="M",2,3),TRUE),"") -> 2.49 | AQ18: =IFERROR(IF(AQ$17<=25, VLOOKUP(AQ$17,'Base Mortality'!$A$6:$GU$31,$D18+IF(LEFT($B18,1)="M",104,2),FALSE), VLOOKUP($D18+AQ$17-1,IF(LEFT($B18,1)="M",'Base Mortality'!$CY$34:$CZ$154,'Base Mortality'!$A$34:$B$154),2,FALSE))* HLOOKUP(AQ$17,'Other Assumptions'!$B$3:$C$5,IF(LEFT($B18,1)="M",2,3),TRUE),"") -> 2.69 | AR18: =IFERROR(IF(AR$17<=25, VLOOKUP(AR$17,'Base Mortality'!$A$6:$GU$31,$D18+IF(LEFT($B18,1)="M",104,2),FALSE), VLOOKUP($D18+AR$17-1,IF(LEFT($B18,1)="M",'Base Mortality'!$CY$34:$CZ$154,'Base Mortality'!$A$34:$B$154),2,FALSE))* HLOOKUP(AR$17,'Other Assumptions'!$B$3:$C$5,IF(LEFT($B18,1)="M",2,3),TRUE),"") -> 2.91 | AS18: =IFERROR(IF(AS$17<=25, VLOOKUP(AS$17,'Base Mortality'!$A$6:$GU$31,$D18+IF(LEFT($B18,1)="M",104,2),FALSE), VLOOKUP($D18+AS$17-1,IF(LEFT($B18,1)="M",'Base Mortality'!$CY$34:$CZ$154,'Base Mortality'!$A$34:$B$154),2,FALSE))* HLOOKUP(AS$17,'Other Assumptions'!$B$3:$C$5,IF(LEFT($B18,1)="M",2,3),TRUE),"") -> 3.16 | AT18: =IFERROR(IF(AT$17<=25, VLOOKUP(AT$17,'Base Mortality'!$A$6:$GU$31,$D18+IF(LEFT($B18,1)="M",104,2),FALSE), VLOOKUP($D18+AT$17-1,IF(LEFT($B18,1)="M",'Base Mortality'!$CY$34:$CZ$154,'Base Mortality'!$A$34:$B$154),2,FALSE))* HLOOKUP(AT$17,'Other Assumptions'!$B$3:$C$5,IF(LEFT($B18,1)="M",2,3),TRUE),"") -> 3.46 | AU18: =IFERROR(IF(AU$17<=25, VLOOKUP(AU$17,'Base Mortality'!$A$6:$GU$31,$D18+IF(LEFT($B18,1)="M",104,2),FALSE), VLOOKUP($D18+AU$17-1,IF(LEFT($B18,1)="M",'Base Mortality'!$CY$34:$CZ$154,'Base Mortality'!$A$34:$B$154),2,FALSE))* HLOOKUP(AU$17,'Other Assumptions'!$B$3:$C$5,IF(LEFT($B18,1)="M",2,3),TRUE),"") -> 3.8 | AV18: =IFERROR(IF(AV$17<=25, VLOOKUP(AV$17,'Base Mortality'!$A$6:$GU$31,$D18+IF(LEFT($B18,1)="M",104,2),FALSE), VLOOKUP($D18+AV$17-1,IF(LEFT($B18,1)="M",'Base Mortality'!$CY$34:$CZ$154,'Base Mortality'!$A$34:$B$154),2,FALSE))* HLOOKUP(AV$17,'Other Assumptions'!$B$3:$C$5,IF(LEFT($B18,1)="M",2,3),TRUE),"") -> 4.19 | AW18: =IFERROR(IF(AW$17<=25, VLOOKUP(AW$17,'Base Mortality'!$A$6:$GU$31,$D18+IF(LEFT($B18,1)="M",104,2),FALSE), VLOOKUP($D18+AW$17-1,IF(LEFT($B18,1)="M",'Base Mortality'!$CY$34:$CZ$154,'Base Mortality'!$A$34:$B$154),2,FALSE))* HLOOKUP(AW$17,'Other Assumptions'!$B$3:$C$5,IF(LEFT($B18,1)="M",2,3),TRUE),"") -> 4.61 | AX18: =IFERROR(IF(AX$17<=25, VLOOKUP(AX$17,'Base Mortality'!$A$6:$GU$31,$D18+IF(LEFT($B18,1)="M",104,2),FALSE), VLOOKUP($D18+AX$17-1,IF(LEFT($B18,1)="M",'Base Mortality'!$CY$34:$CZ$154,'Base Mortality'!$A$34:$B$154),2,FALSE))* HLOOKUP(AX$17,'Other Assumptions'!$B$3:$C$5,IF(LEFT($B18,1)="M",2,3),TRUE),"") -> 5.06 | AY18: =IFERROR(IF(AY$17<=25, VLOOKUP(AY$17,'Base Mortality'!$A$6:$GU$31,$D18+IF(LEFT($B18,1)="M",104,2),FALSE), VLOOKUP($D18+AY$17-1,IF(LEFT($B18,1)="M",'Base Mortality'!$CY$34:$CZ$154,'Base Mortality'!$A$34:$B$154),2,FALSE))* HLOOKUP(AY$17,'Other Assumptions'!$B$3:$C$5,IF(LEFT($B18,1)="M",2,3),TRUE),"") -> 5.55 | AZ18: =IFERROR(IF(AZ$17<=25, VLOOKUP(AZ$17,'Base Mortality'!$A$6:$GU$31,$D18+IF(LEFT($B18,1)="M",104,2),FALSE), VLOOKUP($D18+AZ$17-1,IF(LEFT($B18,1)="M",'Base Mortality'!$CY$34:$CZ$154,'Base Mortality'!$A$34:$B$154),2,FALSE))* HLOOKUP(AZ$17,'Other Assumptions'!$B$3:$C$5,IF(LEFT($B18,1)="M",2,3),TRUE),"") -> 6.09 | BA18: =IFERROR(IF(BA$17<=25, VLOOKUP(BA$17,'Base Mortality'!$A$6:$GU$31,$D18+IF(LEFT($B18,1)="M",104,2),FALSE), VLOOKUP($D18+BA$17-1,IF(LEFT($B18,1)="M",'Base Mortality'!$CY$34:$CZ$154,'Base Mortality'!$A$34:$B$154),2,FALSE))* HLOOKUP(BA$17,'Other Assumptions'!$B$3:$C$5,IF(LEFT($B18,1)="M",2,3),TRUE),"") -> 6.68 | BB18: =IFERROR(IF(BB$17<=25, VLOOKUP(BB$17,'Base Mortality'!$A$6:$GU$31,$D18+IF(LEFT($B18,1)="M",104,2),FALSE), VLOOKUP($D18+BB$17-1,IF(LEFT($B18,1)="M",'Base Mortality'!$CY$34:$CZ$154,'Base Mortality'!$A$34:$B$154),2,FALSE))* HLOOKUP(BB$17,'Other Assumptions'!$B$3:$C$5,IF(LEFT($B18,1)="M",2,3),TRUE),"") -> 7.36 | BC18: =IFERROR(IF(BC$17<=25, VLOOKUP(BC$17,'Base Mortality'!$A$6:$GU$31,$D18+IF(LEFT($B18,1)="M",104,2),FALSE), VLOOKUP($D18+BC$17-1,IF(LEFT($B18,1)="M",'Base Mortality'!$CY$34:$CZ$154,'Base Mortality'!$A$34:$B$154),2,FALSE))* HLOOKUP(BC$17,'Other Assumptions'!$B$3:$C$5,IF(LEFT($B18,1)="M",2,3),TRUE),"") -> 8.16 | BD18: =IFERROR(IF(BD$17<=25, VLOOKUP(BD$17,'Base Mortality'!$A$6:$GU$31,$D18+IF(LEFT($B18,1)="M",104,2),FALSE), VLOOKUP($D18+BD$17-1,IF(LEFT($B18,1)="M",'Base Mortality'!$CY$34:$CZ$154,'Base Mortality'!$A$34:$B$154),2,FALSE))* HLOOKUP(BD$17,'Other Assumptions'!$B$3:$C$5,IF(LEFT($B18,1)="M",2,3),TRUE),"") -> 9.11 | BE18: =IFERROR(IF(BE$17<=25, VLOOKUP(BE$17,'Base Mortality'!$A$6:$GU$31,$D18+IF(LEFT($B18,1)="M",104,2),FALSE), VLOOKUP($D18+BE$17-1,IF(LEFT($B18,1)="M",'Base Mortality'!$CY$34:$CZ$154,'Base Mortality'!$A$34:$B$154),2,FALSE))* HLOOKUP(BE$17,'Other Assumptions'!$B$3:$C$5,IF(LEFT($B18,1)="M",2,3),TRUE),"") -> 10.22 | BF18: =IFERROR(IF(BF$17<=25, VLOOKUP(BF$17,'Base Mortality'!$A$6:$GU$31,$D18+IF(LEFT($B18,1)="M",104,2),FALSE), VLOOKUP($D18+BF$17-1,IF(LEFT($B18,1)="M",'Base Mortality'!$CY$34:$CZ$154,'Base Mortality'!$A$34:$B$154),2,FALSE))* HLOOKUP(BF$17,'Other Assumptions'!$B$3:$C$5,IF(LEFT($B18,1)="M",2,3),TRUE),"") -> 11.52 | BG18: =IFERROR(IF(BG$17<=25, VLOOKUP(BG$17,'Base Mortality'!$A$6:$GU$31,$D18+IF(LEFT($B18,1)="M",104,2),FALSE), VLOOKUP($D18+BG$17-1,IF(LEFT($B18,1)="M",'Base Mortality'!$CY$34:$CZ$154,'Base Mortality'!$A$34:$B$154),2,FALSE))* HLOOKUP(BG$17,'Other Assumptions'!$B$3:$C$5,IF(LEFT($B18,1)="M",2,3),TRUE),"") -> 13.03 | BH18: =IFERROR(IF(BH$17<=25, VLOOKUP(BH$17,'Base Mortality'!$A$6:$GU$31,$D18+IF(LEFT($B18,1)="M",104,2),FALSE), VLOOKUP($D18+BH$17-1,IF(LEFT($B18,1)="M",'Base Mortality'!$CY$34:$CZ$154,'Base Mortality'!$A$34:$B$154),2,FALSE))* HLOOKUP(BH$17,'Other Assumptions'!$B$3:$C$5,IF(LEFT($B18,1)="M",2,3),TRUE),"") -> 14.75 | BI18: =IFERROR(IF(BI$17<=25, VLOOKUP(BI$17,'Base Mortality'!$A$6:$GU$31,$D18+IF(LEFT($B18,1)="M",104,2),FALSE), VLOOKUP($D18+BI$17-1,IF(LEFT($B18,1)="M",'Base Mortality'!$CY$34:$CZ$154,'Base Mortality'!$A$34:$B$154),2,FALSE))* HLOOKUP(BI$17,'Other Assumptions'!$B$3:$C$5,IF(LEFT($B18,1)="M",2,3),TRUE),"") -> 16.74 | BJ18: =IFERROR(IF(BJ$17<=25, VLOOKUP(BJ$17,'Base Mortality'!$A$6:$GU$31,$D18+IF(LEFT($B18,1)="M",104,2),FALSE), VLOOKUP($D18+BJ$17-1,IF(LEFT($B18,1)="M",'Base Mortality'!$CY$34:$CZ$154,'Base Mortality'!$A$34:$B$154),2,FALSE))* HLOOKUP(BJ$17,'Other Assumptions'!$B$3:$C$5,IF(LEFT($B18,1)="M",2,3),TRUE),"") -> 19.06 | BK18: =IFERROR(IF(BK$17<=25, VLOOKUP(BK$17,'Base Mortality'!$A$6:$GU$31,$D18+IF(LEFT($B18,1)="M",104,2),FALSE), VLOOKUP($D18+BK$17-1,IF(LEFT($B18,1)="M",'Base Mortality'!$CY$34:$CZ$154,'Base Mortality'!$A$34:$B$154),2,FALSE))* HLOOKUP(BK$17,'Other Assumptions'!$B$3:$C$5,IF(LEFT($B18,1)="M",2,3),TRUE),"") -> 21.79 | BL18: =IFERROR(IF(BL$17<=25, VLOOKUP(BL$17,'Base Mortality'!$A$6:$GU$31,$D18+IF(LEFT($B18,1)="M",104,2),FALSE), VLOOKUP($D18+BL$17-1,IF(LEFT($B18,1)="M",'Base Mortality'!$CY$34:$CZ$154,'Base Mortality'!$A$34:$B$154),2,FALSE))* HLOOKUP(BL$17,'Other Assumptions'!$B$3:$C$5,IF(LEFT($B18,1)="M",2,3),TRUE),"") -> 25.08 | BM18: =IFERROR(IF(BM$17<=25, VLOOKUP(BM$17,'Base Mortality'!$A$6:$GU$31,$D18+IF(LEFT($B18,1)="M",104,2),FALSE), VLOOKUP($D18+BM$17-1,IF(LEFT($B18,1)="M",'Base Mortality'!$CY$34:$CZ$154,'Base Mortality'!$A$34:$B$154),2,FALSE))* HLOOKUP(BM$17,'Other Assumptions'!$B$3:$C$5,IF(LEFT($B18,1)="M",2,3),TRUE),"") -> 28.96 | BN18: =IFERROR(IF(BN$17<=25, VLOOKUP(BN$17,'Base Mortality'!$A$6:$GU$31,$D18+IF(LEFT($B18,1)="M",104,2),FALSE), VLOOKUP($D18+BN$17-1,IF(LEFT($B18,1)="M",'Base Mortality'!$CY$34:$CZ$154,'Base Mortality'!$A$34:$B$154),2,FALSE))* HLOOKUP(BN$17,'Other Assumptions'!$B$3:$C$5,IF(LEFT($B18,1)="M",2,3),TRUE),"") -> 33.07 | BO18: =IFERROR(IF(BO$17<=25, VLOOKUP(BO$17,'Base Mortality'!$A$6:$GU$31,$D18+IF(LEFT($B18,1)="M",104,2),FALSE), VLOOKUP($D18+BO$17-1,IF(LEFT($B18,1)="M",'Base Mortality'!$CY$34:$CZ$154,'Base Mortality'!$A$34:$B$154),2,FALSE))* HLOOKUP(BO$17,'Other Assumptions'!$B$3:$C$5,IF(LEFT($B18,1)="M",2,3),TRUE),"") -> 37.34 | BP18: =IFERROR(IF(BP$17<=25, VLOOKUP(BP$17,'Base Mortality'!$A$6:$GU$31,$D18+IF(LEFT($B18,1)="M",104,2),FALSE), VLOOKUP($D18+BP$17-1,IF(LEFT($B18,1)="M",'Base Mortality'!$CY$34:$CZ$154,'Base Mortality'!$A$34:$B$154),2,FALSE))* HLOOKUP(BP$17,'Other Assumptions'!$B$3:$C$5,IF(LEFT($B18,1)="M",2,3),TRUE),"") -> 42.23 | BQ18: =IFERROR(IF(BQ$17<=25, VLOOKUP(BQ$17,'Base Mortality'!$A$6:$GU$31,$D18+IF(LEFT($B18,1)="M",104,2),FALSE), VLOOKUP($D18+BQ$17-1,IF(LEFT($B18,1)="M",'Base Mortality'!$CY$34:$CZ$154,'Base Mortality'!$A$34:$B$154),2,FALSE))* HLOOKUP(BQ$17,'Other Assumptions'!$B$3:$C$5,IF(LEFT($B18,1)="M",2,3),TRUE),"") -> 48.98 | BR18: =IFERROR(IF(BR$17<=25, VLOOKUP(BR$17,'Base Mortality'!$A$6:$GU$31,$D18+IF(LEFT($B18,1)="M",104,2),FALSE), VLOOKUP($D18+BR$17-1,IF(LEFT($B18,1)="M",'Base Mortality'!$CY$34:$CZ$154,'Base Mortality'!$A$34:$B$154),2,FALSE))* HLOOKUP(BR$17,'Other Assumptions'!$B$3:$C$5,IF(LEFT($B18,1)="M",2,3),TRUE),"") -> 56.73 | BS18: =IFERROR(IF(BS$17<=25, VLOOKUP(BS$17,'Base Mortality'!$A$6:$GU$31,$D18+IF(LEFT($B18,1)="M",104,2),FALSE), VLOOKUP($D18+BS$17-1,IF(LEFT($B18,1)="M",'Base Mortality'!$CY$34:$CZ$154,'Base Mortality'!$A$34:$B$154),2,FALSE))* HLOOKUP(BS$17,'Other Assumptions'!$B$3:$C$5,IF(LEFT($B18,1)="M",2,3),TRUE),"") -> 64.43 | BT18: =IFERROR(IF(BT$17<=25, VLOOKUP(BT$17,'Base Mortality'!$A$6:$GU$31,$D18+IF(LEFT($B18,1)="M",104,2),FALSE), VLOOKUP($D18+BT$17-1,IF(LEFT($B18,1)="M",'Base Mortality'!$CY$34:$CZ$154,'Base Mortality'!$A$34:$B$154),2,FALSE))* HLOOKUP(BT$17,'Other Assumptions'!$B$3:$C$5,IF(LEFT($B18,1)="M",2,3),TRUE),"") -> 73.25 | BU18: =IFERROR(IF(BU$17<=25, VLOOKUP(BU$17,'Base Mortality'!$A$6:$GU$31,$D18+IF(LEFT($B18,1)="M",104,2),FALSE), VLOOKUP($D18+BU$17-1,IF(LEFT($B18,1)="M",'Base Mortality'!$CY$34:$CZ$154,'Base Mortality'!$A$34:$B$154),2,FALSE))* HLOOKUP(BU$17,'Other Assumptions'!$B$3:$C$5,IF(LEFT($B18,1)="M",2,3),TRUE),"") -> 83.31 | BV18: =IFERROR(IF(BV$17<=25, VLOOKUP(BV$17,'Base Mortality'!$A$6:$GU$31,$D18+IF(LEFT($B18,1)="M",104,2),FALSE), VLOOKUP($D18+BV$17-1,IF(LEFT($B18,1)="M",'Base Mortality'!$CY$34:$CZ$154,'Base Mortality'!$A$34:$B$154),2,FALSE))* HLOOKUP(BV$17,'Other Assumptions'!$B$3:$C$5,IF(LEFT($B18,1)="M",2,3),TRUE),"") -> 94.39 | BW18: =IFERROR(IF(BW$17<=25, VLOOKUP(BW$17,'Base Mortality'!$A$6:$GU$31,$D18+IF(LEFT($B18,1)="M",104,2),FALSE), VLOOKUP($D18+BW$17-1,IF(LEFT($B18,1)="M",'Base Mortality'!$CY$34:$CZ$154,'Base Mortality'!$A$34:$B$154),2,FALSE))* HLOOKUP(BW$17,'Other Assumptions'!$B$3:$C$5,IF(LEFT($B18,1)="M",2,3),TRUE),"") -> 106.38 | BX18: =IFERROR(IF(BX$17<=25, VLOOKUP(BX$17,'Base Mortality'!$A$6:$GU$31,$D18+IF(LEFT($B18,1)="M",104,2),FALSE), VLOOKUP($D18+BX$17-1,IF(LEFT($B18,1)="M",'Base Mortality'!$CY$34:$CZ$154,'Base Mortality'!$A$34:$B$154),2,FALSE))* HLOOKUP(BX$17,'Other Assumptions'!$B$3:$C$5,IF(LEFT($B18,1)="M",2,3),TRUE),"") -> 119.27 | BY18: =IFERROR(IF(BY$17<=25, VLOOKUP(BY$17,'Base Mortality'!$A$6:$GU$31,$D18+IF(LEFT($B18,1)="M",104,2),FALSE), VLOOKUP($D18+BY$17-1,IF(LEFT($B18,1)="M",'Base Mortality'!$CY$34:$CZ$154,'Base Mortality'!$A$34:$B$154),2,FALSE))* HLOOKUP(BY$17,'Other Assumptions'!$B$3:$C$5,IF(LEFT($B18,1)="M",2,3),TRUE),"") -> 133.19 | BZ18: =IFERROR(IF(BZ$17<=25, VLOOKUP(BZ$17,'Base Mortality'!$A$6:$GU$31,$D18+IF(LEFT($B18,1)="M",104,2),FALSE), VLOOKUP($D18+BZ$17-1,IF(LEFT($B18,1)="M",'Base Mortality'!$CY$34:$CZ$154,'Base Mortality'!$A$34:$B$154),2,FALSE))* HLOOKUP(BZ$17,'Other Assumptions'!$B$3:$C$5,IF(LEFT($B18,1)="M",2,3),TRUE),"") -> 147.81 | CA18: =IFERROR(IF(CA$17<=25, VLOOKUP(CA$17,'Base Mortality'!$A$6:$GU$31,$D18+IF(LEFT($B18,1)="M",104,2),FALSE), VLOOKUP($D18+CA$17-1,IF(LEFT($B18,1)="M",'Base Mortality'!$CY$34:$CZ$154,'Base Mortality'!$A$34:$B$154),2,FALSE))* HLOOKUP(CA$17,'Other Assumptions'!$B$3:$C$5,IF(LEFT($B18,1)="M",2,3),TRUE),"") -> 163.12 | CB18: =IFERROR(IF(CB$17<=25, VLOOKUP(CB$17,'Base Mortality'!$A$6:$GU$31,$D18+IF(LEFT($B18,1)="M",104,2),FALSE), VLOOKUP($D18+CB$17-1,IF(LEFT($B18,1)="M",'Base Mortality'!$CY$34:$CZ$154,'Base Mortality'!$A$34:$B$154),2,FALSE))* HLOOKUP(CB$17,'Other Assumptions'!$B$3:$C$5,IF(LEFT($B18,1)="M",2,3),TRUE),"") -> 180.74 | CC18: =IFERROR(IF(CC$17<=25, VLOOKUP(CC$17,'Base Mortality'!$A$6:$GU$31,$D18+IF(LEFT($B18,1)="M",104,2),FALSE), VLOOKUP($D18+CC$17-1,IF(LEFT($B18,1)="M",'Base Mortality'!$CY$34:$CZ$154,'Base Mortality'!$A$34:$B$154),2,FALSE))* HLOOKUP(CC$17,'Other Assumptions'!$B$3:$C$5,IF(LEFT($B18,1)="M",2,3),TRUE),"") -> 201.27 | CD18: =IFERROR(IF(CD$17<=25, VLOOKUP(CD$17,'Base Mortality'!$A$6:$GU$31,$D18+IF(LEFT($B18,1)="M",104,2),FALSE), VLOOKUP($D18+CD$17-1,IF(LEFT($B18,1)="M",'Base Mortality'!$CY$34:$CZ$154,'Base Mortality'!$A$34:$B$154),2,FALSE))* HLOOKUP(CD$17,'Other Assumptions'!$B$3:$C$5,IF(LEFT($B18,1)="M",2,3),TRUE),"") -> 223.74 | CE18: =IFERROR(IF(CE$17<=25, VLOOKUP(CE$17,'Base Mortality'!$A$6:$GU$31,$D18+IF(LEFT($B18,1)="M",104,2),FALSE), VLOOKUP($D18+CE$17-1,IF(LEFT($B18,1)="M",'Base Mortality'!$CY$34:$CZ$154,'Base Mortality'!$A$34:$B$154),2,FALSE))* HLOOKUP(CE$17,'Other Assumptions'!$B$3:$C$5,IF(LEFT($B18,1)="M",2,3),TRUE),"") -> 248.02 | CF18: =IFERROR(IF(CF$17<=25, VLOOKUP(CF$17,'Base Mortality'!$A$6:$GU$31,$D18+IF(LEFT($B18,1)="M",104,2),FALSE), VLOOKUP($D18+CF$17-1,IF(LEFT($B18,1)="M",'Base Mortality'!$CY$34:$CZ$154,'Base Mortality'!$A$34:$B$154),2,FALSE))* HLOOKUP(CF$17,'Other Assumptions'!$B$3:$C$5,IF(LEFT($B18,1)="M",2,3),TRUE),"") -> 273.79 | CG18: =IFERROR(IF(CG$17<=25, VLOOKUP(CG$17,'Base Mortality'!$A$6:$GU$31,$D18+IF(LEFT($B18,1)="M",104,2),FALSE), VLOOKUP($D18+CG$17-1,IF(LEFT($B18,1)="M",'Base Mortality'!$CY$34:$CZ$154,'Base Mortality'!$A$34:$B$154),2,FALSE))* HLOOKUP(CG$17,'Other Assumptions'!$B$3:$C$5,IF(LEFT($B18,1)="M",2,3),TRUE),"") -> 299.21 | CH18: =IFERROR(IF(CH$17<=25, VLOOKUP(CH$17,'Base Mortality'!$A$6:$GU$31,$D18+IF(LEFT($B18,1)="M",104,2),FALSE), VLOOKUP($D18+CH$17-1,IF(LEFT($B18,1)="M",'Base Mortality'!$CY$34:$CZ$154,'Base Mortality'!$A$34:$B$154),2,FALSE))* HLOOKUP(CH$17,'Other Assumptions'!$B$3:$C$5,IF(LEFT($B18,1)="M",2,3),TRUE),"") -> 323.14 | CI18: =IFERROR(IF(CI$17<=25, VLOOKUP(CI$17,'Base Mortality'!$A$6:$GU$31,$D18+IF(LEFT($B18,1)="M",104,2),FALSE), VLOOKUP($D18+CI$17-1,IF(LEFT($B18,1)="M",'Base Mortality'!$CY$34:$CZ$154,'Base Mortality'!$A$34:$B$154),2,FALSE))* HLOOKUP(CI$17,'Other Assumptions'!$B$3:$C$5,IF(LEFT($B18,1)="M",2,3),TRUE),"") -> 346.98 | CJ18: =IFERROR(IF(CJ$17<=25, VLOOKUP(CJ$17,'Base Mortality'!$A$6:$GU$31,$D18+IF(LEFT($B18,1)="M",104,2),FALSE), VLOOKUP($D18+CJ$17-1,IF(LEFT($B18,1)="M",'Base Mortality'!$CY$34:$CZ$154,'Base Mortality'!$A$34:$B$154),2,FALSE))* HLOOKUP(CJ$17,'Other Assumptions'!$B$3:$C$5,IF(LEFT($B18,1)="M",2,3),TRUE),"") -> 370.36 | CK18: =IFERROR(IF(CK$17<=25, VLOOKUP(CK$17,'Base Mortality'!$A$6:$GU$31,$D18+IF(LEFT($B18,1)="M",104,2),FALSE), VLOOKUP($D18+CK$17-1,IF(LEFT($B18,1)="M",'Base Mortality'!$CY$34:$CZ$154,'Base Mortality'!$A$34:$B$154),2,FALSE))* HLOOKUP(CK$17,'Other Assumptions'!$B$3:$C$5,IF(LEFT($B18,1)="M",2,3),TRUE),"") -> 392.92 | CL18: =IFERROR(IF(CL$17<=25, VLOOKUP(CL$17,'Base Mortality'!$A$6:$GU$31,$D18+IF(LEFT($B18,1)="M",104,2),FALSE), VLOOKUP($D18+CL$17-1,IF(LEFT($B18,1)="M",'Base Mortality'!$CY$34:$CZ$154,'Base Mortality'!$A$34:$B$154),2,FALSE))* HLOOKUP(CL$17,'Other Assumptions'!$B$3:$C$5,IF(LEFT($B18,1)="M",2,3),TRUE),"") -> 414.3 | CM18: =IFERROR(IF(CM$17<=25, VLOOKUP(CM$17,'Base Mortality'!$A$6:$GU$31,$D18+IF(LEFT($B18,1)="M",104,2),FALSE), VLOOKUP($D18+CM$17-1,IF(LEFT($B18,1)="M",'Base Mortality'!$CY$34:$CZ$154,'Base Mortality'!$A$34:$B$154),2,FALSE))* HLOOKUP(CM$17,'Other Assumptions'!$B$3:$C$5,IF(LEFT($B18,1)="M",2,3),TRUE),"") -> 434.13 | CN18: =IFERROR(IF(CN$17<=25, VLOOKUP(CN$17,'Base Mortality'!$A$6:$GU$31,$D18+IF(LEFT($B18,1)="M",104,2),FALSE), VLOOKUP($D18+CN$17-1,IF(LEFT($B18,1)="M",'Base Mortality'!$CY$34:$CZ$154,'Base Mortality'!$A$34:$B$154),2,FALSE))* HLOOKUP(CN$17,'Other Assumptions'!$B$3:$C$5,IF(LEFT($B18,1)="M",2,3),TRUE),"") -> 452.05 | CO18: =IFERROR(IF(CO$17<=25, VLOOKUP(CO$17,'Base Mortality'!$A$6:$GU$31,$D18+IF(LEFT($B18,1)="M",104,2),FALSE), VLOOKUP($D18+CO$17-1,IF(LEFT($B18,1)="M",'Base Mortality'!$CY$34:$CZ$154,'Base Mortality'!$A$34:$B$154),2,FALSE))* HLOOKUP(CO$17,'Other Assumptions'!$B$3:$C$5,IF(LEFT($B18,1)="M",2,3),TRUE),"") -> 467.69 | CP18: =IFERROR(IF(CP$17<=25, VLOOKUP(CP$17,'Base Mortality'!$A$6:$GU$31,$D18+IF(LEFT($B18,1)="M",104,2),FALSE), VLOOKUP($D18+CP$17-1,IF(LEFT($B18,1)="M",'Base Mortality'!$CY$34:$CZ$154,'Base Mortality'!$A$34:$B$154),2,FALSE))* HLOOKUP(CP$17,'Other Assumptions'!$B$3:$C$5,IF(LEFT($B18,1)="M",2,3),TRUE),"") -> 480.68 | CQ18: =IFERROR(IF(CQ$17<=25, VLOOKUP(CQ$17,'Base Mortality'!$A$6:$GU$31,$D18+IF(LEFT($B18,1)="M",104,2),FALSE), VLOOKUP($D18+CQ$17-1,IF(LEFT($B18,1)="M",'Base Mortality'!$CY$34:$CZ$154,'Base Mortality'!$A$34:$B$154),2,FALSE))* HLOOKUP(CQ$17,'Other Assumptions'!$B$3:$C$5,IF(LEFT($B18,1)="M",2,3),TRUE),"") -> 490.65 | CR18: =IFERROR(IF(CR$17<=25, VLOOKUP(CR$17,'Base Mortality'!$A$6:$GU$31,$D18+IF(LEFT($B18,1)="M",104,2),FALSE), VLOOKUP($D18+CR$17-1,IF(LEFT($B18,1)="M",'Base Mortality'!$CY$34:$CZ$154,'Base Mortality'!$A$34:$B$154),2,FALSE))* HLOOKUP(CR$17,'Other Assumptions'!$B$3:$C$5,IF(LEFT($B18,1)="M",2,3),TRUE),"") -> 497.23 | CS18: =IFERROR(IF(CS$17<=25, VLOOKUP(CS$17,'Base Mortality'!$A$6:$GU$31,$D18+IF(LEFT($B18,1)="M",104,2),FALSE), VLOOKUP($D18+CS$17-1,IF(LEFT($B18,1)="M",'Base Mortality'!$CY$34:$CZ$154,'Base Mortality'!$A$34:$B$154),2,FALSE))* HLOOKUP(CS$17,'Other Assumptions'!$B$3:$C$5,IF(LEFT($B18,1)="M",2,3),TRUE),"") -> 500 | CT18: =IFERROR(IF(CT$17<=25, VLOOKUP(CT$17,'Base Mortality'!$A$6:$GU$31,$D18+IF(LEFT($B18,1)="M",104,2),FALSE), VLOOKUP($D18+CT$17-1,IF(LEFT($B18,1)="M",'Base Mortality'!$CY$34:$CZ$154,'Base Mortality'!$A$34:$B$154),2,FALSE))* HLOOKUP(CT$17,'Other Assumptions'!$B$3:$C$5,IF(LEFT($B18,1)="M",2,3),TRUE),"") -> 500 | CU18: =IFERROR(IF(CU$17<=25, VLOOKUP(CU$17,'Base Mortality'!$A$6:$GU$31,$D18+IF(LEFT($B18,1)="M",104,2),FALSE), VLOOKUP($D18+CU$17-1,IF(LEFT($B18,1)="M",'Base Mortality'!$CY$34:$CZ$154,'Base Mortality'!$A$34:$B$154),2,FALSE))* HLOOKUP(CU$17,'Other Assumptions'!$B$3:$C$5,IF(LEFT($B18,1)="M",2,3),TRUE),"") -> 500 | CV18: =IFERROR(IF(CV$17<=25, VLOOKUP(CV$17,'Base Mortality'!$A$6:$GU$31,$D18+IF(LEFT($B18,1)="M",104,2),FALSE), VLOOKUP($D18+CV$17-1,IF(LEFT($B18,1)="M",'Base Mortality'!$CY$34:$CZ$154,'Base Mortality'!$A$34:$B$154),2,FALSE))* HLOOKUP(CV$17,'Other Assumptions'!$B$3:$C$5,IF(LEFT($B18,1)="M",2,3),TRUE),"") -> 500 | CW18: =IFERROR(IF(CW$17<=25, VLOOKUP(CW$17,'Base Mortality'!$A$6:$GU$31,$D18+IF(LEFT($B18,1)="M",104,2),FALSE), VLOOKUP($D18+CW$17-1,IF(LEFT($B18,1)="M",'Base Mortality'!$CY$34:$CZ$154,'Base Mortality'!$A$34:$B$154),2,FALSE))* HLOOKUP(CW$17,'Other Assumptions'!$B$3:$C$5,IF(LEFT($B18,1)="M",2,3),TRUE),"") -> 500 | CX18: =IFERROR(IF(CX$17<=25, VLOOKUP(CX$17,'Base Mortality'!$A$6:$GU$31,$D18+IF(LEFT($B18,1)="M",104,2),FALSE), VLOOKUP($D18+CX$17-1,IF(LEFT($B18,1)="M",'Base Mortality'!$CY$34:$CZ$154,'Base Mortality'!$A$34:$B$154),2,FALSE))* HLOOKUP(CX$17,'Other Assumptions'!$B$3:$C$5,IF(LEFT($B18,1)="M",2,3),TRUE),"") -> 500 | CY18: =IFERROR(IF(CY$17<=25, VLOOKUP(CY$17,'Base Mortality'!$A$6:$GU$31,$D18+IF(LEFT($B18,1)="M",104,2),FALSE), VLOOKUP($D18+CY$17-1,IF(LEFT($B18,1)="M",'Base Mortality'!$CY$34:$CZ$154,'Base Mortality'!$A$34:$B$154),2,FALSE))* HLOOKUP(CY$17,'Other Assumptions'!$B$3:$C$5,IF(LEFT($B18,1)="M",2,3),TRUE),"") -> 500 | CZ18: =IFERROR(IF(CZ$17<=25, VLOOKUP(CZ$17,'Base Mortality'!$A$6:$GU$31,$D18+IF(LEFT($B18,1)="M",104,2),FALSE), VLOOKUP($D18+CZ$17-1,IF(LEFT($B18,1)="M",'Base Mortality'!$CY$34:$CZ$154,'Base Mortality'!$A$34:$B$154),2,FALSE))* HLOOKUP(CZ$17,'Other Assumptions'!$B$3:$C$5,IF(LEFT($B18,1)="M",2,3),TRUE),"") -> 500 | DA18: =IFERROR(IF(DA$17<=25, VLOOKUP(DA$17,'Base Mortality'!$A$6:$GU$31,$D18+IF(LEFT($B18,1)="M",104,2),FALSE), VLOOKUP($D18+DA$17-1,IF(LEFT($B18,1)="M",'Base Mortality'!$CY$34:$CZ$154,'Base Mortality'!$A$34:$B$154),2,FALSE))* HLOOKUP(DA$17,'Other Assumptions'!$B$3:$C$5,IF(LEFT($B18,1)="M",2,3),TRUE),"") -> 500 | DC18: =MIN(1000,IFERROR(IF(RIGHT($B18,6)="Substd",IF(VLOOKUP($A$9,$A$9:$CK$9,MIN(8+DC$17,48),FALSE)>0,VLOOKUP($A$9,$A$9:$CK$9,MIN(8+DC$17,48),FALSE)*IF(LEFT($B18,1)="M",MUlt,FUlt)*VLOOKUP($D18+DC$17-1,IF(LEFT($B18,1)="M",'Base Mortality'!$CY$34:$CZ$154,'Base Mortality'!$A$34:$B$154),2,FALSE), IF( Condition="Dilated Cardiomyopathy (DCM)",Flat_addition*HLOOKUP($D18,DCM_Grading_Pattern,DC$17+1,0)*1000,VLOOKUP($A$9,$A$9:$CK$9,MIN(49+DC$17,89),FALSE))),0),0)) -> 0 | DD18: =MIN(1000,IFERROR(IF(RIGHT($B18,6)="Substd",IF(VLOOKUP($A$9,$A$9:$CK$9,MIN(8+DD$17,48),FALSE)>0,VLOOKUP($A$9,$A$9:$CK$9,MIN(8+DD$17,48),FALSE)*IF(LEFT($B18,1)="M",MUlt,FUlt)*VLOOKUP($D18+DD$17-1,IF(LEFT($B18,1)="M",'Base Mortality'!$CY$34:$CZ$154,'Base Mortality'!$A$34:$B$154),2,FALSE), IF( Condition="Dilated Cardiomyopathy (DCM)",Flat_addition*HLOOKUP($D18,DCM_Grading_Pattern,DD$17+1,0)*1000,VLOOKUP($A$9,$A$9:$CK$9,MIN(49+DD$17,89),FALSE))),0),0)) -> 0 | DE18: =MIN(1000,IFERROR(IF(RIGHT($B18,6)="Substd",IF(VLOOKUP($A$9,$A$9:$CK$9,MIN(8+DE$17,48),FALSE)>0,VLOOKUP($A$9,$A$9:$CK$9,MIN(8+DE$17,48),FALSE)*IF(LEFT($B18,1)="M",MUlt,FUlt)*VLOOKUP($D18+DE$17-1,IF(LEFT($B18,1)="M",'Base Mortality'!$CY$34:$CZ$154,'Base Mortality'!$A$34:$B$154),2,FALSE), IF( Condition="Dilated Cardiomyopathy (DCM)",Flat_addition*HLOOKUP($D18,DCM_Grading_Pattern,DE$17+1,0)*1000,VLOOKUP($A$9,$A$9:$CK$9,MIN(49+DE$17,89),FALSE))),0),0)) -> 0 | DF18: =MIN(1000,IFERROR(IF(RIGHT($B18,6)="Substd",IF(VLOOKUP($A$9,$A$9:$CK$9,MIN(8+DF$17,48),FALSE)>0,VLOOKUP($A$9,$A$9:$CK$9,MIN(8+DF$17,48),FALSE)*IF(LEFT($B18,1)="M",MUlt,FUlt)*VLOOKUP($D18+DF$17-1,IF(LEFT($B18,1)="M",'Base Mortality'!$CY$34:$CZ$154,'Base Mortality'!$A$34:$B$154),2,FALSE), IF( Condition="Dilated Cardiomyopathy (DCM)",Flat_addition*HLOOKUP($D18,DCM_Grading_Pattern,DF$17+1,0)*1000,VLOOKUP($A$9,$A$9:$CK$9,MIN(49+DF$17,89),FALSE))),0),0)) -> 0 | DG18: =MIN(1000,IFERROR(IF(RIGHT($B18,6)="Substd",IF(VLOOKUP($A$9,$A$9:$CK$9,MIN(8+DG$17,48),FALSE)>0,VLOOKUP($A$9,$A$9:$CK$9,MIN(8+DG$17,48),FALSE)*IF(LEFT($B18,1)="M",MUlt,FUlt)*VLOOKUP($D18+DG$17-1,IF(LEFT($B18,1)="M",'Base Mortality'!$CY$34:$CZ$154,'Base Mortality'!$A$34:$B$154),2,FALSE), IF( Condition="Dilated Cardiomyopathy (DCM)",Flat_addition*HLOOKUP($D18,DCM_Grading_Pattern,DG$17+1,0)*1000,VLOOKUP($A$9,$A$9:$CK$9,MIN(49+DG$17,89),FALSE))),0),0)) -> 0 | DH18: =MIN(1000,IFERROR(IF(RIGHT($B18,6)="Substd",IF(VLOOKUP($A$9,$A$9:$CK$9,MIN(8+DH$17,48),FALSE)>0,VLOOKUP($A$9,$A$9:$CK$9,MIN(8+DH$17,48),FALSE)*IF(LEFT($B18,1)="M",MUlt,FUlt)*VLOOKUP($D18+DH$17-1,IF(LEFT($B18,1)="M",'Base Mortality'!$CY$34:$CZ$154,'Base Mortality'!$A$34:$B$154),2,FALSE), IF( Condition="Dilated Cardiomyopathy (DCM)",Flat_addition*HLOOKUP($D18,DCM_Grading_Pattern,DH$17+1,0)*1000,VLOOKUP($A$9,$A$9:$CK$9,MIN(49+DH$17,89),FALSE))),0),0)) -> 0.3333333333 | DI18: =MIN(1000,IFERROR(IF(RIGHT($B18,6)="Substd",IF(VLOOKUP($A$9,$A$9:$CK$9,MIN(8+DI$17,48),FALSE)>0,VLOOKUP($A$9,$A$9:$CK$9,MIN(8+DI$17,48),FALSE)*IF(LEFT($B18,1)="M",MUlt,FUlt)*VLOOKUP($D18+DI$17-1,IF(LEFT($B18,1)="M",'Base Mortality'!$CY$34:$CZ$154,'Base Mortality'!$A$34:$B$154),2,FALSE), IF( Condition="Dilated Cardiomyopathy (DCM)",Flat_addition*HLOOKUP($D18,DCM_Grading_Pattern,DI$17+1,0)*1000,VLOOKUP($A$9,$A$9:$CK$9,MIN(49+DI$17,89),FALSE))),0),0)) -> 1 | DJ18: =MIN(1000,IFERROR(IF(RIGHT($B18,6)="Substd",IF(VLOOKUP($A$9,$A$9:$CK$9,MIN(8+DJ$17,48),FALSE)>0,VLOOKUP($A$9,$A$9:$CK$9,MIN(8+DJ$17,48),FALSE)*IF(LEFT($B18,1)="M",MUlt,FUlt)*VLOOKUP($D18+DJ$17-1,IF(LEFT($B18,1)="M",'Base Mortality'!$CY$34:$CZ$154,'Base Mortality'!$A$34:$B$154),2,FALSE), IF( Condition="Dilated Cardiomyopathy (DCM)",Flat_addition*HLOOKUP($D18,DCM_Grading_Pattern,DJ$17+1,0)*1000,VLOOKUP($A$9,$A$9:$CK$9,MIN(49+DJ$17,89),FALSE))),0),0)) -> 1.666666667 | DK18: =MIN(1000,IFERROR(IF(RIGHT($B18,6)="Substd",IF(VLOOKUP($A$9,$A$9:$CK$9,MIN(8+DK$17,48),FALSE)>0,VLOOKUP($A$9,$A$9:$CK$9,MIN(8+DK$17,48),FALSE)*IF(LEFT($B18,1)="M",MUlt,FUlt)*VLOOKUP($D18+DK$17-1,IF(LEFT($B18,1)="M",'Base Mortality'!$CY$34:$CZ$154,'Base Mortality'!$A$34:$B$154),2,FALSE), IF( Condition="Dilated Cardiomyopathy (DCM)",Flat_addition*HLOOKUP($D18,DCM_Grading_Pattern,DK$17+1,0)*1000,VLOOKUP($A$9,$A$9:$CK$9,MIN(49+DK$17,89),FALSE))),0),0)) -> 2.333333333 | DL18: =MIN(1000,IFERROR(IF(RIGHT($B18,6)="Substd",IF(VLOOKUP($A$9,$A$9:$CK$9,MIN(8+DL$17,48),FALSE)>0,VLOOKUP($A$9,$A$9:$CK$9,MIN(8+DL$17,48),FALSE)*IF(LEFT($B18,1)="M",MUlt,FUlt)*VLOOKUP($D18+DL$17-1,IF(LEFT($B18,1)="M",'Base Mortality'!$CY$34:$CZ$154,'Base Mortality'!$A$34:$B$154),2,FALSE), IF( Condition="Dilated Cardiomyopathy (DCM)",Flat_addition*HLOOKUP($D18,DCM_Grading_Pattern,DL$17+1,0)*1000,VLOOKUP($A$9,$A$9:$CK$9,MIN(49+DL$17,89),FALSE))),0),0)) -> 3 | DM18: =MIN(1000,IFERROR(IF(RIGHT($B18,6)="Substd",IF(VLOOKUP($A$9,$A$9:$CK$9,MIN(8+DM$17,48),FALSE)>0,VLOOKUP($A$9,$A$9:$CK$9,MIN(8+DM$17,48),FALSE)*IF(LEFT($B18,1)="M",MUlt,FUlt)*VLOOKUP($D18+DM$17-1,IF(LEFT($B18,1)="M",'Base Mortality'!$CY$34:$CZ$154,'Base Mortality'!$A$34:$B$154),2,FALSE), IF( Condition="Dilated Cardiomyopathy (DCM)",Flat_addition*HLOOKUP($D18,DCM_Grading_Pattern,DM$17+1,0)*1000,VLOOKUP($A$9,$A$9:$CK$9,MIN(49+DM$17,89),FALSE))),0),0)) -> 3.666666667 | DN18: =MIN(1000,IFERROR(IF(RIGHT($B18,6)="Substd",IF(VLOOKUP($A$9,$A$9:$CK$9,MIN(8+DN$17,48),FALSE)>0,VLOOKUP($A$9,$A$9:$CK$9,MIN(8+DN$17,48),FALSE)*IF(LEFT($B18,1)="M",MUlt,FUlt)*VLOOKUP($D18+DN$17-1,IF(LEFT($B18,1)="M",'Base Mortality'!$CY$34:$CZ$154,'Base Mortality'!$A$34:$B$154),2,FALSE), IF( Condition="Dilated Cardiomyopathy (DCM)",Flat_addition*HLOOKUP($D18,DCM_Grading_Pattern,DN$17+1,0)*1000,VLOOKUP($A$9,$A$9:$CK$9,MIN(49+DN$17,89),FALSE))),0),0)) -> 4.333333333 | DO18: =MIN(1000,IFERROR(IF(RIGHT($B18,6)="Substd",IF(VLOOKUP($A$9,$A$9:$CK$9,MIN(8+DO$17,48),FALSE)>0,VLOOKUP($A$9,$A$9:$CK$9,MIN(8+DO$17,48),FALSE)*IF(LEFT($B18,1)="M",MUlt,FUlt)*VLOOKUP($D18+DO$17-1,IF(LEFT($B18,1)="M",'Base Mortality'!$CY$34:$CZ$154,'Base Mortality'!$A$34:$B$154),2,FALSE), IF( Condition="Dilated Cardiomyopathy (DCM)",Flat_addition*HLOOKUP($D18,DCM_Grading_Pattern,DO$17+1,0)*1000,VLOOKUP($A$9,$A$9:$CK$9,MIN(49+DO$17,89),FALSE))),0),0)) -> 5 | DP18: =MIN(1000,IFERROR(IF(RIGHT($B18,6)="Substd",IF(VLOOKUP($A$9,$A$9:$CK$9,MIN(8+DP$17,48),FALSE)>0,VLOOKUP($A$9,$A$9:$CK$9,MIN(8+DP$17,48),FALSE)*IF(LEFT($B18,1)="M",MUlt,FUlt)*VLOOKUP($D18+DP$17-1,IF(LEFT($B18,1)="M",'Base Mortality'!$CY$34:$CZ$154,'Base Mortality'!$A$34:$B$154),2,FALSE), IF( Condition="Dilated Cardiomyopathy (DCM)",Flat_addition*HLOOKUP($D18,DCM_Grading_Pattern,DP$17+1,0)*1000,VLOOKUP($A$9,$A$9:$CK$9,MIN(49+DP$17,89),FALSE))),0),0)) -> 5.666666667 | DQ18: =MIN(1000,IFERROR(IF(RIGHT($B18,6)="Substd",IF(VLOOKUP($A$9,$A$9:$CK$9,MIN(8+DQ$17,48),FALSE)>0,VLOOKUP($A$9,$A$9:$CK$9,MIN(8+DQ$17,48),FALSE)*IF(LEFT($B18,1)="M",MUlt,FUlt)*VLOOKUP($D18+DQ$17-1,IF(LEFT($B18,1)="M",'Base Mortality'!$CY$34:$CZ$154,'Base Mortality'!$A$34:$B$154),2,FALSE), IF( Condition="Dilated Cardiomyopathy (DCM)",Flat_addition*HLOOKUP($D18,DCM_Grading_Pattern,DQ$17+1,0)*1000,VLOOKUP($A$9,$A$9:$CK$9,MIN(49+DQ$17,89),FALSE))),0),0)) -> 6.333333333 | DR18: =MIN(1000,IFERROR(IF(RIGHT($B18,6)="Substd",IF(VLOOKUP($A$9,$A$9:$CK$9,MIN(8+DR$17,48),FALSE)>0,VLOOKUP($A$9,$A$9:$CK$9,MIN(8+DR$17,48),FALSE)*IF(LEFT($B18,1)="M",MUlt,FUlt)*VLOOKUP($D18+DR$17-1,IF(LEFT($B18,1)="M",'Base Mortality'!$CY$34:$CZ$154,'Base Mortality'!$A$34:$B$154),2,FALSE), IF( Condition="Dilated Cardiomyopathy (DCM)",Flat_addition*HLOOKUP($D18,DCM_Grading_Pattern,DR$17+1,0)*1000,VLOOKUP($A$9,$A$9:$CK$9,MIN(49+DR$17,89),FALSE))),0),0)) -> 7 | DS18: =MIN(1000,IFERROR(IF(RIGHT($B18,6)="Substd",IF(VLOOKUP($A$9,$A$9:$CK$9,MIN(8+DS$17,48),FALSE)>0,VLOOKUP($A$9,$A$9:$CK$9,MIN(8+DS$17,48),FALSE)*IF(LEFT($B18,1)="M",MUlt,FUlt)*VLOOKUP($D18+DS$17-1,IF(LEFT($B18,1)="M",'Base Mortality'!$CY$34:$CZ$154,'Base Mortality'!$A$34:$B$154),2,FALSE), IF( Condition="Dilated Cardiomyopathy (DCM)",Flat_addition*HLOOKUP($D18,DCM_Grading_Pattern,DS$17+1,0)*1000,VLOOKUP($A$9,$A$9:$CK$9,MIN(49+DS$17,89),FALSE))),0),0)) -> 7.666666667 | DT18: =MIN(1000,IFERROR(IF(RIGHT($B18,6)="Substd",IF(VLOOKUP($A$9,$A$9:$CK$9,MIN(8+DT$17,48),FALSE)>0,VLOOKUP($A$9,$A$9:$CK$9,MIN(8+DT$17,48),FALSE)*IF(LEFT($B18,1)="M",MUlt,FUlt)*VLOOKUP($D18+DT$17-1,IF(LEFT($B18,1)="M",'Base Mortality'!$CY$34:$CZ$154,'Base Mortality'!$A$34:$B$154),2,FALSE), IF( Condition="Dilated Cardiomyopathy (DCM)",Flat_addition*HLOOKUP($D18,DCM_Grading_Pattern,DT$17+1,0)*1000,VLOOKUP($A$9,$A$9:$CK$9,MIN(49+DT$17,89),FALSE))),0),0)) -> 8.333333333 | DU18: =MIN(1000,IFERROR(IF(RIGHT($B18,6)="Substd",IF(VLOOKUP($A$9,$A$9:$CK$9,MIN(8+DU$17,48),FALSE)>0,VLOOKUP($A$9,$A$9:$CK$9,MIN(8+DU$17,48),FALSE)*IF(LEFT($B18,1)="M",MUlt,FUlt)*VLOOKUP($D18+DU$17-1,IF(LEFT($B18,1)="M",'Base Mortality'!$CY$34:$CZ$154,'Base Mortality'!$A$34:$B$154),2,FALSE), IF( Condition="Dilated Cardiomyopathy (DCM)",Flat_addition*HLOOKUP($D18,DCM_Grading_Pattern,DU$17+1,0)*1000,VLOOKUP($A$9,$A$9:$CK$9,MIN(49+DU$17,89),FALSE))),0),0)) -> 9 | DV18: =MIN(1000,IFERROR(IF(RIGHT($B18,6)="Substd",IF(VLOOKUP($A$9,$A$9:$CK$9,MIN(8+DV$17,48),FALSE)>0,VLOOKUP($A$9,$A$9:$CK$9,MIN(8+DV$17,48),FALSE)*IF(LEFT($B18,1)="M",MUlt,FUlt)*VLOOKUP($D18+DV$17-1,IF(LEFT($B18,1)="M",'Base Mortality'!$CY$34:$CZ$154,'Base Mortality'!$A$34:$B$154),2,FALSE), IF( Condition="Dilated Cardiomyopathy (DCM)",Flat_addition*HLOOKUP($D18,DCM_Grading_Pattern,DV$17+1,0)*1000,VLOOKUP($A$9,$A$9:$CK$9,MIN(49+DV$17,89),FALSE))),0),0)) -> 9.666666667 | DW18: =MIN(1000,IFERROR(IF(RIGHT($B18,6)="Substd",IF(VLOOKUP($A$9,$A$9:$CK$9,MIN(8+DW$17,48),FALSE)>0,VLOOKUP($A$9,$A$9:$CK$9,MIN(8+DW$17,48),FALSE)*IF(LEFT($B18,1)="M",MUlt,FUlt)*VLOOKUP($D18+DW$17-1,IF(LEFT($B18,1)="M",'Base Mortality'!$CY$34:$CZ$154,'Base Mortality'!$A$34:$B$154),2,FALSE), IF( Condition="Dilated Cardiomyopathy (DCM)",Flat_addition*HLOOKUP($D18,DCM_Grading_Pattern,DW$17+1,0)*1000,VLOOKUP($A$9,$A$9:$CK$9,MIN(49+DW$17,89),FALSE))),0),0)) -> 10 | DX18: =MIN(1000,IFERROR(IF(RIGHT($B18,6)="Substd",IF(VLOOKUP($A$9,$A$9:$CK$9,MIN(8+DX$17,48),FALSE)>0,VLOOKUP($A$9,$A$9:$CK$9,MIN(8+DX$17,48),FALSE)*IF(LEFT($B18,1)="M",MUlt,FUlt)*VLOOKUP($D18+DX$17-1,IF(LEFT($B18,1)="M",'Base Mortality'!$CY$34:$CZ$154,'Base Mortality'!$A$34:$B$154),2,FALSE), IF( Condition="Dilated Cardiomyopathy (DCM)",Flat_addition*HLOOKUP($D18,DCM_Grading_Pattern,DX$17+1,0)*1000,VLOOKUP($A$9,$A$9:$CK$9,MIN(49+DX$17,89),FALSE))),0),0)) -> 10 | DY18: =MIN(1000,IFERROR(IF(RIGHT($B18,6)="Substd",IF(VLOOKUP($A$9,$A$9:$CK$9,MIN(8+DY$17,48),FALSE)>0,VLOOKUP($A$9,$A$9:$CK$9,MIN(8+DY$17,48),FALSE)*IF(LEFT($B18,1)="M",MUlt,FUlt)*VLOOKUP($D18+DY$17-1,IF(LEFT($B18,1)="M",'Base Mortality'!$CY$34:$CZ$154,'Base Mortality'!$A$34:$B$154),2,FALSE), IF( Condition="Dilated Cardiomyopathy (DCM)",Flat_addition*HLOOKUP($D18,DCM_Grading_Pattern,DY$17+1,0)*1000,VLOOKUP($A$9,$A$9:$CK$9,MIN(49+DY$17,89),FALSE))),0),0)) -> 10 | DZ18: =MIN(1000,IFERROR(IF(RIGHT($B18,6)="Substd",IF(VLOOKUP($A$9,$A$9:$CK$9,MIN(8+DZ$17,48),FALSE)>0,VLOOKUP($A$9,$A$9:$CK$9,MIN(8+DZ$17,48),FALSE)*IF(LEFT($B18,1)="M",MUlt,FUlt)*VLOOKUP($D18+DZ$17-1,IF(LEFT($B18,1)="M",'Base Mortality'!$CY$34:$CZ$154,'Base Mortality'!$A$34:$B$154),2,FALSE), IF( Condition="Dilated Cardiomyopathy (DCM)",Flat_addition*HLOOKUP($D18,DCM_Grading_Pattern,DZ$17+1,0)*1000,VLOOKUP($A$9,$A$9:$CK$9,MIN(49+DZ$17,89),FALSE))),0),0)) -> 10 | EA18: =MIN(1000,IFERROR(IF(RIGHT($B18,6)="Substd",IF(VLOOKUP($A$9,$A$9:$CK$9,MIN(8+EA$17,48),FALSE)>0,VLOOKUP($A$9,$A$9:$CK$9,MIN(8+EA$17,48),FALSE)*IF(LEFT($B18,1)="M",MUlt,FUlt)*VLOOKUP($D18+EA$17-1,IF(LEFT($B18,1)="M",'Base Mortality'!$CY$34:$CZ$154,'Base Mortality'!$A$34:$B$154),2,FALSE), IF( Condition="Dilated Cardiomyopathy (DCM)",Flat_addition*HLOOKUP($D18,DCM_Grading_Pattern,EA$17+1,0)*1000,VLOOKUP($A$9,$A$9:$CK$9,MIN(49+EA$17,89),FALSE))),0),0)) -> 10 | EB18: =MIN(1000,IFERROR(IF(RIGHT($B18,6)="Substd",IF(VLOOKUP($A$9,$A$9:$CK$9,MIN(8+EB$17,48),FALSE)>0,VLOOKUP($A$9,$A$9:$CK$9,MIN(8+EB$17,48),FALSE)*IF(LEFT($B18,1)="M",MUlt,FUlt)*VLOOKUP($D18+EB$17-1,IF(LEFT($B18,1)="M",'Base Mortality'!$CY$34:$CZ$154,'Base Mortality'!$A$34:$B$154),2,FALSE), IF( Condition="Dilated Cardiomyopathy (DCM)",Flat_addition*HLOOKUP($D18,DCM_Grading_Pattern,EB$17+1,0)*1000,VLOOKUP($A$9,$A$9:$CK$9,MIN(49+EB$17,89),FALSE))),0),0)) -> 10 | EC18: =MIN(1000,IFERROR(IF(RIGHT($B18,6)="Substd",IF(VLOOKUP($A$9,$A$9:$CK$9,MIN(8+EC$17,48),FALSE)>0,VLOOKUP($A$9,$A$9:$CK$9,MIN(8+EC$17,48),FALSE)*IF(LEFT($B18,1)="M",MUlt,FUlt)*VLOOKUP($D18+EC$17-1,IF(LEFT($B18,1)="M",'Base Mortality'!$CY$34:$CZ$154,'Base Mortality'!$A$34:$B$154),2,FALSE), IF( Condition="Dilated Cardiomyopathy (DCM)",Flat_addition*HLOOKUP($D18,DCM_Grading_Pattern,EC$17+1,0)*1000,VLOOKUP($A$9,$A$9:$CK$9,MIN(49+EC$17,89),FALSE))),0),0)) -> 10 | ED18: =MIN(1000,IFERROR(IF(RIGHT($B18,6)="Substd",IF(VLOOKUP($A$9,$A$9:$CK$9,MIN(8+ED$17,48),FALSE)>0,VLOOKUP($A$9,$A$9:$CK$9,MIN(8+ED$17,48),FALSE)*IF(LEFT($B18,1)="M",MUlt,FUlt)*VLOOKUP($D18+ED$17-1,IF(LEFT($B18,1)="M",'Base Mortality'!$CY$34:$CZ$154,'Base Mortality'!$A$34:$B$154),2,FALSE), IF( Condition="Dilated Cardiomyopathy (DCM)",Flat_addition*HLOOKUP($D18,DCM_Grading_Pattern,ED$17+1,0)*1000,VLOOKUP($A$9,$A$9:$CK$9,MIN(49+ED$17,89),FALSE))),0),0)) -> 10 | EE18: =MIN(1000,IFERROR(IF(RIGHT($B18,6)="Substd",IF(VLOOKUP($A$9,$A$9:$CK$9,MIN(8+EE$17,48),FALSE)>0,VLOOKUP($A$9,$A$9:$CK$9,MIN(8+EE$17,48),FALSE)*IF(LEFT($B18,1)="M",MUlt,FUlt)*VLOOKUP($D18+EE$17-1,IF(LEFT($B18,1)="M",'Base Mortality'!$CY$34:$CZ$154,'Base Mortality'!$A$34:$B$154),2,FALSE), IF( Condition="Dilated Cardiomyopathy (DCM)",Flat_addition*HLOOKUP($D18,DCM_Grading_Pattern,EE$17+1,0)*1000,VLOOKUP($A$9,$A$9:$CK$9,MIN(49+EE$17,89),FALSE))),0),0)) -> 10 | EF18: =MIN(1000,IFERROR(IF(RIGHT($B18,6)="Substd",IF(VLOOKUP($A$9,$A$9:$CK$9,MIN(8+EF$17,48),FALSE)>0,VLOOKUP($A$9,$A$9:$CK$9,MIN(8+EF$17,48),FALSE)*IF(LEFT($B18,1)="M",MUlt,FUlt)*VLOOKUP($D18+EF$17-1,IF(LEFT($B18,1)="M",'Base Mortality'!$CY$34:$CZ$154,'Base Mortality'!$A$34:$B$154),2,FALSE), IF( Condition="Dilated Cardiomyopathy (DCM)",Flat_addition*HLOOKUP($D18,DCM_Grading_Pattern,EF$17+1,0)*1000,VLOOKUP($A$9,$A$9:$CK$9,MIN(49+EF$17,89),FALSE))),0),0)) -> 10 | EG18: =MIN(1000,IFERROR(IF(RIGHT($B18,6)="Substd",IF(VLOOKUP($A$9,$A$9:$CK$9,MIN(8+EG$17,48),FALSE)>0,VLOOKUP($A$9,$A$9:$CK$9,MIN(8+EG$17,48),FALSE)*IF(LEFT($B18,1)="M",MUlt,FUlt)*VLOOKUP($D18+EG$17-1,IF(LEFT($B18,1)="M",'Base Mortality'!$CY$34:$CZ$154,'Base Mortality'!$A$34:$B$154),2,FALSE), IF( Condition="Dilated Cardiomyopathy (DCM)",Flat_addition*HLOOKUP($D18,DCM_Grading_Pattern,EG$17+1,0)*1000,VLOOKUP($A$9,$A$9:$CK$9,MIN(49+EG$17,89),FALSE))),0),0)) -> 10 | EH18: =MIN(1000,IFERROR(IF(RIGHT($B18,6)="Substd",IF(VLOOKUP($A$9,$A$9:$CK$9,MIN(8+EH$17,48),FALSE)>0,VLOOKUP($A$9,$A$9:$CK$9,MIN(8+EH$17,48),FALSE)*IF(LEFT($B18,1)="M",MUlt,FUlt)*VLOOKUP($D18+EH$17-1,IF(LEFT($B18,1)="M",'Base Mortality'!$CY$34:$CZ$154,'Base Mortality'!$A$34:$B$154),2,FALSE), IF( Condition="Dilated Cardiomyopathy (DCM)",Flat_addition*HLOOKUP($D18,DCM_Grading_Pattern,EH$17+1,0)*1000,VLOOKUP($A$9,$A$9:$CK$9,MIN(49+EH$17,89),FALSE))),0),0)) -> 10 | EI18: =MIN(1000,IFERROR(IF(RIGHT($B18,6)="Substd",IF(VLOOKUP($A$9,$A$9:$CK$9,MIN(8+EI$17,48),FALSE)>0,VLOOKUP($A$9,$A$9:$CK$9,MIN(8+EI$17,48),FALSE)*IF(LEFT($B18,1)="M",MUlt,FUlt)*VLOOKUP($D18+EI$17-1,IF(LEFT($B18,1)="M",'Base Mortality'!$CY$34:$CZ$154,'Base Mortality'!$A$34:$B$154),2,FALSE), IF( Condition="Dilated Cardiomyopathy (DCM)",Flat_addition*HLOOKUP($D18,DCM_Grading_Pattern,EI$17+1,0)*1000,VLOOKUP($A$9,$A$9:$CK$9,MIN(49+EI$17,89),FALSE))),0),0)) -> 10 | EJ18: =MIN(1000,IFERROR(IF(RIGHT($B18,6)="Substd",IF(VLOOKUP($A$9,$A$9:$CK$9,MIN(8+EJ$17,48),FALSE)>0,VLOOKUP($A$9,$A$9:$CK$9,MIN(8+EJ$17,48),FALSE)*IF(LEFT($B18,1)="M",MUlt,FUlt)*VLOOKUP($D18+EJ$17-1,IF(LEFT($B18,1)="M",'Base Mortality'!$CY$34:$CZ$154,'Base Mortality'!$A$34:$B$154),2,FALSE), IF( Condition="Dilated Cardiomyopathy (DCM)",Flat_addition*HLOOKUP($D18,DCM_Grading_Pattern,EJ$17+1,0)*1000,VLOOKUP($A$9,$A$9:$CK$9,MIN(49+EJ$17,89),FALSE))),0),0)) -> 10 | EK18: =MIN(1000,IFERROR(IF(RIGHT($B18,6)="Substd",IF(VLOOKUP($A$9,$A$9:$CK$9,MIN(8+EK$17,48),FALSE)>0,VLOOKUP($A$9,$A$9:$CK$9,MIN(8+EK$17,48),FALSE)*IF(LEFT($B18,1)="M",MUlt,FUlt)*VLOOKUP($D18+EK$17-1,IF(LEFT($B18,1)="M",'Base Mortality'!$CY$34:$CZ$154,'Base Mortality'!$A$34:$B$154),2,FALSE), IF( Condition="Dilated Cardiomyopathy (DCM)",Flat_addition*HLOOKUP($D18,DCM_Grading_Pattern,EK$17+1,0)*1000,VLOOKUP($A$9,$A$9:$CK$9,MIN(49+EK$17,89),FALSE))),0),0)) -> 10 | EL18: =MIN(1000,IFERROR(IF(RIGHT($B18,6)="Substd",IF(VLOOKUP($A$9,$A$9:$CK$9,MIN(8+EL$17,48),FALSE)>0,VLOOKUP($A$9,$A$9:$CK$9,MIN(8+EL$17,48),FALSE)*IF(LEFT($B18,1)="M",MUlt,FUlt)*VLOOKUP($D18+EL$17-1,IF(LEFT($B18,1)="M",'Base Mortality'!$CY$34:$CZ$154,'Base Mortality'!$A$34:$B$154),2,FALSE), IF( Condition="Dilated Cardiomyopathy (DCM)",Flat_addition*HLOOKUP($D18,DCM_Grading_Pattern,EL$17+1,0)*1000,VLOOKUP($A$9,$A$9:$CK$9,MIN(49+EL$17,89),FALSE))),0),0)) -> 10 | EM18: =MIN(1000,IFERROR(IF(RIGHT($B18,6)="Substd",IF(VLOOKUP($A$9,$A$9:$CK$9,MIN(8+EM$17,48),FALSE)>0,VLOOKUP($A$9,$A$9:$CK$9,MIN(8+EM$17,48),FALSE)*IF(LEFT($B18,1)="M",MUlt,FUlt)*VLOOKUP($D18+EM$17-1,IF(LEFT($B18,1)="M",'Base Mortality'!$CY$34:$CZ$154,'Base Mortality'!$A$34:$B$154),2,FALSE), IF( Condition="Dilated Cardiomyopathy (DCM)",Flat_addition*HLOOKUP($D18,DCM_Grading_Pattern,EM$17+1,0)*1000,VLOOKUP($A$9,$A$9:$CK$9,MIN(49+EM$17,89),FALSE))),0),0)) -> 10 | EN18: =MIN(1000,IFERROR(IF(RIGHT($B18,6)="Substd",IF(VLOOKUP($A$9,$A$9:$CK$9,MIN(8+EN$17,48),FALSE)>0,VLOOKUP($A$9,$A$9:$CK$9,MIN(8+EN$17,48),FALSE)*IF(LEFT($B18,1)="M",MUlt,FUlt)*VLOOKUP($D18+EN$17-1,IF(LEFT($B18,1)="M",'Base Mortality'!$CY$34:$CZ$154,'Base Mortality'!$A$34:$B$154),2,FALSE), IF( Condition="Dilated Cardiomyopathy (DCM)",Flat_addition*HLOOKUP($D18,DCM_Grading_Pattern,EN$17+1,0)*1000,VLOOKUP($A$9,$A$9:$CK$9,MIN(49+EN$17,89),FALSE))),0),0)) -> 10 | EO18: =MIN(1000,IFERROR(IF(RIGHT($B18,6)="Substd",IF(VLOOKUP($A$9,$A$9:$CK$9,MIN(8+EO$17,48),FALSE)>0,VLOOKUP($A$9,$A$9:$CK$9,MIN(8+EO$17,48),FALSE)*IF(LEFT($B18,1)="M",MUlt,FUlt)*VLOOKUP($D18+EO$17-1,IF(LEFT($B18,1)="M",'Base Mortality'!$CY$34:$CZ$154,'Base Mortality'!$A$34:$B$154),2,FALSE), IF( Condition="Dilated Cardiomyopathy (DCM)",Flat_addition*HLOOKUP($D18,DCM_Grading_Pattern,EO$17+1,0)*1000,VLOOKUP($A$9,$A$9:$CK$9,MIN(49+EO$17,89),FALSE))),0),0)) -> 10 | EP18: =MIN(1000,IFERROR(IF(RIGHT($B18,6)="Substd",IF(VLOOKUP($A$9,$A$9:$CK$9,MIN(8+EP$17,48),FALSE)>0,VLOOKUP($A$9,$A$9:$CK$9,MIN(8+EP$17,48),FALSE)*IF(LEFT($B18,1)="M",MUlt,FUlt)*VLOOKUP($D18+EP$17-1,IF(LEFT($B18,1)="M",'Base Mortality'!$CY$34:$CZ$154,'Base Mortality'!$A$34:$B$154),2,FALSE), IF( Condition="Dilated Cardiomyopathy (DCM)",Flat_addition*HLOOKUP($D18,DCM_Grading_Pattern,EP$17+1,0)*1000,VLOOKUP($A$9,$A$9:$CK$9,MIN(49+EP$17,89),FALSE))),0),0)) -> 10 | EQ18: =MIN(1000,IFERROR(IF(RIGHT($B18,6)="Substd",IF(VLOOKUP($A$9,$A$9:$CK$9,MIN(8+EQ$17,48),FALSE)>0,VLOOKUP($A$9,$A$9:$CK$9,MIN(8+EQ$17,48),FALSE)*IF(LEFT($B18,1)="M",MUlt,FUlt)*VLOOKUP($D18+EQ$17-1,IF(LEFT($B18,1)="M",'Base Mortality'!$CY$34:$CZ$154,'Base Mortality'!$A$34:$B$154),2,FALSE), IF( Condition="Dilated Cardiomyopathy (DCM)",Flat_addition*HLOOKUP($D18,DCM_Grading_Pattern,EQ$17+1,0)*1000,VLOOKUP($A$9,$A$9:$CK$9,MIN(49+EQ$17,89),FALSE))),0),0)) -> 10 | ER18: =MIN(1000,IFERROR(IF(RIGHT($B18,6)="Substd",IF(VLOOKUP($A$9,$A$9:$CK$9,MIN(8+ER$17,48),FALSE)>0,VLOOKUP($A$9,$A$9:$CK$9,MIN(8+ER$17,48),FALSE)*IF(LEFT($B18,1)="M",MUlt,FUlt)*VLOOKUP($D18+ER$17-1,IF(LEFT($B18,1)="M",'Base Mortality'!$CY$34:$CZ$154,'Base Mortality'!$A$34:$B$154),2,FALSE), IF( Condition="Dilated Cardiomyopathy (DCM)",Flat_addition*HLOOKUP($D18,DCM_Grading_Pattern,ER$17+1,0)*1000,VLOOKUP($A$9,$A$9:$CK$9,MIN(49+ER$17,89),FALSE))),0),0)) -> 10 | ES18: =MIN(1000,IFERROR(IF(RIGHT($B18,6)="Substd",IF(VLOOKUP($A$9,$A$9:$CK$9,MIN(8+ES$17,48),FALSE)>0,VLOOKUP($A$9,$A$9:$CK$9,MIN(8+ES$17,48),FALSE)*IF(LEFT($B18,1)="M",MUlt,FUlt)*VLOOKUP($D18+ES$17-1,IF(LEFT($B18,1)="M",'Base Mortality'!$CY$34:$CZ$154,'Base Mortality'!$A$34:$B$154),2,FALSE), IF( Condition="Dilated Cardiomyopathy (DCM)",Flat_addition*HLOOKUP($D18,DCM_Grading_Pattern,ES$17+1,0)*1000,VLOOKUP($A$9,$A$9:$CK$9,MIN(49+ES$17,89),FALSE))),0),0)) -> 10 | ET18: =MIN(1000,IFERROR(IF(RIGHT($B18,6)="Substd",IF(VLOOKUP($A$9,$A$9:$CK$9,MIN(8+ET$17,48),FALSE)>0,VLOOKUP($A$9,$A$9:$CK$9,MIN(8+ET$17,48),FALSE)*IF(LEFT($B18,1)="M",MUlt,FUlt)*VLOOKUP($D18+ET$17-1,IF(LEFT($B18,1)="M",'Base Mortality'!$CY$34:$CZ$154,'Base Mortality'!$A$34:$B$154),2,FALSE), IF( Condition="Dilated Cardiomyopathy (DCM)",Flat_addition*HLOOKUP($D18,DCM_Grading_Pattern,ET$17+1,0)*1000,VLOOKUP($A$9,$A$9:$CK$9,MIN(49+ET$17,89),FALSE))),0),0)) -> 10 | EU18: =MIN(1000,IFERROR(IF(RIGHT($B18,6)="Substd",IF(VLOOKUP($A$9,$A$9:$CK$9,MIN(8+EU$17,48),FALSE)>0,VLOOKUP($A$9,$A$9:$CK$9,MIN(8+EU$17,48),FALSE)*IF(LEFT($B18,1)="M",MUlt,FUlt)*VLOOKUP($D18+EU$17-1,IF(LEFT($B18,1)="M",'Base Mortality'!$CY$34:$CZ$154,'Base Mortality'!$A$34:$B$154),2,FALSE), IF( Condition="Dilated Cardiomyopathy (DCM)",Flat_addition*HLOOKUP($D18,DCM_Grading_Pattern,EU$17+1,0)*1000,VLOOKUP($A$9,$A$9:$CK$9,MIN(49+EU$17,89),FALSE))),0),0)) -> 10 | EV18: =MIN(1000,IFERROR(IF(RIGHT($B18,6)="Substd",IF(VLOOKUP($A$9,$A$9:$CK$9,MIN(8+EV$17,48),FALSE)>0,VLOOKUP($A$9,$A$9:$CK$9,MIN(8+EV$17,48),FALSE)*IF(LEFT($B18,1)="M",MUlt,FUlt)*VLOOKUP($D18+EV$17-1,IF(LEFT($B18,1)="M",'Base Mortality'!$CY$34:$CZ$154,'Base Mortality'!$A$34:$B$154),2,FALSE), IF( Condition="Dilated Cardiomyopathy (DCM)",Flat_addition*HLOOKUP($D18,DCM_Grading_Pattern,EV$17+1,0)*1000,VLOOKUP($A$9,$A$9:$CK$9,MIN(49+EV$17,89),FALSE))),0),0)) -> 10 | EW18: =MIN(1000,IFERROR(IF(RIGHT($B18,6)="Substd",IF(VLOOKUP($A$9,$A$9:$CK$9,MIN(8+EW$17,48),FALSE)>0,VLOOKUP($A$9,$A$9:$CK$9,MIN(8+EW$17,48),FALSE)*IF(LEFT($B18,1)="M",MUlt,FUlt)*VLOOKUP($D18+EW$17-1,IF(LEFT($B18,1)="M",'Base Mortality'!$CY$34:$CZ$154,'Base Mortality'!$A$34:$B$154),2,FALSE), IF( Condition="Dilated Cardiomyopathy (DCM)",Flat_addition*HLOOKUP($D18,DCM_Grading_Pattern,EW$17+1,0)*1000,VLOOKUP($A$9,$A$9:$CK$9,MIN(49+EW$17,89),FALSE))),0),0)) -> 10 | EX18: =MIN(1000,IFERROR(IF(RIGHT($B18,6)="Substd",IF(VLOOKUP($A$9,$A$9:$CK$9,MIN(8+EX$17,48),FALSE)>0,VLOOKUP($A$9,$A$9:$CK$9,MIN(8+EX$17,48),FALSE)*IF(LEFT($B18,1)="M",MUlt,FUlt)*VLOOKUP($D18+EX$17-1,IF(LEFT($B18,1)="M",'Base Mortality'!$CY$34:$CZ$154,'Base Mortality'!$A$34:$B$154),2,FALSE), IF( Condition="Dilated Cardiomyopathy (DCM)",Flat_addition*HLOOKUP($D18,DCM_Grading_Pattern,EX$17+1,0)*1000,VLOOKUP($A$9,$A$9:$CK$9,MIN(49+EX$17,89),FALSE))),0),0)) -> 10 | EY18: =MIN(1000,IFERROR(IF(RIGHT($B18,6)="Substd",IF(VLOOKUP($A$9,$A$9:$CK$9,MIN(8+EY$17,48),FALSE)>0,VLOOKUP($A$9,$A$9:$CK$9,MIN(8+EY$17,48),FALSE)*IF(LEFT($B18,1)="M",MUlt,FUlt)*VLOOKUP($D18+EY$17-1,IF(LEFT($B18,1)="M",'Base Mortality'!$CY$34:$CZ$154,'Base Mortality'!$A$34:$B$154),2,FALSE), IF( Condition="Dilated Cardiomyopathy (DCM)",Flat_addition*HLOOKUP($D18,DCM_Grading_Pattern,EY$17+1,0)*1000,VLOOKUP($A$9,$A$9:$CK$9,MIN(49+EY$17,89),FALSE))),0),0)) -> 10 | EZ18: =MIN(1000,IFERROR(IF(RIGHT($B18,6)="Substd",IF(VLOOKUP($A$9,$A$9:$CK$9,MIN(8+EZ$17,48),FALSE)>0,VLOOKUP($A$9,$A$9:$CK$9,MIN(8+EZ$17,48),FALSE)*IF(LEFT($B18,1)="M",MUlt,FUlt)*VLOOKUP($D18+EZ$17-1,IF(LEFT($B18,1)="M",'Base Mortality'!$CY$34:$CZ$154,'Base Mortality'!$A$34:$B$154),2,FALSE), IF( Condition="Dilated Cardiomyopathy (DCM)",Flat_addition*HLOOKUP($D18,DCM_Grading_Pattern,EZ$17+1,0)*1000,VLOOKUP($A$9,$A$9:$CK$9,MIN(49+EZ$17,89),FALSE))),0),0)) -> 10 | FA18: =MIN(1000,IFERROR(IF(RIGHT($B18,6)="Substd",IF(VLOOKUP($A$9,$A$9:$CK$9,MIN(8+FA$17,48),FALSE)>0,VLOOKUP($A$9,$A$9:$CK$9,MIN(8+FA$17,48),FALSE)*IF(LEFT($B18,1)="M",MUlt,FUlt)*VLOOKUP($D18+FA$17-1,IF(LEFT($B18,1)="M",'Base Mortality'!$CY$34:$CZ$154,'Base Mortality'!$A$34:$B$154),2,FALSE), IF( Condition="Dilated Cardiomyopathy (DCM)",Flat_addition*HLOOKUP($D18,DCM_Grading_Pattern,FA$17+1,0)*1000,VLOOKUP($A$9,$A$9:$CK$9,MIN(49+FA$17,89),FALSE))),0),0)) -> 10 | FB18: =MIN(1000,IFERROR(IF(RIGHT($B18,6)="Substd",IF(VLOOKUP($A$9,$A$9:$CK$9,MIN(8+FB$17,48),FALSE)>0,VLOOKUP($A$9,$A$9:$CK$9,MIN(8+FB$17,48),FALSE)*IF(LEFT($B18,1)="M",MUlt,FUlt)*VLOOKUP($D18+FB$17-1,IF(LEFT($B18,1)="M",'Base Mortality'!$CY$34:$CZ$154,'Base Mortality'!$A$34:$B$154),2,FALSE), IF( Condition="Dilated Cardiomyopathy (DCM)",Flat_addition*HLOOKUP($D18,DCM_Grading_Pattern,FB$17+1,0)*1000,VLOOKUP($A$9,$A$9:$CK$9,MIN(49+FB$17,89),FALSE))),0),0)) -> 10 | FC18: =MIN(1000,IFERROR(IF(RIGHT($B18,6)="Substd",IF(VLOOKUP($A$9,$A$9:$CK$9,MIN(8+FC$17,48),FALSE)>0,VLOOKUP($A$9,$A$9:$CK$9,MIN(8+FC$17,48),FALSE)*IF(LEFT($B18,1)="M",MUlt,FUlt)*VLOOKUP($D18+FC$17-1,IF(LEFT($B18,1)="M",'Base Mortality'!$CY$34:$CZ$154,'Base Mortality'!$A$34:$B$154),2,FALSE), IF( Condition="Dilated Cardiomyopathy (DCM)",Flat_addition*HLOOKUP($D18,DCM_Grading_Pattern,FC$17+1,0)*1000,VLOOKUP($A$9,$A$9:$CK$9,MIN(49+FC$17,89),FALSE))),0),0)) -> 10 | FD18: =MIN(1000,IFERROR(IF(RIGHT($B18,6)="Substd",IF(VLOOKUP($A$9,$A$9:$CK$9,MIN(8+FD$17,48),FALSE)>0,VLOOKUP($A$9,$A$9:$CK$9,MIN(8+FD$17,48),FALSE)*IF(LEFT($B18,1)="M",MUlt,FUlt)*VLOOKUP($D18+FD$17-1,IF(LEFT($B18,1)="M",'Base Mortality'!$CY$34:$CZ$154,'Base Mortality'!$A$34:$B$154),2,FALSE), IF( Condition="Dilated Cardiomyopathy (DCM)",Flat_addition*HLOOKUP($D18,DCM_Grading_Pattern,FD$17+1,0)*1000,VLOOKUP($A$9,$A$9:$CK$9,MIN(49+FD$17,89),FALSE))),0),0)) -> 10 | FE18: =MIN(1000,IFERROR(IF(RIGHT($B18,6)="Substd",IF(VLOOKUP($A$9,$A$9:$CK$9,MIN(8+FE$17,48),FALSE)>0,VLOOKUP($A$9,$A$9:$CK$9,MIN(8+FE$17,48),FALSE)*IF(LEFT($B18,1)="M",MUlt,FUlt)*VLOOKUP($D18+FE$17-1,IF(LEFT($B18,1)="M",'Base Mortality'!$CY$34:$CZ$154,'Base Mortality'!$A$34:$B$154),2,FALSE), IF( Condition="Dilated Cardiomyopathy (DCM)",Flat_addition*HLOOKUP($D18,DCM_Grading_Pattern,FE$17+1,0)*1000,VLOOKUP($A$9,$A$9:$CK$9,MIN(49+FE$17,89),FALSE))),0),0)) -> 10 | FF18: =MIN(1000,IFERROR(IF(RIGHT($B18,6)="Substd",IF(VLOOKUP($A$9,$A$9:$CK$9,MIN(8+FF$17,48),FALSE)>0,VLOOKUP($A$9,$A$9:$CK$9,MIN(8+FF$17,48),FALSE)*IF(LEFT($B18,1)="M",MUlt,FUlt)*VLOOKUP($D18+FF$17-1,IF(LEFT($B18,1)="M",'Base Mortality'!$CY$34:$CZ$154,'Base Mortality'!$A$34:$B$154),2,FALSE), IF( Condition="Dilated Cardiomyopathy (DCM)",Flat_addition*HLOOKUP($D18,DCM_Grading_Pattern,FF$17+1,0)*1000,VLOOKUP($A$9,$A$9:$CK$9,MIN(49+FF$17,89),FALSE))),0),0)) -> 10 | FG18: =MIN(1000,IFERROR(IF(RIGHT($B18,6)="Substd",IF(VLOOKUP($A$9,$A$9:$CK$9,MIN(8+FG$17,48),FALSE)>0,VLOOKUP($A$9,$A$9:$CK$9,MIN(8+FG$17,48),FALSE)*IF(LEFT($B18,1)="M",MUlt,FUlt)*VLOOKUP($D18+FG$17-1,IF(LEFT($B18,1)="M",'Base Mortality'!$CY$34:$CZ$154,'Base Mortality'!$A$34:$B$154),2,FALSE), IF( Condition="Dilated Cardiomyopathy (DCM)",Flat_addition*HLOOKUP($D18,DCM_Grading_Pattern,FG$17+1,0)*1000,VLOOKUP($A$9,$A$9:$CK$9,MIN(49+FG$17,89),FALSE))),0),0)) -> 10 | FH18: =MIN(1000,IFERROR(IF(RIGHT($B18,6)="Substd",IF(VLOOKUP($A$9,$A$9:$CK$9,MIN(8+FH$17,48),FALSE)>0,VLOOKUP($A$9,$A$9:$CK$9,MIN(8+FH$17,48),FALSE)*IF(LEFT($B18,1)="M",MUlt,FUlt)*VLOOKUP($D18+FH$17-1,IF(LEFT($B18,1)="M",'Base Mortality'!$CY$34:$CZ$154,'Base Mortality'!$A$34:$B$154),2,FALSE), IF( Condition="Dilated Cardiomyopathy (DCM)",Flat_addition*HLOOKUP($D18,DCM_Grading_Pattern,FH$17+1,0)*1000,VLOOKUP($A$9,$A$9:$CK$9,MIN(49+FH$17,89),FALSE))),0),0)) -> 10 | FI18: =MIN(1000,IFERROR(IF(RIGHT($B18,6)="Substd",IF(VLOOKUP($A$9,$A$9:$CK$9,MIN(8+FI$17,48),FALSE)>0,VLOOKUP($A$9,$A$9:$CK$9,MIN(8+FI$17,48),FALSE)*IF(LEFT($B18,1)="M",MUlt,FUlt)*VLOOKUP($D18+FI$17-1,IF(LEFT($B18,1)="M",'Base Mortality'!$CY$34:$CZ$154,'Base Mortality'!$A$34:$B$154),2,FALSE), IF( Condition="Dilated Cardiomyopathy (DCM)",Flat_addition*HLOOKUP($D18,DCM_Grading_Pattern,FI$17+1,0)*1000,VLOOKUP($A$9,$A$9:$CK$9,MIN(49+FI$17,89),FALSE))),0),0)) -> 10 | FJ18: =MIN(1000,IFERROR(IF(RIGHT($B18,6)="Substd",IF(VLOOKUP($A$9,$A$9:$CK$9,MIN(8+FJ$17,48),FALSE)>0,VLOOKUP($A$9,$A$9:$CK$9,MIN(8+FJ$17,48),FALSE)*IF(LEFT($B18,1)="M",MUlt,FUlt)*VLOOKUP($D18+FJ$17-1,IF(LEFT($B18,1)="M",'Base Mortality'!$CY$34:$CZ$154,'Base Mortality'!$A$34:$B$154),2,FALSE), IF( Condition="Dilated Cardiomyopathy (DCM)",Flat_addition*HLOOKUP($D18,DCM_Grading_Pattern,FJ$17+1,0)*1000,VLOOKUP($A$9,$A$9:$CK$9,MIN(49+FJ$17,89),FALSE))),0),0)) -> 10 | FK18: =MIN(1000,IFERROR(IF(RIGHT($B18,6)="Substd",IF(VLOOKUP($A$9,$A$9:$CK$9,MIN(8+FK$17,48),FALSE)>0,VLOOKUP($A$9,$A$9:$CK$9,MIN(8+FK$17,48),FALSE)*IF(LEFT($B18,1)="M",MUlt,FUlt)*VLOOKUP($D18+FK$17-1,IF(LEFT($B18,1)="M",'Base Mortality'!$CY$34:$CZ$154,'Base Mortality'!$A$34:$B$154),2,FALSE), IF( Condition="Dilated Cardiomyopathy (DCM)",Flat_addition*HLOOKUP($D18,DCM_Grading_Pattern,FK$17+1,0)*1000,VLOOKUP($A$9,$A$9:$CK$9,MIN(49+FK$17,89),FALSE))),0),0)) -> 10 | FL18: =MIN(1000,IFERROR(IF(RIGHT($B18,6)="Substd",IF(VLOOKUP($A$9,$A$9:$CK$9,MIN(8+FL$17,48),FALSE)>0,VLOOKUP($A$9,$A$9:$CK$9,MIN(8+FL$17,48),FALSE)*IF(LEFT($B18,1)="M",MUlt,FUlt)*VLOOKUP($D18+FL$17-1,IF(LEFT($B18,1)="M",'Base Mortality'!$CY$34:$CZ$154,'Base Mortality'!$A$34:$B$154),2,FALSE), IF( Condition="Dilated Cardiomyopathy (DCM)",Flat_addition*HLOOKUP($D18,DCM_Grading_Pattern,FL$17+1,0)*1000,VLOOKUP($A$9,$A$9:$CK$9,MIN(49+FL$17,89),FALSE))),0),0)) -> 10 | FM18: =MIN(1000,IFERROR(IF(RIGHT($B18,6)="Substd",IF(VLOOKUP($A$9,$A$9:$CK$9,MIN(8+FM$17,48),FALSE)>0,VLOOKUP($A$9,$A$9:$CK$9,MIN(8+FM$17,48),FALSE)*IF(LEFT($B18,1)="M",MUlt,FUlt)*VLOOKUP($D18+FM$17-1,IF(LEFT($B18,1)="M",'Base Mortality'!$CY$34:$CZ$154,'Base Mortality'!$A$34:$B$154),2,FALSE), IF( Condition="Dilated Cardiomyopathy (DCM)",Flat_addition*HLOOKUP($D18,DCM_Grading_Pattern,FM$17+1,0)*1000,VLOOKUP($A$9,$A$9:$CK$9,MIN(49+FM$17,89),FALSE))),0),0)) -> 10 | FN18: =MIN(1000,IFERROR(IF(RIGHT($B18,6)="Substd",IF(VLOOKUP($A$9,$A$9:$CK$9,MIN(8+FN$17,48),FALSE)>0,VLOOKUP($A$9,$A$9:$CK$9,MIN(8+FN$17,48),FALSE)*IF(LEFT($B18,1)="M",MUlt,FUlt)*VLOOKUP($D18+FN$17-1,IF(LEFT($B18,1)="M",'Base Mortality'!$CY$34:$CZ$154,'Base Mortality'!$A$34:$B$154),2,FALSE), IF( Condition="Dilated Cardiomyopathy (DCM)",Flat_addition*HLOOKUP($D18,DCM_Grading_Pattern,FN$17+1,0)*1000,VLOOKUP($A$9,$A$9:$CK$9,MIN(49+FN$17,89),FALSE))),0),0)) -> 10 | FO18: =MIN(1000,IFERROR(IF(RIGHT($B18,6)="Substd",IF(VLOOKUP($A$9,$A$9:$CK$9,MIN(8+FO$17,48),FALSE)>0,VLOOKUP($A$9,$A$9:$CK$9,MIN(8+FO$17,48),FALSE)*IF(LEFT($B18,1)="M",MUlt,FUlt)*VLOOKUP($D18+FO$17-1,IF(LEFT($B18,1)="M",'Base Mortality'!$CY$34:$CZ$154,'Base Mortality'!$A$34:$B$154),2,FALSE), IF( Condition="Dilated Cardiomyopathy (DCM)",Flat_addition*HLOOKUP($D18,DCM_Grading_Pattern,FO$17+1,0)*1000,VLOOKUP($A$9,$A$9:$CK$9,MIN(49+FO$17,89),FALSE))),0),0)) -> 10 | FP18: =MIN(1000,IFERROR(IF(RIGHT($B18,6)="Substd",IF(VLOOKUP($A$9,$A$9:$CK$9,MIN(8+FP$17,48),FALSE)>0,VLOOKUP($A$9,$A$9:$CK$9,MIN(8+FP$17,48),FALSE)*IF(LEFT($B18,1)="M",MUlt,FUlt)*VLOOKUP($D18+FP$17-1,IF(LEFT($B18,1)="M",'Base Mortality'!$CY$34:$CZ$154,'Base Mortality'!$A$34:$B$154),2,FALSE), IF( Condition="Dilated Cardiomyopathy (DCM)",Flat_addition*HLOOKUP($D18,DCM_Grading_Pattern,FP$17+1,0)*1000,VLOOKUP($A$9,$A$9:$CK$9,MIN(49+FP$17,89),FALSE))),0),0)) -> 10 | FQ18: =MIN(1000,IFERROR(IF(RIGHT($B18,6)="Substd",IF(VLOOKUP($A$9,$A$9:$CK$9,MIN(8+FQ$17,48),FALSE)>0,VLOOKUP($A$9,$A$9:$CK$9,MIN(8+FQ$17,48),FALSE)*IF(LEFT($B18,1)="M",MUlt,FUlt)*VLOOKUP($D18+FQ$17-1,IF(LEFT($B18,1)="M",'Base Mortality'!$CY$34:$CZ$154,'Base Mortality'!$A$34:$B$154),2,FALSE), IF( Condition="Dilated Cardiomyopathy (DCM)",Flat_addition*HLOOKUP($D18,DCM_Grading_Pattern,FQ$17+1,0)*1000,VLOOKUP($A$9,$A$9:$CK$9,MIN(49+FQ$17,89),FALSE))),0),0)) -> 10 | FR18: =MIN(1000,IFERROR(IF(RIGHT($B18,6)="Substd",IF(VLOOKUP($A$9,$A$9:$CK$9,MIN(8+FR$17,48),FALSE)>0,VLOOKUP($A$9,$A$9:$CK$9,MIN(8+FR$17,48),FALSE)*IF(LEFT($B18,1)="M",MUlt,FUlt)*VLOOKUP($D18+FR$17-1,IF(LEFT($B18,1)="M",'Base Mortality'!$CY$34:$CZ$154,'Base Mortality'!$A$34:$B$154),2,FALSE), IF( Condition="Dilated Cardiomyopathy (DCM)",Flat_addition*HLOOKUP($D18,DCM_Grading_Pattern,FR$17+1,0)*1000,VLOOKUP($A$9,$A$9:$CK$9,MIN(49+FR$17,89),FALSE))),0),0)) -> 10 | FS18: =MIN(1000,IFERROR(IF(RIGHT($B18,6)="Substd",IF(VLOOKUP($A$9,$A$9:$CK$9,MIN(8+FS$17,48),FALSE)>0,VLOOKUP($A$9,$A$9:$CK$9,MIN(8+FS$17,48),FALSE)*IF(LEFT($B18,1)="M",MUlt,FUlt)*VLOOKUP($D18+FS$17-1,IF(LEFT($B18,1)="M",'Base Mortality'!$CY$34:$CZ$154,'Base Mortality'!$A$34:$B$154),2,FALSE), IF( Condition="Dilated Cardiomyopathy (DCM)",Flat_addition*HLOOKUP($D18,DCM_Grading_Pattern,FS$17+1,0)*1000,VLOOKUP($A$9,$A$9:$CK$9,MIN(49+FS$17,89),FALSE))),0),0)) -> 10 | FT18: =MIN(1000,IFERROR(IF(RIGHT($B18,6)="Substd",IF(VLOOKUP($A$9,$A$9:$CK$9,MIN(8+FT$17,48),FALSE)>0,VLOOKUP($A$9,$A$9:$CK$9,MIN(8+FT$17,48),FALSE)*IF(LEFT($B18,1)="M",MUlt,FUlt)*VLOOKUP($D18+FT$17-1,IF(LEFT($B18,1)="M",'Base Mortality'!$CY$34:$CZ$154,'Base Mortality'!$A$34:$B$154),2,FALSE), IF( Condition="Dilated Cardiomyopathy (DCM)",Flat_addition*HLOOKUP($D18,DCM_Grading_Pattern,FT$17+1,0)*1000,VLOOKUP($A$9,$A$9:$CK$9,MIN(49+FT$17,89),FALSE))),0),0)) -> 10 | FU18: =MIN(1000,IFERROR(IF(RIGHT($B18,6)="Substd",IF(VLOOKUP($A$9,$A$9:$CK$9,MIN(8+FU$17,48),FALSE)>0,VLOOKUP($A$9,$A$9:$CK$9,MIN(8+FU$17,48),FALSE)*IF(LEFT($B18,1)="M",MUlt,FUlt)*VLOOKUP($D18+FU$17-1,IF(LEFT($B18,1)="M",'Base Mortality'!$CY$34:$CZ$154,'Base Mortality'!$A$34:$B$154),2,FALSE), IF( Condition="Dilated Cardiomyopathy (DCM)",Flat_addition*HLOOKUP($D18,DCM_Grading_Pattern,FU$17+1,0)*1000,VLOOKUP($A$9,$A$9:$CK$9,MIN(49+FU$17,89),FALSE))),0),0)) -> 10 | FV18: =MIN(1000,IFERROR(IF(RIGHT($B18,6)="Substd",IF(VLOOKUP($A$9,$A$9:$CK$9,MIN(8+FV$17,48),FALSE)>0,VLOOKUP($A$9,$A$9:$CK$9,MIN(8+FV$17,48),FALSE)*IF(LEFT($B18,1)="M",MUlt,FUlt)*VLOOKUP($D18+FV$17-1,IF(LEFT($B18,1)="M",'Base Mortality'!$CY$34:$CZ$154,'Base Mortality'!$A$34:$B$154),2,FALSE), IF( Condition="Dilated Cardiomyopathy (DCM)",Flat_addition*HLOOKUP($D18,DCM_Grading_Pattern,FV$17+1,0)*1000,VLOOKUP($A$9,$A$9:$CK$9,MIN(49+FV$17,89),FALSE))),0),0)) -> 10 | FW18: =MIN(1000,IFERROR(IF(RIGHT($B18,6)="Substd",IF(VLOOKUP($A$9,$A$9:$CK$9,MIN(8+FW$17,48),FALSE)>0,VLOOKUP($A$9,$A$9:$CK$9,MIN(8+FW$17,48),FALSE)*IF(LEFT($B18,1)="M",MUlt,FUlt)*VLOOKUP($D18+FW$17-1,IF(LEFT($B18,1)="M",'Base Mortality'!$CY$34:$CZ$154,'Base Mortality'!$A$34:$B$154),2,FALSE), IF( Condition="Dilated Cardiomyopathy (DCM)",Flat_addition*HLOOKUP($D18,DCM_Grading_Pattern,FW$17+1,0)*1000,VLOOKUP($A$9,$A$9:$CK$9,MIN(49+FW$17,89),FALSE))),0),0)) -> 10 | FX18: =MIN(1000,IFERROR(IF(RIGHT($B18,6)="Substd",IF(VLOOKUP($A$9,$A$9:$CK$9,MIN(8+FX$17,48),FALSE)>0,VLOOKUP($A$9,$A$9:$CK$9,MIN(8+FX$17,48),FALSE)*IF(LEFT($B18,1)="M",MUlt,FUlt)*VLOOKUP($D18+FX$17-1,IF(LEFT($B18,1)="M",'Base Mortality'!$CY$34:$CZ$154,'Base Mortality'!$A$34:$B$154),2,FALSE), IF( Condition="Dilated Cardiomyopathy (DCM)",Flat_addition*HLOOKUP($D18,DCM_Grading_Pattern,FX$17+1,0)*1000,VLOOKUP($A$9,$A$9:$CK$9,MIN(49+FX$17,89),FALSE))),0),0)) -> 10 | FY18: =MIN(1000,IFERROR(IF(RIGHT($B18,6)="Substd",IF(VLOOKUP($A$9,$A$9:$CK$9,MIN(8+FY$17,48),FALSE)>0,VLOOKUP($A$9,$A$9:$CK$9,MIN(8+FY$17,48),FALSE)*IF(LEFT($B18,1)="M",MUlt,FUlt)*VLOOKUP($D18+FY$17-1,IF(LEFT($B18,1)="M",'Base Mortality'!$CY$34:$CZ$154,'Base Mortality'!$A$34:$B$154),2,FALSE), IF( Condition="Dilated Cardiomyopathy (DCM)",Flat_addition*HLOOKUP($D18,DCM_Grading_Pattern,FY$17+1,0)*1000,VLOOKUP($A$9,$A$9:$CK$9,MIN(49+FY$17,89),FALSE))),0),0)) -> 10 | FZ18: =MIN(1000,IFERROR(IF(RIGHT($B18,6)="Substd",IF(VLOOKUP($A$9,$A$9:$CK$9,MIN(8+FZ$17,48),FALSE)>0,VLOOKUP($A$9,$A$9:$CK$9,MIN(8+FZ$17,48),FALSE)*IF(LEFT($B18,1)="M",MUlt,FUlt)*VLOOKUP($D18+FZ$17-1,IF(LEFT($B18,1)="M",'Base Mortality'!$CY$34:$CZ$154,'Base Mortality'!$A$34:$B$154),2,FALSE), IF( Condition="Dilated Cardiomyopathy (DCM)",Flat_addition*HLOOKUP($D18,DCM_Grading_Pattern,FZ$17+1,0)*1000,VLOOKUP($A$9,$A$9:$CK$9,MIN(49+FZ$17,89),FALSE))),0),0)) -> 10 | GA18: =MIN(1000,IFERROR(IF(RIGHT($B18,6)="Substd",IF(VLOOKUP($A$9,$A$9:$CK$9,MIN(8+GA$17,48),FALSE)>0,VLOOKUP($A$9,$A$9:$CK$9,MIN(8+GA$17,48),FALSE)*IF(LEFT($B18,1)="M",MUlt,FUlt)*VLOOKUP($D18+GA$17-1,IF(LEFT($B18,1)="M",'Base Mortality'!$CY$34:$CZ$154,'Base Mortality'!$A$34:$B$154),2,FALSE), IF( Condition="Dilated Cardiomyopathy (DCM)",Flat_addition*HLOOKUP($D18,DCM_Grading_Pattern,GA$17+1,0)*1000,VLOOKUP($A$9,$A$9:$CK$9,MIN(49+GA$17,89),FALSE))),0),0)) -> 10 | GB18: =MIN(1000,IFERROR(IF(RIGHT($B18,6)="Substd",IF(VLOOKUP($A$9,$A$9:$CK$9,MIN(8+GB$17,48),FALSE)>0,VLOOKUP($A$9,$A$9:$CK$9,MIN(8+GB$17,48),FALSE)*IF(LEFT($B18,1)="M",MUlt,FUlt)*VLOOKUP($D18+GB$17-1,IF(LEFT($B18,1)="M",'Base Mortality'!$CY$34:$CZ$154,'Base Mortality'!$A$34:$B$154),2,FALSE), IF( Condition="Dilated Cardiomyopathy (DCM)",Flat_addition*HLOOKUP($D18,DCM_Grading_Pattern,GB$17+1,0)*1000,VLOOKUP($A$9,$A$9:$CK$9,MIN(49+GB$17,89),FALSE))),0),0)) -> 10 | GC18: =MIN(1000,IFERROR(IF(RIGHT($B18,6)="Substd",IF(VLOOKUP($A$9,$A$9:$CK$9,MIN(8+GC$17,48),FALSE)>0,VLOOKUP($A$9,$A$9:$CK$9,MIN(8+GC$17,48),FALSE)*IF(LEFT($B18,1)="M",MUlt,FUlt)*VLOOKUP($D18+GC$17-1,IF(LEFT($B18,1)="M",'Base Mortality'!$CY$34:$CZ$154,'Base Mortality'!$A$34:$B$154),2,FALSE), IF( Condition="Dilated Cardiomyopathy (DCM)",Flat_addition*HLOOKUP($D18,DCM_Grading_Pattern,GC$17+1,0)*1000,VLOOKUP($A$9,$A$9:$CK$9,MIN(49+GC$17,89),FALSE))),0),0)) -> 10 | GD18: =MIN(1000,IFERROR(IF(RIGHT($B18,6)="Substd",IF(VLOOKUP($A$9,$A$9:$CK$9,MIN(8+GD$17,48),FALSE)>0,VLOOKUP($A$9,$A$9:$CK$9,MIN(8+GD$17,48),FALSE)*IF(LEFT($B18,1)="M",MUlt,FUlt)*VLOOKUP($D18+GD$17-1,IF(LEFT($B18,1)="M",'Base Mortality'!$CY$34:$CZ$154,'Base Mortality'!$A$34:$B$154),2,FALSE), IF( Condition="Dilated Cardiomyopathy (DCM)",Flat_addition*HLOOKUP($D18,DCM_Grading_Pattern,GD$17+1,0)*1000,VLOOKUP($A$9,$A$9:$CK$9,MIN(49+GD$17,89),FALSE))),0),0)) -> 10 | GE18: =MIN(1000,IFERROR(IF(RIGHT($B18,6)="Substd",IF(VLOOKUP($A$9,$A$9:$CK$9,MIN(8+GE$17,48),FALSE)>0,VLOOKUP($A$9,$A$9:$CK$9,MIN(8+GE$17,48),FALSE)*IF(LEFT($B18,1)="M",MUlt,FUlt)*VLOOKUP($D18+GE$17-1,IF(LEFT($B18,1)="M",'Base Mortality'!$CY$34:$CZ$154,'Base Mortality'!$A$34:$B$154),2,FALSE), IF( Condition="Dilated Cardiomyopathy (DCM)",Flat_addition*HLOOKUP($D18,DCM_Grading_Pattern,GE$17+1,0)*1000,VLOOKUP($A$9,$A$9:$CK$9,MIN(49+GE$17,89),FALSE))),0),0)) -> 10 | GF18: =MIN(1000,IFERROR(IF(RIGHT($B18,6)="Substd",IF(VLOOKUP($A$9,$A$9:$CK$9,MIN(8+GF$17,48),FALSE)>0,VLOOKUP($A$9,$A$9:$CK$9,MIN(8+GF$17,48),FALSE)*IF(LEFT($B18,1)="M",MUlt,FUlt)*VLOOKUP($D18+GF$17-1,IF(LEFT($B18,1)="M",'Base Mortality'!$CY$34:$CZ$154,'Base Mortality'!$A$34:$B$154),2,FALSE), IF( Condition="Dilated Cardiomyopathy (DCM)",Flat_addition*HLOOKUP($D18,DCM_Grading_Pattern,GF$17+1,0)*1000,VLOOKUP($A$9,$A$9:$CK$9,MIN(49+GF$17,89),FALSE))),0),0)) -> 10 | GG18: =MIN(1000,IFERROR(IF(RIGHT($B18,6)="Substd",IF(VLOOKUP($A$9,$A$9:$CK$9,MIN(8+GG$17,48),FALSE)>0,VLOOKUP($A$9,$A$9:$CK$9,MIN(8+GG$17,48),FALSE)*IF(LEFT($B18,1)="M",MUlt,FUlt)*VLOOKUP($D18+GG$17-1,IF(LEFT($B18,1)="M",'Base Mortality'!$CY$34:$CZ$154,'Base Mortality'!$A$34:$B$154),2,FALSE), IF( Condition="Dilated Cardiomyopathy (DCM)",Flat_addition*HLOOKUP($D18,DCM_Grading_Pattern,GG$17+1,0)*1000,VLOOKUP($A$9,$A$9:$CK$9,MIN(49+GG$17,89),FALSE))),0),0)) -> 10 | GH18: =MIN(1000,IFERROR(IF(RIGHT($B18,6)="Substd",IF(VLOOKUP($A$9,$A$9:$CK$9,MIN(8+GH$17,48),FALSE)>0,VLOOKUP($A$9,$A$9:$CK$9,MIN(8+GH$17,48),FALSE)*IF(LEFT($B18,1)="M",MUlt,FUlt)*VLOOKUP($D18+GH$17-1,IF(LEFT($B18,1)="M",'Base Mortality'!$CY$34:$CZ$154,'Base Mortality'!$A$34:$B$154),2,FALSE), IF( Condition="Dilated Cardiomyopathy (DCM)",Flat_addition*HLOOKUP($D18,DCM_Grading_Pattern,GH$17+1,0)*1000,VLOOKUP($A$9,$A$9:$CK$9,MIN(49+GH$17,89),FALSE))),0),0)) -> 10 | GI18: =MIN(1000,IFERROR(IF(RIGHT($B18,6)="Substd",IF(VLOOKUP($A$9,$A$9:$CK$9,MIN(8+GI$17,48),FALSE)>0,VLOOKUP($A$9,$A$9:$CK$9,MIN(8+GI$17,48),FALSE)*IF(LEFT($B18,1)="M",MUlt,FUlt)*VLOOKUP($D18+GI$17-1,IF(LEFT($B18,1)="M",'Base Mortality'!$CY$34:$CZ$154,'Base Mortality'!$A$34:$B$154),2,FALSE), IF( Condition="Dilated Cardiomyopathy (DCM)",Flat_addition*HLOOKUP($D18,DCM_Grading_Pattern,GI$17+1,0)*1000,VLOOKUP($A$9,$A$9:$CK$9,MIN(49+GI$17,89),FALSE))),0),0)) -> 10 | GJ18: =MIN(1000,IFERROR(IF(RIGHT($B18,6)="Substd",IF(VLOOKUP($A$9,$A$9:$CK$9,MIN(8+GJ$17,48),FALSE)>0,VLOOKUP($A$9,$A$9:$CK$9,MIN(8+GJ$17,48),FALSE)*IF(LEFT($B18,1)="M",MUlt,FUlt)*VLOOKUP($D18+GJ$17-1,IF(LEFT($B18,1)="M",'Base Mortality'!$CY$34:$CZ$154,'Base Mortality'!$A$34:$B$154),2,FALSE), IF( Condition="Dilated Cardiomyopathy (DCM)",Flat_addition*HLOOKUP($D18,DCM_Grading_Pattern,GJ$17+1,0)*1000,VLOOKUP($A$9,$A$9:$CK$9,MIN(49+GJ$17,89),FALSE))),0),0)) -> 10 | GK18: =MIN(1000,IFERROR(IF(RIGHT($B18,6)="Substd",IF(VLOOKUP($A$9,$A$9:$CK$9,MIN(8+GK$17,48),FALSE)>0,VLOOKUP($A$9,$A$9:$CK$9,MIN(8+GK$17,48),FALSE)*IF(LEFT($B18,1)="M",MUlt,FUlt)*VLOOKUP($D18+GK$17-1,IF(LEFT($B18,1)="M",'Base Mortality'!$CY$34:$CZ$154,'Base Mortality'!$A$34:$B$154),2,FALSE), IF( Condition="Dilated Cardiomyopathy (DCM)",Flat_addition*HLOOKUP($D18,DCM_Grading_Pattern,GK$17+1,0)*1000,VLOOKUP($A$9,$A$9:$CK$9,MIN(49+GK$17,89),FALSE))),0),0)) -> 10 | GL18: =MIN(1000,IFERROR(IF(RIGHT($B18,6)="Substd",IF(VLOOKUP($A$9,$A$9:$CK$9,MIN(8+GL$17,48),FALSE)>0,VLOOKUP($A$9,$A$9:$CK$9,MIN(8+GL$17,48),FALSE)*IF(LEFT($B18,1)="M",MUlt,FUlt)*VLOOKUP($D18+GL$17-1,IF(LEFT($B18,1)="M",'Base Mortality'!$CY$34:$CZ$154,'Base Mortality'!$A$34:$B$154),2,FALSE), IF( Condition="Dilated Cardiomyopathy (DCM)",Flat_addition*HLOOKUP($D18,DCM_Grading_Pattern,GL$17+1,0)*1000,VLOOKUP($A$9,$A$9:$CK$9,MIN(49+GL$17,89),FALSE))),0),0)) -> 10 | GM18: =MIN(1000,IFERROR(IF(RIGHT($B18,6)="Substd",IF(VLOOKUP($A$9,$A$9:$CK$9,MIN(8+GM$17,48),FALSE)>0,VLOOKUP($A$9,$A$9:$CK$9,MIN(8+GM$17,48),FALSE)*IF(LEFT($B18,1)="M",MUlt,FUlt)*VLOOKUP($D18+GM$17-1,IF(LEFT($B18,1)="M",'Base Mortality'!$CY$34:$CZ$154,'Base Mortality'!$A$34:$B$154),2,FALSE), IF( Condition="Dilated Cardiomyopathy (DCM)",Flat_addition*HLOOKUP($D18,DCM_Grading_Pattern,GM$17+1,0)*1000,VLOOKUP($A$9,$A$9:$CK$9,MIN(49+GM$17,89),FALSE))),0),0)) -> 10 | GN18: =MIN(1000,IFERROR(IF(RIGHT($B18,6)="Substd",IF(VLOOKUP($A$9,$A$9:$CK$9,MIN(8+GN$17,48),FALSE)>0,VLOOKUP($A$9,$A$9:$CK$9,MIN(8+GN$17,48),FALSE)*IF(LEFT($B18,1)="M",MUlt,FUlt)*VLOOKUP($D18+GN$17-1,IF(LEFT($B18,1)="M",'Base Mortality'!$CY$34:$CZ$154,'Base Mortality'!$A$34:$B$154),2,FALSE), IF( Condition="Dilated Cardiomyopathy (DCM)",Flat_addition*HLOOKUP($D18,DCM_Grading_Pattern,GN$17+1,0)*1000,VLOOKUP($A$9,$A$9:$CK$9,MIN(49+GN$17,89),FALSE))),0),0)) -> 10 | GO18: =MIN(1000,IFERROR(IF(RIGHT($B18,6)="Substd",IF(VLOOKUP($A$9,$A$9:$CK$9,MIN(8+GO$17,48),FALSE)>0,VLOOKUP($A$9,$A$9:$CK$9,MIN(8+GO$17,48),FALSE)*IF(LEFT($B18,1)="M",MUlt,FUlt)*VLOOKUP($D18+GO$17-1,IF(LEFT($B18,1)="M",'Base Mortality'!$CY$34:$CZ$154,'Base Mortality'!$A$34:$B$154),2,FALSE), IF( Condition="Dilated Cardiomyopathy (DCM)",Flat_addition*HLOOKUP($D18,DCM_Grading_Pattern,GO$17+1,0)*1000,VLOOKUP($A$9,$A$9:$CK$9,MIN(49+GO$17,89),FALSE))),0),0)) -> 10 | GP18: =MIN(1000,IFERROR(IF(RIGHT($B18,6)="Substd",IF(VLOOKUP($A$9,$A$9:$CK$9,MIN(8+GP$17,48),FALSE)>0,VLOOKUP($A$9,$A$9:$CK$9,MIN(8+GP$17,48),FALSE)*IF(LEFT($B18,1)="M",MUlt,FUlt)*VLOOKUP($D18+GP$17-1,IF(LEFT($B18,1)="M",'Base Mortality'!$CY$34:$CZ$154,'Base Mortality'!$A$34:$B$154),2,FALSE), IF( Condition="Dilated Cardiomyopathy (DCM)",Flat_addition*HLOOKUP($D18,DCM_Grading_Pattern,GP$17+1,0)*1000,VLOOKUP($A$9,$A$9:$CK$9,MIN(49+GP$17,89),FALSE))),0),0)) -> 10 | GQ18: =MIN(1000,IFERROR(IF(RIGHT($B18,6)="Substd",IF(VLOOKUP($A$9,$A$9:$CK$9,MIN(8+GQ$17,48),FALSE)>0,VLOOKUP($A$9,$A$9:$CK$9,MIN(8+GQ$17,48),FALSE)*IF(LEFT($B18,1)="M",MUlt,FUlt)*VLOOKUP($D18+GQ$17-1,IF(LEFT($B18,1)="M",'Base Mortality'!$CY$34:$CZ$154,'Base Mortality'!$A$34:$B$154),2,FALSE), IF( Condition="Dilated Cardiomyopathy (DCM)",Flat_addition*HLOOKUP($D18,DCM_Grading_Pattern,GQ$17+1,0)*1000,VLOOKUP($A$9,$A$9:$CK$9,MIN(49+GQ$17,89),FALSE))),0),0)) -> 10 | GR18: =MIN(1000,IFERROR(IF(RIGHT($B18,6)="Substd",IF(VLOOKUP($A$9,$A$9:$CK$9,MIN(8+GR$17,48),FALSE)>0,VLOOKUP($A$9,$A$9:$CK$9,MIN(8+GR$17,48),FALSE)*IF(LEFT($B18,1)="M",MUlt,FUlt)*VLOOKUP($D18+GR$17-1,IF(LEFT($B18,1)="M",'Base Mortality'!$CY$34:$CZ$154,'Base Mortality'!$A$34:$B$154),2,FALSE), IF( Condition="Dilated Cardiomyopathy (DCM)",Flat_addition*HLOOKUP($D18,DCM_Grading_Pattern,GR$17+1,0)*1000,VLOOKUP($A$9,$A$9:$CK$9,MIN(49+GR$17,89),FALSE))),0),0)) -> 10 | GS18: =MIN(1000,IFERROR(IF(RIGHT($B18,6)="Substd",IF(VLOOKUP($A$9,$A$9:$CK$9,MIN(8+GS$17,48),FALSE)>0,VLOOKUP($A$9,$A$9:$CK$9,MIN(8+GS$17,48),FALSE)*IF(LEFT($B18,1)="M",MUlt,FUlt)*VLOOKUP($D18+GS$17-1,IF(LEFT($B18,1)="M",'Base Mortality'!$CY$34:$CZ$154,'Base Mortality'!$A$34:$B$154),2,FALSE), IF( Condition="Dilated Cardiomyopathy (DCM)",Flat_addition*HLOOKUP($D18,DCM_Grading_Pattern,GS$17+1,0)*1000,VLOOKUP($A$9,$A$9:$CK$9,MIN(49+GS$17,89),FALSE))),0),0)) -> 10 | GT18: =MIN(1000,IFERROR(IF(RIGHT($B18,6)="Substd",IF(VLOOKUP($A$9,$A$9:$CK$9,MIN(8+GT$17,48),FALSE)>0,VLOOKUP($A$9,$A$9:$CK$9,MIN(8+GT$17,48),FALSE)*IF(LEFT($B18,1)="M",MUlt,FUlt)*VLOOKUP($D18+GT$17-1,IF(LEFT($B18,1)="M",'Base Mortality'!$CY$34:$CZ$154,'Base Mortality'!$A$34:$B$154),2,FALSE), IF( Condition="Dilated Cardiomyopathy (DCM)",Flat_addition*HLOOKUP($D18,DCM_Grading_Pattern,GT$17+1,0)*1000,VLOOKUP($A$9,$A$9:$CK$9,MIN(49+GT$17,89),FALSE))),0),0)) -> 10 | GU18: =MIN(1000,IFERROR(IF(RIGHT($B18,6)="Substd",IF(VLOOKUP($A$9,$A$9:$CK$9,MIN(8+GU$17,48),FALSE)>0,VLOOKUP($A$9,$A$9:$CK$9,MIN(8+GU$17,48),FALSE)*IF(LEFT($B18,1)="M",MUlt,FUlt)*VLOOKUP($D18+GU$17-1,IF(LEFT($B18,1)="M",'Base Mortality'!$CY$34:$CZ$154,'Base Mortality'!$A$34:$B$154),2,FALSE), IF( Condition="Dilated Cardiomyopathy (DCM)",Flat_addition*HLOOKUP($D18,DCM_Grading_Pattern,GU$17+1,0)*1000,VLOOKUP($A$9,$A$9:$CK$9,MIN(49+GU$17,89),FALSE))),0),0)) -> 10 | GV18: =MIN(1000,IFERROR(IF(RIGHT($B18,6)="Substd",IF(VLOOKUP($A$9,$A$9:$CK$9,MIN(8+GV$17,48),FALSE)>0,VLOOKUP($A$9,$A$9:$CK$9,MIN(8+GV$17,48),FALSE)*IF(LEFT($B18,1)="M",MUlt,FUlt)*VLOOKUP($D18+GV$17-1,IF(LEFT($B18,1)="M",'Base Mortality'!$CY$34:$CZ$154,'Base Mortality'!$A$34:$B$154),2,FALSE), IF( Condition="Dilated Cardiomyopathy (DCM)",Flat_addition*HLOOKUP($D18,DCM_Grading_Pattern,GV$17+1,0)*1000,VLOOKUP($A$9,$A$9:$CK$9,MIN(49+GV$17,89),FALSE))),0),0)) -> 10 | GW18: =MIN(1000,IFERROR(IF(RIGHT($B18,6)="Substd",IF(VLOOKUP($A$9,$A$9:$CK$9,MIN(8+GW$17,48),FALSE)>0,VLOOKUP($A$9,$A$9:$CK$9,MIN(8+GW$17,48),FALSE)*IF(LEFT($B18,1)="M",MUlt,FUlt)*VLOOKUP($D18+GW$17-1,IF(LEFT($B18,1)="M",'Base Mortality'!$CY$34:$CZ$154,'Base Mortality'!$A$34:$B$154),2,FALSE), IF( Condition="Dilated Cardiomyopathy (DCM)",Flat_addition*HLOOKUP($D18,DCM_Grading_Pattern,GW$17+1,0)*1000,VLOOKUP($A$9,$A$9:$CK$9,MIN(49+GW$17,89),FALSE))),0),0)) -> 10 | GX18: =MIN(1000,IFERROR(IF(RIGHT($B18,6)="Substd",IF(VLOOKUP($A$9,$A$9:$CK$9,MIN(8+GX$17,48),FALSE)>0,VLOOKUP($A$9,$A$9:$CK$9,MIN(8+GX$17,48),FALSE)*IF(LEFT($B18,1)="M",MUlt,FUlt)*VLOOKUP($D18+GX$17-1,IF(LEFT($B18,1)="M",'Base Mortality'!$CY$34:$CZ$154,'Base Mortality'!$A$34:$B$154),2,FALSE), IF( Condition="Dilated Cardiomyopathy (DCM)",Flat_addition*HLOOKUP($D18,DCM_Grading_Pattern,GX$17+1,0)*1000,VLOOKUP($A$9,$A$9:$CK$9,MIN(49+GX$17,89),FALSE))),0),0)) -> 10 | GY18: =MIN(1000,IFERROR(IF(RIGHT($B18,6)="Substd",IF(VLOOKUP($A$9,$A$9:$CK$9,MIN(8+GY$17,48),FALSE)>0,VLOOKUP($A$9,$A$9:$CK$9,MIN(8+GY$17,48),FALSE)*IF(LEFT($B18,1)="M",MUlt,FUlt)*VLOOKUP($D18+GY$17-1,IF(LEFT($B18,1)="M",'Base Mortality'!$CY$34:$CZ$154,'Base Mortality'!$A$34:$B$154),2,FALSE), IF( Condition="Dilated Cardiomyopathy (DCM)",Flat_addition*HLOOKUP($D18,DCM_Grading_Pattern,GY$17+1,0)*1000,VLOOKUP($A$9,$A$9:$CK$9,MIN(49+GY$17,89),FALSE))),0),0)) -> 10 | HA18: 1 | HB18: =IFERROR(MIN(IF(OR(HA18>=1000,HA18=0,$D18+HB$17-1>120),0,IF(E18="",0,MIN(E18,1000))+IF(DC18="",0,MIN(DC18,1000)))* ( 1- VLOOKUP($D18+HB$17-1,'Mortality Improvement'!$A$3:$C$123,IF(LEFT($B18,1)="F",3,2),0) )^HB$17,1000),0) -> 0.50388 | HC18: =IFERROR(MIN(IF(OR(HB18>=1000,HB18=0,$D18+HC$17-1>120),0,IF(F18="",0,MIN(F18,1000))+IF(DD18="",0,MIN(DD18,1000)))* ( 1- VLOOKUP($D18+HC$17-1,'Mortality Improvement'!$A$3:$C$123,IF(LEFT($B18,1)="F",3,2),0) )^HC$17,1000),0) -> 0.55640208 | HD18: =IFERROR(MIN(IF(OR(HC18>=1000,HC18=0,$D18+HD$17-1>120),0,IF(G18="",0,MIN(G18,1000))+IF(DE18="",0,MIN(DE18,1000)))* ( 1- VLOOKUP($D18+HD$17-1,'Mortality Improvement'!$A$3:$C$123,IF(LEFT($B18,1)="F",3,2),0) )^HD$17,1000),0) -> 0.549725255 | HE18: =IFERROR(MIN(IF(OR(HD18>=1000,HD18=0,$D18+HE$17-1>120),0,IF(H18="",0,MIN(H18,1000))+IF(DF18="",0,MIN(DF18,1000)))* ( 1- VLOOKUP($D18+HE$17-1,'Mortality Improvement'!$A$3:$C$123,IF(LEFT($B18,1)="F",3,2),0) )^HE$17,1000),0) -> 0.5240714098 | HF18: =IFERROR(MIN(IF(OR(HE18>=1000,HE18=0,$D18+HF$17-1>120),0,IF(I18="",0,MIN(I18,1000))+IF(DG18="",0,MIN(DG18,1000)))* ( 1- VLOOKUP($D18+HF$17-1,'Mortality Improvement'!$A$3:$C$123,IF(LEFT($B18,1)="F",3,2),0) )^HF$17,1000),0) -> 0.4989540964 | HG18: =IFERROR(MIN(IF(OR(HF18>=1000,HF18=0,$D18+HG$17-1>120),0,IF(J18="",0,MIN(J18,1000))+IF(DH18="",0,MIN(DH18,1000)))* ( 1- VLOOKUP($D18+HG$17-1,'Mortality Improvement'!$A$3:$C$123,IF(LEFT($B18,1)="F",3,2),0) )^HG$17,1000),0) -> 0.7937073063 | HH18: =IFERROR(MIN(IF(OR(HG18>=1000,HG18=0,$D18+HH$17-1>120),0,IF(K18="",0,MIN(K18,1000))+IF(DI18="",0,MIN(DI18,1000)))* ( 1- VLOOKUP($D18+HH$17-1,'Mortality Improvement'!$A$3:$C$123,IF(LEFT($B18,1)="F",3,2),0) )^HH$17,1000),0) -> 1.387636003 | HI18: =IFERROR(MIN(IF(OR(HH18>=1000,HH18=0,$D18+HI$17-1>120),0,IF(L18="",0,MIN(L18,1000))+IF(DJ18="",0,MIN(DJ18,1000)))* ( 1- VLOOKUP($D18+HI$17-1,'Mortality Improvement'!$A$3:$C$123,IF(LEFT($B18,1)="F",3,2),0) )^HI$17,1000),0) -> 1.939958018 | HJ18: =IFERROR(MIN(IF(OR(HI18>=1000,HI18=0,$D18+HJ$17-1>120),0,IF(M18="",0,MIN(M18,1000))+IF(DK18="",0,MIN(DK18,1000)))* ( 1- VLOOKUP($D18+HJ$17-1,'Mortality Improvement'!$A$3:$C$123,IF(LEFT($B18,1)="F",3,2),0) )^HJ$17,1000),0) -> 2.478824484 | HK18: =IFERROR(MIN(IF(OR(HJ18>=1000,HJ18=0,$D18+HK$17-1>120),0,IF(N18="",0,MIN(N18,1000))+IF(DL18="",0,MIN(DL18,1000)))* ( 1- VLOOKUP($D18+HK$17-1,'Mortality Improvement'!$A$3:$C$123,IF(LEFT($B18,1)="F",3,2),0) )^HK$17,1000),0) -> 3.048792648 | HL18: =IFERROR(MIN(IF(OR(HK18>=1000,HK18=0,$D18+HL$17-1>120),0,IF(O18="",0,MIN(O18,1000))+IF(DM18="",0,MIN(DM18,1000)))* ( 1- VLOOKUP($D18+HL$17-1,'Mortality Improvement'!$A$3:$C$123,IF(LEFT($B18,1)="F",3,2),0) )^HL$17,1000),0) -> 3.595968209 | HM18: =IFERROR(MIN(IF(OR(HL18>=1000,HL18=0,$D18+HM$17-1>120),0,IF(P18="",0,MIN(P18,1000))+IF(DN18="",0,MIN(DN18,1000)))* ( 1- VLOOKUP($D18+HM$17-1,'Mortality Improvement'!$A$3:$C$123,IF(LEFT($B18,1)="F",3,2),0) )^HM$17,1000),0) -> 4.138223869 | HN18: =IFERROR(MIN(IF(OR(HM18>=1000,HM18=0,$D18+HN$17-1>120),0,IF(Q18="",0,MIN(Q18,1000))+IF(DO18="",0,MIN(DO18,1000)))* ( 1- VLOOKUP($D18+HN$17-1,'Mortality Improvement'!$A$3:$C$123,IF(LEFT($B18,1)="F",3,2),0) )^HN$17,1000),0) -> 4.666947575 | HO18: =IFERROR(MIN(IF(OR(HN18>=1000,HN18=0,$D18+HO$17-1>120),0,IF(R18="",0,MIN(R18,1000))+IF(DP18="",0,MIN(DP18,1000)))* ( 1- VLOOKUP($D18+HO$17-1,'Mortality Improvement'!$A$3:$C$123,IF(LEFT($B18,1)="F",3,2),0) )^HO$17,1000),0) -> 5.216165818 | HP18: =IFERROR(MIN(IF(OR(HO18>=1000,HO18=0,$D18+HP$17-1>120),0,IF(S18="",0,MIN(S18,1000))+IF(DQ18="",0,MIN(DQ18,1000)))* ( 1- VLOOKUP($D18+HP$17-1,'Mortality Improvement'!$A$3:$C$123,IF(LEFT($B18,1)="F",3,2),0) )^HP$17,1000),0) -> 5.759874396 | HQ18: =IFERROR(MIN(IF(OR(HP18>=1000,HP18=0,$D18+HQ$17-1>120),0,IF(T18="",0,MIN(T18,1000))+IF(DR18="",0,MIN(DR18,1000)))* ( 1- VLOOKUP($D18+HQ$17-1,'Mortality Improvement'!$A$3:$C$123,IF(LEFT($B18,1)="F",3,2),0) )^HQ$17,1000),0) -> 6.281539351 | HR18: =IFERROR(MIN(IF(OR(HQ18>=1000,HQ18=0,$D18+HR$17-1>120),0,IF(U18="",0,MIN(U18,1000))+IF(DS18="",0,MIN(DS18,1000)))* ( 1- VLOOKUP($D18+HR$17-1,'Mortality Improvement'!$A$3:$C$123,IF(LEFT($B18,1)="F",3,2),0) )^HR$17,1000),0) -> 6.822433196 | HS18: =IFERROR(MIN(IF(OR(HR18>=1000,HR18=0,$D18+HS$17-1>120),0,IF(V18="",0,MIN(V18,1000))+IF(DT18="",0,MIN(DT18,1000)))* ( 1- VLOOKUP($D18+HS$17-1,'Mortality Improvement'!$A$3:$C$123,IF(LEFT($B18,1)="F",3,2),0) )^HS$17,1000),0) -> 7.365534715 | HT18: =IFERROR(MIN(IF(OR(HS18>=1000,HS18=0,$D18+HT$17-1>120),0,IF(W18="",0,MIN(W18,1000))+IF(DU18="",0,MIN(DU18,1000)))* ( 1- VLOOKUP($D18+HT$17-1,'Mortality Improvement'!$A$3:$C$123,IF(LEFT($B18,1)="F",3,2),0) )^HT$17,1000),0) -> 7.902569638 | HU18: =IFERROR(MIN(IF(OR(HT18>=1000,HT18=0,$D18+HU$17-1>120),0,IF(X18="",0,MIN(X18,1000))+IF(DV18="",0,MIN(DV18,1000)))* ( 1- VLOOKUP($D18+HU$17-1,'Mortality Improvement'!$A$3:$C$123,IF(LEFT($B18,1)="F",3,2),0) )^HU$17,1000),0) -> 8.433509954 | HV18: =IFERROR(MIN(IF(OR(HU18>=1000,HU18=0,$D18+HV$17-1>120),0,IF(Y18="",0,MIN(Y18,1000))+IF(DW18="",0,MIN(DW18,1000)))* ( 1- VLOOKUP($D18+HV$17-1,'Mortality Improvement'!$A$3:$C$123,IF(LEFT($B18,1)="F",3,2),0) )^HV$17,1000),0) -> 8.660840307 | HW18: =IFERROR(MIN(IF(OR(HV18>=1000,HV18=0,$D18+HW$17-1>120),0,IF(Z18="",0,MIN(Z18,1000))+IF(DX18="",0,MIN(DX18,1000)))* ( 1- VLOOKUP($D18+HW$17-1,'Mortality Improvement'!$A$3:$C$123,IF(LEFT($B18,1)="F",3,2),0) )^HW$17,1000),0) -> 8.602915117 | HX18: =IFERROR(MIN(IF(OR(HW18>=1000,HW18=0,$D18+HX$17-1>120),0,IF(AA18="",0,MIN(AA18,1000))+IF(DY18="",0,MIN(DY18,1000)))* ( 1- VLOOKUP($D18+HX$17-1,'Mortality Improvement'!$A$3:$C$123,IF(LEFT($B18,1)="F",3,2),0) )^HX$17,1000),0) -> 8.552708443 | HY18: =IFERROR(MIN(IF(OR(HX18>=1000,HX18=0,$D18+HY$17-1>120),0,IF(AB18="",0,MIN(AB18,1000))+IF(DZ18="",0,MIN(DZ18,1000)))* ( 1- VLOOKUP($D18+HY$17-1,'Mortality Improvement'!$A$3:$C$123,IF(LEFT($B18,1)="F",3,2),0) )^HY$17,1000),0) -> 8.517437043 | HZ18: =IFERROR(MIN(IF(OR(HY18>=1000,HY18=0,$D18+HZ$17-1>120),0,IF(AC18="",0,MIN(AC18,1000))+IF(EA18="",0,MIN(EA18,1000)))* ( 1- VLOOKUP($D18+HZ$17-1,'Mortality Improvement'!$A$3:$C$123,IF(LEFT($B18,1)="F",3,2),0) )^HZ$17,1000),0) -> 8.496570071 | IA18: =IFERROR(MIN(IF(OR(HZ18>=1000,HZ18=0,$D18+IA$17-1>120),0,IF(AD18="",0,MIN(AD18,1000))+IF(EB18="",0,MIN(EB18,1000)))* ( 1- VLOOKUP($D18+IA$17-1,'Mortality Improvement'!$A$3:$C$123,IF(LEFT($B18,1)="F",3,2),0) )^IA$17,1000),0) -> 7.963556345 | IB18: =IFERROR(MIN(IF(OR(IA18>=1000,IA18=0,$D18+IB$17-1>120),0,IF(AE18="",0,MIN(AE18,1000))+IF(EC18="",0,MIN(EC18,1000)))* ( 1- VLOOKUP($D18+IB$17-1,'Mortality Improvement'!$A$3:$C$123,IF(LEFT($B18,1)="F",3,2),0) )^IB$17,1000),0) -> 7.896867041 | IC18: =IFERROR(MIN(IF(OR(IB18>=1000,IB18=0,$D18+IC$17-1>120),0,IF(AF18="",0,MIN(AF18,1000))+IF(ED18="",0,MIN(ED18,1000)))* ( 1- VLOOKUP($D18+IC$17-1,'Mortality Improvement'!$A$3:$C$123,IF(LEFT($B18,1)="F",3,2),0) )^IC$17,1000),0) -> 7.83776325 | ID18: =IFERROR(MIN(IF(OR(IC18>=1000,IC18=0,$D18+ID$17-1>120),0,IF(AG18="",0,MIN(AG18,1000))+IF(EE18="",0,MIN(EE18,1000)))* ( 1- VLOOKUP($D18+ID$17-1,'Mortality Improvement'!$A$3:$C$123,IF(LEFT($B18,1)="F",3,2),0) )^ID$17,1000),0) -> 7.785986943 | IE18: =IFERROR(MIN(IF(OR(ID18>=1000,ID18=0,$D18+IE$17-1>120),0,IF(AH18="",0,MIN(AH18,1000))+IF(EF18="",0,MIN(EF18,1000)))* ( 1- VLOOKUP($D18+IE$17-1,'Mortality Improvement'!$A$3:$C$123,IF(LEFT($B18,1)="F",3,2),0) )^IE$17,1000),0) -> 7.748247806 | IF18: =IFERROR(MIN(IF(OR(IE18>=1000,IE18=0,$D18+IF$17-1>120),0,IF(AI18="",0,MIN(AI18,1000))+IF(EG18="",0,MIN(EG18,1000)))* ( 1- VLOOKUP($D18+IF$17-1,'Mortality Improvement'!$A$3:$C$123,IF(LEFT($B18,1)="F",3,2),0) )^IF$17,1000),0) -> 7.724049325 | IG18: =IFERROR(MIN(IF(OR(IF18>=1000,IF18=0,$D18+IG$17-1>120),0,IF(AJ18="",0,MIN(AJ18,1000))+IF(EH18="",0,MIN(EH18,1000)))* ( 1- VLOOKUP($D18+IG$17-1,'Mortality Improvement'!$A$3:$C$123,IF(LEFT($B18,1)="F",3,2),0) )^IG$17,1000),0) -> 7.712906885 | IH18: =IFERROR(MIN(IF(OR(IG18>=1000,IG18=0,$D18+IH$17-1>120),0,IF(AK18="",0,MIN(AK18,1000))+IF(EI18="",0,MIN(EI18,1000)))* ( 1- VLOOKUP($D18+IH$17-1,'Mortality Improvement'!$A$3:$C$123,IF(LEFT($B18,1)="F",3,2),0) )^IH$17,1000),0) -> 7.727775467 | II18: =IFERROR(MIN(IF(OR(IH18>=1000,IH18=0,$D18+II$17-1>120),0,IF(AL18="",0,MIN(AL18,1000))+IF(EJ18="",0,MIN(EJ18,1000)))* ( 1- VLOOKUP($D18+II$17-1,'Mortality Improvement'!$A$3:$C$123,IF(LEFT($B18,1)="F",3,2),0) )^II$17,1000),0) -> 7.761076741 | IJ18: =IFERROR(MIN(IF(OR(II18>=1000,II18=0,$D18+IJ$17-1>120),0,IF(AM18="",0,MIN(AM18,1000))+IF(EK18="",0,MIN(EK18,1000)))* ( 1- VLOOKUP($D18+IJ$17-1,'Mortality Improvement'!$A$3:$C$123,IF(LEFT($B18,1)="F",3,2),0) )^IJ$17,1000),0) -> 7.799019783 | IK18: =IFERROR(MIN(IF(OR(IJ18>=1000,IJ18=0,$D18+IK$17-1>120),0,IF(AN18="",0,MIN(AN18,1000))+IF(EL18="",0,MIN(EL18,1000)))* ( 1- VLOOKUP($D18+IK$17-1,'Mortality Improvement'!$A$3:$C$123,IF(LEFT($B18,1)="F",3,2),0) )^IK$17,1000),0) -> 7.834934597 | IL18: =IFERROR(MIN(IF(OR(IK18>=1000,IK18=0,$D18+IL$17-1>120),0,IF(AO18="",0,MIN(AO18,1000))+IF(EM18="",0,MIN(EM18,1000)))* ( 1- VLOOKUP($D18+IL$17-1,'Mortality Improvement'!$A$3:$C$123,IF(LEFT($B18,1)="F",3,2),0) )^IL$17,1000),0) -> 7.868864396 | IM18: =IFERROR(MIN(IF(OR(IL18>=1000,IL18=0,$D18+IM$17-1>120),0,IF(AP18="",0,MIN(AP18,1000))+IF(EN18="",0,MIN(EN18,1000)))* ( 1- VLOOKUP($D18+IM$17-1,'Mortality Improvement'!$A$3:$C$123,IF(LEFT($B18,1)="F",3,2),0) )^IM$17,1000),0) -> 7.894530968 | IN18: =IFERROR(MIN(IF(OR(IM18>=1000,IM18=0,$D18+IN$17-1>120),0,IF(AQ18="",0,MIN(AQ18,1000))+IF(EO18="",0,MIN(EO18,1000)))* ( 1- VLOOKUP($D18+IN$17-1,'Mortality Improvement'!$A$3:$C$123,IF(LEFT($B18,1)="F",3,2),0) )^IN$17,1000),0) -> 7.92469326 | IO18: =IFERROR(MIN(IF(OR(IN18>=1000,IN18=0,$D18+IO$17-1>120),0,IF(AR18="",0,MIN(AR18,1000))+IF(EP18="",0,MIN(EP18,1000)))* ( 1- VLOOKUP($D18+IO$17-1,'Mortality Improvement'!$A$3:$C$123,IF(LEFT($B18,1)="F",3,2),0) )^IO$17,1000),0) -> 7.965334634 | IP18: =IFERROR(MIN(IF(OR(IO18>=1000,IO18=0,$D18+IP$17-1>120),0,IF(AS18="",0,MIN(AS18,1000))+IF(EQ18="",0,MIN(EQ18,1000)))* ( 1- VLOOKUP($D18+IP$17-1,'Mortality Improvement'!$A$3:$C$123,IF(LEFT($B18,1)="F",3,2),0) )^IP$17,1000),0) -> 8.022147028 | IQ18: =IFERROR(MIN(IF(OR(IP18>=1000,IP18=0,$D18+IQ$17-1>120),0,IF(AT18="",0,MIN(AT18,1000))+IF(ER18="",0,MIN(ER18,1000)))* ( 1- VLOOKUP($D18+IQ$17-1,'Mortality Improvement'!$A$3:$C$123,IF(LEFT($B18,1)="F",3,2),0) )^IQ$17,1000),0) -> 8.106562448 | IR18: =IFERROR(MIN(IF(OR(IQ18>=1000,IQ18=0,$D18+IR$17-1>120),0,IF(AU18="",0,MIN(AU18,1000))+IF(ES18="",0,MIN(ES18,1000)))* ( 1- VLOOKUP($D18+IR$17-1,'Mortality Improvement'!$A$3:$C$123,IF(LEFT($B18,1)="F",3,2),0) )^IR$17,1000),0) -> 8.211598442 | IS18: =IFERROR(MIN(IF(OR(IR18>=1000,IR18=0,$D18+IS$17-1>120),0,IF(AV18="",0,MIN(AV18,1000))+IF(ET18="",0,MIN(ET18,1000)))* ( 1- VLOOKUP($D18+IS$17-1,'Mortality Improvement'!$A$3:$C$123,IF(LEFT($B18,1)="F",3,2),0) )^IS$17,1000),0) -> 8.342341371 | IT18: =IFERROR(MIN(IF(OR(IS18>=1000,IS18=0,$D18+IT$17-1>120),0,IF(AW18="",0,MIN(AW18,1000))+IF(EU18="",0,MIN(EU18,1000)))* ( 1- VLOOKUP($D18+IT$17-1,'Mortality Improvement'!$A$3:$C$123,IF(LEFT($B18,1)="F",3,2),0) )^IT$17,1000),0) -> 8.486189439 | IU18: =IFERROR(MIN(IF(OR(IT18>=1000,IT18=0,$D18+IU$17-1>120),0,IF(AX18="",0,MIN(AX18,1000))+IF(EV18="",0,MIN(EV18,1000)))* ( 1- VLOOKUP($D18+IU$17-1,'Mortality Improvement'!$A$3:$C$123,IF(LEFT($B18,1)="F",3,2),0) )^IU$17,1000),0) -> 8.642600191 | IV18: =IFERROR(MIN(IF(OR(IU18>=1000,IU18=0,$D18+IV$17-1>120),0,IF(AY18="",0,MIN(AY18,1000))+IF(EW18="",0,MIN(EW18,1000)))* ( 1- VLOOKUP($D18+IV$17-1,'Mortality Improvement'!$A$3:$C$123,IF(LEFT($B18,1)="F",3,2),0) )^IV$17,1000),0) -> 8.816714726 | IW18: =IFERROR(MIN(IF(OR(IV18>=1000,IV18=0,$D18+IW$17-1>120),0,IF(AZ18="",0,MIN(AZ18,1000))+IF(EX18="",0,MIN(EX18,1000)))* ( 1- VLOOKUP($D18+IW$17-1,'Mortality Improvement'!$A$3:$C$123,IF(LEFT($B18,1)="F",3,2),0) )^IW$17,1000),0) -> 9.013415348 | IX18: =IFERROR(MIN(IF(OR(IW18>=1000,IW18=0,$D18+IX$17-1>120),0,IF(BA18="",0,MIN(BA18,1000))+IF(EY18="",0,MIN(EY18,1000)))* ( 1- VLOOKUP($D18+IX$17-1,'Mortality Improvement'!$A$3:$C$123,IF(LEFT($B18,1)="F",3,2),0) )^IX$17,1000),0) -> 9.231798806 | IY18: =IFERROR(MIN(IF(OR(IX18>=1000,IX18=0,$D18+IY$17-1>120),0,IF(BB18="",0,MIN(BB18,1000))+IF(EZ18="",0,MIN(EZ18,1000)))* ( 1- VLOOKUP($D18+IY$17-1,'Mortality Improvement'!$A$3:$C$123,IF(LEFT($B18,1)="F",3,2),0) )^IY$17,1000),0) -> 9.492857251 | IZ18: =IFERROR(MIN(IF(OR(IY18>=1000,IY18=0,$D18+IZ$17-1>120),0,IF(BC18="",0,MIN(BC18,1000))+IF(FA18="",0,MIN(FA18,1000)))* ( 1- VLOOKUP($D18+IZ$17-1,'Mortality Improvement'!$A$3:$C$123,IF(LEFT($B18,1)="F",3,2),0) )^IZ$17,1000),0) -> 9.811152317 | JA18: =IFERROR(MIN(IF(OR(IZ18>=1000,IZ18=0,$D18+JA$17-1>120),0,IF(BD18="",0,MIN(BD18,1000))+IF(FB18="",0,MIN(FB18,1000)))* ( 1- VLOOKUP($D18+JA$17-1,'Mortality Improvement'!$A$3:$C$123,IF(LEFT($B18,1)="F",3,2),0) )^JA$17,1000),0) -> 10.20050811 | JB18: =IFERROR(MIN(IF(OR(JA18>=1000,JA18=0,$D18+JB$17-1>120),0,IF(BE18="",0,MIN(BE18,1000))+IF(FC18="",0,MIN(FC18,1000)))* ( 1- VLOOKUP($D18+JB$17-1,'Mortality Improvement'!$A$3:$C$123,IF(LEFT($B18,1)="F",3,2),0) )^JB$17,1000),0) -> 10.66348628 | JC18: =IFERROR(MIN(IF(OR(JB18>=1000,JB18=0,$D18+JC$17-1>120),0,IF(BF18="",0,MIN(BF18,1000))+IF(FD18="",0,MIN(FD18,1000)))* ( 1- VLOOKUP($D18+JC$17-1,'Mortality Improvement'!$A$3:$C$123,IF(LEFT($B18,1)="F",3,2),0) )^JC$17,1000),0) -> 11.21288259 | JD18: =IFERROR(MIN(IF(OR(JC18>=1000,JC18=0,$D18+JD$17-1>120),0,IF(BG18="",0,MIN(BG18,1000))+IF(FE18="",0,MIN(FE18,1000)))* ( 1- VLOOKUP($D18+JD$17-1,'Mortality Improvement'!$A$3:$C$123,IF(LEFT($B18,1)="F",3,2),0) )^JD$17,1000),0) -> 11.85566421 | JE18: =IFERROR(MIN(IF(OR(JD18>=1000,JD18=0,$D18+JE$17-1>120),0,IF(BH18="",0,MIN(BH18,1000))+IF(FF18="",0,MIN(FF18,1000)))* ( 1- VLOOKUP($D18+JE$17-1,'Mortality Improvement'!$A$3:$C$123,IF(LEFT($B18,1)="F",3,2),0) )^JE$17,1000),0) -> 12.5882135 | JF18: =IFERROR(MIN(IF(OR(JE18>=1000,JE18=0,$D18+JF$17-1>120),0,IF(BI18="",0,MIN(BI18,1000))+IF(FG18="",0,MIN(FG18,1000)))* ( 1- VLOOKUP($D18+JF$17-1,'Mortality Improvement'!$A$3:$C$123,IF(LEFT($B18,1)="F",3,2),0) )^JF$17,1000),0) -> 13.43715245 | JG18: =IFERROR(MIN(IF(OR(JF18>=1000,JF18=0,$D18+JG$17-1>120),0,IF(BJ18="",0,MIN(BJ18,1000))+IF(FH18="",0,MIN(FH18,1000)))* ( 1- VLOOKUP($D18+JG$17-1,'Mortality Improvement'!$A$3:$C$123,IF(LEFT($B18,1)="F",3,2),0) )^JG$17,1000),0) -> 14.42774295 | JH18: =IFERROR(MIN(IF(OR(JG18>=1000,JG18=0,$D18+JH$17-1>120),0,IF(BK18="",0,MIN(BK18,1000))+IF(FI18="",0,MIN(FI18,1000)))* ( 1- VLOOKUP($D18+JH$17-1,'Mortality Improvement'!$A$3:$C$123,IF(LEFT($B18,1)="F",3,2),0) )^JH$17,1000),0) -> 15.59373892 | JI18: =IFERROR(MIN(IF(OR(JH18>=1000,JH18=0,$D18+JI$17-1>120),0,IF(BL18="",0,MIN(BL18,1000))+IF(FJ18="",0,MIN(FJ18,1000)))* ( 1- VLOOKUP($D18+JI$17-1,'Mortality Improvement'!$A$3:$C$123,IF(LEFT($B18,1)="F",3,2),0) )^JI$17,1000),0) -> 17.00107017 | JJ18: =IFERROR(MIN(IF(OR(JI18>=1000,JI18=0,$D18+JJ$17-1>120),0,IF(BM18="",0,MIN(BM18,1000))+IF(FK18="",0,MIN(FK18,1000)))* ( 1- VLOOKUP($D18+JJ$17-1,'Mortality Improvement'!$A$3:$C$123,IF(LEFT($B18,1)="F",3,2),0) )^JJ$17,1000),0) -> 18.65488465 | JK18: =IFERROR(MIN(IF(OR(JJ18>=1000,JJ18=0,$D18+JK$17-1>120),0,IF(BN18="",0,MIN(BN18,1000))+IF(FL18="",0,MIN(FL18,1000)))* ( 1- VLOOKUP($D18+JK$17-1,'Mortality Improvement'!$A$3:$C$123,IF(LEFT($B18,1)="F",3,2),0) )^JK$17,1000),0) -> 21.20119439 | JL18: =IFERROR(MIN(IF(OR(JK18>=1000,JK18=0,$D18+JL$17-1>120),0,IF(BO18="",0,MIN(BO18,1000))+IF(FM18="",0,MIN(FM18,1000)))* ( 1- VLOOKUP($D18+JL$17-1,'Mortality Improvement'!$A$3:$C$123,IF(LEFT($B18,1)="F",3,2),0) )^JL$17,1000),0) -> 23.98672341 | JM18: =IFERROR(MIN(IF(OR(JL18>=1000,JL18=0,$D18+JM$17-1>120),0,IF(BP18="",0,MIN(BP18,1000))+IF(FN18="",0,MIN(FN18,1000)))* ( 1- VLOOKUP($D18+JM$17-1,'Mortality Improvement'!$A$3:$C$123,IF(LEFT($B18,1)="F",3,2),0) )^JM$17,1000),0) -> 27.27500118 | JN18: =IFERROR(MIN(IF(OR(JM18>=1000,JM18=0,$D18+JN$17-1>120),0,IF(BQ18="",0,MIN(BQ18,1000))+IF(FO18="",0,MIN(FO18,1000)))* ( 1- VLOOKUP($D18+JN$17-1,'Mortality Improvement'!$A$3:$C$123,IF(LEFT($B18,1)="F",3,2),0) )^JN$17,1000),0) -> 31.78307703 | JO18: =IFERROR(MIN(IF(OR(JN18>=1000,JN18=0,$D18+JO$17-1>120),0,IF(BR18="",0,MIN(BR18,1000))+IF(FP18="",0,MIN(FP18,1000)))* ( 1- VLOOKUP($D18+JO$17-1,'Mortality Improvement'!$A$3:$C$123,IF(LEFT($B18,1)="F",3,2),0) )^JO$17,1000),0) -> 37.15374025 | JP18: =IFERROR(MIN(IF(OR(JO18>=1000,JO18=0,$D18+JP$17-1>120),0,IF(BS18="",0,MIN(BS18,1000))+IF(FQ18="",0,MIN(FQ18,1000)))* ( 1- VLOOKUP($D18+JP$17-1,'Mortality Improvement'!$A$3:$C$123,IF(LEFT($B18,1)="F",3,2),0) )^JP$17,1000),0) -> 42.87093782 | JQ18: =IFERROR(MIN(IF(OR(JP18>=1000,JP18=0,$D18+JQ$17-1>120),0,IF(BT18="",0,MIN(BT18,1000))+IF(FR18="",0,MIN(FR18,1000)))* ( 1- VLOOKUP($D18+JQ$17-1,'Mortality Improvement'!$A$3:$C$123,IF(LEFT($B18,1)="F",3,2),0) )^JQ$17,1000),0) -> 49.66787116 | JR18: =IFERROR(MIN(IF(OR(JQ18>=1000,JQ18=0,$D18+JR$17-1>120),0,IF(BU18="",0,MIN(BU18,1000))+IF(FS18="",0,MIN(FS18,1000)))* ( 1- VLOOKUP($D18+JR$17-1,'Mortality Improvement'!$A$3:$C$123,IF(LEFT($B18,1)="F",3,2),0) )^JR$17,1000),0) -> 57.73485847 | JS18: =IFERROR(MIN(IF(OR(JR18>=1000,JR18=0,$D18+JS$17-1>120),0,IF(BV18="",0,MIN(BV18,1000))+IF(FT18="",0,MIN(FT18,1000)))* ( 1- VLOOKUP($D18+JS$17-1,'Mortality Improvement'!$A$3:$C$123,IF(LEFT($B18,1)="F",3,2),0) )^JS$17,1000),0) -> 67.07013569 | JT18: =IFERROR(MIN(IF(OR(JS18>=1000,JS18=0,$D18+JT$17-1>120),0,IF(BW18="",0,MIN(BW18,1000))+IF(FU18="",0,MIN(FU18,1000)))* ( 1- VLOOKUP($D18+JT$17-1,'Mortality Improvement'!$A$3:$C$123,IF(LEFT($B18,1)="F",3,2),0) )^JT$17,1000),0) -> 77.74102393 | JU18: =IFERROR(MIN(IF(OR(JT18>=1000,JT18=0,$D18+JU$17-1>120),0,IF(BX18="",0,MIN(BX18,1000))+IF(FV18="",0,MIN(FV18,1000)))* ( 1- VLOOKUP($D18+JU$17-1,'Mortality Improvement'!$A$3:$C$123,IF(LEFT($B18,1)="F",3,2),0) )^JU$17,1000),0) -> 89.89012834 | JV18: =IFERROR(MIN(IF(OR(JU18>=1000,JU18=0,$D18+JV$17-1>120),0,IF(BY18="",0,MIN(BY18,1000))+IF(FW18="",0,MIN(FW18,1000)))* ( 1- VLOOKUP($D18+JV$17-1,'Mortality Improvement'!$A$3:$C$123,IF(LEFT($B18,1)="F",3,2),0) )^JV$17,1000),0) -> 103.7790064 | JW18: =IFERROR(MIN(IF(OR(JV18>=1000,JV18=0,$D18+JW$17-1>120),0,IF(BZ18="",0,MIN(BZ18,1000))+IF(FX18="",0,MIN(FX18,1000)))* ( 1- VLOOKUP($D18+JW$17-1,'Mortality Improvement'!$A$3:$C$123,IF(LEFT($B18,1)="F",3,2),0) )^JW$17,1000),0) -> 119.3585723 | JX18: =IFERROR(MIN(IF(OR(JW18>=1000,JW18=0,$D18+JX$17-1>120),0,IF(CA18="",0,MIN(CA18,1000))+IF(FY18="",0,MIN(FY18,1000)))* ( 1- VLOOKUP($D18+JX$17-1,'Mortality Improvement'!$A$3:$C$123,IF(LEFT($B18,1)="F",3,2),0) )^JX$17,1000),0) -> 136.8131407 | JY18: =IFERROR(MIN(IF(OR(JX18>=1000,JX18=0,$D18+JY$17-1>120),0,IF(CB18="",0,MIN(CB18,1000))+IF(FZ18="",0,MIN(FZ18,1000)))* ( 1- VLOOKUP($D18+JY$17-1,'Mortality Improvement'!$A$3:$C$123,IF(LEFT($B18,1)="F",3,2),0) )^JY$17,1000),0) -> 157.6966652 | JZ18: =IFERROR(MIN(IF(OR(JY18>=1000,JY18=0,$D18+JZ$17-1>120),0,IF(CC18="",0,MIN(CC18,1000))+IF(GA18="",0,MIN(GA18,1000)))* ( 1- VLOOKUP($D18+JZ$17-1,'Mortality Improvement'!$A$3:$C$123,IF(LEFT($B18,1)="F",3,2),0) )^JZ$17,1000),0) -> 174.2334226 | KA18: =IFERROR(MIN(IF(OR(JZ18>=1000,JZ18=0,$D18+KA$17-1>120),0,IF(CD18="",0,MIN(CD18,1000))+IF(GB18="",0,MIN(GB18,1000)))* ( 1- VLOOKUP($D18+KA$17-1,'Mortality Improvement'!$A$3:$C$123,IF(LEFT($B18,1)="F",3,2),0) )^KA$17,1000),0) -> 192.2824201 | KB18: =IFERROR(MIN(IF(OR(KA18>=1000,KA18=0,$D18+KB$17-1>120),0,IF(CE18="",0,MIN(CE18,1000))+IF(GC18="",0,MIN(GC18,1000)))* ( 1- VLOOKUP($D18+KB$17-1,'Mortality Improvement'!$A$3:$C$123,IF(LEFT($B18,1)="F",3,2),0) )^KB$17,1000),0) -> 211.7253284 | KC18: =IFERROR(MIN(IF(OR(KB18>=1000,KB18=0,$D18+KC$17-1>120),0,IF(CF18="",0,MIN(CF18,1000))+IF(GD18="",0,MIN(GD18,1000)))* ( 1- VLOOKUP($D18+KC$17-1,'Mortality Improvement'!$A$3:$C$123,IF(LEFT($B18,1)="F",3,2),0) )^KC$17,1000),0) -> 232.2894238 | KD18: =IFERROR(MIN(IF(OR(KC18>=1000,KC18=0,$D18+KD$17-1>120),0,IF(CG18="",0,MIN(CG18,1000))+IF(GE18="",0,MIN(GE18,1000)))* ( 1- VLOOKUP($D18+KD$17-1,'Mortality Improvement'!$A$3:$C$123,IF(LEFT($B18,1)="F",3,2),0) )^KD$17,1000),0) -> 252.4636076 | KE18: =IFERROR(MIN(IF(OR(KD18>=1000,KD18=0,$D18+KE$17-1>120),0,IF(CH18="",0,MIN(CH18,1000))+IF(GF18="",0,MIN(GF18,1000)))* ( 1- VLOOKUP($D18+KE$17-1,'Mortality Improvement'!$A$3:$C$123,IF(LEFT($B18,1)="F",3,2),0) )^KE$17,1000),0) -> 271.3219557 | KF18: =IFERROR(MIN(IF(OR(KE18>=1000,KE18=0,$D18+KF$17-1>120),0,IF(CI18="",0,MIN(CI18,1000))+IF(GG18="",0,MIN(GG18,1000)))* ( 1- VLOOKUP($D18+KF$17-1,'Mortality Improvement'!$A$3:$C$123,IF(LEFT($B18,1)="F",3,2),0) )^KF$17,1000),0) -> 290.011318 | KG18: =IFERROR(MIN(IF(OR(KF18>=1000,KF18=0,$D18+KG$17-1>120),0,IF(CJ18="",0,MIN(CJ18,1000))+IF(GH18="",0,MIN(GH18,1000)))* ( 1- VLOOKUP($D18+KG$17-1,'Mortality Improvement'!$A$3:$C$123,IF(LEFT($B18,1)="F",3,2),0) )^KG$17,1000),0) -> 308.2327669 | KH18: =IFERROR(MIN(IF(OR(KG18>=1000,KG18=0,$D18+KH$17-1>120),0,IF(CK18="",0,MIN(CK18,1000))+IF(GI18="",0,MIN(GI18,1000)))* ( 1- VLOOKUP($D18+KH$17-1,'Mortality Improvement'!$A$3:$C$123,IF(LEFT($B18,1)="F",3,2),0) )^KH$17,1000),0) -> 325.698453 | KI18: =IFERROR(MIN(IF(OR(KH18>=1000,KH18=0,$D18+KI$17-1>120),0,IF(CL18="",0,MIN(CL18,1000))+IF(GJ18="",0,MIN(GJ18,1000)))* ( 1- VLOOKUP($D18+KI$17-1,'Mortality Improvement'!$A$3:$C$123,IF(LEFT($B18,1)="F",3,2),0) )^KI$17,1000),0) -> 342.1234215 | KJ18: =IFERROR(MIN(IF(OR(KI18>=1000,KI18=0,$D18+KJ$17-1>120),0,IF(CM18="",0,MIN(CM18,1000))+IF(GK18="",0,MIN(GK18,1000)))* ( 1- VLOOKUP($D18+KJ$17-1,'Mortality Improvement'!$A$3:$C$123,IF(LEFT($B18,1)="F",3,2),0) )^KJ$17,1000),0) -> 357.2175512 | KK18: =IFERROR(MIN(IF(OR(KJ18>=1000,KJ18=0,$D18+KK$17-1>120),0,IF(CN18="",0,MIN(CN18,1000))+IF(GL18="",0,MIN(GL18,1000)))* ( 1- VLOOKUP($D18+KK$17-1,'Mortality Improvement'!$A$3:$C$123,IF(LEFT($B18,1)="F",3,2),0) )^KK$17,1000),0) -> 370.7016833 | KL18: =IFERROR(MIN(IF(OR(KK18>=1000,KK18=0,$D18+KL$17-1>120),0,IF(CO18="",0,MIN(CO18,1000))+IF(GM18="",0,MIN(GM18,1000)))* ( 1- VLOOKUP($D18+KL$17-1,'Mortality Improvement'!$A$3:$C$123,IF(LEFT($B18,1)="F",3,2),0) )^KL$17,1000),0) -> 382.2914964 | KM18: =IFERROR(MIN(IF(OR(KL18>=1000,KL18=0,$D18+KM$17-1>120),0,IF(CP18="",0,MIN(CP18,1000))+IF(GN18="",0,MIN(GN18,1000)))* ( 1- VLOOKUP($D18+KM$17-1,'Mortality Improvement'!$A$3:$C$123,IF(LEFT($B18,1)="F",3,2),0) )^KM$17,1000),0) -> 391.7055715 | KN18: =IFERROR(MIN(IF(OR(KM18>=1000,KM18=0,$D18+KN$17-1>120),0,IF(CQ18="",0,MIN(CQ18,1000))+IF(GO18="",0,MIN(GO18,1000)))* ( 1- VLOOKUP($D18+KN$17-1,'Mortality Improvement'!$A$3:$C$123,IF(LEFT($B18,1)="F",3,2),0) )^KN$17,1000),0) -> 398.6653744 | KO18: =IFERROR(MIN(IF(OR(KN18>=1000,KN18=0,$D18+KO$17-1>120),0,IF(CR18="",0,MIN(CR18,1000))+IF(GP18="",0,MIN(GP18,1000)))* ( 1- VLOOKUP($D18+KO$17-1,'Mortality Improvement'!$A$3:$C$123,IF(LEFT($B18,1)="F",3,2),0) )^KO$17,1000),0) -> 402.8952367 | KP18: =IFERROR(MIN(IF(OR(KO18>=1000,KO18=0,$D18+KP$17-1>120),0,IF(CS18="",0,MIN(CS18,1000))+IF(GQ18="",0,MIN(GQ18,1000)))* ( 1- VLOOKUP($D18+KP$17-1,'Mortality Improvement'!$A$3:$C$123,IF(LEFT($B18,1)="F",3,2),0) )^KP$17,1000),0) -> 404.0827224 | KQ18: =IFERROR(MIN(IF(OR(KP18>=1000,KP18=0,$D18+KQ$17-1>120),0,IF(CT18="",0,MIN(CT18,1000))+IF(GR18="",0,MIN(GR18,1000)))* ( 1- VLOOKUP($D18+KQ$17-1,'Mortality Improvement'!$A$3:$C$123,IF(LEFT($B18,1)="F",3,2),0) )^KQ$17,1000),0) -> 403.0725156 | KR18: =IFERROR(MIN(IF(OR(KQ18>=1000,KQ18=0,$D18+KR$17-1>120),0,IF(CU18="",0,MIN(CU18,1000))+IF(GS18="",0,MIN(GS18,1000)))* ( 1- VLOOKUP($D18+KR$17-1,'Mortality Improvement'!$A$3:$C$123,IF(LEFT($B18,1)="F",3,2),0) )^KR$17,1000),0) -> 402.0648343 | KS18: =IFERROR(MIN(IF(OR(KR18>=1000,KR18=0,$D18+KS$17-1>120),0,IF(CV18="",0,MIN(CV18,1000))+IF(GT18="",0,MIN(GT18,1000)))* ( 1- VLOOKUP($D18+KS$17-1,'Mortality Improvement'!$A$3:$C$123,IF(LEFT($B18,1)="F",3,2),0) )^KS$17,1000),0) -> 401.0596722 | KT18: =IFERROR(MIN(IF(OR(KS18>=1000,KS18=0,$D18+KT$17-1>120),0,IF(CW18="",0,MIN(CW18,1000))+IF(GU18="",0,MIN(GU18,1000)))* ( 1- VLOOKUP($D18+KT$17-1,'Mortality Improvement'!$A$3:$C$123,IF(LEFT($B18,1)="F",3,2),0) )^KT$17,1000),0) -> 400.057023 | KU18: =IFERROR(MIN(IF(OR(KT18>=1000,KT18=0,$D18+KU$17-1>120),0,IF(CX18="",0,MIN(CX18,1000))+IF(GV18="",0,MIN(GV18,1000)))* ( 1- VLOOKUP($D18+KU$17-1,'Mortality Improvement'!$A$3:$C$123,IF(LEFT($B18,1)="F",3,2),0) )^KU$17,1000),0) -> 399.0568805 | KV18: =IFERROR(MIN(IF(OR(KU18>=1000,KU18=0,$D18+KV$17-1>120),0,IF(CY18="",0,MIN(CY18,1000))+IF(GW18="",0,MIN(GW18,1000)))* ( 1- VLOOKUP($D18+KV$17-1,'Mortality Improvement'!$A$3:$C$123,IF(LEFT($B18,1)="F",3,2),0) )^KV$17,1000),0) -> 398.0592383 | KW18: =IFERROR(MIN(IF(OR(KV18>=1000,KV18=0,$D18+KW$17-1>120),0,IF(CZ18="",0,MIN(CZ18,1000))+IF(GX18="",0,MIN(GX18,1000)))* ( 1- VLOOKUP($D18+KW$17-1,'Mortality Improvement'!$A$3:$C$123,IF(LEFT($B18,1)="F",3,2),0) )^KW$17,1000),0) -> 397.0640902 | KX18: =IFERROR(MIN(IF(OR(KW18>=1000,KW18=0,$D18+KX$17-1>120),0,IF(DA18="",0,MIN(DA18,1000))+IF(GY18="",0,MIN(GY18,1000)))* ( 1- VLOOKUP($D18+KX$17-1,'Mortality Improvement'!$A$3:$C$123,IF(LEFT($B18,1)="F",3,2),0) )^KX$17,1000),0) -> 0 | LA18: =IF(RIGHT($B18,6)="Substd",'Other Assumptions'!$B$8,'Other Assumptions'!$B$7) -> 0.005 | LB18: =IF(OR(LEFT($A$9,3)="Alz",LEFT($A$9,3)="Pol",LEFT($A$9,3)="Myo"),IF(RIGHT($B18,6)="Substd",'Other Assumptions'!$B$25,'Other Assumptions'!$B$24),IF(RIGHT($B18,6)="Substd",'Other Assumptions'!$B$12,'Other Assumptions'!$B$11)) -> 0.75 | LC18: =IFERROR(IF(AND(LEFT(Condition,4)="Long",LC$17+$D18>=LongQT_LapseAge),0,1),0) -> 1 | LD18: =IFERROR(IF(AND(LEFT(Condition,4)="Long",LD$17+$D18>=LongQT_LapseAge),0,IF(LD$17+$D18>=100,0,(LC18*MAX((1-HB18/1000),0)*(1-$LA18)*IF(($D18+LD$17-1)=64,$LB18,1)))),0) -> 0.9944986394 | LE18: =IFERROR(IF(AND(LEFT(Condition,4)="Long",LE$17+$D18>=LongQT_LapseAge),0,IF(LE$17+$D18>=100,0,(LD18*MAX((1-HC18/1000),0)*(1-$LA18)*IF(($D18+LE$17-1)=64,$LB18,1)))),0) -> 0.9889755718 | LF18: =IFERROR(IF(AND(LEFT(Condition,4)="Long",LF$17+$D18>=LongQT_LapseAge),0,IF(LF$17+$D18>=100,0,(LE18*MAX((1-HD18/1000),0)*(1-$LA18)*IF(($D18+LF$17-1)=64,$LB18,1)))),0) -> 0.9834897474 | LG18: =IFERROR(IF(AND(LEFT(Condition,4)="Long",LG$17+$D18>=LongQT_LapseAge),0,IF(LG$17+$D18>=100,0,(LF18*MAX((1-HE18/1000),0)*(1-$LA18)*IF(($D18+LG$17-1)=64,$LB18,1)))),0) -> 0.9780594569 | LH18: =IFERROR(IF(AND(LEFT(Condition,4)="Long",LH$17+$D18>=LongQT_LapseAge),0,IF(LH$17+$D18>=100,0,(LG18*MAX((1-HF18/1000),0)*(1-$LA18)*IF(($D18+LH$17-1)=64,$LB18,1)))),0) -> 0.9726835929 | LI18: =IFERROR(IF(AND(LEFT(Condition,4)="Long",LI$17+$D18>=LongQT_LapseAge),0,IF(LI$17+$D18>=100,0,(LH18*MAX((1-HG18/1000),0)*(1-$LA18)*IF(($D18+LI$17-1)=64,$LB18,1)))),0) -> 0.967052009 | LJ18: =IFERROR(IF(AND(LEFT(Condition,4)="Long",LJ$17+$D18>=LongQT_LapseAge),0,IF(LJ$17+$D18>=100,0,(LI18*MAX((1-HH18/1000),0)*(1-$LA18)*IF(($D18+LJ$17-1)=64,$LB18,1)))),0) -> 0.9608815423 | LK18: =IFERROR(IF(AND(LEFT(Condition,4)="Long",LK$17+$D18>=LongQT_LapseAge),0,IF(LK$17+$D18>=100,0,(LJ18*MAX((1-HI18/1000),0)*(1-$LA18)*IF(($D18+LK$17-1)=64,$LB18,1)))),0) -> 0.9542223851 | LL18: =IFERROR(IF(AND(LEFT(Condition,4)="Long",LL$17+$D18>=LongQT_LapseAge),0,IF(LL$17+$D18>=100,0,(LK18*MAX((1-HJ18/1000),0)*(1-$LA18)*IF(($D18+LL$17-1)=64,$LB18,1)))),0) -> 0.9470977501 | LM18: =IFERROR(IF(AND(LEFT(Condition,4)="Long",LM$17+$D18>=LongQT_LapseAge),0,IF(LM$17+$D18>=100,0,(LL18*MAX((1-HK18/1000),0)*(1-$LA18)*IF(($D18+LM$17-1)=64,$LB18,1)))),0) -> 0.9394891942 | LN18: =IFERROR(IF(AND(LEFT(Condition,4)="Long",LN$17+$D18>=LongQT_LapseAge),0,IF(LN$17+$D18>=100,0,(LM18*MAX((1-HL18/1000),0)*(1-$LA18)*IF(($D18+LN$17-1)=64,$LB18,1)))),0) -> 0.9314302669 | LO18: =IFERROR(IF(AND(LEFT(Condition,4)="Long",LO$17+$D18>=LongQT_LapseAge),0,IF(LO$17+$D18>=100,0,(LN18*MAX((1-HM18/1000),0)*(1-$LA18)*IF(($D18+LO$17-1)=64,$LB18,1)))),0) -> 0.9229379209 | LP18: =IFERROR(IF(AND(LEFT(Condition,4)="Long",LP$17+$D18>=LongQT_LapseAge),0,IF(LP$17+$D18>=100,0,(LO18*MAX((1-HN18/1000),0)*(1-$LA18)*IF(($D18+LP$17-1)=64,$LB18,1)))),0) -> 0.9140374649 | LQ18: =IFERROR(IF(AND(LEFT(Condition,4)="Long",LQ$17+$D18>=LongQT_LapseAge),0,IF(LQ$17+$D18>=100,0,(LP18*MAX((1-HO18/1000),0)*(1-$LA18)*IF(($D18+LQ$17-1)=64,$LB18,1)))),0) -> 0.9047233455 | LR18: =IFERROR(IF(AND(LEFT(Condition,4)="Long",LR$17+$D18>=LongQT_LapseAge),0,IF(LR$17+$D18>=100,0,(LQ18*MAX((1-HP18/1000),0)*(1-$LA18)*IF(($D18+LR$17-1)=64,$LB18,1)))),0) -> 0.8950146914 | LS18: =IFERROR(IF(AND(LEFT(Condition,4)="Long",LS$17+$D18>=LongQT_LapseAge),0,IF(LS$17+$D18>=100,0,(LR18*MAX((1-HQ18/1000),0)*(1-$LA18)*IF(($D18+LS$17-1)=64,$LB18,1)))),0) -> 0.8849456583 | LT18: =IFERROR(IF(AND(LEFT(Condition,4)="Long",LT$17+$D18>=LongQT_LapseAge),0,IF(LT$17+$D18>=100,0,(LS18*MAX((1-HR18/1000),0)*(1-$LA18)*IF(($D18+LT$17-1)=64,$LB18,1)))),0) -> 0.8745136348 | LU18: =IFERROR(IF(AND(LEFT(Condition,4)="Long",LU$17+$D18>=LongQT_LapseAge),0,IF(LU$17+$D18>=100,0,(LT18*MAX((1-HS18/1000),0)*(1-$LA18)*IF(($D18+LU$17-1)=64,$LB18,1)))),0) -> 0.8637320123 | LV18: =IFERROR(IF(AND(LEFT(Condition,4)="Long",LV$17+$D18>=LongQT_LapseAge),0,IF(LV$17+$D18>=100,0,(LU18*MAX((1-HT18/1000),0)*(1-$LA18)*IF(($D18+LV$17-1)=64,$LB18,1)))),0) -> 0.8526217784 | LW18: =IFERROR(IF(AND(LEFT(Condition,4)="Long",LW$17+$D18>=LongQT_LapseAge),0,IF(LW$17+$D18>=100,0,(LV18*MAX((1-HU18/1000),0)*(1-$LA18)*IF(($D18+LW$17-1)=64,$LB18,1)))),0) -> 0.8412040282 | LX18: =IFERROR(IF(AND(LEFT(Condition,4)="Long",LX$17+$D18>=LongQT_LapseAge),0,IF(LX$17+$D18>=100,0,(LW18*MAX((1-HV18/1000),0)*(1-$LA18)*IF(($D18+LX$17-1)=64,$LB18,1)))),0) -> 0.829748902 | LY18: =IFERROR(IF(AND(LEFT(Condition,4)="Long",LY$17+$D18>=LongQT_LapseAge),0,IF(LY$17+$D18>=100,0,(LX18*MAX((1-HW18/1000),0)*(1-$LA18)*IF(($D18+LY$17-1)=64,$LB18,1)))),0) -> 0.8184975894 | LZ18: =IFERROR(IF(AND(LEFT(Condition,4)="Long",LZ$17+$D18>=LongQT_LapseAge),0,IF(LZ$17+$D18>=100,0,(LY18*MAX((1-HX18/1000),0)*(1-$LA18)*IF(($D18+LZ$17-1)=64,$LB18,1)))),0) -> 0.8074397321 | MA18: =IFERROR(IF(AND(LEFT(Condition,4)="Long",MA$17+$D18>=LongQT_LapseAge),0,IF(MA$17+$D18>=100,0,(LZ18*MAX((1-HY18/1000),0)*(1-$LA18)*IF(($D18+MA$17-1)=64,$LB18,1)))),0) -> 0.7965596029 | MB18: =IFERROR(IF(AND(LEFT(Condition,4)="Long",MB$17+$D18>=LongQT_LapseAge),0,IF(MB$17+$D18>=100,0,(MA18*MAX((1-HZ18/1000),0)*(1-$LA18)*IF(($D18+MB$17-1)=64,$LB18,1)))),0) -> 0.7858426206 | MC18: =IFERROR(IF(AND(LEFT(Condition,4)="Long",MC$17+$D18>=LongQT_LapseAge),0,IF(MC$17+$D18>=100,0,(MB18*MAX((1-IA18/1000),0)*(1-$LA18)*IF(($D18+MC$17-1)=64,$LB18,1)))),0) -> 0.775686596 | MD18: =IFERROR(IF(AND(LEFT(Condition,4)="Long",MD$17+$D18>=LongQT_LapseAge),0,IF(MD$17+$D18>=100,0,(MC18*MAX((1-IB18/1000),0)*(1-$LA18)*IF(($D18+MD$17-1)=64,$LB18,1)))),0) -> 0.7657132966 | ME18: =IFERROR(IF(AND(LEFT(Condition,4)="Long",ME$17+$D18>=LongQT_LapseAge),0,IF(ME$17+$D18>=100,0,(MD18*MAX((1-IC18/1000),0)*(1-$LA18)*IF(($D18+ME$17-1)=64,$LB18,1)))),0) -> 0.7559132579 | MF18: =IFERROR(IF(AND(LEFT(Condition,4)="Long",MF$17+$D18>=LongQT_LapseAge),0,IF(MF$17+$D18>=100,0,(ME18*MAX((1-ID18/1000),0)*(1-$LA18)*IF(($D18+MF$17-1)=64,$LB18,1)))),0) -> 0.7462775885 | MG18: =IFERROR(IF(AND(LEFT(Condition,4)="Long",MG$17+$D18>=LongQT_LapseAge),0,IF(MG$17+$D18>=100,0,(MF18*MAX((1-IE18/1000),0)*(1-$LA18)*IF(($D18+MG$17-1)=64,$LB18,1)))),0) -> 0.7367927686 | MH18: =IFERROR(IF(AND(LEFT(Condition,4)="Long",MH$17+$D18>=LongQT_LapseAge),0,IF(MH$17+$D18>=100,0,(MG18*MAX((1-IF18/1000),0)*(1-$LA18)*IF(($D18+MH$17-1)=64,$LB18,1)))),0) -> 0.7274462362 | MI18: =IFERROR(IF(AND(LEFT(Condition,4)="Long",MI$17+$D18>=LongQT_LapseAge),0,IF(MI$17+$D18>=100,0,(MH18*MAX((1-IG18/1000),0)*(1-$LA18)*IF(($D18+MI$17-1)=64,$LB18,1)))),0) -> 0.7182263336 | MJ18: =IFERROR(IF(AND(LEFT(Condition,4)="Long",MJ$17+$D18>=LongQT_LapseAge),0,IF(MJ$17+$D18>=100,0,(MI18*MAX((1-IH18/1000),0)*(1-$LA18)*IF(($D18+MJ$17-1)=64,$LB18,1)))),0) -> 0.7091126615 | MK18: =IFERROR(IF(AND(LEFT(Condition,4)="Long",MK$17+$D18>=LongQT_LapseAge),0,IF(MK$17+$D18>=100,0,(MJ18*MAX((1-II18/1000),0)*(1-$LA18)*IF(($D18+MK$17-1)=64,$LB18,1)))),0) -> 0.7000911378 | ML18: =IFERROR(IF(AND(LEFT(Condition,4)="Long",ML$17+$D18>=LongQT_LapseAge),0,IF(ML$17+$D18>=100,0,(MK18*MAX((1-IJ18/1000),0)*(1-$LA18)*IF(($D18+ML$17-1)=64,$LB18,1)))),0) -> 0.6911579576 | MM18: =IFERROR(IF(AND(LEFT(Condition,4)="Long",MM$17+$D18>=LongQT_LapseAge),0,IF(MM$17+$D18>=100,0,(ML18*MAX((1-IK18/1000),0)*(1-$LA18)*IF(($D18+MM$17-1)=64,$LB18,1)))),0) -> 0.6823140663 | MN18: =IFERROR(IF(AND(LEFT(Condition,4)="Long",MN$17+$D18>=LongQT_LapseAge),0,IF(MN$17+$D18>=100,0,(MM18*MAX((1-IL18/1000),0)*(1-$LA18)*IF(($D18+MN$17-1)=64,$LB18,1)))),0) -> 0.6735603043 | MO18: =IFERROR(IF(AND(LEFT(Condition,4)="Long",MO$17+$D18>=LongQT_LapseAge),0,IF(MO$17+$D18>=100,0,(MN18*MAX((1-IM18/1000),0)*(1-$LA18)*IF(($D18+MO$17-1)=64,$LB18,1)))),0) -> 0.6649016473 | MP18: =IFERROR(IF(AND(LEFT(Condition,4)="Long",MP$17+$D18>=LongQT_LapseAge),0,IF(MP$17+$D18>=100,0,(MO18*MAX((1-IN18/1000),0)*(1-$LA18)*IF(($D18+MP$17-1)=64,$LB18,1)))),0) -> 0.6563343432 | MQ18: =IFERROR(IF(AND(LEFT(Condition,4)="Long",MQ$17+$D18>=LongQT_LapseAge),0,IF(MQ$17+$D18>=100,0,(MP18*MAX((1-IO18/1000),0)*(1-$LA18)*IF(($D18+MQ$17-1)=64,$LB18,1)))),0) -> 0.6478508884 | MR18: =IFERROR(IF(AND(LEFT(Condition,4)="Long",MR$17+$D18>=LongQT_LapseAge),0,IF(MR$17+$D18>=100,0,(MQ18*MAX((1-IP18/1000),0)*(1-$LA18)*IF(($D18+MR$17-1)=64,$LB18,1)))),0) -> 0.6394404647 | MS18: =IFERROR(IF(AND(LEFT(Condition,4)="Long",MS$17+$D18>=LongQT_LapseAge),0,IF(MS$17+$D18>=100,0,(MR18*MAX((1-IQ18/1000),0)*(1-$LA18)*IF(($D18+MS$17-1)=64,$LB18,1)))),0) -> 0.6310855166 | MT18: =IFERROR(IF(AND(LEFT(Condition,4)="Long",MT$17+$D18>=LongQT_LapseAge),0,IF(MT$17+$D18>=100,0,(MS18*MAX((1-IR18/1000),0)*(1-$LA18)*IF(($D18+MT$17-1)=64,$LB18,1)))),0) -> 0.6227737793 | MU18: =IFERROR(IF(AND(LEFT(Condition,4)="Long",MU$17+$D18>=LongQT_LapseAge),0,IF(MU$17+$D18>=100,0,(MT18*MAX((1-IS18/1000),0)*(1-$LA18)*IF(($D18+MU$17-1)=64,$LB18,1)))),0) -> 0.6144904959 | MV18: =IFERROR(IF(AND(LEFT(Condition,4)="Long",MV$17+$D18>=LongQT_LapseAge),0,IF(MV$17+$D18>=100,0,(MU18*MAX((1-IT18/1000),0)*(1-$LA18)*IF(($D18+MV$17-1)=64,$LB18,1)))),0) -> 0.4546720756 | MW18: =IFERROR(IF(AND(LEFT(Condition,4)="Long",MW$17+$D18>=LongQT_LapseAge),0,IF(MW$17+$D18>=100,0,(MV18*MAX((1-IU18/1000),0)*(1-$LA18)*IF(($D18+MW$17-1)=64,$LB18,1)))),0) -> 0.448488814 | MX18: =IFERROR(IF(AND(LEFT(Condition,4)="Long",MX$17+$D18>=LongQT_LapseAge),0,IF(MX$17+$D18>=100,0,(MW18*MAX((1-IV18/1000),0)*(1-$LA18)*IF(($D18+MX$17-1)=64,$LB18,1)))),0) -> 0.4423119429 | MY18: =IFERROR(IF(AND(LEFT(Condition,4)="Long",MY$17+$D18>=LongQT_LapseAge),0,IF(MY$17+$D18>=100,0,(MX18*MAX((1-IW18/1000),0)*(1-$LA18)*IF(($D18+MY$17-1)=64,$LB18,1)))),0) -> 0.4361335757 | MZ18: =IFERROR(IF(AND(LEFT(Condition,4)="Long",MZ$17+$D18>=LongQT_LapseAge),0,IF(MZ$17+$D18>=100,0,(MY18*MAX((1-IX18/1000),0)*(1-$LA18)*IF(($D18+MZ$17-1)=64,$LB18,1)))),0) -> 0.4299467419 | NA18: =IFERROR(IF(AND(LEFT(Condition,4)="Long",NA$17+$D18>=LongQT_LapseAge),0,IF(NA$17+$D18>=100,0,(MZ18*MAX((1-IY18/1000),0)*(1-$LA18)*IF(($D18+NA$17-1)=64,$LB18,1)))),0) -> 0.4237359922 | NB18: =IFERROR(IF(AND(LEFT(Condition,4)="Long",NB$17+$D18>=LongQT_LapseAge),0,IF(NB$17+$D18>=100,0,(NA18*MAX((1-IZ18/1000),0)*(1-$LA18)*IF(($D18+NB$17-1)=64,$LB18,1)))),0) -> 0.4174807606 | NC18: =IFERROR(IF(AND(LEFT(Condition,4)="Long",NC$17+$D18>=LongQT_LapseAge),0,IF(NC$17+$D18>=100,0,(NB18*MAX((1-JA18/1000),0)*(1-$LA18)*IF(($D18+NC$17-1)=64,$LB18,1)))),0) -> 0.4111561335 | ND18: =IFERROR(IF(AND(LEFT(Condition,4)="Long",ND$17+$D18>=LongQT_LapseAge),0,IF(ND$17+$D18>=100,0,(NC18*MAX((1-JB18/1000),0)*(1-$LA18)*IF(($D18+ND$17-1)=64,$LB18,1)))),0) -> 0.4047379168 | NE18: =IFERROR(IF(AND(LEFT(Condition,4)="Long",NE$17+$D18>=LongQT_LapseAge),0,IF(NE$17+$D18>=100,0,(ND18*MAX((1-JC18/1000),0)*(1-$LA18)*IF(($D18+NE$17-1)=64,$LB18,1)))),0) -> 0.3981986399 | NF18: =IFERROR(IF(AND(LEFT(Condition,4)="Long",NF$17+$D18>=LongQT_LapseAge),0,IF(NF$17+$D18>=100,0,(NE18*MAX((1-JD18/1000),0)*(1-$LA18)*IF(($D18+NF$17-1)=64,$LB18,1)))),0) -> 0.3915103419 | NG18: =IFERROR(IF(AND(LEFT(Condition,4)="Long",NG$17+$D18>=LongQT_LapseAge),0,IF(NG$17+$D18>=100,0,(NF18*MAX((1-JE18/1000),0)*(1-$LA18)*IF(($D18+NG$17-1)=64,$LB18,1)))),0) -> 0.3846490165 | NH18: =IFERROR(IF(AND(LEFT(Condition,4)="Long",NH$17+$D18>=LongQT_LapseAge),0,IF(NH$17+$D18>=100,0,(NG18*MAX((1-JF18/1000),0)*(1-$LA18)*IF(($D18+NH$17-1)=64,$LB18,1)))),0) -> 0.3775830268 | NI18: =IFERROR(IF(AND(LEFT(Condition,4)="Long",NI$17+$D18>=LongQT_LapseAge),0,IF(NI$17+$D18>=100,0,(NH18*MAX((1-JG18/1000),0)*(1-$LA18)*IF(($D18+NI$17-1)=64,$LB18,1)))),0) -> 0.3702746792 | NJ18: =IFERROR(IF(AND(LEFT(Condition,4)="Long",NJ$17+$D18>=LongQT_LapseAge),0,IF(NJ$17+$D18>=100,0,(NI18*MAX((1-JH18/1000),0)*(1-$LA18)*IF(($D18+NJ$17-1)=64,$LB18,1)))),0) -> 0.362678209 | NK18: =IFERROR(IF(AND(LEFT(Condition,4)="Long",NK$17+$D18>=LongQT_LapseAge),0,IF(NK$17+$D18>=100,0,(NJ18*MAX((1-JI18/1000),0)*(1-$LA18)*IF(($D18+NK$17-1)=64,$LB18,1)))),0) -> 0.3547297298 | NL18: =IFERROR(IF(AND(LEFT(Condition,4)="Long",NL$17+$D18>=LongQT_LapseAge),0,IF(NL$17+$D18>=100,0,(NK18*MAX((1-JJ18/1000),0)*(1-$LA18)*IF(($D18+NL$17-1)=64,$LB18,1)))),0) -> 0.3463717262 | NM18: =IFERROR(IF(AND(LEFT(Condition,4)="Long",NM$17+$D18>=LongQT_LapseAge),0,IF(NM$17+$D18>=100,0,(NL18*MAX((1-JK18/1000),0)*(1-$LA18)*IF(($D18+NM$17-1)=64,$LB18,1)))),0) -> 0.3373330907 | NN18: =IFERROR(IF(AND(LEFT(Condition,4)="Long",NN$17+$D18>=LongQT_LapseAge),0,IF(NN$17+$D18>=100,0,(NM18*MAX((1-JL18/1000),0)*(1-$LA18)*IF(($D18+NN$17-1)=64,$LB18,1)))),0) -> 0.3275953673 | NO18: =IFERROR(IF(AND(LEFT(Condition,4)="Long",NO$17+$D18>=LongQT_LapseAge),0,IF(NO$17+$D18>=100,0,(NN18*MAX((1-JM18/1000),0)*(1-$LA18)*IF(($D18+NO$17-1)=64,$LB18,1)))),0) -> 0.3170669023 | NP18: =IFERROR(IF(AND(LEFT(Condition,4)="Long",NP$17+$D18>=LongQT_LapseAge),0,IF(NP$17+$D18>=100,0,(NO18*MAX((1-JN18/1000),0)*(1-$LA18)*IF(($D18+NP$17-1)=64,$LB18,1)))),0) -> 0.3054545928 | NQ18: =IFERROR(IF(AND(LEFT(Condition,4)="Long",NQ$17+$D18>=LongQT_LapseAge),0,IF(NQ$17+$D18>=100,0,(NP18*MAX((1-JO18/1000),0)*(1-$LA18)*IF(($D18+NQ$17-1)=64,$LB18,1)))),0) -> 0.2926352831 | NR18: =IFERROR(IF(AND(LEFT(Condition,4)="Long",NR$17+$D18>=LongQT_LapseAge),0,IF(NR$17+$D18>=100,0,(NQ18*MAX((1-JP18/1000),0)*(1-$LA18)*IF(($D18+NR$17-1)=64,$LB18,1)))),0) -> 0.2786892854 | NS18: =IFERROR(IF(AND(LEFT(Condition,4)="Long",NS$17+$D18>=LongQT_LapseAge),0,IF(NS$17+$D18>=100,0,(NR18*MAX((1-JQ18/1000),0)*(1-$LA18)*IF(($D18+NS$17-1)=64,$LB18,1)))),0) -> 0.263523145 | NT18: =IFERROR(IF(AND(LEFT(Condition,4)="Long",NT$17+$D18>=LongQT_LapseAge),0,IF(NT$17+$D18>=100,0,(NS18*MAX((1-JR18/1000),0)*(1-$LA18)*IF(($D18+NT$17-1)=64,$LB18,1)))),0) -> 0.2470671302 | NU18: =IFERROR(IF(AND(LEFT(Condition,4)="Long",NU$17+$D18>=LongQT_LapseAge),0,IF(NU$17+$D18>=100,0,(NT18*MAX((1-JS18/1000),0)*(1-$LA18)*IF(($D18+NU$17-1)=64,$LB18,1)))),0) -> 0.2293438227 | NV18: =IFERROR(IF(AND(LEFT(Condition,4)="Long",NV$17+$D18>=LongQT_LapseAge),0,IF(NV$17+$D18>=100,0,(NU18*MAX((1-JT18/1000),0)*(1-$LA18)*IF(($D18+NV$17-1)=64,$LB18,1)))),0) -> 0.2104568271 | NW18: =IFERROR(IF(AND(LEFT(Condition,4)="Long",NW$17+$D18>=LongQT_LapseAge),0,IF(NW$17+$D18>=100,0,(NV18*MAX((1-JU18/1000),0)*(1-$LA18)*IF(($D18+NW$17-1)=64,$LB18,1)))),0) -> 0.1905811417 | NX18: =IFERROR(IF(AND(LEFT(Condition,4)="Long",NX$17+$D18>=LongQT_LapseAge),0,IF(NX$17+$D18>=100,0,(NW18*MAX((1-JV18/1000),0)*(1-$LA18)*IF(($D18+NX$17-1)=64,$LB18,1)))),0) -> 0.1699488061 | NY18: =IFERROR(IF(AND(LEFT(Condition,4)="Long",NY$17+$D18>=LongQT_LapseAge),0,IF(NY$17+$D18>=100,0,(NX18*MAX((1-JW18/1000),0)*(1-$LA18)*IF(($D18+NY$17-1)=64,$LB18,1)))),0) -> 0.1489156394 | NZ18: =IFERROR(IF(AND(LEFT(Condition,4)="Long",NZ$17+$D18>=LongQT_LapseAge),0,IF(NZ$17+$D18>=100,0,(NY18*MAX((1-JX18/1000),0)*(1-$LA18)*IF(($D18+NZ$17-1)=64,$LB18,1)))),0) -> 0.127899313 | OA18: =IFERROR(IF(AND(LEFT(Condition,4)="Long",OA$17+$D18>=LongQT_LapseAge),0,IF(OA$17+$D18>=100,0,(NZ18*MAX((1-JY18/1000),0)*(1-$LA18)*IF(($D18+OA$17-1)=64,$LB18,1)))),0) -> 0.1071913678 | OB18: =IFERROR(IF(AND(LEFT(Condition,4)="Long",OB$17+$D18>=LongQT_LapseAge),0,IF(OB$17+$D18>=100,0,(OA18*MAX((1-JZ18/1000),0)*(1-$LA18)*IF(($D18+OB$17-1)=64,$LB18,1)))),0) -> 0.08807247363 | OC18: =IFERROR(IF(AND(LEFT(Condition,4)="Long",OC$17+$D18>=LongQT_LapseAge),0,IF(OC$17+$D18>=100,0,(OB18*MAX((1-KA18/1000),0)*(1-$LA18)*IF(($D18+OC$17-1)=64,$LB18,1)))),0) -> 0.07078199683 | OD18: =IFERROR(IF(AND(LEFT(Condition,4)="Long",OD$17+$D18>=LongQT_LapseAge),0,IF(OD$17+$D18>=100,0,(OC18*MAX((1-KB18/1000),0)*(1-$LA18)*IF(($D18+OD$17-1)=64,$LB18,1)))),0) -> 0.05551667703 | OE18: =IFERROR(IF(AND(LEFT(Condition,4)="Long",OE$17+$D18>=LongQT_LapseAge),0,IF(OE$17+$D18>=100,0,(OD18*MAX((1-KC18/1000),0)*(1-$LA18)*IF(($D18+OE$17-1)=64,$LB18,1)))),0) -> 0 | OF18: =IFERROR(IF(AND(LEFT(Condition,4)="Long",OF$17+$D18>=LongQT_LapseAge),0,IF(OF$17+$D18>=100,0,(OE18*MAX((1-KD18/1000),0)*(1-$LA18)*IF(($D18+OF$17-1)=64,$LB18,1)))),0) -> 0 | OG18: =IFERROR(IF(AND(LEFT(Condition,4)="Long",OG$17+$D18>=LongQT_LapseAge),0,IF(OG$17+$D18>=100,0,(OF18*MAX((1-KE18/1000),0)*(1-$LA18)*IF(($D18+OG$17-1)=64,$LB18,1)))),0) -> 0 | OH18: =IFERROR(IF(AND(LEFT(Condition,4)="Long",OH$17+$D18>=LongQT_LapseAge),0,IF(OH$17+$D18>=100,0,(OG18*MAX((1-KF18/1000),0)*(1-$LA18)*IF(($D18+OH$17-1)=64,$LB18,1)))),0) -> 0 | OI18: =IFERROR(IF(AND(LEFT(Condition,4)="Long",OI$17+$D18>=LongQT_LapseAge),0,IF(OI$17+$D18>=100,0,(OH18*MAX((1-KG18/1000),0)*(1-$LA18)*IF(($D18+OI$17-1)=64,$LB18,1)))),0) -> 0 | OJ18: =IFERROR(IF(AND(LEFT(Condition,4)="Long",OJ$17+$D18>=LongQT_LapseAge),0,IF(OJ$17+$D18>=100,0,(OI18*MAX((1-KH18/1000),0)*(1-$LA18)*IF(($D18+OJ$17-1)=64,$LB18,1)))),0) -> 0 | OK18: =IFERROR(IF(AND(LEFT(Condition,4)="Long",OK$17+$D18>=LongQT_LapseAge),0,IF(OK$17+$D18>=100,0,(OJ18*MAX((1-KI18/1000),0)*(1-$LA18)*IF(($D18+OK$17-1)=64,$LB18,1)))),0) -> 0 | OL18: =IFERROR(IF(AND(LEFT(Condition,4)="Long",OL$17+$D18>=LongQT_LapseAge),0,IF(OL$17+$D18>=100,0,(OK18*MAX((1-KJ18/1000),0)*(1-$LA18)*IF(($D18+OL$17-1)=64,$LB18,1)))),0) -> 0 | OM18: =IFERROR(IF(AND(LEFT(Condition,4)="Long",OM$17+$D18>=LongQT_LapseAge),0,IF(OM$17+$D18>=100,0,(OL18*MAX((1-KK18/1000),0)*(1-$LA18)*IF(($D18+OM$17-1)=64,$LB18,1)))),0) -> 0 | ON18: =IFERROR(IF(AND(LEFT(Condition,4)="Long",ON$17+$D18>=LongQT_LapseAge),0,IF(ON$17+$D18>=100,0,(OM18*MAX((1-KL18/1000),0)*(1-$LA18)*IF(($D18+ON$17-1)=64,$LB18,1)))),0) -> 0 | OO18: =IFERROR(IF(AND(LEFT(Condition,4)="Long",OO$17+$D18>=LongQT_LapseAge),0,IF(OO$17+$D18>=100,0,(ON18*MAX((1-KM18/1000),0)*(1-$LA18)*IF(($D18+OO$17-1)=64,$LB18,1)))),0) -> 0 | OP18: =IFERROR(IF(AND(LEFT(Condition,4)="Long",OP$17+$D18>=LongQT_LapseAge),0,IF(OP$17+$D18>=100,0,(OO18*MAX((1-KN18/1000),0)*(1-$LA18)*IF(($D18+OP$17-1)=64,$LB18,1)))),0) -> 0 | OQ18: =IFERROR(IF(AND(LEFT(Condition,4)="Long",OQ$17+$D18>=LongQT_LapseAge),0,IF(OQ$17+$D18>=100,0,(OP18*MAX((1-KO18/1000),0)*(1-$LA18)*IF(($D18+OQ$17-1)=64,$LB18,1)))),0) -> 0 | OR18: =IFERROR(IF(AND(LEFT(Condition,4)="Long",OR$17+$D18>=LongQT_LapseAge),0,IF(OR$17+$D18>=100,0,(OQ18*MAX((1-KP18/1000),0)*(1-$LA18)*IF(($D18+OR$17-1)=64,$LB18,1)))),0) -> 0 | OS18: =IFERROR(IF(AND(LEFT(Condition,4)="Long",OS$17+$D18>=LongQT_LapseAge),0,IF(OS$17+$D18>=100,0,(OR18*MAX((1-KQ18/1000),0)*(1-$LA18)*IF(($D18+OS$17-1)=64,$LB18,1)))),0) -> 0 | OT18: =IFERROR(IF(AND(LEFT(Condition,4)="Long",OT$17+$D18>=LongQT_LapseAge),0,IF(OT$17+$D18>=100,0,(OS18*MAX((1-KR18/1000),0)*(1-$LA18)*IF(($D18+OT$17-1)=64,$LB18,1)))),0) -> 0 | OU18: =IFERROR(IF(AND(LEFT(Condition,4)="Long",OU$17+$D18>=LongQT_LapseAge),0,IF(OU$17+$D18>=100,0,(OT18*MAX((1-KS18/1000),0)*(1-$LA18)*IF(($D18+OU$17-1)=64,$LB18,1)))),0) -> 0 | OV18: =IFERROR(IF(AND(LEFT(Condition,4)="Long",OV$17+$D18>=LongQT_LapseAge),0,IF(OV$17+$D18>=100,0,(OU18*MAX((1-KT18/1000),0)*(1-$LA18)*IF(($D18+OV$17-1)=64,$LB18,1)))),0) -> 0 | OW18: =IFERROR(IF(AND(LEFT(Condition,4)="Long",OW$17+$D18>=LongQT_LapseAge),0,IF(OW$17+$D18>=100,0,(OV18*MAX((1-KU18/1000),0)*(1-$LA18)*IF(($D18+OW$17-1)=64,$LB18,1)))),0) -> 0 | OX18: =IFERROR(IF(AND(LEFT(Condition,4)="Long",OX$17+$D18>=LongQT_LapseAge),0,IF(OX$17+$D18>=100,0,(OW18*MAX((1-KV18/1000),0)*(1-$LA18)*IF(($D18+OX$17-1)=64,$LB18,1)))),0) -> 0 | OY18: =IFERROR(IF(AND(LEFT(Condition,4)="Long",OY$17+$D18>=LongQT_LapseAge),0,IF(OY$17+$D18>=100,0,(OX18*MAX((1-KW18/1000),0)*(1-$LA18)*IF(($D18+OY$17-1)=64,$LB18,1)))),0) -> 0 | PB18: =IFERROR(HLOOKUP(D18,'Other Assumptions'!$H$4:$DC$9,IF(LEFT(Condition,4)="Long",IF(LEFT(B18,1)="M",6,5),IF(LEFT(B18,1)="M",3,2)),0),0) -> 0.0307 | PC18: =Amount_of_Insurance*$C18*SUMPRODUCT(LC18:OY18,HB18:KX18,LC$8:OY$8)/1000 -> 137473206.3 | PD18: =PB18*PC18 -> 4220427.434
B19: Male Std | C19: 826.7324429 | D19: =D18 -> 20 | E19: =IFERROR(IF(E$17<=25, VLOOKUP(E$17,'Base Mortality'!$A$6:$GU$31,$D19+IF(LEFT($B19,1)="M",104,2),FALSE), VLOOKUP($D19+E$17-1,IF(LEFT($B19,1)="M",'Base Mortality'!$CY$34:$CZ$154,'Base Mortality'!$A$34:$B$154),2,FALSE))* HLOOKUP(E$17,'Other Assumptions'!$B$3:$C$5,IF(LEFT($B19,1)="M",2,3),TRUE),"") -> 0.51 | F19: =IFERROR(IF(F$17<=25, VLOOKUP(F$17,'Base Mortality'!$A$6:$GU$31,$D19+IF(LEFT($B19,1)="M",104,2),FALSE), VLOOKUP($D19+F$17-1,IF(LEFT($B19,1)="M",'Base Mortality'!$CY$34:$CZ$154,'Base Mortality'!$A$34:$B$154),2,FALSE))* HLOOKUP(F$17,'Other Assumptions'!$B$3:$C$5,IF(LEFT($B19,1)="M",2,3),TRUE),"") -> 0.57 | G19: =IFERROR(IF(G$17<=25, VLOOKUP(G$17,'Base Mortality'!$A$6:$GU$31,$D19+IF(LEFT($B19,1)="M",104,2),FALSE), VLOOKUP($D19+G$17-1,IF(LEFT($B19,1)="M",'Base Mortality'!$CY$34:$CZ$154,'Base Mortality'!$A$34:$B$154),2,FALSE))* HLOOKUP(G$17,'Other Assumptions'!$B$3:$C$5,IF(LEFT($B19,1)="M",2,3),TRUE),"") -> 0.57 | H19: =IFERROR(IF(H$17<=25, VLOOKUP(H$17,'Base Mortality'!$A$6:$GU$31,$D19+IF(LEFT($B19,1)="M",104,2),FALSE), VLOOKUP($D19+H$17-1,IF(LEFT($B19,1)="M",'Base Mortality'!$CY$34:$CZ$154,'Base Mortality'!$A$34:$B$154),2,FALSE))* HLOOKUP(H$17,'Other Assumptions'!$B$3:$C$5,IF(LEFT($B19,1)="M",2,3),TRUE),"") -> 0.55 | I19: =IFERROR(IF(I$17<=25, VLOOKUP(I$17,'Base Mortality'!$A$6:$GU$31,$D19+IF(LEFT($B19,1)="M",104,2),FALSE), VLOOKUP($D19+I$17-1,IF(LEFT($B19,1)="M",'Base Mortality'!$CY$34:$CZ$154,'Base Mortality'!$A$34:$B$154),2,FALSE))* HLOOKUP(I$17,'Other Assumptions'!$B$3:$C$5,IF(LEFT($B19,1)="M",2,3),TRUE),"") -> 0.53 | J19: =IFERROR(IF(J$17<=25, VLOOKUP(J$17,'Base Mortality'!$A$6:$GU$31,$D19+IF(LEFT($B19,1)="M",104,2),FALSE), VLOOKUP($D19+J$17-1,IF(LEFT($B19,1)="M",'Base Mortality'!$CY$34:$CZ$154,'Base Mortality'!$A$34:$B$154),2,FALSE))* HLOOKUP(J$17,'Other Assumptions'!$B$3:$C$5,IF(LEFT($B19,1)="M",2,3),TRUE),"") -> 0.52 | K19: =IFERROR(IF(K$17<=25, VLOOKUP(K$17,'Base Mortality'!$A$6:$GU$31,$D19+IF(LEFT($B19,1)="M",104,2),FALSE), VLOOKUP($D19+K$17-1,IF(LEFT($B19,1)="M",'Base Mortality'!$CY$34:$CZ$154,'Base Mortality'!$A$34:$B$154),2,FALSE))* HLOOKUP(K$17,'Other Assumptions'!$B$3:$C$5,IF(LEFT($B19,1)="M",2,3),TRUE),"") -> 0.51 | L19: =IFERROR(IF(L$17<=25, VLOOKUP(L$17,'Base Mortality'!$A$6:$GU$31,$D19+IF(LEFT($B19,1)="M",104,2),FALSE), VLOOKUP($D19+L$17-1,IF(LEFT($B19,1)="M",'Base Mortality'!$CY$34:$CZ$154,'Base Mortality'!$A$34:$B$154),2,FALSE))* HLOOKUP(L$17,'Other Assumptions'!$B$3:$C$5,IF(LEFT($B19,1)="M",2,3),TRUE),"") -> 0.47 | M19: =IFERROR(IF(M$17<=25, VLOOKUP(M$17,'Base Mortality'!$A$6:$GU$31,$D19+IF(LEFT($B19,1)="M",104,2),FALSE), VLOOKUP($D19+M$17-1,IF(LEFT($B19,1)="M",'Base Mortality'!$CY$34:$CZ$154,'Base Mortality'!$A$34:$B$154),2,FALSE))* HLOOKUP(M$17,'Other Assumptions'!$B$3:$C$5,IF(LEFT($B19,1)="M",2,3),TRUE),"") -> 0.43 | N19: =IFERROR(IF(N$17<=25, VLOOKUP(N$17,'Base Mortality'!$A$6:$GU$31,$D19+IF(LEFT($B19,1)="M",104,2),FALSE), VLOOKUP($D19+N$17-1,IF(LEFT($B19,1)="M",'Base Mortality'!$CY$34:$CZ$154,'Base Mortality'!$A$34:$B$154),2,FALSE))* HLOOKUP(N$17,'Other Assumptions'!$B$3:$C$5,IF(LEFT($B19,1)="M",2,3),TRUE),"") -> 0.44 | O19: =IFERROR(IF(O$17<=25, VLOOKUP(O$17,'Base Mortality'!$A$6:$GU$31,$D19+IF(LEFT($B19,1)="M",104,2),FALSE), VLOOKUP($D19+O$17-1,IF(LEFT($B19,1)="M",'Base Mortality'!$CY$34:$CZ$154,'Base Mortality'!$A$34:$B$154),2,FALSE))* HLOOKUP(O$17,'Other Assumptions'!$B$3:$C$5,IF(LEFT($B19,1)="M",2,3),TRUE),"") -> 0.44 | P19: =IFERROR(IF(P$17<=25, VLOOKUP(P$17,'Base Mortality'!$A$6:$GU$31,$D19+IF(LEFT($B19,1)="M",104,2),FALSE), VLOOKUP($D19+P$17-1,IF(LEFT($B19,1)="M",'Base Mortality'!$CY$34:$CZ$154,'Base Mortality'!$A$34:$B$154),2,FALSE))* HLOOKUP(P$17,'Other Assumptions'!$B$3:$C$5,IF(LEFT($B19,1)="M",2,3),TRUE),"") -> 0.45 | Q19: =IFERROR(IF(Q$17<=25, VLOOKUP(Q$17,'Base Mortality'!$A$6:$GU$31,$D19+IF(LEFT($B19,1)="M",104,2),FALSE), VLOOKUP($D19+Q$17-1,IF(LEFT($B19,1)="M",'Base Mortality'!$CY$34:$CZ$154,'Base Mortality'!$A$34:$B$154),2,FALSE))* HLOOKUP(Q$17,'Other Assumptions'!$B$3:$C$5,IF(LEFT($B19,1)="M",2,3),TRUE),"") -> 0.46 | R19: =IFERROR(IF(R$17<=25, VLOOKUP(R$17,'Base Mortality'!$A$6:$GU$31,$D19+IF(LEFT($B19,1)="M",104,2),FALSE), VLOOKUP($D19+R$17-1,IF(LEFT($B19,1)="M",'Base Mortality'!$CY$34:$CZ$154,'Base Mortality'!$A$34:$B$154),2,FALSE))* HLOOKUP(R$17,'Other Assumptions'!$B$3:$C$5,IF(LEFT($B19,1)="M",2,3),TRUE),"") -> 0.51 | S19: =IFERROR(IF(S$17<=25, VLOOKUP(S$17,'Base Mortality'!$A$6:$GU$31,$D19+IF(LEFT($B19,1)="M",104,2),FALSE), VLOOKUP($D19+S$17-1,IF(LEFT($B19,1)="M",'Base Mortality'!$CY$34:$CZ$154,'Base Mortality'!$A$34:$B$154),2,FALSE))* HLOOKUP(S$17,'Other Assumptions'!$B$3:$C$5,IF(LEFT($B19,1)="M",2,3),TRUE),"") -> 0.57 | T19: =IFERROR(IF(T$17<=25, VLOOKUP(T$17,'Base Mortality'!$A$6:$GU$31,$D19+IF(LEFT($B19,1)="M",104,2),FALSE), VLOOKUP($D19+T$17-1,IF(LEFT($B19,1)="M",'Base Mortality'!$CY$34:$CZ$154,'Base Mortality'!$A$34:$B$154),2,FALSE))* HLOOKUP(T$17,'Other Assumptions'!$B$3:$C$5,IF(LEFT($B19,1)="M",2,3),TRUE),"") -> 0.62 | U19: =IFERROR(IF(U$17<=25, VLOOKUP(U$17,'Base Mortality'!$A$6:$GU$31,$D19+IF(LEFT($B19,1)="M",104,2),FALSE), VLOOKUP($D19+U$17-1,IF(LEFT($B19,1)="M",'Base Mortality'!$CY$34:$CZ$154,'Base Mortality'!$A$34:$B$154),2,FALSE))* HLOOKUP(U$17,'Other Assumptions'!$B$3:$C$5,IF(LEFT($B19,1)="M",2,3),TRUE),"") -> 0.71 | V19: =IFERROR(IF(V$17<=25, VLOOKUP(V$17,'Base Mortality'!$A$6:$GU$31,$D19+IF(LEFT($B19,1)="M",104,2),FALSE), VLOOKUP($D19+V$17-1,IF(LEFT($B19,1)="M",'Base Mortality'!$CY$34:$CZ$154,'Base Mortality'!$A$34:$B$154),2,FALSE))* HLOOKUP(V$17,'Other Assumptions'!$B$3:$C$5,IF(LEFT($B19,1)="M",2,3),TRUE),"") -> 0.82 | W19: =IFERROR(IF(W$17<=25, VLOOKUP(W$17,'Base Mortality'!$A$6:$GU$31,$D19+IF(LEFT($B19,1)="M",104,2),FALSE), VLOOKUP($D19+W$17-1,IF(LEFT($B19,1)="M",'Base Mortality'!$CY$34:$CZ$154,'Base Mortality'!$A$34:$B$154),2,FALSE))* HLOOKUP(W$17,'Other Assumptions'!$B$3:$C$5,IF(LEFT($B19,1)="M",2,3),TRUE),"") -> 0.94 | X19: =IFERROR(IF(X$17<=25, VLOOKUP(X$17,'Base Mortality'!$A$6:$GU$31,$D19+IF(LEFT($B19,1)="M",104,2),FALSE), VLOOKUP($D19+X$17-1,IF(LEFT($B19,1)="M",'Base Mortality'!$CY$34:$CZ$154,'Base Mortality'!$A$34:$B$154),2,FALSE))* HLOOKUP(X$17,'Other Assumptions'!$B$3:$C$5,IF(LEFT($B19,1)="M",2,3),TRUE),"") -> 1.07 | Y19: =IFERROR(IF(Y$17<=25, VLOOKUP(Y$17,'Base Mortality'!$A$6:$GU$31,$D19+IF(LEFT($B19,1)="M",104,2),FALSE), VLOOKUP($D19+Y$17-1,IF(LEFT($B19,1)="M",'Base Mortality'!$CY$34:$CZ$154,'Base Mortality'!$A$34:$B$154),2,FALSE))* HLOOKUP(Y$17,'Other Assumptions'!$B$3:$C$5,IF(LEFT($B19,1)="M",2,3),TRUE),"") -> 1.16 | Z19: =IFERROR(IF(Z$17<=25, VLOOKUP(Z$17,'Base Mortality'!$A$6:$GU$31,$D19+IF(LEFT($B19,1)="M",104,2),FALSE), VLOOKUP($D19+Z$17-1,IF(LEFT($B19,1)="M",'Base Mortality'!$CY$34:$CZ$154,'Base Mortality'!$A$34:$B$154),2,FALSE))* HLOOKUP(Z$17,'Other Assumptions'!$B$3:$C$5,IF(LEFT($B19,1)="M",2,3),TRUE),"") -> 1.22 | AA19: =IFERROR(IF(AA$17<=25, VLOOKUP(AA$17,'Base Mortality'!$A$6:$GU$31,$D19+IF(LEFT($B19,1)="M",104,2),FALSE), VLOOKUP($D19+AA$17-1,IF(LEFT($B19,1)="M",'Base Mortality'!$CY$34:$CZ$154,'Base Mortality'!$A$34:$B$154),2,FALSE))* HLOOKUP(AA$17,'Other Assumptions'!$B$3:$C$5,IF(LEFT($B19,1)="M",2,3),TRUE),"") -> 1.29 | AB19: =IFERROR(IF(AB$17<=25, VLOOKUP(AB$17,'Base Mortality'!$A$6:$GU$31,$D19+IF(LEFT($B19,1)="M",104,2),FALSE), VLOOKUP($D19+AB$17-1,IF(LEFT($B19,1)="M",'Base Mortality'!$CY$34:$CZ$154,'Base Mortality'!$A$34:$B$154),2,FALSE))* HLOOKUP(AB$17,'Other Assumptions'!$B$3:$C$5,IF(LEFT($B19,1)="M",2,3),TRUE),"") -> 1.38 | AC19: =IFERROR(IF(AC$17<=25, VLOOKUP(AC$17,'Base Mortality'!$A$6:$GU$31,$D19+IF(LEFT($B19,1)="M",104,2),FALSE), VLOOKUP($D19+AC$17-1,IF(LEFT($B19,1)="M",'Base Mortality'!$CY$34:$CZ$154,'Base Mortality'!$A$34:$B$154),2,FALSE))* HLOOKUP(AC$17,'Other Assumptions'!$B$3:$C$5,IF(LEFT($B19,1)="M",2,3),TRUE),"") -> 1.49 | AD19: =IFERROR(IF(AD$17<=25, VLOOKUP(AD$17,'Base Mortality'!$A$6:$GU$31,$D19+IF(LEFT($B19,1)="M",104,2),FALSE), VLOOKUP($D19+AD$17-1,IF(LEFT($B19,1)="M",'Base Mortality'!$CY$34:$CZ$154,'Base Mortality'!$A$34:$B$154),2,FALSE))* HLOOKUP(AD$17,'Other Assumptions'!$B$3:$C$5,IF(LEFT($B19,1)="M",2,3),TRUE),"") -> 0.9 | AE19: =IFERROR(IF(AE$17<=25, VLOOKUP(AE$17,'Base Mortality'!$A$6:$GU$31,$D19+IF(LEFT($B19,1)="M",104,2),FALSE), VLOOKUP($D19+AE$17-1,IF(LEFT($B19,1)="M",'Base Mortality'!$CY$34:$CZ$154,'Base Mortality'!$A$34:$B$154),2,FALSE))* HLOOKUP(AE$17,'Other Assumptions'!$B$3:$C$5,IF(LEFT($B19,1)="M",2,3),TRUE),"") -> 0.94 | AF19: =IFERROR(IF(AF$17<=25, VLOOKUP(AF$17,'Base Mortality'!$A$6:$GU$31,$D19+IF(LEFT($B19,1)="M",104,2),FALSE), VLOOKUP($D19+AF$17-1,IF(LEFT($B19,1)="M",'Base Mortality'!$CY$34:$CZ$154,'Base Mortality'!$A$34:$B$154),2,FALSE))* HLOOKUP(AF$17,'Other Assumptions'!$B$3:$C$5,IF(LEFT($B19,1)="M",2,3),TRUE),"") -> 0.99 | AG19: =IFERROR(IF(AG$17<=25, VLOOKUP(AG$17,'Base Mortality'!$A$6:$GU$31,$D19+IF(LEFT($B19,1)="M",104,2),FALSE), VLOOKUP($D19+AG$17-1,IF(LEFT($B19,1)="M",'Base Mortality'!$CY$34:$CZ$154,'Base Mortality'!$A$34:$B$154),2,FALSE))* HLOOKUP(AG$17,'Other Assumptions'!$B$3:$C$5,IF(LEFT($B19,1)="M",2,3),TRUE),"") -> 1.05 | AH19: =IFERROR(IF(AH$17<=25, VLOOKUP(AH$17,'Base Mortality'!$A$6:$GU$31,$D19+IF(LEFT($B19,1)="M",104,2),FALSE), VLOOKUP($D19+AH$17-1,IF(LEFT($B19,1)="M",'Base Mortality'!$CY$34:$CZ$154,'Base Mortality'!$A$34:$B$154),2,FALSE))* HLOOKUP(AH$17,'Other Assumptions'!$B$3:$C$5,IF(LEFT($B19,1)="M",2,3),TRUE),"") -> 1.13 | AI19: =IFERROR(IF(AI$17<=25, VLOOKUP(AI$17,'Base Mortality'!$A$6:$GU$31,$D19+IF(LEFT($B19,1)="M",104,2),FALSE), VLOOKUP($D19+AI$17-1,IF(LEFT($B19,1)="M",'Base Mortality'!$CY$34:$CZ$154,'Base Mortality'!$A$34:$B$154),2,FALSE))* HLOOKUP(AI$17,'Other Assumptions'!$B$3:$C$5,IF(LEFT($B19,1)="M",2,3),TRUE),"") -> 1.23 | AJ19: =IFERROR(IF(AJ$17<=25, VLOOKUP(AJ$17,'Base Mortality'!$A$6:$GU$31,$D19+IF(LEFT($B19,1)="M",104,2),FALSE), VLOOKUP($D19+AJ$17-1,IF(LEFT($B19,1)="M",'Base Mortality'!$CY$34:$CZ$154,'Base Mortality'!$A$34:$B$154),2,FALSE))* HLOOKUP(AJ$17,'Other Assumptions'!$B$3:$C$5,IF(LEFT($B19,1)="M",2,3),TRUE),"") -> 1.35 | AK19: =IFERROR(IF(AK$17<=25, VLOOKUP(AK$17,'Base Mortality'!$A$6:$GU$31,$D19+IF(LEFT($B19,1)="M",104,2),FALSE), VLOOKUP($D19+AK$17-1,IF(LEFT($B19,1)="M",'Base Mortality'!$CY$34:$CZ$154,'Base Mortality'!$A$34:$B$154),2,FALSE))* HLOOKUP(AK$17,'Other Assumptions'!$B$3:$C$5,IF(LEFT($B19,1)="M",2,3),TRUE),"") -> 1.51 | AL19: =IFERROR(IF(AL$17<=25, VLOOKUP(AL$17,'Base Mortality'!$A$6:$GU$31,$D19+IF(LEFT($B19,1)="M",104,2),FALSE), VLOOKUP($D19+AL$17-1,IF(LEFT($B19,1)="M",'Base Mortality'!$CY$34:$CZ$154,'Base Mortality'!$A$34:$B$154),2,FALSE))* HLOOKUP(AL$17,'Other Assumptions'!$B$3:$C$5,IF(LEFT($B19,1)="M",2,3),TRUE),"") -> 1.7 | AM19: =IFERROR(IF(AM$17<=25, VLOOKUP(AM$17,'Base Mortality'!$A$6:$GU$31,$D19+IF(LEFT($B19,1)="M",104,2),FALSE), VLOOKUP($D19+AM$17-1,IF(LEFT($B19,1)="M",'Base Mortality'!$CY$34:$CZ$154,'Base Mortality'!$A$34:$B$154),2,FALSE))* HLOOKUP(AM$17,'Other Assumptions'!$B$3:$C$5,IF(LEFT($B19,1)="M",2,3),TRUE),"") -> 1.9 | AN19: =IFERROR(IF(AN$17<=25, VLOOKUP(AN$17,'Base Mortality'!$A$6:$GU$31,$D19+IF(LEFT($B19,1)="M",104,2),FALSE), VLOOKUP($D19+AN$17-1,IF(LEFT($B19,1)="M",'Base Mortality'!$CY$34:$CZ$154,'Base Mortality'!$A$34:$B$154),2,FALSE))* HLOOKUP(AN$17,'Other Assumptions'!$B$3:$C$5,IF(LEFT($B19,1)="M",2,3),TRUE),"") -> 2.1 | AO19: =IFERROR(IF(AO$17<=25, VLOOKUP(AO$17,'Base Mortality'!$A$6:$GU$31,$D19+IF(LEFT($B19,1)="M",104,2),FALSE), VLOOKUP($D19+AO$17-1,IF(LEFT($B19,1)="M",'Base Mortality'!$CY$34:$CZ$154,'Base Mortality'!$A$34:$B$154),2,FALSE))* HLOOKUP(AO$17,'Other Assumptions'!$B$3:$C$5,IF(LEFT($B19,1)="M",2,3),TRUE),"") -> 2.3 | AP19: =IFERROR(IF(AP$17<=25, VLOOKUP(AP$17,'Base Mortality'!$A$6:$GU$31,$D19+IF(LEFT($B19,1)="M",104,2),FALSE), VLOOKUP($D19+AP$17-1,IF(LEFT($B19,1)="M",'Base Mortality'!$CY$34:$CZ$154,'Base Mortality'!$A$34:$B$154),2,FALSE))* HLOOKUP(AP$17,'Other Assumptions'!$B$3:$C$5,IF(LEFT($B19,1)="M",2,3),TRUE),"") -> 2.49 | AQ19: =IFERROR(IF(AQ$17<=25, VLOOKUP(AQ$17,'Base Mortality'!$A$6:$GU$31,$D19+IF(LEFT($B19,1)="M",104,2),FALSE), VLOOKUP($D19+AQ$17-1,IF(LEFT($B19,1)="M",'Base Mortality'!$CY$34:$CZ$154,'Base Mortality'!$A$34:$B$154),2,FALSE))* HLOOKUP(AQ$17,'Other Assumptions'!$B$3:$C$5,IF(LEFT($B19,1)="M",2,3),TRUE),"") -> 2.69 | AR19: =IFERROR(IF(AR$17<=25, VLOOKUP(AR$17,'Base Mortality'!$A$6:$GU$31,$D19+IF(LEFT($B19,1)="M",104,2),FALSE), VLOOKUP($D19+AR$17-1,IF(LEFT($B19,1)="M",'Base Mortality'!$CY$34:$CZ$154,'Base Mortality'!$A$34:$B$154),2,FALSE))* HLOOKUP(AR$17,'Other Assumptions'!$B$3:$C$5,IF(LEFT($B19,1)="M",2,3),TRUE),"") -> 2.91 | AS19: =IFERROR(IF(AS$17<=25, VLOOKUP(AS$17,'Base Mortality'!$A$6:$GU$31,$D19+IF(LEFT($B19,1)="M",104,2),FALSE), VLOOKUP($D19+AS$17-1,IF(LEFT($B19,1)="M",'Base Mortality'!$CY$34:$CZ$154,'Base Mortality'!$A$34:$B$154),2,FALSE))* HLOOKUP(AS$17,'Other Assumptions'!$B$3:$C$5,IF(LEFT($B19,1)="M",2,3),TRUE),"") -> 3.16 | AT19: =IFERROR(IF(AT$17<=25, VLOOKUP(AT$17,'Base Mortality'!$A$6:$GU$31,$D19+IF(LEFT($B19,1)="M",104,2),FALSE), VLOOKUP($D19+AT$17-1,IF(LEFT($B19,1)="M",'Base Mortality'!$CY$34:$CZ$154,'Base Mortality'!$A$34:$B$154),2,FALSE))* HLOOKUP(AT$17,'Other Assumptions'!$B$3:$C$5,IF(LEFT($B19,1)="M",2,3),TRUE),"") -> 3.46 | AU19: =IFERROR(IF(AU$17<=25, VLOOKUP(AU$17,'Base Mortality'!$A$6:$GU$31,$D19+IF(LEFT($B19,1)="M",104,2),FALSE), VLOOKUP($D19+AU$17-1,IF(LEFT($B19,1)="M",'Base Mortality'!$CY$34:$CZ$154,'Base Mortality'!$A$34:$B$154),2,FALSE))* HLOOKUP(AU$17,'Other Assumptions'!$B$3:$C$5,IF(LEFT($B19,1)="M",2,3),TRUE),"") -> 3.8 | AV19: =IFERROR(IF(AV$17<=25, VLOOKUP(AV$17,'Base Mortality'!$A$6:$GU$31,$D19+IF(LEFT($B19,1)="M",104,2),FALSE), VLOOKUP($D19+AV$17-1,IF(LEFT($B19,1)="M",'Base Mortality'!$CY$34:$CZ$154,'Base Mortality'!$A$34:$B$154),2,FALSE))* HLOOKUP(AV$17,'Other Assumptions'!$B$3:$C$5,IF(LEFT($B19,1)="M",2,3),TRUE),"") -> 4.19 | AW19: =IFERROR(IF(AW$17<=25, VLOOKUP(AW$17,'Base Mortality'!$A$6:$GU$31,$D19+IF(LEFT($B19,1)="M",104,2),FALSE), VLOOKUP($D19+AW$17-1,IF(LEFT($B19,1)="M",'Base Mortality'!$CY$34:$CZ$154,'Base Mortality'!$A$34:$B$154),2,FALSE))* HLOOKUP(AW$17,'Other Assumptions'!$B$3:$C$5,IF(LEFT($B19,1)="M",2,3),TRUE),"") -> 4.61 | AX19: =IFERROR(IF(AX$17<=25, VLOOKUP(AX$17,'Base Mortality'!$A$6:$GU$31,$D19+IF(LEFT($B19,1)="M",104,2),FALSE), VLOOKUP($D19+AX$17-1,IF(LEFT($B19,1)="M",'Base Mortality'!$CY$34:$CZ$154,'Base Mortality'!$A$34:$B$154),2,FALSE))* HLOOKUP(AX$17,'Other Assumptions'!$B$3:$C$5,IF(LEFT($B19,1)="M",2,3),TRUE),"") -> 5.06 | AY19: =IFERROR(IF(AY$17<=25, VLOOKUP(AY$17,'Base Mortality'!$A$6:$GU$31,$D19+IF(LEFT($B19,1)="M",104,2),FALSE), VLOOKUP($D19+AY$17-1,IF(LEFT($B19,1)="M",'Base Mortality'!$CY$34:$CZ$154,'Base Mortality'!$A$34:$B$154),2,FALSE))* HLOOKUP(AY$17,'Other Assumptions'!$B$3:$C$5,IF(LEFT($B19,1)="M",2,3),TRUE),"") -> 5.55 | AZ19: =IFERROR(IF(AZ$17<=25, VLOOKUP(AZ$17,'Base Mortality'!$A$6:$GU$31,$D19+IF(LEFT($B19,1)="M",104,2),FALSE), VLOOKUP($D19+AZ$17-1,IF(LEFT($B19,1)="M",'Base Mortality'!$CY$34:$CZ$154,'Base Mortality'!$A$34:$B$154),2,FALSE))* HLOOKUP(AZ$17,'Other Assumptions'!$B$3:$C$5,IF(LEFT($B19,1)="M",2,3),TRUE),"") -> 6.09 | BA19: =IFERROR(IF(BA$17<=25, VLOOKUP(BA$17,'Base Mortality'!$A$6:$GU$31,$D19+IF(LEFT($B19,1)="M",104,2),FALSE), VLOOKUP($D19+BA$17-1,IF(LEFT($B19,1)="M",'Base Mortality'!$CY$34:$CZ$154,'Base Mortality'!$A$34:$B$154),2,FALSE))* HLOOKUP(BA$17,'Other Assumptions'!$B$3:$C$5,IF(LEFT($B19,1)="M",2,3),TRUE),"") -> 6.68 | BB19: =IFERROR(IF(BB$17<=25, VLOOKUP(BB$17,'Base Mortality'!$A$6:$GU$31,$D19+IF(LEFT($B19,1)="M",104,2),FALSE), VLOOKUP($D19+BB$17-1,IF(LEFT($B19,1)="M",'Base Mortality'!$CY$34:$CZ$154,'Base Mortality'!$A$34:$B$154),2,FALSE))* HLOOKUP(BB$17,'Other Assumptions'!$B$3:$C$5,IF(LEFT($B19,1)="M",2,3),TRUE),"") -> 7.36 | BC19: =IFERROR(IF(BC$17<=25, VLOOKUP(BC$17,'Base Mortality'!$A$6:$GU$31,$D19+IF(LEFT($B19,1)="M",104,2),FALSE), VLOOKUP($D19+BC$17-1,IF(LEFT($B19,1)="M",'Base Mortality'!$CY$34:$CZ$154,'Base Mortality'!$A$34:$B$154),2,FALSE))* HLOOKUP(BC$17,'Other Assumptions'!$B$3:$C$5,IF(LEFT($B19,1)="M",2,3),TRUE),"") -> 8.16 | BD19: =IFERROR(IF(BD$17<=25, VLOOKUP(BD$17,'Base Mortality'!$A$6:$GU$31,$D19+IF(LEFT($B19,1)="M",104,2),FALSE), VLOOKUP($D19+BD$17-1,IF(LEFT($B19,1)="M",'Base Mortality'!$CY$34:$CZ$154,'Base Mortality'!$A$34:$B$154),2,FALSE))* HLOOKUP(BD$17,'Other Assumptions'!$B$3:$C$5,IF(LEFT($B19,1)="M",2,3),TRUE),"") -> 9.11 | BE19: =IFERROR(IF(BE$17<=25, VLOOKUP(BE$17,'Base Mortality'!$A$6:$GU$31,$D19+IF(LEFT($B19,1)="M",104,2),FALSE), VLOOKUP($D19+BE$17-1,IF(LEFT($B19,1)="M",'Base Mortality'!$CY$34:$CZ$154,'Base Mortality'!$A$34:$B$154),2,FALSE))* HLOOKUP(BE$17,'Other Assumptions'!$B$3:$C$5,IF(LEFT($B19,1)="M",2,3),TRUE),"") -> 10.22 | BF19: =IFERROR(IF(BF$17<=25, VLOOKUP(BF$17,'Base Mortality'!$A$6:$GU$31,$D19+IF(LEFT($B19,1)="M",104,2),FALSE), VLOOKUP($D19+BF$17-1,IF(LEFT($B19,1)="M",'Base Mortality'!$CY$34:$CZ$154,'Base Mortality'!$A$34:$B$154),2,FALSE))* HLOOKUP(BF$17,'Other Assumptions'!$B$3:$C$5,IF(LEFT($B19,1)="M",2,3),TRUE),"") -> 11.52 | BG19: =IFERROR(IF(BG$17<=25, VLOOKUP(BG$17,'Base Mortality'!$A$6:$GU$31,$D19+IF(LEFT($B19,1)="M",104,2),FALSE), VLOOKUP($D19+BG$17-1,IF(LEFT($B19,1)="M",'Base Mortality'!$CY$34:$CZ$154,'Base Mortality'!$A$34:$B$154),2,FALSE))* HLOOKUP(BG$17,'Other Assumptions'!$B$3:$C$5,IF(LEFT($B19,1)="M",2,3),TRUE),"") -> 13.03 | BH19: =IFERROR(IF(BH$17<=25, VLOOKUP(BH$17,'Base Mortality'!$A$6:$GU$31,$D19+IF(LEFT($B19,1)="M",104,2),FALSE), VLOOKUP($D19+BH$17-1,IF(LEFT($B19,1)="M",'Base Mortality'!$CY$34:$CZ$154,'Base Mortality'!$A$34:$B$154),2,FALSE))* HLOOKUP(BH$17,'Other Assumptions'!$B$3:$C$5,IF(LEFT($B19,1)="M",2,3),TRUE),"") -> 14.75 | BI19: =IFERROR(IF(BI$17<=25, VLOOKUP(BI$17,'Base Mortality'!$A$6:$GU$31,$D19+IF(LEFT($B19,1)="M",104,2),FALSE), VLOOKUP($D19+BI$17-1,IF(LEFT($B19,1)="M",'Base Mortality'!$CY$34:$CZ$154,'Base Mortality'!$A$34:$B$154),2,FALSE))* HLOOKUP(BI$17,'Other Assumptions'!$B$3:$C$5,IF(LEFT($B19,1)="M",2,3),TRUE),"") -> 16.74 | BJ19: =IFERROR(IF(BJ$17<=25, VLOOKUP(BJ$17,'Base Mortality'!$A$6:$GU$31,$D19+IF(LEFT($B19,1)="M",104,2),FALSE), VLOOKUP($D19+BJ$17-1,IF(LEFT($B19,1)="M",'Base Mortality'!$CY$34:$CZ$154,'Base Mortality'!$A$34:$B$154),2,FALSE))* HLOOKUP(BJ$17,'Other Assumptions'!$B$3:$C$5,IF(LEFT($B19,1)="M",2,3),TRUE),"") -> 19.06 | BK19: =IFERROR(IF(BK$17<=25, VLOOKUP(BK$17,'Base Mortality'!$A$6:$GU$31,$D19+IF(LEFT($B19,1)="M",104,2),FALSE), VLOOKUP($D19+BK$17-1,IF(LEFT($B19,1)="M",'Base Mortality'!$CY$34:$CZ$154,'Base Mortality'!$A$34:$B$154),2,FALSE))* HLOOKUP(BK$17,'Other Assumptions'!$B$3:$C$5,IF(LEFT($B19,1)="M",2,3),TRUE),"") -> 21.79 | BL19: =IFERROR(IF(BL$17<=25, VLOOKUP(BL$17,'Base Mortality'!$A$6:$GU$31,$D19+IF(LEFT($B19,1)="M",104,2),FALSE), VLOOKUP($D19+BL$17-1,IF(LEFT($B19,1)="M",'Base Mortality'!$CY$34:$CZ$154,'Base Mortality'!$A$34:$B$154),2,FALSE))* HLOOKUP(BL$17,'Other Assumptions'!$B$3:$C$5,IF(LEFT($B19,1)="M",2,3),TRUE),"") -> 25.08 | BM19: =IFERROR(IF(BM$17<=25, VLOOKUP(BM$17,'Base Mortality'!$A$6:$GU$31,$D19+IF(LEFT($B19,1)="M",104,2),FALSE), VLOOKUP($D19+BM$17-1,IF(LEFT($B19,1)="M",'Base Mortality'!$CY$34:$CZ$154,'Base Mortality'!$A$34:$B$154),2,FALSE))* HLOOKUP(BM$17,'Other Assumptions'!$B$3:$C$5,IF(LEFT($B19,1)="M",2,3),TRUE),"") -> 28.96 | BN19: =IFERROR(IF(BN$17<=25, VLOOKUP(BN$17,'Base Mortality'!$A$6:$GU$31,$D19+IF(LEFT($B19,1)="M",104,2),FALSE), VLOOKUP($D19+BN$17-1,IF(LEFT($B19,1)="M",'Base Mortality'!$CY$34:$CZ$154,'Base Mortality'!$A$34:$B$154),2,FALSE))* HLOOKUP(BN$17,'Other Assumptions'!$B$3:$C$5,IF(LEFT($B19,1)="M",2,3),TRUE),"") -> 33.07 | BO19: =IFERROR(IF(BO$17<=25, VLOOKUP(BO$17,'Base Mortality'!$A$6:$GU$31,$D19+IF(LEFT($B19,1)="M",104,2),FALSE), VLOOKUP($D19+BO$17-1,IF(LEFT($B19,1)="M",'Base Mortality'!$CY$34:$CZ$154,'Base Mortality'!$A$34:$B$154),2,FALSE))* HLOOKUP(BO$17,'Other Assumptions'!$B$3:$C$5,IF(LEFT($B19,1)="M",2,3),TRUE),"") -> 37.34 | BP19: =IFERROR(IF(BP$17<=25, VLOOKUP(BP$17,'Base Mortality'!$A$6:$GU$31,$D19+IF(LEFT($B19,1)="M",104,2),FALSE), VLOOKUP($D19+BP$17-1,IF(LEFT($B19,1)="M",'Base Mortality'!$CY$34:$CZ$154,'Base Mortality'!$A$34:$B$154),2,FALSE))* HLOOKUP(BP$17,'Other Assumptions'!$B$3:$C$5,IF(LEFT($B19,1)="M",2,3),TRUE),"") -> 42.23 | BQ19: =IFERROR(IF(BQ$17<=25, VLOOKUP(BQ$17,'Base Mortality'!$A$6:$GU$31,$D19+IF(LEFT($B19,1)="M",104,2),FALSE), VLOOKUP($D19+BQ$17-1,IF(LEFT($B19,1)="M",'Base Mortality'!$CY$34:$CZ$154,'Base Mortality'!$A$34:$B$154),2,FALSE))* HLOOKUP(BQ$17,'Other Assumptions'!$B$3:$C$5,IF(LEFT($B19,1)="M",2,3),TRUE),"") -> 48.98 | BR19: =IFERROR(IF(BR$17<=25, VLOOKUP(BR$17,'Base Mortality'!$A$6:$GU$31,$D19+IF(LEFT($B19,1)="M",104,2),FALSE), VLOOKUP($D19+BR$17-1,IF(LEFT($B19,1)="M",'Base Mortality'!$CY$34:$CZ$154,'Base Mortality'!$A$34:$B$154),2,FALSE))* HLOOKUP(BR$17,'Other Assumptions'!$B$3:$C$5,IF(LEFT($B19,1)="M",2,3),TRUE),"") -> 56.73 | BS19: =IFERROR(IF(BS$17<=25, VLOOKUP(BS$17,'Base Mortality'!$A$6:$GU$31,$D19+IF(LEFT($B19,1)="M",104,2),FALSE), VLOOKUP($D19+BS$17-1,IF(LEFT($B19,1)="M",'Base Mortality'!$CY$34:$CZ$154,'Base Mortality'!$A$34:$B$154),2,FALSE))* HLOOKUP(BS$17,'Other Assumptions'!$B$3:$C$5,IF(LEFT($B19,1)="M",2,3),TRUE),"") -> 64.43 | BT19: =IFERROR(IF(BT$17<=25, VLOOKUP(BT$17,'Base Mortality'!$A$6:$GU$31,$D19+IF(LEFT($B19,1)="M",104,2),FALSE), VLOOKUP($D19+BT$17-1,IF(LEFT($B19,1)="M",'Base Mortality'!$CY$34:$CZ$154,'Base Mortality'!$A$34:$B$154),2,FALSE))* HLOOKUP(BT$17,'Other Assumptions'!$B$3:$C$5,IF(LEFT($B19,1)="M",2,3),TRUE),"") -> 73.25 | BU19: =IFERROR(IF(BU$17<=25, VLOOKUP(BU$17,'Base Mortality'!$A$6:$GU$31,$D19+IF(LEFT($B19,1)="M",104,2),FALSE), VLOOKUP($D19+BU$17-1,IF(LEFT($B19,1)="M",'Base Mortality'!$CY$34:$CZ$154,'Base Mortality'!$A$34:$B$154),2,FALSE))* HLOOKUP(BU$17,'Other Assumptions'!$B$3:$C$5,IF(LEFT($B19,1)="M",2,3),TRUE),"") -> 83.31 | BV19: =IFERROR(IF(BV$17<=25, VLOOKUP(BV$17,'Base Mortality'!$A$6:$GU$31,$D19+IF(LEFT($B19,1)="M",104,2),FALSE), VLOOKUP($D19+BV$17-1,IF(LEFT($B19,1)="M",'Base Mortality'!$CY$34:$CZ$154,'Base Mortality'!$A$34:$B$154),2,FALSE))* HLOOKUP(BV$17,'Other Assumptions'!$B$3:$C$5,IF(LEFT($B19,1)="M",2,3),TRUE),"") -> 94.39 | BW19: =IFERROR(IF(BW$17<=25, VLOOKUP(BW$17,'Base Mortality'!$A$6:$GU$31,$D19+IF(LEFT($B19,1)="M",104,2),FALSE), VLOOKUP($D19+BW$17-1,IF(LEFT($B19,1)="M",'Base Mortality'!$CY$34:$CZ$154,'Base Mortality'!$A$34:$B$154),2,FALSE))* HLOOKUP(BW$17,'Other Assumptions'!$B$3:$C$5,IF(LEFT($B19,1)="M",2,3),TRUE),"") -> 106.38 | BX19: =IFERROR(IF(BX$17<=25, VLOOKUP(BX$17,'Base Mortality'!$A$6:$GU$31,$D19+IF(LEFT($B19,1)="M",104,2),FALSE), VLOOKUP($D19+BX$17-1,IF(LEFT($B19,1)="M",'Base Mortality'!$CY$34:$CZ$154,'Base Mortality'!$A$34:$B$154),2,FALSE))* HLOOKUP(BX$17,'Other Assumptions'!$B$3:$C$5,IF(LEFT($B19,1)="M",2,3),TRUE),"") -> 119.27 | BY19: =IFERROR(IF(BY$17<=25, VLOOKUP(BY$17,'Base Mortality'!$A$6:$GU$31,$D19+IF(LEFT($B19,1)="M",104,2),FALSE), VLOOKUP($D19+BY$17-1,IF(LEFT($B19,1)="M",'Base Mortality'!$CY$34:$CZ$154,'Base Mortality'!$A$34:$B$154),2,FALSE))* HLOOKUP(BY$17,'Other Assumptions'!$B$3:$C$5,IF(LEFT($B19,1)="M",2,3),TRUE),"") -> 133.19 | BZ19: =IFERROR(IF(BZ$17<=25, VLOOKUP(BZ$17,'Base Mortality'!$A$6:$GU$31,$D19+IF(LEFT($B19,1)="M",104,2),FALSE), VLOOKUP($D19+BZ$17-1,IF(LEFT($B19,1)="M",'Base Mortality'!$CY$34:$CZ$154,'Base Mortality'!$A$34:$B$154),2,FALSE))* HLOOKUP(BZ$17,'Other Assumptions'!$B$3:$C$5,IF(LEFT($B19,1)="M",2,3),TRUE),"") -> 147.81 | CA19: =IFERROR(IF(CA$17<=25, VLOOKUP(CA$17,'Base Mortality'!$A$6:$GU$31,$D19+IF(LEFT($B19,1)="M",104,2),FALSE), VLOOKUP($D19+CA$17-1,IF(LEFT($B19,1)="M",'Base Mortality'!$CY$34:$CZ$154,'Base Mortality'!$A$34:$B$154),2,FALSE))* HLOOKUP(CA$17,'Other Assumptions'!$B$3:$C$5,IF(LEFT($B19,1)="M",2,3),TRUE),"") -> 163.12 | CB19: =IFERROR(IF(CB$17<=25, VLOOKUP(CB$17,'Base Mortality'!$A$6:$GU$31,$D19+IF(LEFT($B19,1)="M",104,2),FALSE), VLOOKUP($D19+CB$17-1,IF(LEFT($B19,1)="M",'Base Mortality'!$CY$34:$CZ$154,'Base Mortality'!$A$34:$B$154),2,FALSE))* HLOOKUP(CB$17,'Other Assumptions'!$B$3:$C$5,IF(LEFT($B19,1)="M",2,3),TRUE),"") -> 180.74 | CC19: =IFERROR(IF(CC$17<=25, VLOOKUP(CC$17,'Base Mortality'!$A$6:$GU$31,$D19+IF(LEFT($B19,1)="M",104,2),FALSE), VLOOKUP($D19+CC$17-1,IF(LEFT($B19,1)="M",'Base Mortality'!$CY$34:$CZ$154,'Base Mortality'!$A$34:$B$154),2,FALSE))* HLOOKUP(CC$17,'Other Assumptions'!$B$3:$C$5,IF(LEFT($B19,1)="M",2,3),TRUE),"") -> 201.27 | CD19: =IFERROR(IF(CD$17<=25, VLOOKUP(CD$17,'Base Mortality'!$A$6:$GU$31,$D19+IF(LEFT($B19,1)="M",104,2),FALSE), VLOOKUP($D19+CD$17-1,IF(LEFT($B19,1)="M",'Base Mortality'!$CY$34:$CZ$154,'Base Mortality'!$A$34:$B$154),2,FALSE))* HLOOKUP(CD$17,'Other Assumptions'!$B$3:$C$5,IF(LEFT($B19,1)="M",2,3),TRUE),"") -> 223.74 | CE19: =IFERROR(IF(CE$17<=25, VLOOKUP(CE$17,'Base Mortality'!$A$6:$GU$31,$D19+IF(LEFT($B19,1)="M",104,2),FALSE), VLOOKUP($D19+CE$17-1,IF(LEFT($B19,1)="M",'Base Mortality'!$CY$34:$CZ$154,'Base Mortality'!$A$34:$B$154),2,FALSE))* HLOOKUP(CE$17,'Other Assumptions'!$B$3:$C$5,IF(LEFT($B19,1)="M",2,3),TRUE),"") -> 248.02 | CF19: =IFERROR(IF(CF$17<=25, VLOOKUP(CF$17,'Base Mortality'!$A$6:$GU$31,$D19+IF(LEFT($B19,1)="M",104,2),FALSE), VLOOKUP($D19+CF$17-1,IF(LEFT($B19,1)="M",'Base Mortality'!$CY$34:$CZ$154,'Base Mortality'!$A$34:$B$154),2,FALSE))* HLOOKUP(CF$17,'Other Assumptions'!$B$3:$C$5,IF(LEFT($B19,1)="M",2,3),TRUE),"") -> 273.79 | CG19: =IFERROR(IF(CG$17<=25, VLOOKUP(CG$17,'Base Mortality'!$A$6:$GU$31,$D19+IF(LEFT($B19,1)="M",104,2),FALSE), VLOOKUP($D19+CG$17-1,IF(LEFT($B19,1)="M",'Base Mortality'!$CY$34:$CZ$154,'Base Mortality'!$A$34:$B$154),2,FALSE))* HLOOKUP(CG$17,'Other Assumptions'!$B$3:$C$5,IF(LEFT($B19,1)="M",2,3),TRUE),"") -> 299.21 | CH19: =IFERROR(IF(CH$17<=25, VLOOKUP(CH$17,'Base Mortality'!$A$6:$GU$31,$D19+IF(LEFT($B19,1)="M",104,2),FALSE), VLOOKUP($D19+CH$17-1,IF(LEFT($B19,1)="M",'Base Mortality'!$CY$34:$CZ$154,'Base Mortality'!$A$34:$B$154),2,FALSE))* HLOOKUP(CH$17,'Other Assumptions'!$B$3:$C$5,IF(LEFT($B19,1)="M",2,3),TRUE),"") -> 323.14 | CI19: =IFERROR(IF(CI$17<=25, VLOOKUP(CI$17,'Base Mortality'!$A$6:$GU$31,$D19+IF(LEFT($B19,1)="M",104,2),FALSE), VLOOKUP($D19+CI$17-1,IF(LEFT($B19,1)="M",'Base Mortality'!$CY$34:$CZ$154,'Base Mortality'!$A$34:$B$154),2,FALSE))* HLOOKUP(CI$17,'Other Assumptions'!$B$3:$C$5,IF(LEFT($B19,1)="M",2,3),TRUE),"") -> 346.98 | CJ19: =IFERROR(IF(CJ$17<=25, VLOOKUP(CJ$17,'Base Mortality'!$A$6:$GU$31,$D19+IF(LEFT($B19,1)="M",104,2),FALSE), VLOOKUP($D19+CJ$17-1,IF(LEFT($B19,1)="M",'Base Mortality'!$CY$34:$CZ$154,'Base Mortality'!$A$34:$B$154),2,FALSE))* HLOOKUP(CJ$17,'Other Assumptions'!$B$3:$C$5,IF(LEFT($B19,1)="M",2,3),TRUE),"") -> 370.36 | CK19: =IFERROR(IF(CK$17<=25, VLOOKUP(CK$17,'Base Mortality'!$A$6:$GU$31,$D19+IF(LEFT($B19,1)="M",104,2),FALSE), VLOOKUP($D19+CK$17-1,IF(LEFT($B19,1)="M",'Base Mortality'!$CY$34:$CZ$154,'Base Mortality'!$A$34:$B$154),2,FALSE))* HLOOKUP(CK$17,'Other Assumptions'!$B$3:$C$5,IF(LEFT($B19,1)="M",2,3),TRUE),"") -> 392.92 | CL19: =IFERROR(IF(CL$17<=25, VLOOKUP(CL$17,'Base Mortality'!$A$6:$GU$31,$D19+IF(LEFT($B19,1)="M",104,2),FALSE), VLOOKUP($D19+CL$17-1,IF(LEFT($B19,1)="M",'Base Mortality'!$CY$34:$CZ$154,'Base Mortality'!$A$34:$B$154),2,FALSE))* HLOOKUP(CL$17,'Other Assumptions'!$B$3:$C$5,IF(LEFT($B19,1)="M",2,3),TRUE),"") -> 414.3 | CM19: =IFERROR(IF(CM$17<=25, VLOOKUP(CM$17,'Base Mortality'!$A$6:$GU$31,$D19+IF(LEFT($B19,1)="M",104,2),FALSE), VLOOKUP($D19+CM$17-1,IF(LEFT($B19,1)="M",'Base Mortality'!$CY$34:$CZ$154,'Base Mortality'!$A$34:$B$154),2,FALSE))* HLOOKUP(CM$17,'Other Assumptions'!$B$3:$C$5,IF(LEFT($B19,1)="M",2,3),TRUE),"") -> 434.13 | CN19: =IFERROR(IF(CN$17<=25, VLOOKUP(CN$17,'Base Mortality'!$A$6:$GU$31,$D19+IF(LEFT($B19,1)="M",104,2),FALSE), VLOOKUP($D19+CN$17-1,IF(LEFT($B19,1)="M",'Base Mortality'!$CY$34:$CZ$154,'Base Mortality'!$A$34:$B$154),2,FALSE))* HLOOKUP(CN$17,'Other Assumptions'!$B$3:$C$5,IF(LEFT($B19,1)="M",2,3),TRUE),"") -> 452.05 | CO19: =IFERROR(IF(CO$17<=25, VLOOKUP(CO$17,'Base Mortality'!$A$6:$GU$31,$D19+IF(LEFT($B19,1)="M",104,2),FALSE), VLOOKUP($D19+CO$17-1,IF(LEFT($B19,1)="M",'Base Mortality'!$CY$34:$CZ$154,'Base Mortality'!$A$34:$B$154),2,FALSE))* HLOOKUP(CO$17,'Other Assumptions'!$B$3:$C$5,IF(LEFT($B19,1)="M",2,3),TRUE),"") -> 467.69 | CP19: =IFERROR(IF(CP$17<=25, VLOOKUP(CP$17,'Base Mortality'!$A$6:$GU$31,$D19+IF(LEFT($B19,1)="M",104,2),FALSE), VLOOKUP($D19+CP$17-1,IF(LEFT($B19,1)="M",'Base Mortality'!$CY$34:$CZ$154,'Base Mortality'!$A$34:$B$154),2,FALSE))* HLOOKUP(CP$17,'Other Assumptions'!$B$3:$C$5,IF(LEFT($B19,1)="M",2,3),TRUE),"") -> 480.68 | CQ19: =IFERROR(IF(CQ$17<=25, VLOOKUP(CQ$17,'Base Mortality'!$A$6:$GU$31,$D19+IF(LEFT($B19,1)="M",104,2),FALSE), VLOOKUP($D19+CQ$17-1,IF(LEFT($B19,1)="M",'Base Mortality'!$CY$34:$CZ$154,'Base Mortality'!$A$34:$B$154),2,FALSE))* HLOOKUP(CQ$17,'Other Assumptions'!$B$3:$C$5,IF(LEFT($B19,1)="M",2,3),TRUE),"") -> 490.65 | CR19: =IFERROR(IF(CR$17<=25, VLOOKUP(CR$17,'Base Mortality'!$A$6:$GU$31,$D19+IF(LEFT($B19,1)="M",104,2),FALSE), VLOOKUP($D19+CR$17-1,IF(LEFT($B19,1)="M",'Base Mortality'!$CY$34:$CZ$154,'Base Mortality'!$A$34:$B$154),2,FALSE))* HLOOKUP(CR$17,'Other Assumptions'!$B$3:$C$5,IF(LEFT($B19,1)="M",2,3),TRUE),"") -> 497.23 | CS19: =IFERROR(IF(CS$17<=25, VLOOKUP(CS$17,'Base Mortality'!$A$6:$GU$31,$D19+IF(LEFT($B19,1)="M",104,2),FALSE), VLOOKUP($D19+CS$17-1,IF(LEFT($B19,1)="M",'Base Mortality'!$CY$34:$CZ$154,'Base Mortality'!$A$34:$B$154),2,FALSE))* HLOOKUP(CS$17,'Other Assumptions'!$B$3:$C$5,IF(LEFT($B19,1)="M",2,3),TRUE),"") -> 500 | CT19: =IFERROR(IF(CT$17<=25, VLOOKUP(CT$17,'Base Mortality'!$A$6:$GU$31,$D19+IF(LEFT($B19,1)="M",104,2),FALSE), VLOOKUP($D19+CT$17-1,IF(LEFT($B19,1)="M",'Base Mortality'!$CY$34:$CZ$154,'Base Mortality'!$A$34:$B$154),2,FALSE))* HLOOKUP(CT$17,'Other Assumptions'!$B$3:$C$5,IF(LEFT($B19,1)="M",2,3),TRUE),"") -> 500 | CU19: =IFERROR(IF(CU$17<=25, VLOOKUP(CU$17,'Base Mortality'!$A$6:$GU$31,$D19+IF(LEFT($B19,1)="M",104,2),FALSE), VLOOKUP($D19+CU$17-1,IF(LEFT($B19,1)="M",'Base Mortality'!$CY$34:$CZ$154,'Base Mortality'!$A$34:$B$154),2,FALSE))* HLOOKUP(CU$17,'Other Assumptions'!$B$3:$C$5,IF(LEFT($B19,1)="M",2,3),TRUE),"") -> 500 | CV19: =IFERROR(IF(CV$17<=25, VLOOKUP(CV$17,'Base Mortality'!$A$6:$GU$31,$D19+IF(LEFT($B19,1)="M",104,2),FALSE), VLOOKUP($D19+CV$17-1,IF(LEFT($B19,1)="M",'Base Mortality'!$CY$34:$CZ$154,'Base Mortality'!$A$34:$B$154),2,FALSE))* HLOOKUP(CV$17,'Other Assumptions'!$B$3:$C$5,IF(LEFT($B19,1)="M",2,3),TRUE),"") -> 500 | CW19: =IFERROR(IF(CW$17<=25, VLOOKUP(CW$17,'Base Mortality'!$A$6:$GU$31,$D19+IF(LEFT($B19,1)="M",104,2),FALSE), VLOOKUP($D19+CW$17-1,IF(LEFT($B19,1)="M",'Base Mortality'!$CY$34:$CZ$154,'Base Mortality'!$A$34:$B$154),2,FALSE))* HLOOKUP(CW$17,'Other Assumptions'!$B$3:$C$5,IF(LEFT($B19,1)="M",2,3),TRUE),"") -> 500 | CX19: =IFERROR(IF(CX$17<=25, VLOOKUP(CX$17,'Base Mortality'!$A$6:$GU$31,$D19+IF(LEFT($B19,1)="M",104,2),FALSE), VLOOKUP($D19+CX$17-1,IF(LEFT($B19,1)="M",'Base Mortality'!$CY$34:$CZ$154,'Base Mortality'!$A$34:$B$154),2,FALSE))* HLOOKUP(CX$17,'Other Assumptions'!$B$3:$C$5,IF(LEFT($B19,1)="M",2,3),TRUE),"") -> 500 | CY19: =IFERROR(IF(CY$17<=25, VLOOKUP(CY$17,'Base Mortality'!$A$6:$GU$31,$D19+IF(LEFT($B19,1)="M",104,2),FALSE), VLOOKUP($D19+CY$17-1,IF(LEFT($B19,1)="M",'Base Mortality'!$CY$34:$CZ$154,'Base Mortality'!$A$34:$B$154),2,FALSE))* HLOOKUP(CY$17,'Other Assumptions'!$B$3:$C$5,IF(LEFT($B19,1)="M",2,3),TRUE),"") -> 500 | CZ19: =IFERROR(IF(CZ$17<=25, VLOOKUP(CZ$17,'Base Mortality'!$A$6:$GU$31,$D19+IF(LEFT($B19,1)="M",104,2),FALSE), VLOOKUP($D19+CZ$17-1,IF(LEFT($B19,1)="M",'Base Mortality'!$CY$34:$CZ$154,'Base Mortality'!$A$34:$B$154),2,FALSE))* HLOOKUP(CZ$17,'Other Assumptions'!$B$3:$C$5,IF(LEFT($B19,1)="M",2,3),TRUE),"") -> 500 | DA19: =IFERROR(IF(DA$17<=25, VLOOKUP(DA$17,'Base Mortality'!$A$6:$GU$31,$D19+IF(LEFT($B19,1)="M",104,2),FALSE), VLOOKUP($D19+DA$17-1,IF(LEFT($B19,1)="M",'Base Mortality'!$CY$34:$CZ$154,'Base Mortality'!$A$34:$B$154),2,FALSE))* HLOOKUP(DA$17,'Other Assumptions'!$B$3:$C$5,IF(LEFT($B19,1)="M",2,3),TRUE),"") -> 500 | DC19: =MIN(1000,IFERROR(IF(RIGHT($B19,6)="Substd",IF(VLOOKUP($A$9,$A$9:$CK$9,MIN(8+DC$17,48),FALSE)>0,VLOOKUP($A$9,$A$9:$CK$9,MIN(8+DC$17,48),FALSE)*IF(LEFT($B19,1)="M",MUlt,FUlt)*VLOOKUP($D19+DC$17-1,IF(LEFT($B19,1)="M",'Base Mortality'!$CY$34:$CZ$154,'Base Mortality'!$A$34:$B$154),2,FALSE), IF( Condition="Dilated Cardiomyopathy (DCM)",Flat_addition*HLOOKUP($D19,DCM_Grading_Pattern,DC$17+1,0)*1000,VLOOKUP($A$9,$A$9:$CK$9,MIN(49+DC$17,89),FALSE))),0),0)) -> 0 | DD19: =MIN(1000,IFERROR(IF(RIGHT($B19,6)="Substd",IF(VLOOKUP($A$9,$A$9:$CK$9,MIN(8+DD$17,48),FALSE)>0,VLOOKUP($A$9,$A$9:$CK$9,MIN(8+DD$17,48),FALSE)*IF(LEFT($B19,1)="M",MUlt,FUlt)*VLOOKUP($D19+DD$17-1,IF(LEFT($B19,1)="M",'Base Mortality'!$CY$34:$CZ$154,'Base Mortality'!$A$34:$B$154),2,FALSE), IF( Condition="Dilated Cardiomyopathy (DCM)",Flat_addition*HLOOKUP($D19,DCM_Grading_Pattern,DD$17+1,0)*1000,VLOOKUP($A$9,$A$9:$CK$9,MIN(49+DD$17,89),FALSE))),0),0)) -> 0 | DE19: =MIN(1000,IFERROR(IF(RIGHT($B19,6)="Substd",IF(VLOOKUP($A$9,$A$9:$CK$9,MIN(8+DE$17,48),FALSE)>0,VLOOKUP($A$9,$A$9:$CK$9,MIN(8+DE$17,48),FALSE)*IF(LEFT($B19,1)="M",MUlt,FUlt)*VLOOKUP($D19+DE$17-1,IF(LEFT($B19,1)="M",'Base Mortality'!$CY$34:$CZ$154,'Base Mortality'!$A$34:$B$154),2,FALSE), IF( Condition="Dilated Cardiomyopathy (DCM)",Flat_addition*HLOOKUP($D19,DCM_Grading_Pattern,DE$17+1,0)*1000,VLOOKUP($A$9,$A$9:$CK$9,MIN(49+DE$17,89),FALSE))),0),0)) -> 0 | DF19: =MIN(1000,IFERROR(IF(RIGHT($B19,6)="Substd",IF(VLOOKUP($A$9,$A$9:$CK$9,MIN(8+DF$17,48),FALSE)>0,VLOOKUP($A$9,$A$9:$CK$9,MIN(8+DF$17,48),FALSE)*IF(LEFT($B19,1)="M",MUlt,FUlt)*VLOOKUP($D19+DF$17-1,IF(LEFT($B19,1)="M",'Base Mortality'!$CY$34:$CZ$154,'Base Mortality'!$A$34:$B$154),2,FALSE), IF( Condition="Dilated Cardiomyopathy (DCM)",Flat_addition*HLOOKUP($D19,DCM_Grading_Pattern,DF$17+1,0)*1000,VLOOKUP($A$9,$A$9:$CK$9,MIN(49+DF$17,89),FALSE))),0),0)) -> 0 | DG19: =MIN(1000,IFERROR(IF(RIGHT($B19,6)="Substd",IF(VLOOKUP($A$9,$A$9:$CK$9,MIN(8+DG$17,48),FALSE)>0,VLOOKUP($A$9,$A$9:$CK$9,MIN(8+DG$17,48),FALSE)*IF(LEFT($B19,1)="M",MUlt,FUlt)*VLOOKUP($D19+DG$17-1,IF(LEFT($B19,1)="M",'Base Mortality'!$CY$34:$CZ$154,'Base Mortality'!$A$34:$B$154),2,FALSE), IF( Condition="Dilated Cardiomyopathy (DCM)",Flat_addition*HLOOKUP($D19,DCM_Grading_Pattern,DG$17+1,0)*1000,VLOOKUP($A$9,$A$9:$CK$9,MIN(49+DG$17,89),FALSE))),0),0)) -> 0 | DH19: =MIN(1000,IFERROR(IF(RIGHT($B19,6)="Substd",IF(VLOOKUP($A$9,$A$9:$CK$9,MIN(8+DH$17,48),FALSE)>0,VLOOKUP($A$9,$A$9:$CK$9,MIN(8+DH$17,48),FALSE)*IF(LEFT($B19,1)="M",MUlt,FUlt)*VLOOKUP($D19+DH$17-1,IF(LEFT($B19,1)="M",'Base Mortality'!$CY$34:$CZ$154,'Base Mortality'!$A$34:$B$154),2,FALSE), IF( Condition="Dilated Cardiomyopathy (DCM)",Flat_addition*HLOOKUP($D19,DCM_Grading_Pattern,DH$17+1,0)*1000,VLOOKUP($A$9,$A$9:$CK$9,MIN(49+DH$17,89),FALSE))),0),0)) -> 0 | DI19: =MIN(1000,IFERROR(IF(RIGHT($B19,6)="Substd",IF(VLOOKUP($A$9,$A$9:$CK$9,MIN(8+DI$17,48),FALSE)>0,VLOOKUP($A$9,$A$9:$CK$9,MIN(8+DI$17,48),FALSE)*IF(LEFT($B19,1)="M",MUlt,FUlt)*VLOOKUP($D19+DI$17-1,IF(LEFT($B19,1)="M",'Base Mortality'!$CY$34:$CZ$154,'Base Mortality'!$A$34:$B$154),2,FALSE), IF( Condition="Dilated Cardiomyopathy (DCM)",Flat_addition*HLOOKUP($D19,DCM_Grading_Pattern,DI$17+1,0)*1000,VLOOKUP($A$9,$A$9:$CK$9,MIN(49+DI$17,89),FALSE))),0),0)) -> 0 | DJ19: =MIN(1000,IFERROR(IF(RIGHT($B19,6)="Substd",IF(VLOOKUP($A$9,$A$9:$CK$9,MIN(8+DJ$17,48),FALSE)>0,VLOOKUP($A$9,$A$9:$CK$9,MIN(8+DJ$17,48),FALSE)*IF(LEFT($B19,1)="M",MUlt,FUlt)*VLOOKUP($D19+DJ$17-1,IF(LEFT($B19,1)="M",'Base Mortality'!$CY$34:$CZ$154,'Base Mortality'!$A$34:$B$154),2,FALSE), IF( Condition="Dilated Cardiomyopathy (DCM)",Flat_addition*HLOOKUP($D19,DCM_Grading_Pattern,DJ$17+1,0)*1000,VLOOKUP($A$9,$A$9:$CK$9,MIN(49+DJ$17,89),FALSE))),0),0)) -> 0 | DK19: =MIN(1000,IFERROR(IF(RIGHT($B19,6)="Substd",IF(VLOOKUP($A$9,$A$9:$CK$9,MIN(8+DK$17,48),FALSE)>0,VLOOKUP($A$9,$A$9:$CK$9,MIN(8+DK$17,48),FALSE)*IF(LEFT($B19,1)="M",MUlt,FUlt)*VLOOKUP($D19+DK$17-1,IF(LEFT($B19,1)="M",'Base Mortality'!$CY$34:$CZ$154,'Base Mortality'!$A$34:$B$154),2,FALSE), IF( Condition="Dilated Cardiomyopathy (DCM)",Flat_addition*HLOOKUP($D19,DCM_Grading_Pattern,DK$17+1,0)*1000,VLOOKUP($A$9,$A$9:$CK$9,MIN(49+DK$17,89),FALSE))),0),0)) -> 0 | DL19: =MIN(1000,IFERROR(IF(RIGHT($B19,6)="Substd",IF(VLOOKUP($A$9,$A$9:$CK$9,MIN(8+DL$17,48),FALSE)>0,VLOOKUP($A$9,$A$9:$CK$9,MIN(8+DL$17,48),FALSE)*IF(LEFT($B19,1)="M",MUlt,FUlt)*VLOOKUP($D19+DL$17-1,IF(LEFT($B19,1)="M",'Base Mortality'!$CY$34:$CZ$154,'Base Mortality'!$A$34:$B$154),2,FALSE), IF( Condition="Dilated Cardiomyopathy (DCM)",Flat_addition*HLOOKUP($D19,DCM_Grading_Pattern,DL$17+1,0)*1000,VLOOKUP($A$9,$A$9:$CK$9,MIN(49+DL$17,89),FALSE))),0),0)) -> 0 | DM19: =MIN(1000,IFERROR(IF(RIGHT($B19,6)="Substd",IF(VLOOKUP($A$9,$A$9:$CK$9,MIN(8+DM$17,48),FALSE)>0,VLOOKUP($A$9,$A$9:$CK$9,MIN(8+DM$17,48),FALSE)*IF(LEFT($B19,1)="M",MUlt,FUlt)*VLOOKUP($D19+DM$17-1,IF(LEFT($B19,1)="M",'Base Mortality'!$CY$34:$CZ$154,'Base Mortality'!$A$34:$B$154),2,FALSE), IF( Condition="Dilated Cardiomyopathy (DCM)",Flat_addition*HLOOKUP($D19,DCM_Grading_Pattern,DM$17+1,0)*1000,VLOOKUP($A$9,$A$9:$CK$9,MIN(49+DM$17,89),FALSE))),0),0)) -> 0 | DN19: =MIN(1000,IFERROR(IF(RIGHT($B19,6)="Substd",IF(VLOOKUP($A$9,$A$9:$CK$9,MIN(8+DN$17,48),FALSE)>0,VLOOKUP($A$9,$A$9:$CK$9,MIN(8+DN$17,48),FALSE)*IF(LEFT($B19,1)="M",MUlt,FUlt)*VLOOKUP($D19+DN$17-1,IF(LEFT($B19,1)="M",'Base Mortality'!$CY$34:$CZ$154,'Base Mortality'!$A$34:$B$154),2,FALSE), IF( Condition="Dilated Cardiomyopathy (DCM)",Flat_addition*HLOOKUP($D19,DCM_Grading_Pattern,DN$17+1,0)*1000,VLOOKUP($A$9,$A$9:$CK$9,MIN(49+DN$17,89),FALSE))),0),0)) -> 0 | DO19: =MIN(1000,IFERROR(IF(RIGHT($B19,6)="Substd",IF(VLOOKUP($A$9,$A$9:$CK$9,MIN(8+DO$17,48),FALSE)>0,VLOOKUP($A$9,$A$9:$CK$9,MIN(8+DO$17,48),FALSE)*IF(LEFT($B19,1)="M",MUlt,FUlt)*VLOOKUP($D19+DO$17-1,IF(LEFT($B19,1)="M",'Base Mortality'!$CY$34:$CZ$154,'Base Mortality'!$A$34:$B$154),2,FALSE), IF( Condition="Dilated Cardiomyopathy (DCM)",Flat_addition*HLOOKUP($D19,DCM_Grading_Pattern,DO$17+1,0)*1000,VLOOKUP($A$9,$A$9:$CK$9,MIN(49+DO$17,89),FALSE))),0),0)) -> 0 | DP19: =MIN(1000,IFERROR(IF(RIGHT($B19,6)="Substd",IF(VLOOKUP($A$9,$A$9:$CK$9,MIN(8+DP$17,48),FALSE)>0,VLOOKUP($A$9,$A$9:$CK$9,MIN(8+DP$17,48),FALSE)*IF(LEFT($B19,1)="M",MUlt,FUlt)*VLOOKUP($D19+DP$17-1,IF(LEFT($B19,1)="M",'Base Mortality'!$CY$34:$CZ$154,'Base Mortality'!$A$34:$B$154),2,FALSE), IF( Condition="Dilated Cardiomyopathy (DCM)",Flat_addition*HLOOKUP($D19,DCM_Grading_Pattern,DP$17+1,0)*1000,VLOOKUP($A$9,$A$9:$CK$9,MIN(49+DP$17,89),FALSE))),0),0)) -> 0 | DQ19: =MIN(1000,IFERROR(IF(RIGHT($B19,6)="Substd",IF(VLOOKUP($A$9,$A$9:$CK$9,MIN(8+DQ$17,48),FALSE)>0,VLOOKUP($A$9,$A$9:$CK$9,MIN(8+DQ$17,48),FALSE)*IF(LEFT($B19,1)="M",MUlt,FUlt)*VLOOKUP($D19+DQ$17-1,IF(LEFT($B19,1)="M",'Base Mortality'!$CY$34:$CZ$154,'Base Mortality'!$A$34:$B$154),2,FALSE), IF( Condition="Dilated Cardiomyopathy (DCM)",Flat_addition*HLOOKUP($D19,DCM_Grading_Pattern,DQ$17+1,0)*1000,VLOOKUP($A$9,$A$9:$CK$9,MIN(49+DQ$17,89),FALSE))),0),0)) -> 0 | DR19: =MIN(1000,IFERROR(IF(RIGHT($B19,6)="Substd",IF(VLOOKUP($A$9,$A$9:$CK$9,MIN(8+DR$17,48),FALSE)>0,VLOOKUP($A$9,$A$9:$CK$9,MIN(8+DR$17,48),FALSE)*IF(LEFT($B19,1)="M",MUlt,FUlt)*VLOOKUP($D19+DR$17-1,IF(LEFT($B19,1)="M",'Base Mortality'!$CY$34:$CZ$154,'Base Mortality'!$A$34:$B$154),2,FALSE), IF( Condition="Dilated Cardiomyopathy (DCM)",Flat_addition*HLOOKUP($D19,DCM_Grading_Pattern,DR$17+1,0)*1000,VLOOKUP($A$9,$A$9:$CK$9,MIN(49+DR$17,89),FALSE))),0),0)) -> 0 | DS19: =MIN(1000,IFERROR(IF(RIGHT($B19,6)="Substd",IF(VLOOKUP($A$9,$A$9:$CK$9,MIN(8+DS$17,48),FALSE)>0,VLOOKUP($A$9,$A$9:$CK$9,MIN(8+DS$17,48),FALSE)*IF(LEFT($B19,1)="M",MUlt,FUlt)*VLOOKUP($D19+DS$17-1,IF(LEFT($B19,1)="M",'Base Mortality'!$CY$34:$CZ$154,'Base Mortality'!$A$34:$B$154),2,FALSE), IF( Condition="Dilated Cardiomyopathy (DCM)",Flat_addition*HLOOKUP($D19,DCM_Grading_Pattern,DS$17+1,0)*1000,VLOOKUP($A$9,$A$9:$CK$9,MIN(49+DS$17,89),FALSE))),0),0)) -> 0 | DT19: =MIN(1000,IFERROR(IF(RIGHT($B19,6)="Substd",IF(VLOOKUP($A$9,$A$9:$CK$9,MIN(8+DT$17,48),FALSE)>0,VLOOKUP($A$9,$A$9:$CK$9,MIN(8+DT$17,48),FALSE)*IF(LEFT($B19,1)="M",MUlt,FUlt)*VLOOKUP($D19+DT$17-1,IF(LEFT($B19,1)="M",'Base Mortality'!$CY$34:$CZ$154,'Base Mortality'!$A$34:$B$154),2,FALSE), IF( Condition="Dilated Cardiomyopathy (DCM)",Flat_addition*HLOOKUP($D19,DCM_Grading_Pattern,DT$17+1,0)*1000,VLOOKUP($A$9,$A$9:$CK$9,MIN(49+DT$17,89),FALSE))),0),0)) -> 0 | DU19: =MIN(1000,IFERROR(IF(RIGHT($B19,6)="Substd",IF(VLOOKUP($A$9,$A$9:$CK$9,MIN(8+DU$17,48),FALSE)>0,VLOOKUP($A$9,$A$9:$CK$9,MIN(8+DU$17,48),FALSE)*IF(LEFT($B19,1)="M",MUlt,FUlt)*VLOOKUP($D19+DU$17-1,IF(LEFT($B19,1)="M",'Base Mortality'!$CY$34:$CZ$154,'Base Mortality'!$A$34:$B$154),2,FALSE), IF( Condition="Dilated Cardiomyopathy (DCM)",Flat_addition*HLOOKUP($D19,DCM_Grading_Pattern,DU$17+1,0)*1000,VLOOKUP($A$9,$A$9:$CK$9,MIN(49+DU$17,89),FALSE))),0),0)) -> 0 | DV19: =MIN(1000,IFERROR(IF(RIGHT($B19,6)="Substd",IF(VLOOKUP($A$9,$A$9:$CK$9,MIN(8+DV$17,48),FALSE)>0,VLOOKUP($A$9,$A$9:$CK$9,MIN(8+DV$17,48),FALSE)*IF(LEFT($B19,1)="M",MUlt,FUlt)*VLOOKUP($D19+DV$17-1,IF(LEFT($B19,1)="M",'Base Mortality'!$CY$34:$CZ$154,'Base Mortality'!$A$34:$B$154),2,FALSE), IF( Condition="Dilated Cardiomyopathy (DCM)",Flat_addition*HLOOKUP($D19,DCM_Grading_Pattern,DV$17+1,0)*1000,VLOOKUP($A$9,$A$9:$CK$9,MIN(49+DV$17,89),FALSE))),0),0)) -> 0 | DW19: =MIN(1000,IFERROR(IF(RIGHT($B19,6)="Substd",IF(VLOOKUP($A$9,$A$9:$CK$9,MIN(8+DW$17,48),FALSE)>0,VLOOKUP($A$9,$A$9:$CK$9,MIN(8+DW$17,48),FALSE)*IF(LEFT($B19,1)="M",MUlt,FUlt)*VLOOKUP($D19+DW$17-1,IF(LEFT($B19,1)="M",'Base Mortality'!$CY$34:$CZ$154,'Base Mortality'!$A$34:$B$154),2,FALSE), IF( Condition="Dilated Cardiomyopathy (DCM)",Flat_addition*HLOOKUP($D19,DCM_Grading_Pattern,DW$17+1,0)*1000,VLOOKUP($A$9,$A$9:$CK$9,MIN(49+DW$17,89),FALSE))),0),0)) -> 0 | DX19: =MIN(1000,IFERROR(IF(RIGHT($B19,6)="Substd",IF(VLOOKUP($A$9,$A$9:$CK$9,MIN(8+DX$17,48),FALSE)>0,VLOOKUP($A$9,$A$9:$CK$9,MIN(8+DX$17,48),FALSE)*IF(LEFT($B19,1)="M",MUlt,FUlt)*VLOOKUP($D19+DX$17-1,IF(LEFT($B19,1)="M",'Base Mortality'!$CY$34:$CZ$154,'Base Mortality'!$A$34:$B$154),2,FALSE), IF( Condition="Dilated Cardiomyopathy (DCM)",Flat_addition*HLOOKUP($D19,DCM_Grading_Pattern,DX$17+1,0)*1000,VLOOKUP($A$9,$A$9:$CK$9,MIN(49+DX$17,89),FALSE))),0),0)) -> 0 | DY19: =MIN(1000,IFERROR(IF(RIGHT($B19,6)="Substd",IF(VLOOKUP($A$9,$A$9:$CK$9,MIN(8+DY$17,48),FALSE)>0,VLOOKUP($A$9,$A$9:$CK$9,MIN(8+DY$17,48),FALSE)*IF(LEFT($B19,1)="M",MUlt,FUlt)*VLOOKUP($D19+DY$17-1,IF(LEFT($B19,1)="M",'Base Mortality'!$CY$34:$CZ$154,'Base Mortality'!$A$34:$B$154),2,FALSE), IF( Condition="Dilated Cardiomyopathy (DCM)",Flat_addition*HLOOKUP($D19,DCM_Grading_Pattern,DY$17+1,0)*1000,VLOOKUP($A$9,$A$9:$CK$9,MIN(49+DY$17,89),FALSE))),0),0)) -> 0 | DZ19: =MIN(1000,IFERROR(IF(RIGHT($B19,6)="Substd",IF(VLOOKUP($A$9,$A$9:$CK$9,MIN(8+DZ$17,48),FALSE)>0,VLOOKUP($A$9,$A$9:$CK$9,MIN(8+DZ$17,48),FALSE)*IF(LEFT($B19,1)="M",MUlt,FUlt)*VLOOKUP($D19+DZ$17-1,IF(LEFT($B19,1)="M",'Base Mortality'!$CY$34:$CZ$154,'Base Mortality'!$A$34:$B$154),2,FALSE), IF( Condition="Dilated Cardiomyopathy (DCM)",Flat_addition*HLOOKUP($D19,DCM_Grading_Pattern,DZ$17+1,0)*1000,VLOOKUP($A$9,$A$9:$CK$9,MIN(49+DZ$17,89),FALSE))),0),0)) -> 0 | EA19: =MIN(1000,IFERROR(IF(RIGHT($B19,6)="Substd",IF(VLOOKUP($A$9,$A$9:$CK$9,MIN(8+EA$17,48),FALSE)>0,VLOOKUP($A$9,$A$9:$CK$9,MIN(8+EA$17,48),FALSE)*IF(LEFT($B19,1)="M",MUlt,FUlt)*VLOOKUP($D19+EA$17-1,IF(LEFT($B19,1)="M",'Base Mortality'!$CY$34:$CZ$154,'Base Mortality'!$A$34:$B$154),2,FALSE), IF( Condition="Dilated Cardiomyopathy (DCM)",Flat_addition*HLOOKUP($D19,DCM_Grading_Pattern,EA$17+1,0)*1000,VLOOKUP($A$9,$A$9:$CK$9,MIN(49+EA$17,89),FALSE))),0),0)) -> 0 | EB19: =MIN(1000,IFERROR(IF(RIGHT($B19,6)="Substd",IF(VLOOKUP($A$9,$A$9:$CK$9,MIN(8+EB$17,48),FALSE)>0,VLOOKUP($A$9,$A$9:$CK$9,MIN(8+EB$17,48),FALSE)*IF(LEFT($B19,1)="M",MUlt,FUlt)*VLOOKUP($D19+EB$17-1,IF(LEFT($B19,1)="M",'Base Mortality'!$CY$34:$CZ$154,'Base Mortality'!$A$34:$B$154),2,FALSE), IF( Condition="Dilated Cardiomyopathy (DCM)",Flat_addition*HLOOKUP($D19,DCM_Grading_Pattern,EB$17+1,0)*1000,VLOOKUP($A$9,$A$9:$CK$9,MIN(49+EB$17,89),FALSE))),0),0)) -> 0 | EC19: =MIN(1000,IFERROR(IF(RIGHT($B19,6)="Substd",IF(VLOOKUP($A$9,$A$9:$CK$9,MIN(8+EC$17,48),FALSE)>0,VLOOKUP($A$9,$A$9:$CK$9,MIN(8+EC$17,48),FALSE)*IF(LEFT($B19,1)="M",MUlt,FUlt)*VLOOKUP($D19+EC$17-1,IF(LEFT($B19,1)="M",'Base Mortality'!$CY$34:$CZ$154,'Base Mortality'!$A$34:$B$154),2,FALSE), IF( Condition="Dilated Cardiomyopathy (DCM)",Flat_addition*HLOOKUP($D19,DCM_Grading_Pattern,EC$17+1,0)*1000,VLOOKUP($A$9,$A$9:$CK$9,MIN(49+EC$17,89),FALSE))),0),0)) -> 0 | ED19: =MIN(1000,IFERROR(IF(RIGHT($B19,6)="Substd",IF(VLOOKUP($A$9,$A$9:$CK$9,MIN(8+ED$17,48),FALSE)>0,VLOOKUP($A$9,$A$9:$CK$9,MIN(8+ED$17,48),FALSE)*IF(LEFT($B19,1)="M",MUlt,FUlt)*VLOOKUP($D19+ED$17-1,IF(LEFT($B19,1)="M",'Base Mortality'!$CY$34:$CZ$154,'Base Mortality'!$A$34:$B$154),2,FALSE), IF( Condition="Dilated Cardiomyopathy (DCM)",Flat_addition*HLOOKUP($D19,DCM_Grading_Pattern,ED$17+1,0)*1000,VLOOKUP($A$9,$A$9:$CK$9,MIN(49+ED$17,89),FALSE))),0),0)) -> 0 | EE19: =MIN(1000,IFERROR(IF(RIGHT($B19,6)="Substd",IF(VLOOKUP($A$9,$A$9:$CK$9,MIN(8+EE$17,48),FALSE)>0,VLOOKUP($A$9,$A$9:$CK$9,MIN(8+EE$17,48),FALSE)*IF(LEFT($B19,1)="M",MUlt,FUlt)*VLOOKUP($D19+EE$17-1,IF(LEFT($B19,1)="M",'Base Mortality'!$CY$34:$CZ$154,'Base Mortality'!$A$34:$B$154),2,FALSE), IF( Condition="Dilated Cardiomyopathy (DCM)",Flat_addition*HLOOKUP($D19,DCM_Grading_Pattern,EE$17+1,0)*1000,VLOOKUP($A$9,$A$9:$CK$9,MIN(49+EE$17,89),FALSE))),0),0)) -> 0 | EF19: =MIN(1000,IFERROR(IF(RIGHT($B19,6)="Substd",IF(VLOOKUP($A$9,$A$9:$CK$9,MIN(8+EF$17,48),FALSE)>0,VLOOKUP($A$9,$A$9:$CK$9,MIN(8+EF$17,48),FALSE)*IF(LEFT($B19,1)="M",MUlt,FUlt)*VLOOKUP($D19+EF$17-1,IF(LEFT($B19,1)="M",'Base Mortality'!$CY$34:$CZ$154,'Base Mortality'!$A$34:$B$154),2,FALSE), IF( Condition="Dilated Cardiomyopathy (DCM)",Flat_addition*HLOOKUP($D19,DCM_Grading_Pattern,EF$17+1,0)*1000,VLOOKUP($A$9,$A$9:$CK$9,MIN(49+EF$17,89),FALSE))),0),0)) -> 0 | EG19: =MIN(1000,IFERROR(IF(RIGHT($B19,6)="Substd",IF(VLOOKUP($A$9,$A$9:$CK$9,MIN(8+EG$17,48),FALSE)>0,VLOOKUP($A$9,$A$9:$CK$9,MIN(8+EG$17,48),FALSE)*IF(LEFT($B19,1)="M",MUlt,FUlt)*VLOOKUP($D19+EG$17-1,IF(LEFT($B19,1)="M",'Base Mortality'!$CY$34:$CZ$154,'Base Mortality'!$A$34:$B$154),2,FALSE), IF( Condition="Dilated Cardiomyopathy (DCM)",Flat_addition*HLOOKUP($D19,DCM_Grading_Pattern,EG$17+1,0)*1000,VLOOKUP($A$9,$A$9:$CK$9,MIN(49+EG$17,89),FALSE))),0),0)) -> 0 | EH19: =MIN(1000,IFERROR(IF(RIGHT($B19,6)="Substd",IF(VLOOKUP($A$9,$A$9:$CK$9,MIN(8+EH$17,48),FALSE)>0,VLOOKUP($A$9,$A$9:$CK$9,MIN(8+EH$17,48),FALSE)*IF(LEFT($B19,1)="M",MUlt,FUlt)*VLOOKUP($D19+EH$17-1,IF(LEFT($B19,1)="M",'Base Mortality'!$CY$34:$CZ$154,'Base Mortality'!$A$34:$B$154),2,FALSE), IF( Condition="Dilated Cardiomyopathy (DCM)",Flat_addition*HLOOKUP($D19,DCM_Grading_Pattern,EH$17+1,0)*1000,VLOOKUP($A$9,$A$9:$CK$9,MIN(49+EH$17,89),FALSE))),0),0)) -> 0 | EI19: =MIN(1000,IFERROR(IF(RIGHT($B19,6)="Substd",IF(VLOOKUP($A$9,$A$9:$CK$9,MIN(8+EI$17,48),FALSE)>0,VLOOKUP($A$9,$A$9:$CK$9,MIN(8+EI$17,48),FALSE)*IF(LEFT($B19,1)="M",MUlt,FUlt)*VLOOKUP($D19+EI$17-1,IF(LEFT($B19,1)="M",'Base Mortality'!$CY$34:$CZ$154,'Base Mortality'!$A$34:$B$154),2,FALSE), IF( Condition="Dilated Cardiomyopathy (DCM)",Flat_addition*HLOOKUP($D19,DCM_Grading_Pattern,EI$17+1,0)*1000,VLOOKUP($A$9,$A$9:$CK$9,MIN(49+EI$17,89),FALSE))),0),0)) -> 0 | EJ19: =MIN(1000,IFERROR(IF(RIGHT($B19,6)="Substd",IF(VLOOKUP($A$9,$A$9:$CK$9,MIN(8+EJ$17,48),FALSE)>0,VLOOKUP($A$9,$A$9:$CK$9,MIN(8+EJ$17,48),FALSE)*IF(LEFT($B19,1)="M",MUlt,FUlt)*VLOOKUP($D19+EJ$17-1,IF(LEFT($B19,1)="M",'Base Mortality'!$CY$34:$CZ$154,'Base Mortality'!$A$34:$B$154),2,FALSE), IF( Condition="Dilated Cardiomyopathy (DCM)",Flat_addition*HLOOKUP($D19,DCM_Grading_Pattern,EJ$17+1,0)*1000,VLOOKUP($A$9,$A$9:$CK$9,MIN(49+EJ$17,89),FALSE))),0),0)) -> 0 | EK19: =MIN(1000,IFERROR(IF(RIGHT($B19,6)="Substd",IF(VLOOKUP($A$9,$A$9:$CK$9,MIN(8+EK$17,48),FALSE)>0,VLOOKUP($A$9,$A$9:$CK$9,MIN(8+EK$17,48),FALSE)*IF(LEFT($B19,1)="M",MUlt,FUlt)*VLOOKUP($D19+EK$17-1,IF(LEFT($B19,1)="M",'Base Mortality'!$CY$34:$CZ$154,'Base Mortality'!$A$34:$B$154),2,FALSE), IF( Condition="Dilated Cardiomyopathy (DCM)",Flat_addition*HLOOKUP($D19,DCM_Grading_Pattern,EK$17+1,0)*1000,VLOOKUP($A$9,$A$9:$CK$9,MIN(49+EK$17,89),FALSE))),0),0)) -> 0 | EL19: =MIN(1000,IFERROR(IF(RIGHT($B19,6)="Substd",IF(VLOOKUP($A$9,$A$9:$CK$9,MIN(8+EL$17,48),FALSE)>0,VLOOKUP($A$9,$A$9:$CK$9,MIN(8+EL$17,48),FALSE)*IF(LEFT($B19,1)="M",MUlt,FUlt)*VLOOKUP($D19+EL$17-1,IF(LEFT($B19,1)="M",'Base Mortality'!$CY$34:$CZ$154,'Base Mortality'!$A$34:$B$154),2,FALSE), IF( Condition="Dilated Cardiomyopathy (DCM)",Flat_addition*HLOOKUP($D19,DCM_Grading_Pattern,EL$17+1,0)*1000,VLOOKUP($A$9,$A$9:$CK$9,MIN(49+EL$17,89),FALSE))),0),0)) -> 0 | EM19: =MIN(1000,IFERROR(IF(RIGHT($B19,6)="Substd",IF(VLOOKUP($A$9,$A$9:$CK$9,MIN(8+EM$17,48),FALSE)>0,VLOOKUP($A$9,$A$9:$CK$9,MIN(8+EM$17,48),FALSE)*IF(LEFT($B19,1)="M",MUlt,FUlt)*VLOOKUP($D19+EM$17-1,IF(LEFT($B19,1)="M",'Base Mortality'!$CY$34:$CZ$154,'Base Mortality'!$A$34:$B$154),2,FALSE), IF( Condition="Dilated Cardiomyopathy (DCM)",Flat_addition*HLOOKUP($D19,DCM_Grading_Pattern,EM$17+1,0)*1000,VLOOKUP($A$9,$A$9:$CK$9,MIN(49+EM$17,89),FALSE))),0),0)) -> 0 | EN19: =MIN(1000,IFERROR(IF(RIGHT($B19,6)="Substd",IF(VLOOKUP($A$9,$A$9:$CK$9,MIN(8+EN$17,48),FALSE)>0,VLOOKUP($A$9,$A$9:$CK$9,MIN(8+EN$17,48),FALSE)*IF(LEFT($B19,1)="M",MUlt,FUlt)*VLOOKUP($D19+EN$17-1,IF(LEFT($B19,1)="M",'Base Mortality'!$CY$34:$CZ$154,'Base Mortality'!$A$34:$B$154),2,FALSE), IF( Condition="Dilated Cardiomyopathy (DCM)",Flat_addition*HLOOKUP($D19,DCM_Grading_Pattern,EN$17+1,0)*1000,VLOOKUP($A$9,$A$9:$CK$9,MIN(49+EN$17,89),FALSE))),0),0)) -> 0 | EO19: =MIN(1000,IFERROR(IF(RIGHT($B19,6)="Substd",IF(VLOOKUP($A$9,$A$9:$CK$9,MIN(8+EO$17,48),FALSE)>0,VLOOKUP($A$9,$A$9:$CK$9,MIN(8+EO$17,48),FALSE)*IF(LEFT($B19,1)="M",MUlt,FUlt)*VLOOKUP($D19+EO$17-1,IF(LEFT($B19,1)="M",'Base Mortality'!$CY$34:$CZ$154,'Base Mortality'!$A$34:$B$154),2,FALSE), IF( Condition="Dilated Cardiomyopathy (DCM)",Flat_addition*HLOOKUP($D19,DCM_Grading_Pattern,EO$17+1,0)*1000,VLOOKUP($A$9,$A$9:$CK$9,MIN(49+EO$17,89),FALSE))),0),0)) -> 0 | EP19: =MIN(1000,IFERROR(IF(RIGHT($B19,6)="Substd",IF(VLOOKUP($A$9,$A$9:$CK$9,MIN(8+EP$17,48),FALSE)>0,VLOOKUP($A$9,$A$9:$CK$9,MIN(8+EP$17,48),FALSE)*IF(LEFT($B19,1)="M",MUlt,FUlt)*VLOOKUP($D19+EP$17-1,IF(LEFT($B19,1)="M",'Base Mortality'!$CY$34:$CZ$154,'Base Mortality'!$A$34:$B$154),2,FALSE), IF( Condition="Dilated Cardiomyopathy (DCM)",Flat_addition*HLOOKUP($D19,DCM_Grading_Pattern,EP$17+1,0)*1000,VLOOKUP($A$9,$A$9:$CK$9,MIN(49+EP$17,89),FALSE))),0),0)) -> 0 | EQ19: =MIN(1000,IFERROR(IF(RIGHT($B19,6)="Substd",IF(VLOOKUP($A$9,$A$9:$CK$9,MIN(8+EQ$17,48),FALSE)>0,VLOOKUP($A$9,$A$9:$CK$9,MIN(8+EQ$17,48),FALSE)*IF(LEFT($B19,1)="M",MUlt,FUlt)*VLOOKUP($D19+EQ$17-1,IF(LEFT($B19,1)="M",'Base Mortality'!$CY$34:$CZ$154,'Base Mortality'!$A$34:$B$154),2,FALSE), IF( Condition="Dilated Cardiomyopathy (DCM)",Flat_addition*HLOOKUP($D19,DCM_Grading_Pattern,EQ$17+1,0)*1000,VLOOKUP($A$9,$A$9:$CK$9,MIN(49+EQ$17,89),FALSE))),0),0)) -> 0 | ER19: =MIN(1000,IFERROR(IF(RIGHT($B19,6)="Substd",IF(VLOOKUP($A$9,$A$9:$CK$9,MIN(8+ER$17,48),FALSE)>0,VLOOKUP($A$9,$A$9:$CK$9,MIN(8+ER$17,48),FALSE)*IF(LEFT($B19,1)="M",MUlt,FUlt)*VLOOKUP($D19+ER$17-1,IF(LEFT($B19,1)="M",'Base Mortality'!$CY$34:$CZ$154,'Base Mortality'!$A$34:$B$154),2,FALSE), IF( Condition="Dilated Cardiomyopathy (DCM)",Flat_addition*HLOOKUP($D19,DCM_Grading_Pattern,ER$17+1,0)*1000,VLOOKUP($A$9,$A$9:$CK$9,MIN(49+ER$17,89),FALSE))),0),0)) -> 0 | ES19: =MIN(1000,IFERROR(IF(RIGHT($B19,6)="Substd",IF(VLOOKUP($A$9,$A$9:$CK$9,MIN(8+ES$17,48),FALSE)>0,VLOOKUP($A$9,$A$9:$CK$9,MIN(8+ES$17,48),FALSE)*IF(LEFT($B19,1)="M",MUlt,FUlt)*VLOOKUP($D19+ES$17-1,IF(LEFT($B19,1)="M",'Base Mortality'!$CY$34:$CZ$154,'Base Mortality'!$A$34:$B$154),2,FALSE), IF( Condition="Dilated Cardiomyopathy (DCM)",Flat_addition*HLOOKUP($D19,DCM_Grading_Pattern,ES$17+1,0)*1000,VLOOKUP($A$9,$A$9:$CK$9,MIN(49+ES$17,89),FALSE))),0),0)) -> 0 | ET19: =MIN(1000,IFERROR(IF(RIGHT($B19,6)="Substd",IF(VLOOKUP($A$9,$A$9:$CK$9,MIN(8+ET$17,48),FALSE)>0,VLOOKUP($A$9,$A$9:$CK$9,MIN(8+ET$17,48),FALSE)*IF(LEFT($B19,1)="M",MUlt,FUlt)*VLOOKUP($D19+ET$17-1,IF(LEFT($B19,1)="M",'Base Mortality'!$CY$34:$CZ$154,'Base Mortality'!$A$34:$B$154),2,FALSE), IF( Condition="Dilated Cardiomyopathy (DCM)",Flat_addition*HLOOKUP($D19,DCM_Grading_Pattern,ET$17+1,0)*1000,VLOOKUP($A$9,$A$9:$CK$9,MIN(49+ET$17,89),FALSE))),0),0)) -> 0 | EU19: =MIN(1000,IFERROR(IF(RIGHT($B19,6)="Substd",IF(VLOOKUP($A$9,$A$9:$CK$9,MIN(8+EU$17,48),FALSE)>0,VLOOKUP($A$9,$A$9:$CK$9,MIN(8+EU$17,48),FALSE)*IF(LEFT($B19,1)="M",MUlt,FUlt)*VLOOKUP($D19+EU$17-1,IF(LEFT($B19,1)="M",'Base Mortality'!$CY$34:$CZ$154,'Base Mortality'!$A$34:$B$154),2,FALSE), IF( Condition="Dilated Cardiomyopathy (DCM)",Flat_addition*HLOOKUP($D19,DCM_Grading_Pattern,EU$17+1,0)*1000,VLOOKUP($A$9,$A$9:$CK$9,MIN(49+EU$17,89),FALSE))),0),0)) -> 0 | EV19: =MIN(1000,IFERROR(IF(RIGHT($B19,6)="Substd",IF(VLOOKUP($A$9,$A$9:$CK$9,MIN(8+EV$17,48),FALSE)>0,VLOOKUP($A$9,$A$9:$CK$9,MIN(8+EV$17,48),FALSE)*IF(LEFT($B19,1)="M",MUlt,FUlt)*VLOOKUP($D19+EV$17-1,IF(LEFT($B19,1)="M",'Base Mortality'!$CY$34:$CZ$154,'Base Mortality'!$A$34:$B$154),2,FALSE), IF( Condition="Dilated Cardiomyopathy (DCM)",Flat_addition*HLOOKUP($D19,DCM_Grading_Pattern,EV$17+1,0)*1000,VLOOKUP($A$9,$A$9:$CK$9,MIN(49+EV$17,89),FALSE))),0),0)) -> 0 | EW19: =MIN(1000,IFERROR(IF(RIGHT($B19,6)="Substd",IF(VLOOKUP($A$9,$A$9:$CK$9,MIN(8+EW$17,48),FALSE)>0,VLOOKUP($A$9,$A$9:$CK$9,MIN(8+EW$17,48),FALSE)*IF(LEFT($B19,1)="M",MUlt,FUlt)*VLOOKUP($D19+EW$17-1,IF(LEFT($B19,1)="M",'Base Mortality'!$CY$34:$CZ$154,'Base Mortality'!$A$34:$B$154),2,FALSE), IF( Condition="Dilated Cardiomyopathy (DCM)",Flat_addition*HLOOKUP($D19,DCM_Grading_Pattern,EW$17+1,0)*1000,VLOOKUP($A$9,$A$9:$CK$9,MIN(49+EW$17,89),FALSE))),0),0)) -> 0 | EX19: =MIN(1000,IFERROR(IF(RIGHT($B19,6)="Substd",IF(VLOOKUP($A$9,$A$9:$CK$9,MIN(8+EX$17,48),FALSE)>0,VLOOKUP($A$9,$A$9:$CK$9,MIN(8+EX$17,48),FALSE)*IF(LEFT($B19,1)="M",MUlt,FUlt)*VLOOKUP($D19+EX$17-1,IF(LEFT($B19,1)="M",'Base Mortality'!$CY$34:$CZ$154,'Base Mortality'!$A$34:$B$154),2,FALSE), IF( Condition="Dilated Cardiomyopathy (DCM)",Flat_addition*HLOOKUP($D19,DCM_Grading_Pattern,EX$17+1,0)*1000,VLOOKUP($A$9,$A$9:$CK$9,MIN(49+EX$17,89),FALSE))),0),0)) -> 0 | EY19: =MIN(1000,IFERROR(IF(RIGHT($B19,6)="Substd",IF(VLOOKUP($A$9,$A$9:$CK$9,MIN(8+EY$17,48),FALSE)>0,VLOOKUP($A$9,$A$9:$CK$9,MIN(8+EY$17,48),FALSE)*IF(LEFT($B19,1)="M",MUlt,FUlt)*VLOOKUP($D19+EY$17-1,IF(LEFT($B19,1)="M",'Base Mortality'!$CY$34:$CZ$154,'Base Mortality'!$A$34:$B$154),2,FALSE), IF( Condition="Dilated Cardiomyopathy (DCM)",Flat_addition*HLOOKUP($D19,DCM_Grading_Pattern,EY$17+1,0)*1000,VLOOKUP($A$9,$A$9:$CK$9,MIN(49+EY$17,89),FALSE))),0),0)) -> 0 | EZ19: =MIN(1000,IFERROR(IF(RIGHT($B19,6)="Substd",IF(VLOOKUP($A$9,$A$9:$CK$9,MIN(8+EZ$17,48),FALSE)>0,VLOOKUP($A$9,$A$9:$CK$9,MIN(8+EZ$17,48),FALSE)*IF(LEFT($B19,1)="M",MUlt,FUlt)*VLOOKUP($D19+EZ$17-1,IF(LEFT($B19,1)="M",'Base Mortality'!$CY$34:$CZ$154,'Base Mortality'!$A$34:$B$154),2,FALSE), IF( Condition="Dilated Cardiomyopathy (DCM)",Flat_addition*HLOOKUP($D19,DCM_Grading_Pattern,EZ$17+1,0)*1000,VLOOKUP($A$9,$A$9:$CK$9,MIN(49+EZ$17,89),FALSE))),0),0)) -> 0 | FA19: =MIN(1000,IFERROR(IF(RIGHT($B19,6)="Substd",IF(VLOOKUP($A$9,$A$9:$CK$9,MIN(8+FA$17,48),FALSE)>0,VLOOKUP($A$9,$A$9:$CK$9,MIN(8+FA$17,48),FALSE)*IF(LEFT($B19,1)="M",MUlt,FUlt)*VLOOKUP($D19+FA$17-1,IF(LEFT($B19,1)="M",'Base Mortality'!$CY$34:$CZ$154,'Base Mortality'!$A$34:$B$154),2,FALSE), IF( Condition="Dilated Cardiomyopathy (DCM)",Flat_addition*HLOOKUP($D19,DCM_Grading_Pattern,FA$17+1,0)*1000,VLOOKUP($A$9,$A$9:$CK$9,MIN(49+FA$17,89),FALSE))),0),0)) -> 0 | FB19: =MIN(1000,IFERROR(IF(RIGHT($B19,6)="Substd",IF(VLOOKUP($A$9,$A$9:$CK$9,MIN(8+FB$17,48),FALSE)>0,VLOOKUP($A$9,$A$9:$CK$9,MIN(8+FB$17,48),FALSE)*IF(LEFT($B19,1)="M",MUlt,FUlt)*VLOOKUP($D19+FB$17-1,IF(LEFT($B19,1)="M",'Base Mortality'!$CY$34:$CZ$154,'Base Mortality'!$A$34:$B$154),2,FALSE), IF( Condition="Dilated Cardiomyopathy (DCM)",Flat_addition*HLOOKUP($D19,DCM_Grading_Pattern,FB$17+1,0)*1000,VLOOKUP($A$9,$A$9:$CK$9,MIN(49+FB$17,89),FALSE))),0),0)) -> 0 | FC19: =MIN(1000,IFERROR(IF(RIGHT($B19,6)="Substd",IF(VLOOKUP($A$9,$A$9:$CK$9,MIN(8+FC$17,48),FALSE)>0,VLOOKUP($A$9,$A$9:$CK$9,MIN(8+FC$17,48),FALSE)*IF(LEFT($B19,1)="M",MUlt,FUlt)*VLOOKUP($D19+FC$17-1,IF(LEFT($B19,1)="M",'Base Mortality'!$CY$34:$CZ$154,'Base Mortality'!$A$34:$B$154),2,FALSE), IF( Condition="Dilated Cardiomyopathy (DCM)",Flat_addition*HLOOKUP($D19,DCM_Grading_Pattern,FC$17+1,0)*1000,VLOOKUP($A$9,$A$9:$CK$9,MIN(49+FC$17,89),FALSE))),0),0)) -> 0 | FD19: =MIN(1000,IFERROR(IF(RIGHT($B19,6)="Substd",IF(VLOOKUP($A$9,$A$9:$CK$9,MIN(8+FD$17,48),FALSE)>0,VLOOKUP($A$9,$A$9:$CK$9,MIN(8+FD$17,48),FALSE)*IF(LEFT($B19,1)="M",MUlt,FUlt)*VLOOKUP($D19+FD$17-1,IF(LEFT($B19,1)="M",'Base Mortality'!$CY$34:$CZ$154,'Base Mortality'!$A$34:$B$154),2,FALSE), IF( Condition="Dilated Cardiomyopathy (DCM)",Flat_addition*HLOOKUP($D19,DCM_Grading_Pattern,FD$17+1,0)*1000,VLOOKUP($A$9,$A$9:$CK$9,MIN(49+FD$17,89),FALSE))),0),0)) -> 0 | FE19: =MIN(1000,IFERROR(IF(RIGHT($B19,6)="Substd",IF(VLOOKUP($A$9,$A$9:$CK$9,MIN(8+FE$17,48),FALSE)>0,VLOOKUP($A$9,$A$9:$CK$9,MIN(8+FE$17,48),FALSE)*IF(LEFT($B19,1)="M",MUlt,FUlt)*VLOOKUP($D19+FE$17-1,IF(LEFT($B19,1)="M",'Base Mortality'!$CY$34:$CZ$154,'Base Mortality'!$A$34:$B$154),2,FALSE), IF( Condition="Dilated Cardiomyopathy (DCM)",Flat_addition*HLOOKUP($D19,DCM_Grading_Pattern,FE$17+1,0)*1000,VLOOKUP($A$9,$A$9:$CK$9,MIN(49+FE$17,89),FALSE))),0),0)) -> 0 | FF19: =MIN(1000,IFERROR(IF(RIGHT($B19,6)="Substd",IF(VLOOKUP($A$9,$A$9:$CK$9,MIN(8+FF$17,48),FALSE)>0,VLOOKUP($A$9,$A$9:$CK$9,MIN(8+FF$17,48),FALSE)*IF(LEFT($B19,1)="M",MUlt,FUlt)*VLOOKUP($D19+FF$17-1,IF(LEFT($B19,1)="M",'Base Mortality'!$CY$34:$CZ$154,'Base Mortality'!$A$34:$B$154),2,FALSE), IF( Condition="Dilated Cardiomyopathy (DCM)",Flat_addition*HLOOKUP($D19,DCM_Grading_Pattern,FF$17+1,0)*1000,VLOOKUP($A$9,$A$9:$CK$9,MIN(49+FF$17,89),FALSE))),0),0)) -> 0 | FG19: =MIN(1000,IFERROR(IF(RIGHT($B19,6)="Substd",IF(VLOOKUP($A$9,$A$9:$CK$9,MIN(8+FG$17,48),FALSE)>0,VLOOKUP($A$9,$A$9:$CK$9,MIN(8+FG$17,48),FALSE)*IF(LEFT($B19,1)="M",MUlt,FUlt)*VLOOKUP($D19+FG$17-1,IF(LEFT($B19,1)="M",'Base Mortality'!$CY$34:$CZ$154,'Base Mortality'!$A$34:$B$154),2,FALSE), IF( Condition="Dilated Cardiomyopathy (DCM)",Flat_addition*HLOOKUP($D19,DCM_Grading_Pattern,FG$17+1,0)*1000,VLOOKUP($A$9,$A$9:$CK$9,MIN(49+FG$17,89),FALSE))),0),0)) -> 0 | FH19: =MIN(1000,IFERROR(IF(RIGHT($B19,6)="Substd",IF(VLOOKUP($A$9,$A$9:$CK$9,MIN(8+FH$17,48),FALSE)>0,VLOOKUP($A$9,$A$9:$CK$9,MIN(8+FH$17,48),FALSE)*IF(LEFT($B19,1)="M",MUlt,FUlt)*VLOOKUP($D19+FH$17-1,IF(LEFT($B19,1)="M",'Base Mortality'!$CY$34:$CZ$154,'Base Mortality'!$A$34:$B$154),2,FALSE), IF( Condition="Dilated Cardiomyopathy (DCM)",Flat_addition*HLOOKUP($D19,DCM_Grading_Pattern,FH$17+1,0)*1000,VLOOKUP($A$9,$A$9:$CK$9,MIN(49+FH$17,89),FALSE))),0),0)) -> 0 | FI19: =MIN(1000,IFERROR(IF(RIGHT($B19,6)="Substd",IF(VLOOKUP($A$9,$A$9:$CK$9,MIN(8+FI$17,48),FALSE)>0,VLOOKUP($A$9,$A$9:$CK$9,MIN(8+FI$17,48),FALSE)*IF(LEFT($B19,1)="M",MUlt,FUlt)*VLOOKUP($D19+FI$17-1,IF(LEFT($B19,1)="M",'Base Mortality'!$CY$34:$CZ$154,'Base Mortality'!$A$34:$B$154),2,FALSE), IF( Condition="Dilated Cardiomyopathy (DCM)",Flat_addition*HLOOKUP($D19,DCM_Grading_Pattern,FI$17+1,0)*1000,VLOOKUP($A$9,$A$9:$CK$9,MIN(49+FI$17,89),FALSE))),0),0)) -> 0 | FJ19: =MIN(1000,IFERROR(IF(RIGHT($B19,6)="Substd",IF(VLOOKUP($A$9,$A$9:$CK$9,MIN(8+FJ$17,48),FALSE)>0,VLOOKUP($A$9,$A$9:$CK$9,MIN(8+FJ$17,48),FALSE)*IF(LEFT($B19,1)="M",MUlt,FUlt)*VLOOKUP($D19+FJ$17-1,IF(LEFT($B19,1)="M",'Base Mortality'!$CY$34:$CZ$154,'Base Mortality'!$A$34:$B$154),2,FALSE), IF( Condition="Dilated Cardiomyopathy (DCM)",Flat_addition*HLOOKUP($D19,DCM_Grading_Pattern,FJ$17+1,0)*1000,VLOOKUP($A$9,$A$9:$CK$9,MIN(49+FJ$17,89),FALSE))),0),0)) -> 0 | FK19: =MIN(1000,IFERROR(IF(RIGHT($B19,6)="Substd",IF(VLOOKUP($A$9,$A$9:$CK$9,MIN(8+FK$17,48),FALSE)>0,VLOOKUP($A$9,$A$9:$CK$9,MIN(8+FK$17,48),FALSE)*IF(LEFT($B19,1)="M",MUlt,FUlt)*VLOOKUP($D19+FK$17-1,IF(LEFT($B19,1)="M",'Base Mortality'!$CY$34:$CZ$154,'Base Mortality'!$A$34:$B$154),2,FALSE), IF( Condition="Dilated Cardiomyopathy (DCM)",Flat_addition*HLOOKUP($D19,DCM_Grading_Pattern,FK$17+1,0)*1000,VLOOKUP($A$9,$A$9:$CK$9,MIN(49+FK$17,89),FALSE))),0),0)) -> 0 | FL19: =MIN(1000,IFERROR(IF(RIGHT($B19,6)="Substd",IF(VLOOKUP($A$9,$A$9:$CK$9,MIN(8+FL$17,48),FALSE)>0,VLOOKUP($A$9,$A$9:$CK$9,MIN(8+FL$17,48),FALSE)*IF(LEFT($B19,1)="M",MUlt,FUlt)*VLOOKUP($D19+FL$17-1,IF(LEFT($B19,1)="M",'Base Mortality'!$CY$34:$CZ$154,'Base Mortality'!$A$34:$B$154),2,FALSE), IF( Condition="Dilated Cardiomyopathy (DCM)",Flat_addition*HLOOKUP($D19,DCM_Grading_Pattern,FL$17+1,0)*1000,VLOOKUP($A$9,$A$9:$CK$9,MIN(49+FL$17,89),FALSE))),0),0)) -> 0 | FM19: =MIN(1000,IFERROR(IF(RIGHT($B19,6)="Substd",IF(VLOOKUP($A$9,$A$9:$CK$9,MIN(8+FM$17,48),FALSE)>0,VLOOKUP($A$9,$A$9:$CK$9,MIN(8+FM$17,48),FALSE)*IF(LEFT($B19,1)="M",MUlt,FUlt)*VLOOKUP($D19+FM$17-1,IF(LEFT($B19,1)="M",'Base Mortality'!$CY$34:$CZ$154,'Base Mortality'!$A$34:$B$154),2,FALSE), IF( Condition="Dilated Cardiomyopathy (DCM)",Flat_addition*HLOOKUP($D19,DCM_Grading_Pattern,FM$17+1,0)*1000,VLOOKUP($A$9,$A$9:$CK$9,MIN(49+FM$17,89),FALSE))),0),0)) -> 0 | FN19: =MIN(1000,IFERROR(IF(RIGHT($B19,6)="Substd",IF(VLOOKUP($A$9,$A$9:$CK$9,MIN(8+FN$17,48),FALSE)>0,VLOOKUP($A$9,$A$9:$CK$9,MIN(8+FN$17,48),FALSE)*IF(LEFT($B19,1)="M",MUlt,FUlt)*VLOOKUP($D19+FN$17-1,IF(LEFT($B19,1)="M",'Base Mortality'!$CY$34:$CZ$154,'Base Mortality'!$A$34:$B$154),2,FALSE), IF( Condition="Dilated Cardiomyopathy (DCM)",Flat_addition*HLOOKUP($D19,DCM_Grading_Pattern,FN$17+1,0)*1000,VLOOKUP($A$9,$A$9:$CK$9,MIN(49+FN$17,89),FALSE))),0),0)) -> 0 | FO19: =MIN(1000,IFERROR(IF(RIGHT($B19,6)="Substd",IF(VLOOKUP($A$9,$A$9:$CK$9,MIN(8+FO$17,48),FALSE)>0,VLOOKUP($A$9,$A$9:$CK$9,MIN(8+FO$17,48),FALSE)*IF(LEFT($B19,1)="M",MUlt,FUlt)*VLOOKUP($D19+FO$17-1,IF(LEFT($B19,1)="M",'Base Mortality'!$CY$34:$CZ$154,'Base Mortality'!$A$34:$B$154),2,FALSE), IF( Condition="Dilated Cardiomyopathy (DCM)",Flat_addition*HLOOKUP($D19,DCM_Grading_Pattern,FO$17+1,0)*1000,VLOOKUP($A$9,$A$9:$CK$9,MIN(49+FO$17,89),FALSE))),0),0)) -> 0 | FP19: =MIN(1000,IFERROR(IF(RIGHT($B19,6)="Substd",IF(VLOOKUP($A$9,$A$9:$CK$9,MIN(8+FP$17,48),FALSE)>0,VLOOKUP($A$9,$A$9:$CK$9,MIN(8+FP$17,48),FALSE)*IF(LEFT($B19,1)="M",MUlt,FUlt)*VLOOKUP($D19+FP$17-1,IF(LEFT($B19,1)="M",'Base Mortality'!$CY$34:$CZ$154,'Base Mortality'!$A$34:$B$154),2,FALSE), IF( Condition="Dilated Cardiomyopathy (DCM)",Flat_addition*HLOOKUP($D19,DCM_Grading_Pattern,FP$17+1,0)*1000,VLOOKUP($A$9,$A$9:$CK$9,MIN(49+FP$17,89),FALSE))),0),0)) -> 0 | FQ19: =MIN(1000,IFERROR(IF(RIGHT($B19,6)="Substd",IF(VLOOKUP($A$9,$A$9:$CK$9,MIN(8+FQ$17,48),FALSE)>0,VLOOKUP($A$9,$A$9:$CK$9,MIN(8+FQ$17,48),FALSE)*IF(LEFT($B19,1)="M",MUlt,FUlt)*VLOOKUP($D19+FQ$17-1,IF(LEFT($B19,1)="M",'Base Mortality'!$CY$34:$CZ$154,'Base Mortality'!$A$34:$B$154),2,FALSE), IF( Condition="Dilated Cardiomyopathy (DCM)",Flat_addition*HLOOKUP($D19,DCM_Grading_Pattern,FQ$17+1,0)*1000,VLOOKUP($A$9,$A$9:$CK$9,MIN(49+FQ$17,89),FALSE))),0),0)) -> 0 | FR19: =MIN(1000,IFERROR(IF(RIGHT($B19,6)="Substd",IF(VLOOKUP($A$9,$A$9:$CK$9,MIN(8+FR$17,48),FALSE)>0,VLOOKUP($A$9,$A$9:$CK$9,MIN(8+FR$17,48),FALSE)*IF(LEFT($B19,1)="M",MUlt,FUlt)*VLOOKUP($D19+FR$17-1,IF(LEFT($B19,1)="M",'Base Mortality'!$CY$34:$CZ$154,'Base Mortality'!$A$34:$B$154),2,FALSE), IF( Condition="Dilated Cardiomyopathy (DCM)",Flat_addition*HLOOKUP($D19,DCM_Grading_Pattern,FR$17+1,0)*1000,VLOOKUP($A$9,$A$9:$CK$9,MIN(49+FR$17,89),FALSE))),0),0)) -> 0 | FS19: =MIN(1000,IFERROR(IF(RIGHT($B19,6)="Substd",IF(VLOOKUP($A$9,$A$9:$CK$9,MIN(8+FS$17,48),FALSE)>0,VLOOKUP($A$9,$A$9:$CK$9,MIN(8+FS$17,48),FALSE)*IF(LEFT($B19,1)="M",MUlt,FUlt)*VLOOKUP($D19+FS$17-1,IF(LEFT($B19,1)="M",'Base Mortality'!$CY$34:$CZ$154,'Base Mortality'!$A$34:$B$154),2,FALSE), IF( Condition="Dilated Cardiomyopathy (DCM)",Flat_addition*HLOOKUP($D19,DCM_Grading_Pattern,FS$17+1,0)*1000,VLOOKUP($A$9,$A$9:$CK$9,MIN(49+FS$17,89),FALSE))),0),0)) -> 0 | FT19: =MIN(1000,IFERROR(IF(RIGHT($B19,6)="Substd",IF(VLOOKUP($A$9,$A$9:$CK$9,MIN(8+FT$17,48),FALSE)>0,VLOOKUP($A$9,$A$9:$CK$9,MIN(8+FT$17,48),FALSE)*IF(LEFT($B19,1)="M",MUlt,FUlt)*VLOOKUP($D19+FT$17-1,IF(LEFT($B19,1)="M",'Base Mortality'!$CY$34:$CZ$154,'Base Mortality'!$A$34:$B$154),2,FALSE), IF( Condition="Dilated Cardiomyopathy (DCM)",Flat_addition*HLOOKUP($D19,DCM_Grading_Pattern,FT$17+1,0)*1000,VLOOKUP($A$9,$A$9:$CK$9,MIN(49+FT$17,89),FALSE))),0),0)) -> 0 | FU19: =MIN(1000,IFERROR(IF(RIGHT($B19,6)="Substd",IF(VLOOKUP($A$9,$A$9:$CK$9,MIN(8+FU$17,48),FALSE)>0,VLOOKUP($A$9,$A$9:$CK$9,MIN(8+FU$17,48),FALSE)*IF(LEFT($B19,1)="M",MUlt,FUlt)*VLOOKUP($D19+FU$17-1,IF(LEFT($B19,1)="M",'Base Mortality'!$CY$34:$CZ$154,'Base Mortality'!$A$34:$B$154),2,FALSE), IF( Condition="Dilated Cardiomyopathy (DCM)",Flat_addition*HLOOKUP($D19,DCM_Grading_Pattern,FU$17+1,0)*1000,VLOOKUP($A$9,$A$9:$CK$9,MIN(49+FU$17,89),FALSE))),0),0)) -> 0 | FV19: =MIN(1000,IFERROR(IF(RIGHT($B19,6)="Substd",IF(VLOOKUP($A$9,$A$9:$CK$9,MIN(8+FV$17,48),FALSE)>0,VLOOKUP($A$9,$A$9:$CK$9,MIN(8+FV$17,48),FALSE)*IF(LEFT($B19,1)="M",MUlt,FUlt)*VLOOKUP($D19+FV$17-1,IF(LEFT($B19,1)="M",'Base Mortality'!$CY$34:$CZ$154,'Base Mortality'!$A$34:$B$154),2,FALSE), IF( Condition="Dilated Cardiomyopathy (DCM)",Flat_addition*HLOOKUP($D19,DCM_Grading_Pattern,FV$17+1,0)*1000,VLOOKUP($A$9,$A$9:$CK$9,MIN(49+FV$17,89),FALSE))),0),0)) -> 0 | FW19: =MIN(1000,IFERROR(IF(RIGHT($B19,6)="Substd",IF(VLOOKUP($A$9,$A$9:$CK$9,MIN(8+FW$17,48),FALSE)>0,VLOOKUP($A$9,$A$9:$CK$9,MIN(8+FW$17,48),FALSE)*IF(LEFT($B19,1)="M",MUlt,FUlt)*VLOOKUP($D19+FW$17-1,IF(LEFT($B19,1)="M",'Base Mortality'!$CY$34:$CZ$154,'Base Mortality'!$A$34:$B$154),2,FALSE), IF( Condition="Dilated Cardiomyopathy (DCM)",Flat_addition*HLOOKUP($D19,DCM_Grading_Pattern,FW$17+1,0)*1000,VLOOKUP($A$9,$A$9:$CK$9,MIN(49+FW$17,89),FALSE))),0),0)) -> 0 | FX19: =MIN(1000,IFERROR(IF(RIGHT($B19,6)="Substd",IF(VLOOKUP($A$9,$A$9:$CK$9,MIN(8+FX$17,48),FALSE)>0,VLOOKUP($A$9,$A$9:$CK$9,MIN(8+FX$17,48),FALSE)*IF(LEFT($B19,1)="M",MUlt,FUlt)*VLOOKUP($D19+FX$17-1,IF(LEFT($B19,1)="M",'Base Mortality'!$CY$34:$CZ$154,'Base Mortality'!$A$34:$B$154),2,FALSE), IF( Condition="Dilated Cardiomyopathy (DCM)",Flat_addition*HLOOKUP($D19,DCM_Grading_Pattern,FX$17+1,0)*1000,VLOOKUP($A$9,$A$9:$CK$9,MIN(49+FX$17,89),FALSE))),0),0)) -> 0 | FY19: =MIN(1000,IFERROR(IF(RIGHT($B19,6)="Substd",IF(VLOOKUP($A$9,$A$9:$CK$9,MIN(8+FY$17,48),FALSE)>0,VLOOKUP($A$9,$A$9:$CK$9,MIN(8+FY$17,48),FALSE)*IF(LEFT($B19,1)="M",MUlt,FUlt)*VLOOKUP($D19+FY$17-1,IF(LEFT($B19,1)="M",'Base Mortality'!$CY$34:$CZ$154,'Base Mortality'!$A$34:$B$154),2,FALSE), IF( Condition="Dilated Cardiomyopathy (DCM)",Flat_addition*HLOOKUP($D19,DCM_Grading_Pattern,FY$17+1,0)*1000,VLOOKUP($A$9,$A$9:$CK$9,MIN(49+FY$17,89),FALSE))),0),0)) -> 0 | FZ19: =MIN(1000,IFERROR(IF(RIGHT($B19,6)="Substd",IF(VLOOKUP($A$9,$A$9:$CK$9,MIN(8+FZ$17,48),FALSE)>0,VLOOKUP($A$9,$A$9:$CK$9,MIN(8+FZ$17,48),FALSE)*IF(LEFT($B19,1)="M",MUlt,FUlt)*VLOOKUP($D19+FZ$17-1,IF(LEFT($B19,1)="M",'Base Mortality'!$CY$34:$CZ$154,'Base Mortality'!$A$34:$B$154),2,FALSE), IF( Condition="Dilated Cardiomyopathy (DCM)",Flat_addition*HLOOKUP($D19,DCM_Grading_Pattern,FZ$17+1,0)*1000,VLOOKUP($A$9,$A$9:$CK$9,MIN(49+FZ$17,89),FALSE))),0),0)) -> 0 | GA19: =MIN(1000,IFERROR(IF(RIGHT($B19,6)="Substd",IF(VLOOKUP($A$9,$A$9:$CK$9,MIN(8+GA$17,48),FALSE)>0,VLOOKUP($A$9,$A$9:$CK$9,MIN(8+GA$17,48),FALSE)*IF(LEFT($B19,1)="M",MUlt,FUlt)*VLOOKUP($D19+GA$17-1,IF(LEFT($B19,1)="M",'Base Mortality'!$CY$34:$CZ$154,'Base Mortality'!$A$34:$B$154),2,FALSE), IF( Condition="Dilated Cardiomyopathy (DCM)",Flat_addition*HLOOKUP($D19,DCM_Grading_Pattern,GA$17+1,0)*1000,VLOOKUP($A$9,$A$9:$CK$9,MIN(49+GA$17,89),FALSE))),0),0)) -> 0 | GB19: =MIN(1000,IFERROR(IF(RIGHT($B19,6)="Substd",IF(VLOOKUP($A$9,$A$9:$CK$9,MIN(8+GB$17,48),FALSE)>0,VLOOKUP($A$9,$A$9:$CK$9,MIN(8+GB$17,48),FALSE)*IF(LEFT($B19,1)="M",MUlt,FUlt)*VLOOKUP($D19+GB$17-1,IF(LEFT($B19,1)="M",'Base Mortality'!$CY$34:$CZ$154,'Base Mortality'!$A$34:$B$154),2,FALSE), IF( Condition="Dilated Cardiomyopathy (DCM)",Flat_addition*HLOOKUP($D19,DCM_Grading_Pattern,GB$17+1,0)*1000,VLOOKUP($A$9,$A$9:$CK$9,MIN(49+GB$17,89),FALSE))),0),0)) -> 0 | GC19: =MIN(1000,IFERROR(IF(RIGHT($B19,6)="Substd",IF(VLOOKUP($A$9,$A$9:$CK$9,MIN(8+GC$17,48),FALSE)>0,VLOOKUP($A$9,$A$9:$CK$9,MIN(8+GC$17,48),FALSE)*IF(LEFT($B19,1)="M",MUlt,FUlt)*VLOOKUP($D19+GC$17-1,IF(LEFT($B19,1)="M",'Base Mortality'!$CY$34:$CZ$154,'Base Mortality'!$A$34:$B$154),2,FALSE), IF( Condition="Dilated Cardiomyopathy (DCM)",Flat_addition*HLOOKUP($D19,DCM_Grading_Pattern,GC$17+1,0)*1000,VLOOKUP($A$9,$A$9:$CK$9,MIN(49+GC$17,89),FALSE))),0),0)) -> 0 | GD19: =MIN(1000,IFERROR(IF(RIGHT($B19,6)="Substd",IF(VLOOKUP($A$9,$A$9:$CK$9,MIN(8+GD$17,48),FALSE)>0,VLOOKUP($A$9,$A$9:$CK$9,MIN(8+GD$17,48),FALSE)*IF(LEFT($B19,1)="M",MUlt,FUlt)*VLOOKUP($D19+GD$17-1,IF(LEFT($B19,1)="M",'Base Mortality'!$CY$34:$CZ$154,'Base Mortality'!$A$34:$B$154),2,FALSE), IF( Condition="Dilated Cardiomyopathy (DCM)",Flat_addition*HLOOKUP($D19,DCM_Grading_Pattern,GD$17+1,0)*1000,VLOOKUP($A$9,$A$9:$CK$9,MIN(49+GD$17,89),FALSE))),0),0)) -> 0 | GE19: =MIN(1000,IFERROR(IF(RIGHT($B19,6)="Substd",IF(VLOOKUP($A$9,$A$9:$CK$9,MIN(8+GE$17,48),FALSE)>0,VLOOKUP($A$9,$A$9:$CK$9,MIN(8+GE$17,48),FALSE)*IF(LEFT($B19,1)="M",MUlt,FUlt)*VLOOKUP($D19+GE$17-1,IF(LEFT($B19,1)="M",'Base Mortality'!$CY$34:$CZ$154,'Base Mortality'!$A$34:$B$154),2,FALSE), IF( Condition="Dilated Cardiomyopathy (DCM)",Flat_addition*HLOOKUP($D19,DCM_Grading_Pattern,GE$17+1,0)*1000,VLOOKUP($A$9,$A$9:$CK$9,MIN(49+GE$17,89),FALSE))),0),0)) -> 0 | GF19: =MIN(1000,IFERROR(IF(RIGHT($B19,6)="Substd",IF(VLOOKUP($A$9,$A$9:$CK$9,MIN(8+GF$17,48),FALSE)>0,VLOOKUP($A$9,$A$9:$CK$9,MIN(8+GF$17,48),FALSE)*IF(LEFT($B19,1)="M",MUlt,FUlt)*VLOOKUP($D19+GF$17-1,IF(LEFT($B19,1)="M",'Base Mortality'!$CY$34:$CZ$154,'Base Mortality'!$A$34:$B$154),2,FALSE), IF( Condition="Dilated Cardiomyopathy (DCM)",Flat_addition*HLOOKUP($D19,DCM_Grading_Pattern,GF$17+1,0)*1000,VLOOKUP($A$9,$A$9:$CK$9,MIN(49+GF$17,89),FALSE))),0),0)) -> 0 | GG19: =MIN(1000,IFERROR(IF(RIGHT($B19,6)="Substd",IF(VLOOKUP($A$9,$A$9:$CK$9,MIN(8+GG$17,48),FALSE)>0,VLOOKUP($A$9,$A$9:$CK$9,MIN(8+GG$17,48),FALSE)*IF(LEFT($B19,1)="M",MUlt,FUlt)*VLOOKUP($D19+GG$17-1,IF(LEFT($B19,1)="M",'Base Mortality'!$CY$34:$CZ$154,'Base Mortality'!$A$34:$B$154),2,FALSE), IF( Condition="Dilated Cardiomyopathy (DCM)",Flat_addition*HLOOKUP($D19,DCM_Grading_Pattern,GG$17+1,0)*1000,VLOOKUP($A$9,$A$9:$CK$9,MIN(49+GG$17,89),FALSE))),0),0)) -> 0 | GH19: =MIN(1000,IFERROR(IF(RIGHT($B19,6)="Substd",IF(VLOOKUP($A$9,$A$9:$CK$9,MIN(8+GH$17,48),FALSE)>0,VLOOKUP($A$9,$A$9:$CK$9,MIN(8+GH$17,48),FALSE)*IF(LEFT($B19,1)="M",MUlt,FUlt)*VLOOKUP($D19+GH$17-1,IF(LEFT($B19,1)="M",'Base Mortality'!$CY$34:$CZ$154,'Base Mortality'!$A$34:$B$154),2,FALSE), IF( Condition="Dilated Cardiomyopathy (DCM)",Flat_addition*HLOOKUP($D19,DCM_Grading_Pattern,GH$17+1,0)*1000,VLOOKUP($A$9,$A$9:$CK$9,MIN(49+GH$17,89),FALSE))),0),0)) -> 0 | GI19: =MIN(1000,IFERROR(IF(RIGHT($B19,6)="Substd",IF(VLOOKUP($A$9,$A$9:$CK$9,MIN(8+GI$17,48),FALSE)>0,VLOOKUP($A$9,$A$9:$CK$9,MIN(8+GI$17,48),FALSE)*IF(LEFT($B19,1)="M",MUlt,FUlt)*VLOOKUP($D19+GI$17-1,IF(LEFT($B19,1)="M",'Base Mortality'!$CY$34:$CZ$154,'Base Mortality'!$A$34:$B$154),2,FALSE), IF( Condition="Dilated Cardiomyopathy (DCM)",Flat_addition*HLOOKUP($D19,DCM_Grading_Pattern,GI$17+1,0)*1000,VLOOKUP($A$9,$A$9:$CK$9,MIN(49+GI$17,89),FALSE))),0),0)) -> 0 | GJ19: =MIN(1000,IFERROR(IF(RIGHT($B19,6)="Substd",IF(VLOOKUP($A$9,$A$9:$CK$9,MIN(8+GJ$17,48),FALSE)>0,VLOOKUP($A$9,$A$9:$CK$9,MIN(8+GJ$17,48),FALSE)*IF(LEFT($B19,1)="M",MUlt,FUlt)*VLOOKUP($D19+GJ$17-1,IF(LEFT($B19,1)="M",'Base Mortality'!$CY$34:$CZ$154,'Base Mortality'!$A$34:$B$154),2,FALSE), IF( Condition="Dilated Cardiomyopathy (DCM)",Flat_addition*HLOOKUP($D19,DCM_Grading_Pattern,GJ$17+1,0)*1000,VLOOKUP($A$9,$A$9:$CK$9,MIN(49+GJ$17,89),FALSE))),0),0)) -> 0 | GK19: =MIN(1000,IFERROR(IF(RIGHT($B19,6)="Substd",IF(VLOOKUP($A$9,$A$9:$CK$9,MIN(8+GK$17,48),FALSE)>0,VLOOKUP($A$9,$A$9:$CK$9,MIN(8+GK$17,48),FALSE)*IF(LEFT($B19,1)="M",MUlt,FUlt)*VLOOKUP($D19+GK$17-1,IF(LEFT($B19,1)="M",'Base Mortality'!$CY$34:$CZ$154,'Base Mortality'!$A$34:$B$154),2,FALSE), IF( Condition="Dilated Cardiomyopathy (DCM)",Flat_addition*HLOOKUP($D19,DCM_Grading_Pattern,GK$17+1,0)*1000,VLOOKUP($A$9,$A$9:$CK$9,MIN(49+GK$17,89),FALSE))),0),0)) -> 0 | GL19: =MIN(1000,IFERROR(IF(RIGHT($B19,6)="Substd",IF(VLOOKUP($A$9,$A$9:$CK$9,MIN(8+GL$17,48),FALSE)>0,VLOOKUP($A$9,$A$9:$CK$9,MIN(8+GL$17,48),FALSE)*IF(LEFT($B19,1)="M",MUlt,FUlt)*VLOOKUP($D19+GL$17-1,IF(LEFT($B19,1)="M",'Base Mortality'!$CY$34:$CZ$154,'Base Mortality'!$A$34:$B$154),2,FALSE), IF( Condition="Dilated Cardiomyopathy (DCM)",Flat_addition*HLOOKUP($D19,DCM_Grading_Pattern,GL$17+1,0)*1000,VLOOKUP($A$9,$A$9:$CK$9,MIN(49+GL$17,89),FALSE))),0),0)) -> 0 | GM19: =MIN(1000,IFERROR(IF(RIGHT($B19,6)="Substd",IF(VLOOKUP($A$9,$A$9:$CK$9,MIN(8+GM$17,48),FALSE)>0,VLOOKUP($A$9,$A$9:$CK$9,MIN(8+GM$17,48),FALSE)*IF(LEFT($B19,1)="M",MUlt,FUlt)*VLOOKUP($D19+GM$17-1,IF(LEFT($B19,1)="M",'Base Mortality'!$CY$34:$CZ$154,'Base Mortality'!$A$34:$B$154),2,FALSE), IF( Condition="Dilated Cardiomyopathy (DCM)",Flat_addition*HLOOKUP($D19,DCM_Grading_Pattern,GM$17+1,0)*1000,VLOOKUP($A$9,$A$9:$CK$9,MIN(49+GM$17,89),FALSE))),0),0)) -> 0 | GN19: =MIN(1000,IFERROR(IF(RIGHT($B19,6)="Substd",IF(VLOOKUP($A$9,$A$9:$CK$9,MIN(8+GN$17,48),FALSE)>0,VLOOKUP($A$9,$A$9:$CK$9,MIN(8+GN$17,48),FALSE)*IF(LEFT($B19,1)="M",MUlt,FUlt)*VLOOKUP($D19+GN$17-1,IF(LEFT($B19,1)="M",'Base Mortality'!$CY$34:$CZ$154,'Base Mortality'!$A$34:$B$154),2,FALSE), IF( Condition="Dilated Cardiomyopathy (DCM)",Flat_addition*HLOOKUP($D19,DCM_Grading_Pattern,GN$17+1,0)*1000,VLOOKUP($A$9,$A$9:$CK$9,MIN(49+GN$17,89),FALSE))),0),0)) -> 0 | GO19: =MIN(1000,IFERROR(IF(RIGHT($B19,6)="Substd",IF(VLOOKUP($A$9,$A$9:$CK$9,MIN(8+GO$17,48),FALSE)>0,VLOOKUP($A$9,$A$9:$CK$9,MIN(8+GO$17,48),FALSE)*IF(LEFT($B19,1)="M",MUlt,FUlt)*VLOOKUP($D19+GO$17-1,IF(LEFT($B19,1)="M",'Base Mortality'!$CY$34:$CZ$154,'Base Mortality'!$A$34:$B$154),2,FALSE), IF( Condition="Dilated Cardiomyopathy (DCM)",Flat_addition*HLOOKUP($D19,DCM_Grading_Pattern,GO$17+1,0)*1000,VLOOKUP($A$9,$A$9:$CK$9,MIN(49+GO$17,89),FALSE))),0),0)) -> 0 | GP19: =MIN(1000,IFERROR(IF(RIGHT($B19,6)="Substd",IF(VLOOKUP($A$9,$A$9:$CK$9,MIN(8+GP$17,48),FALSE)>0,VLOOKUP($A$9,$A$9:$CK$9,MIN(8+GP$17,48),FALSE)*IF(LEFT($B19,1)="M",MUlt,FUlt)*VLOOKUP($D19+GP$17-1,IF(LEFT($B19,1)="M",'Base Mortality'!$CY$34:$CZ$154,'Base Mortality'!$A$34:$B$154),2,FALSE), IF( Condition="Dilated Cardiomyopathy (DCM)",Flat_addition*HLOOKUP($D19,DCM_Grading_Pattern,GP$17+1,0)*1000,VLOOKUP($A$9,$A$9:$CK$9,MIN(49+GP$17,89),FALSE))),0),0)) -> 0 | GQ19: =MIN(1000,IFERROR(IF(RIGHT($B19,6)="Substd",IF(VLOOKUP($A$9,$A$9:$CK$9,MIN(8+GQ$17,48),FALSE)>0,VLOOKUP($A$9,$A$9:$CK$9,MIN(8+GQ$17,48),FALSE)*IF(LEFT($B19,1)="M",MUlt,FUlt)*VLOOKUP($D19+GQ$17-1,IF(LEFT($B19,1)="M",'Base Mortality'!$CY$34:$CZ$154,'Base Mortality'!$A$34:$B$154),2,FALSE), IF( Condition="Dilated Cardiomyopathy (DCM)",Flat_addition*HLOOKUP($D19,DCM_Grading_Pattern,GQ$17+1,0)*1000,VLOOKUP($A$9,$A$9:$CK$9,MIN(49+GQ$17,89),FALSE))),0),0)) -> 0 | GR19: =MIN(1000,IFERROR(IF(RIGHT($B19,6)="Substd",IF(VLOOKUP($A$9,$A$9:$CK$9,MIN(8+GR$17,48),FALSE)>0,VLOOKUP($A$9,$A$9:$CK$9,MIN(8+GR$17,48),FALSE)*IF(LEFT($B19,1)="M",MUlt,FUlt)*VLOOKUP($D19+GR$17-1,IF(LEFT($B19,1)="M",'Base Mortality'!$CY$34:$CZ$154,'Base Mortality'!$A$34:$B$154),2,FALSE), IF( Condition="Dilated Cardiomyopathy (DCM)",Flat_addition*HLOOKUP($D19,DCM_Grading_Pattern,GR$17+1,0)*1000,VLOOKUP($A$9,$A$9:$CK$9,MIN(49+GR$17,89),FALSE))),0),0)) -> 0 | GS19: =MIN(1000,IFERROR(IF(RIGHT($B19,6)="Substd",IF(VLOOKUP($A$9,$A$9:$CK$9,MIN(8+GS$17,48),FALSE)>0,VLOOKUP($A$9,$A$9:$CK$9,MIN(8+GS$17,48),FALSE)*IF(LEFT($B19,1)="M",MUlt,FUlt)*VLOOKUP($D19+GS$17-1,IF(LEFT($B19,1)="M",'Base Mortality'!$CY$34:$CZ$154,'Base Mortality'!$A$34:$B$154),2,FALSE), IF( Condition="Dilated Cardiomyopathy (DCM)",Flat_addition*HLOOKUP($D19,DCM_Grading_Pattern,GS$17+1,0)*1000,VLOOKUP($A$9,$A$9:$CK$9,MIN(49+GS$17,89),FALSE))),0),0)) -> 0 | GT19: =MIN(1000,IFERROR(IF(RIGHT($B19,6)="Substd",IF(VLOOKUP($A$9,$A$9:$CK$9,MIN(8+GT$17,48),FALSE)>0,VLOOKUP($A$9,$A$9:$CK$9,MIN(8+GT$17,48),FALSE)*IF(LEFT($B19,1)="M",MUlt,FUlt)*VLOOKUP($D19+GT$17-1,IF(LEFT($B19,1)="M",'Base Mortality'!$CY$34:$CZ$154,'Base Mortality'!$A$34:$B$154),2,FALSE), IF( Condition="Dilated Cardiomyopathy (DCM)",Flat_addition*HLOOKUP($D19,DCM_Grading_Pattern,GT$17+1,0)*1000,VLOOKUP($A$9,$A$9:$CK$9,MIN(49+GT$17,89),FALSE))),0),0)) -> 0 | GU19: =MIN(1000,IFERROR(IF(RIGHT($B19,6)="Substd",IF(VLOOKUP($A$9,$A$9:$CK$9,MIN(8+GU$17,48),FALSE)>0,VLOOKUP($A$9,$A$9:$CK$9,MIN(8+GU$17,48),FALSE)*IF(LEFT($B19,1)="M",MUlt,FUlt)*VLOOKUP($D19+GU$17-1,IF(LEFT($B19,1)="M",'Base Mortality'!$CY$34:$CZ$154,'Base Mortality'!$A$34:$B$154),2,FALSE), IF( Condition="Dilated Cardiomyopathy (DCM)",Flat_addition*HLOOKUP($D19,DCM_Grading_Pattern,GU$17+1,0)*1000,VLOOKUP($A$9,$A$9:$CK$9,MIN(49+GU$17,89),FALSE))),0),0)) -> 0 | GV19: =MIN(1000,IFERROR(IF(RIGHT($B19,6)="Substd",IF(VLOOKUP($A$9,$A$9:$CK$9,MIN(8+GV$17,48),FALSE)>0,VLOOKUP($A$9,$A$9:$CK$9,MIN(8+GV$17,48),FALSE)*IF(LEFT($B19,1)="M",MUlt,FUlt)*VLOOKUP($D19+GV$17-1,IF(LEFT($B19,1)="M",'Base Mortality'!$CY$34:$CZ$154,'Base Mortality'!$A$34:$B$154),2,FALSE), IF( Condition="Dilated Cardiomyopathy (DCM)",Flat_addition*HLOOKUP($D19,DCM_Grading_Pattern,GV$17+1,0)*1000,VLOOKUP($A$9,$A$9:$CK$9,MIN(49+GV$17,89),FALSE))),0),0)) -> 0 | GW19: =MIN(1000,IFERROR(IF(RIGHT($B19,6)="Substd",IF(VLOOKUP($A$9,$A$9:$CK$9,MIN(8+GW$17,48),FALSE)>0,VLOOKUP($A$9,$A$9:$CK$9,MIN(8+GW$17,48),FALSE)*IF(LEFT($B19,1)="M",MUlt,FUlt)*VLOOKUP($D19+GW$17-1,IF(LEFT($B19,1)="M",'Base Mortality'!$CY$34:$CZ$154,'Base Mortality'!$A$34:$B$154),2,FALSE), IF( Condition="Dilated Cardiomyopathy (DCM)",Flat_addition*HLOOKUP($D19,DCM_Grading_Pattern,GW$17+1,0)*1000,VLOOKUP($A$9,$A$9:$CK$9,MIN(49+GW$17,89),FALSE))),0),0)) -> 0 | GX19: =MIN(1000,IFERROR(IF(RIGHT($B19,6)="Substd",IF(VLOOKUP($A$9,$A$9:$CK$9,MIN(8+GX$17,48),FALSE)>0,VLOOKUP($A$9,$A$9:$CK$9,MIN(8+GX$17,48),FALSE)*IF(LEFT($B19,1)="M",MUlt,FUlt)*VLOOKUP($D19+GX$17-1,IF(LEFT($B19,1)="M",'Base Mortality'!$CY$34:$CZ$154,'Base Mortality'!$A$34:$B$154),2,FALSE), IF( Condition="Dilated Cardiomyopathy (DCM)",Flat_addition*HLOOKUP($D19,DCM_Grading_Pattern,GX$17+1,0)*1000,VLOOKUP($A$9,$A$9:$CK$9,MIN(49+GX$17,89),FALSE))),0),0)) -> 0 | GY19: =MIN(1000,IFERROR(IF(RIGHT($B19,6)="Substd",IF(VLOOKUP($A$9,$A$9:$CK$9,MIN(8+GY$17,48),FALSE)>0,VLOOKUP($A$9,$A$9:$CK$9,MIN(8+GY$17,48),FALSE)*IF(LEFT($B19,1)="M",MUlt,FUlt)*VLOOKUP($D19+GY$17-1,IF(LEFT($B19,1)="M",'Base Mortality'!$CY$34:$CZ$154,'Base Mortality'!$A$34:$B$154),2,FALSE), IF( Condition="Dilated Cardiomyopathy (DCM)",Flat_addition*HLOOKUP($D19,DCM_Grading_Pattern,GY$17+1,0)*1000,VLOOKUP($A$9,$A$9:$CK$9,MIN(49+GY$17,89),FALSE))),0),0)) -> 0 | HA19: 1 | HB19: =IFERROR(MIN(IF(OR(HA19>=1000,HA19=0,$D19+HB$17-1>120),0,IF(E19="",0,MIN(E19,1000))+IF(DC19="",0,MIN(DC19,1000)))* ( 1- VLOOKUP($D19+HB$17-1,'Mortality Improvement'!$A$3:$C$123,IF(LEFT($B19,1)="F",3,2),0) )^HB$17,1000),0) -> 0.50388 | HC19: =IFERROR(MIN(IF(OR(HB19>=1000,HB19=0,$D19+HC$17-1>120),0,IF(F19="",0,MIN(F19,1000))+IF(DD19="",0,MIN(DD19,1000)))* ( 1- VLOOKUP($D19+HC$17-1,'Mortality Improvement'!$A$3:$C$123,IF(LEFT($B19,1)="F",3,2),0) )^HC$17,1000),0) -> 0.55640208 | HD19: =IFERROR(MIN(IF(OR(HC19>=1000,HC19=0,$D19+HD$17-1>120),0,IF(G19="",0,MIN(G19,1000))+IF(DE19="",0,MIN(DE19,1000)))* ( 1- VLOOKUP($D19+HD$17-1,'Mortality Improvement'!$A$3:$C$123,IF(LEFT($B19,1)="F",3,2),0) )^HD$17,1000),0) -> 0.549725255 | HE19: =IFERROR(MIN(IF(OR(HD19>=1000,HD19=0,$D19+HE$17-1>120),0,IF(H19="",0,MIN(H19,1000))+IF(DF19="",0,MIN(DF19,1000)))* ( 1- VLOOKUP($D19+HE$17-1,'Mortality Improvement'!$A$3:$C$123,IF(LEFT($B19,1)="F",3,2),0) )^HE$17,1000),0) -> 0.5240714098 | HF19: =IFERROR(MIN(IF(OR(HE19>=1000,HE19=0,$D19+HF$17-1>120),0,IF(I19="",0,MIN(I19,1000))+IF(DG19="",0,MIN(DG19,1000)))* ( 1- VLOOKUP($D19+HF$17-1,'Mortality Improvement'!$A$3:$C$123,IF(LEFT($B19,1)="F",3,2),0) )^HF$17,1000),0) -> 0.4989540964 | HG19: =IFERROR(MIN(IF(OR(HF19>=1000,HF19=0,$D19+HG$17-1>120),0,IF(J19="",0,MIN(J19,1000))+IF(DH19="",0,MIN(DH19,1000)))* ( 1- VLOOKUP($D19+HG$17-1,'Mortality Improvement'!$A$3:$C$123,IF(LEFT($B19,1)="F",3,2),0) )^HG$17,1000),0) -> 0.4836653898 | HH19: =IFERROR(MIN(IF(OR(HG19>=1000,HG19=0,$D19+HH$17-1>120),0,IF(K19="",0,MIN(K19,1000))+IF(DI19="",0,MIN(DI19,1000)))* ( 1- VLOOKUP($D19+HH$17-1,'Mortality Improvement'!$A$3:$C$123,IF(LEFT($B19,1)="F",3,2),0) )^HH$17,1000),0) -> 0.4686717627 | HI19: =IFERROR(MIN(IF(OR(HH19>=1000,HH19=0,$D19+HI$17-1>120),0,IF(L19="",0,MIN(L19,1000))+IF(DJ19="",0,MIN(DJ19,1000)))* ( 1- VLOOKUP($D19+HI$17-1,'Mortality Improvement'!$A$3:$C$123,IF(LEFT($B19,1)="F",3,2),0) )^HI$17,1000),0) -> 0.4267302347 | HJ19: =IFERROR(MIN(IF(OR(HI19>=1000,HI19=0,$D19+HJ$17-1>120),0,IF(M19="",0,MIN(M19,1000))+IF(DK19="",0,MIN(DK19,1000)))* ( 1- VLOOKUP($D19+HJ$17-1,'Mortality Improvement'!$A$3:$C$123,IF(LEFT($B19,1)="F",3,2),0) )^HJ$17,1000),0) -> 0.3857278147 | HK19: =IFERROR(MIN(IF(OR(HJ19>=1000,HJ19=0,$D19+HK$17-1>120),0,IF(N19="",0,MIN(N19,1000))+IF(DL19="",0,MIN(DL19,1000)))* ( 1- VLOOKUP($D19+HK$17-1,'Mortality Improvement'!$A$3:$C$123,IF(LEFT($B19,1)="F",3,2),0) )^HK$17,1000),0) -> 0.3899618503 | HL19: =IFERROR(MIN(IF(OR(HK19>=1000,HK19=0,$D19+HL$17-1>120),0,IF(O19="",0,MIN(O19,1000))+IF(DM19="",0,MIN(DM19,1000)))* ( 1- VLOOKUP($D19+HL$17-1,'Mortality Improvement'!$A$3:$C$123,IF(LEFT($B19,1)="F",3,2),0) )^HL$17,1000),0) -> 0.3852823081 | HM19: =IFERROR(MIN(IF(OR(HL19>=1000,HL19=0,$D19+HM$17-1>120),0,IF(P19="",0,MIN(P19,1000))+IF(DN19="",0,MIN(DN19,1000)))* ( 1- VLOOKUP($D19+HM$17-1,'Mortality Improvement'!$A$3:$C$123,IF(LEFT($B19,1)="F",3,2),0) )^HM$17,1000),0) -> 0.3893102595 | HN19: =IFERROR(MIN(IF(OR(HM19>=1000,HM19=0,$D19+HN$17-1>120),0,IF(Q19="",0,MIN(Q19,1000))+IF(DO19="",0,MIN(DO19,1000)))* ( 1- VLOOKUP($D19+HN$17-1,'Mortality Improvement'!$A$3:$C$123,IF(LEFT($B19,1)="F",3,2),0) )^HN$17,1000),0) -> 0.3931860594 | HO19: =IFERROR(MIN(IF(OR(HN19>=1000,HN19=0,$D19+HO$17-1>120),0,IF(R19="",0,MIN(R19,1000))+IF(DP19="",0,MIN(DP19,1000)))* ( 1- VLOOKUP($D19+HO$17-1,'Mortality Improvement'!$A$3:$C$123,IF(LEFT($B19,1)="F",3,2),0) )^HO$17,1000),0) -> 0.4306925905 | HP19: =IFERROR(MIN(IF(OR(HO19>=1000,HO19=0,$D19+HP$17-1>120),0,IF(S19="",0,MIN(S19,1000))+IF(DQ19="",0,MIN(DQ19,1000)))* ( 1- VLOOKUP($D19+HP$17-1,'Mortality Improvement'!$A$3:$C$123,IF(LEFT($B19,1)="F",3,2),0) )^HP$17,1000),0) -> 0.4755859593 | HQ19: =IFERROR(MIN(IF(OR(HP19>=1000,HP19=0,$D19+HQ$17-1>120),0,IF(T19="",0,MIN(T19,1000))+IF(DR19="",0,MIN(DR19,1000)))* ( 1- VLOOKUP($D19+HQ$17-1,'Mortality Improvement'!$A$3:$C$123,IF(LEFT($B19,1)="F",3,2),0) )^HQ$17,1000),0) -> 0.5110963776 | HR19: =IFERROR(MIN(IF(OR(HQ19>=1000,HQ19=0,$D19+HR$17-1>120),0,IF(U19="",0,MIN(U19,1000))+IF(DS19="",0,MIN(DS19,1000)))* ( 1- VLOOKUP($D19+HR$17-1,'Mortality Improvement'!$A$3:$C$123,IF(LEFT($B19,1)="F",3,2),0) )^HR$17,1000),0) -> 0.5782643338 | HS19: =IFERROR(MIN(IF(OR(HR19>=1000,HR19=0,$D19+HS$17-1>120),0,IF(V19="",0,MIN(V19,1000))+IF(DT19="",0,MIN(DT19,1000)))* ( 1- VLOOKUP($D19+HS$17-1,'Mortality Improvement'!$A$3:$C$123,IF(LEFT($B19,1)="F",3,2),0) )^HS$17,1000),0) -> 0.6598403277 | HT19: =IFERROR(MIN(IF(OR(HS19>=1000,HS19=0,$D19+HT$17-1>120),0,IF(W19="",0,MIN(W19,1000))+IF(DU19="",0,MIN(DU19,1000)))* ( 1- VLOOKUP($D19+HT$17-1,'Mortality Improvement'!$A$3:$C$123,IF(LEFT($B19,1)="F",3,2),0) )^HT$17,1000),0) -> 0.747325499 | HU19: =IFERROR(MIN(IF(OR(HT19>=1000,HT19=0,$D19+HU$17-1>120),0,IF(X19="",0,MIN(X19,1000))+IF(DV19="",0,MIN(DV19,1000)))* ( 1- VLOOKUP($D19+HU$17-1,'Mortality Improvement'!$A$3:$C$123,IF(LEFT($B19,1)="F",3,2),0) )^HU$17,1000),0) -> 0.8404708771 | HV19: =IFERROR(MIN(IF(OR(HU19>=1000,HU19=0,$D19+HV$17-1>120),0,IF(Y19="",0,MIN(Y19,1000))+IF(DW19="",0,MIN(DW19,1000)))* ( 1- VLOOKUP($D19+HV$17-1,'Mortality Improvement'!$A$3:$C$123,IF(LEFT($B19,1)="F",3,2),0) )^HV$17,1000),0) -> 0.9002307129 | HW19: =IFERROR(MIN(IF(OR(HV19>=1000,HV19=0,$D19+HW$17-1>120),0,IF(Z19="",0,MIN(Z19,1000))+IF(DX19="",0,MIN(DX19,1000)))* ( 1- VLOOKUP($D19+HW$17-1,'Mortality Improvement'!$A$3:$C$123,IF(LEFT($B19,1)="F",3,2),0) )^HW$17,1000),0) -> 0.9354328381 | HX19: =IFERROR(MIN(IF(OR(HW19>=1000,HW19=0,$D19+HX$17-1>120),0,IF(AA19="",0,MIN(AA19,1000))+IF(DY19="",0,MIN(DY19,1000)))* ( 1- VLOOKUP($D19+HX$17-1,'Mortality Improvement'!$A$3:$C$123,IF(LEFT($B19,1)="F",3,2),0) )^HX$17,1000),0) -> 0.9772359514 | HY19: =IFERROR(MIN(IF(OR(HX19>=1000,HX19=0,$D19+HY$17-1>120),0,IF(AB19="",0,MIN(AB19,1000))+IF(DZ19="",0,MIN(DZ19,1000)))* ( 1- VLOOKUP($D19+HY$17-1,'Mortality Improvement'!$A$3:$C$123,IF(LEFT($B19,1)="F",3,2),0) )^HY$17,1000),0) -> 1.032870221 | HZ19: =IFERROR(MIN(IF(OR(HY19>=1000,HY19=0,$D19+HZ$17-1>120),0,IF(AC19="",0,MIN(AC19,1000))+IF(EA19="",0,MIN(EA19,1000)))* ( 1- VLOOKUP($D19+HZ$17-1,'Mortality Improvement'!$A$3:$C$123,IF(LEFT($B19,1)="F",3,2),0) )^HZ$17,1000),0) -> 1.101818051 | IA19: =IFERROR(MIN(IF(OR(HZ19>=1000,HZ19=0,$D19+IA$17-1>120),0,IF(AD19="",0,MIN(AD19,1000))+IF(EB19="",0,MIN(EB19,1000)))* ( 1- VLOOKUP($D19+IA$17-1,'Mortality Improvement'!$A$3:$C$123,IF(LEFT($B19,1)="F",3,2),0) )^IA$17,1000),0) -> 0.6575413496 | IB19: =IFERROR(MIN(IF(OR(IA19>=1000,IA19=0,$D19+IB$17-1>120),0,IF(AE19="",0,MIN(AE19,1000))+IF(EC19="",0,MIN(EC19,1000)))* ( 1- VLOOKUP($D19+IB$17-1,'Mortality Improvement'!$A$3:$C$123,IF(LEFT($B19,1)="F",3,2),0) )^IB$17,1000),0) -> 0.6785242247 | IC19: =IFERROR(MIN(IF(OR(IB19>=1000,IB19=0,$D19+IC$17-1>120),0,IF(AF19="",0,MIN(AF19,1000))+IF(ED19="",0,MIN(ED19,1000)))* ( 1- VLOOKUP($D19+IC$17-1,'Mortality Improvement'!$A$3:$C$123,IF(LEFT($B19,1)="F",3,2),0) )^IC$17,1000),0) -> 0.7060405475 | ID19: =IFERROR(MIN(IF(OR(IC19>=1000,IC19=0,$D19+ID$17-1>120),0,IF(AG19="",0,MIN(AG19,1000))+IF(EE19="",0,MIN(EE19,1000)))* ( 1- VLOOKUP($D19+ID$17-1,'Mortality Improvement'!$A$3:$C$123,IF(LEFT($B19,1)="F",3,2),0) )^ID$17,1000),0) -> 0.7398449131 | IE19: =IFERROR(MIN(IF(OR(ID19>=1000,ID19=0,$D19+IE$17-1>120),0,IF(AH19="",0,MIN(AH19,1000))+IF(EF19="",0,MIN(EF19,1000)))* ( 1- VLOOKUP($D19+IE$17-1,'Mortality Improvement'!$A$3:$C$123,IF(LEFT($B19,1)="F",3,2),0) )^IE$17,1000),0) -> 0.7866594808 | IF19: =IFERROR(MIN(IF(OR(IE19>=1000,IE19=0,$D19+IF$17-1>120),0,IF(AI19="",0,MIN(AI19,1000))+IF(EG19="",0,MIN(EG19,1000)))* ( 1- VLOOKUP($D19+IF$17-1,'Mortality Improvement'!$A$3:$C$123,IF(LEFT($B19,1)="F",3,2),0) )^IF$17,1000),0) -> 0.8460000596 | IG19: =IFERROR(MIN(IF(OR(IF19>=1000,IF19=0,$D19+IG$17-1>120),0,IF(AJ19="",0,MIN(AJ19,1000))+IF(EH19="",0,MIN(EH19,1000)))* ( 1- VLOOKUP($D19+IG$17-1,'Mortality Improvement'!$A$3:$C$123,IF(LEFT($B19,1)="F",3,2),0) )^IG$17,1000),0) -> 0.917394211 | IH19: =IFERROR(MIN(IF(OR(IG19>=1000,IG19=0,$D19+IH$17-1>120),0,IF(AK19="",0,MIN(AK19,1000))+IF(EI19="",0,MIN(EI19,1000)))* ( 1- VLOOKUP($D19+IH$17-1,'Mortality Improvement'!$A$3:$C$123,IF(LEFT($B19,1)="F",3,2),0) )^IH$17,1000),0) -> 1.013808945 | II19: =IFERROR(MIN(IF(OR(IH19>=1000,IH19=0,$D19+II$17-1>120),0,IF(AL19="",0,MIN(AL19,1000))+IF(EJ19="",0,MIN(EJ19,1000)))* ( 1- VLOOKUP($D19+II$17-1,'Mortality Improvement'!$A$3:$C$123,IF(LEFT($B19,1)="F",3,2),0) )^II$17,1000),0) -> 1.127677817 | IJ19: =IFERROR(MIN(IF(OR(II19>=1000,II19=0,$D19+IJ$17-1>120),0,IF(AM19="",0,MIN(AM19,1000))+IF(EK19="",0,MIN(EK19,1000)))* ( 1- VLOOKUP($D19+IJ$17-1,'Mortality Improvement'!$A$3:$C$123,IF(LEFT($B19,1)="F",3,2),0) )^IJ$17,1000),0) -> 1.245221646 | IK19: =IFERROR(MIN(IF(OR(IJ19>=1000,IJ19=0,$D19+IK$17-1>120),0,IF(AN19="",0,MIN(AN19,1000))+IF(EL19="",0,MIN(EL19,1000)))* ( 1- VLOOKUP($D19+IK$17-1,'Mortality Improvement'!$A$3:$C$123,IF(LEFT($B19,1)="F",3,2),0) )^IK$17,1000),0) -> 1.359782037 | IL19: =IFERROR(MIN(IF(OR(IK19>=1000,IK19=0,$D19+IL$17-1>120),0,IF(AO19="",0,MIN(AO19,1000))+IF(EM19="",0,MIN(EM19,1000)))* ( 1- VLOOKUP($D19+IL$17-1,'Mortality Improvement'!$A$3:$C$123,IF(LEFT($B19,1)="F",3,2),0) )^IL$17,1000),0) -> 1.471413668 | IM19: =IFERROR(MIN(IF(OR(IL19>=1000,IL19=0,$D19+IM$17-1>120),0,IF(AP19="",0,MIN(AP19,1000))+IF(EN19="",0,MIN(EN19,1000)))* ( 1- VLOOKUP($D19+IM$17-1,'Mortality Improvement'!$A$3:$C$123,IF(LEFT($B19,1)="F",3,2),0) )^IM$17,1000),0) -> 1.573849649 | IN19: =IFERROR(MIN(IF(OR(IM19>=1000,IM19=0,$D19+IN$17-1>120),0,IF(AQ19="",0,MIN(AQ19,1000))+IF(EO19="",0,MIN(EO19,1000)))* ( 1- VLOOKUP($D19+IN$17-1,'Mortality Improvement'!$A$3:$C$123,IF(LEFT($B19,1)="F",3,2),0) )^IN$17,1000),0) -> 1.679860116 | IO19: =IFERROR(MIN(IF(OR(IN19>=1000,IN19=0,$D19+IO$17-1>120),0,IF(AR19="",0,MIN(AR19,1000))+IF(EP19="",0,MIN(EP19,1000)))* ( 1- VLOOKUP($D19+IO$17-1,'Mortality Improvement'!$A$3:$C$123,IF(LEFT($B19,1)="F",3,2),0) )^IO$17,1000),0) -> 1.795439488 | IP19: =IFERROR(MIN(IF(OR(IO19>=1000,IO19=0,$D19+IP$17-1>120),0,IF(AS19="",0,MIN(AS19,1000))+IF(EQ19="",0,MIN(EQ19,1000)))* ( 1- VLOOKUP($D19+IP$17-1,'Mortality Improvement'!$A$3:$C$123,IF(LEFT($B19,1)="F",3,2),0) )^IP$17,1000),0) -> 1.926290624 | IQ19: =IFERROR(MIN(IF(OR(IP19>=1000,IP19=0,$D19+IQ$17-1>120),0,IF(AT19="",0,MIN(AT19,1000))+IF(ER19="",0,MIN(ER19,1000)))* ( 1- VLOOKUP($D19+IQ$17-1,'Mortality Improvement'!$A$3:$C$123,IF(LEFT($B19,1)="F",3,2),0) )^IQ$17,1000),0) -> 2.08385632 | IR19: =IFERROR(MIN(IF(OR(IQ19>=1000,IQ19=0,$D19+IR$17-1>120),0,IF(AU19="",0,MIN(AU19,1000))+IF(ES19="",0,MIN(ES19,1000)))* ( 1- VLOOKUP($D19+IR$17-1,'Mortality Improvement'!$A$3:$C$123,IF(LEFT($B19,1)="F",3,2),0) )^IR$17,1000),0) -> 2.261164789 | IS19: =IFERROR(MIN(IF(OR(IR19>=1000,IR19=0,$D19+IS$17-1>120),0,IF(AV19="",0,MIN(AV19,1000))+IF(ET19="",0,MIN(ET19,1000)))* ( 1- VLOOKUP($D19+IS$17-1,'Mortality Improvement'!$A$3:$C$123,IF(LEFT($B19,1)="F",3,2),0) )^IS$17,1000),0) -> 2.463312921 | IT19: =IFERROR(MIN(IF(OR(IS19>=1000,IS19=0,$D19+IT$17-1>120),0,IF(AW19="",0,MIN(AW19,1000))+IF(EU19="",0,MIN(EU19,1000)))* ( 1- VLOOKUP($D19+IT$17-1,'Mortality Improvement'!$A$3:$C$123,IF(LEFT($B19,1)="F",3,2),0) )^IT$17,1000),0) -> 2.67770933 | IU19: =IFERROR(MIN(IF(OR(IT19>=1000,IT19=0,$D19+IU$17-1>120),0,IF(AX19="",0,MIN(AX19,1000))+IF(EV19="",0,MIN(EV19,1000)))* ( 1- VLOOKUP($D19+IU$17-1,'Mortality Improvement'!$A$3:$C$123,IF(LEFT($B19,1)="F",3,2),0) )^IU$17,1000),0) -> 2.903821844 | IV19: =IFERROR(MIN(IF(OR(IU19>=1000,IU19=0,$D19+IV$17-1>120),0,IF(AY19="",0,MIN(AY19,1000))+IF(EW19="",0,MIN(EW19,1000)))* ( 1- VLOOKUP($D19+IV$17-1,'Mortality Improvement'!$A$3:$C$123,IF(LEFT($B19,1)="F",3,2),0) )^IV$17,1000),0) -> 3.146801719 | IW19: =IFERROR(MIN(IF(OR(IV19>=1000,IV19=0,$D19+IW$17-1>120),0,IF(AZ19="",0,MIN(AZ19,1000))+IF(EX19="",0,MIN(EX19,1000)))* ( 1- VLOOKUP($D19+IW$17-1,'Mortality Improvement'!$A$3:$C$123,IF(LEFT($B19,1)="F",3,2),0) )^IW$17,1000),0) -> 3.411541297 | IX19: =IFERROR(MIN(IF(OR(IW19>=1000,IW19=0,$D19+IX$17-1>120),0,IF(BA19="",0,MIN(BA19,1000))+IF(EY19="",0,MIN(EY19,1000)))* ( 1- VLOOKUP($D19+IX$17-1,'Mortality Improvement'!$A$3:$C$123,IF(LEFT($B19,1)="F",3,2),0) )^IX$17,1000),0) -> 3.697147244 | IY19: =IFERROR(MIN(IF(OR(IX19>=1000,IX19=0,$D19+IY$17-1>120),0,IF(BB19="",0,MIN(BB19,1000))+IF(EZ19="",0,MIN(EZ19,1000)))* ( 1- VLOOKUP($D19+IY$17-1,'Mortality Improvement'!$A$3:$C$123,IF(LEFT($B19,1)="F",3,2),0) )^IY$17,1000),0) -> 4.024621507 | IZ19: =IFERROR(MIN(IF(OR(IY19>=1000,IY19=0,$D19+IZ$17-1>120),0,IF(BC19="",0,MIN(BC19,1000))+IF(FA19="",0,MIN(FA19,1000)))* ( 1- VLOOKUP($D19+IZ$17-1,'Mortality Improvement'!$A$3:$C$123,IF(LEFT($B19,1)="F",3,2),0) )^IZ$17,1000),0) -> 4.408535403 | JA19: =IFERROR(MIN(IF(OR(IZ19>=1000,IZ19=0,$D19+JA$17-1>120),0,IF(BD19="",0,MIN(BD19,1000))+IF(FB19="",0,MIN(FB19,1000)))* ( 1- VLOOKUP($D19+JA$17-1,'Mortality Improvement'!$A$3:$C$123,IF(LEFT($B19,1)="F",3,2),0) )^JA$17,1000),0) -> 4.862722601 | JB19: =IFERROR(MIN(IF(OR(JA19>=1000,JA19=0,$D19+JB$17-1>120),0,IF(BE19="",0,MIN(BE19,1000))+IF(FC19="",0,MIN(FC19,1000)))* ( 1- VLOOKUP($D19+JB$17-1,'Mortality Improvement'!$A$3:$C$123,IF(LEFT($B19,1)="F",3,2),0) )^JB$17,1000),0) -> 5.389754192 | JC19: =IFERROR(MIN(IF(OR(JB19>=1000,JB19=0,$D19+JC$17-1>120),0,IF(BF19="",0,MIN(BF19,1000))+IF(FD19="",0,MIN(FD19,1000)))* ( 1- VLOOKUP($D19+JC$17-1,'Mortality Improvement'!$A$3:$C$123,IF(LEFT($B19,1)="F",3,2),0) )^JC$17,1000),0) -> 6.00243529 | JD19: =IFERROR(MIN(IF(OR(JC19>=1000,JC19=0,$D19+JD$17-1>120),0,IF(BG19="",0,MIN(BG19,1000))+IF(FE19="",0,MIN(FE19,1000)))* ( 1- VLOOKUP($D19+JD$17-1,'Mortality Improvement'!$A$3:$C$123,IF(LEFT($B19,1)="F",3,2),0) )^JD$17,1000),0) -> 6.707742279 | JE19: =IFERROR(MIN(IF(OR(JD19>=1000,JD19=0,$D19+JE$17-1>120),0,IF(BH19="",0,MIN(BH19,1000))+IF(FF19="",0,MIN(FF19,1000)))* ( 1- VLOOKUP($D19+JE$17-1,'Mortality Improvement'!$A$3:$C$123,IF(LEFT($B19,1)="F",3,2),0) )^JE$17,1000),0) -> 7.502066633 | JF19: =IFERROR(MIN(IF(OR(JE19>=1000,JE19=0,$D19+JF$17-1>120),0,IF(BI19="",0,MIN(BI19,1000))+IF(FG19="",0,MIN(FG19,1000)))* ( 1- VLOOKUP($D19+JF$17-1,'Mortality Improvement'!$A$3:$C$123,IF(LEFT($B19,1)="F",3,2),0) )^JF$17,1000),0) -> 8.412039342 | JG19: =IFERROR(MIN(IF(OR(JF19>=1000,JF19=0,$D19+JG$17-1>120),0,IF(BJ19="",0,MIN(BJ19,1000))+IF(FH19="",0,MIN(FH19,1000)))* ( 1- VLOOKUP($D19+JG$17-1,'Mortality Improvement'!$A$3:$C$123,IF(LEFT($B19,1)="F",3,2),0) )^JG$17,1000),0) -> 9.462931196 | JH19: =IFERROR(MIN(IF(OR(JG19>=1000,JG19=0,$D19+JH$17-1>120),0,IF(BK19="",0,MIN(BK19,1000))+IF(FI19="",0,MIN(FI19,1000)))* ( 1- VLOOKUP($D19+JH$17-1,'Mortality Improvement'!$A$3:$C$123,IF(LEFT($B19,1)="F",3,2),0) )^JH$17,1000),0) -> 10.68850491 | JI19: =IFERROR(MIN(IF(OR(JH19>=1000,JH19=0,$D19+JI$17-1>120),0,IF(BL19="",0,MIN(BL19,1000))+IF(FJ19="",0,MIN(FJ19,1000)))* ( 1- VLOOKUP($D19+JI$17-1,'Mortality Improvement'!$A$3:$C$123,IF(LEFT($B19,1)="F",3,2),0) )^JI$17,1000),0) -> 12.15469897 | JJ19: =IFERROR(MIN(IF(OR(JI19>=1000,JI19=0,$D19+JJ$17-1>120),0,IF(BM19="",0,MIN(BM19,1000))+IF(FK19="",0,MIN(FK19,1000)))* ( 1- VLOOKUP($D19+JJ$17-1,'Mortality Improvement'!$A$3:$C$123,IF(LEFT($B19,1)="F",3,2),0) )^JJ$17,1000),0) -> 13.86666991 | JK19: =IFERROR(MIN(IF(OR(JJ19>=1000,JJ19=0,$D19+JK$17-1>120),0,IF(BN19="",0,MIN(BN19,1000))+IF(FL19="",0,MIN(FL19,1000)))* ( 1- VLOOKUP($D19+JK$17-1,'Mortality Improvement'!$A$3:$C$123,IF(LEFT($B19,1)="F",3,2),0) )^JK$17,1000),0) -> 16.27869744 | JL19: =IFERROR(MIN(IF(OR(JK19>=1000,JK19=0,$D19+JL$17-1>120),0,IF(BO19="",0,MIN(BO19,1000))+IF(FM19="",0,MIN(FM19,1000)))* ( 1- VLOOKUP($D19+JL$17-1,'Mortality Improvement'!$A$3:$C$123,IF(LEFT($B19,1)="F",3,2),0) )^JL$17,1000),0) -> 18.91981944 | JM19: =IFERROR(MIN(IF(OR(JL19>=1000,JL19=0,$D19+JM$17-1>120),0,IF(BP19="",0,MIN(BP19,1000))+IF(FN19="",0,MIN(FN19,1000)))* ( 1- VLOOKUP($D19+JM$17-1,'Mortality Improvement'!$A$3:$C$123,IF(LEFT($B19,1)="F",3,2),0) )^JM$17,1000),0) -> 22.05290637 | JN19: =IFERROR(MIN(IF(OR(JM19>=1000,JM19=0,$D19+JN$17-1>120),0,IF(BQ19="",0,MIN(BQ19,1000))+IF(FO19="",0,MIN(FO19,1000)))* ( 1- VLOOKUP($D19+JN$17-1,'Mortality Improvement'!$A$3:$C$123,IF(LEFT($B19,1)="F",3,2),0) )^JN$17,1000),0) -> 26.39428811 | JO19: =IFERROR(MIN(IF(OR(JN19>=1000,JN19=0,$D19+JO$17-1>120),0,IF(BR19="",0,MIN(BR19,1000))+IF(FP19="",0,MIN(FP19,1000)))* ( 1- VLOOKUP($D19+JO$17-1,'Mortality Improvement'!$A$3:$C$123,IF(LEFT($B19,1)="F",3,2),0) )^JO$17,1000),0) -> 31.58596859 | JP19: =IFERROR(MIN(IF(OR(JO19>=1000,JO19=0,$D19+JP$17-1>120),0,IF(BS19="",0,MIN(BS19,1000))+IF(FQ19="",0,MIN(FQ19,1000)))* ( 1- VLOOKUP($D19+JP$17-1,'Mortality Improvement'!$A$3:$C$123,IF(LEFT($B19,1)="F",3,2),0) )^JP$17,1000),0) -> 37.11103753 | JQ19: =IFERROR(MIN(IF(OR(JP19>=1000,JP19=0,$D19+JQ$17-1>120),0,IF(BT19="",0,MIN(BT19,1000))+IF(FR19="",0,MIN(FR19,1000)))* ( 1- VLOOKUP($D19+JQ$17-1,'Mortality Improvement'!$A$3:$C$123,IF(LEFT($B19,1)="F",3,2),0) )^JQ$17,1000),0) -> 43.70176051 | JR19: =IFERROR(MIN(IF(OR(JQ19>=1000,JQ19=0,$D19+JR$17-1>120),0,IF(BU19="",0,MIN(BU19,1000))+IF(FS19="",0,MIN(FS19,1000)))* ( 1- VLOOKUP($D19+JR$17-1,'Mortality Improvement'!$A$3:$C$123,IF(LEFT($B19,1)="F",3,2),0) )^JR$17,1000),0) -> 51.54743392 | JS19: =IFERROR(MIN(IF(OR(JR19>=1000,JR19=0,$D19+JS$17-1>120),0,IF(BV19="",0,MIN(BV19,1000))+IF(FT19="",0,MIN(FT19,1000)))* ( 1- VLOOKUP($D19+JS$17-1,'Mortality Improvement'!$A$3:$C$123,IF(LEFT($B19,1)="F",3,2),0) )^JS$17,1000),0) -> 60.64517778 | JT19: =IFERROR(MIN(IF(OR(JS19>=1000,JS19=0,$D19+JT$17-1>120),0,IF(BW19="",0,MIN(BW19,1000))+IF(FU19="",0,MIN(FU19,1000)))* ( 1- VLOOKUP($D19+JT$17-1,'Mortality Improvement'!$A$3:$C$123,IF(LEFT($B19,1)="F",3,2),0) )^JT$17,1000),0) -> 71.06109406 | JU19: =IFERROR(MIN(IF(OR(JT19>=1000,JT19=0,$D19+JU$17-1>120),0,IF(BX19="",0,MIN(BX19,1000))+IF(FV19="",0,MIN(FV19,1000)))* ( 1- VLOOKUP($D19+JU$17-1,'Mortality Improvement'!$A$3:$C$123,IF(LEFT($B19,1)="F",3,2),0) )^JU$17,1000),0) -> 82.93645553 | JV19: =IFERROR(MIN(IF(OR(JU19>=1000,JU19=0,$D19+JV$17-1>120),0,IF(BY19="",0,MIN(BY19,1000))+IF(FW19="",0,MIN(FW19,1000)))* ( 1- VLOOKUP($D19+JV$17-1,'Mortality Improvement'!$A$3:$C$123,IF(LEFT($B19,1)="F",3,2),0) )^JV$17,1000),0) -> 96.53136298 | JW19: =IFERROR(MIN(IF(OR(JV19>=1000,JV19=0,$D19+JW$17-1>120),0,IF(BZ19="",0,MIN(BZ19,1000))+IF(FX19="",0,MIN(FX19,1000)))* ( 1- VLOOKUP($D19+JW$17-1,'Mortality Improvement'!$A$3:$C$123,IF(LEFT($B19,1)="F",3,2),0) )^JW$17,1000),0) -> 111.795137 | JX19: =IFERROR(MIN(IF(OR(JW19>=1000,JW19=0,$D19+JX$17-1>120),0,IF(CA19="",0,MIN(CA19,1000))+IF(FY19="",0,MIN(FY19,1000)))* ( 1- VLOOKUP($D19+JX$17-1,'Mortality Improvement'!$A$3:$C$123,IF(LEFT($B19,1)="F",3,2),0) )^JX$17,1000),0) -> 128.9103484 | JY19: =IFERROR(MIN(IF(OR(JX19>=1000,JX19=0,$D19+JY$17-1>120),0,IF(CB19="",0,MIN(CB19,1000))+IF(FZ19="",0,MIN(FZ19,1000)))* ( 1- VLOOKUP($D19+JY$17-1,'Mortality Improvement'!$A$3:$C$123,IF(LEFT($B19,1)="F",3,2),0) )^JY$17,1000),0) -> 149.429041 | JZ19: =IFERROR(MIN(IF(OR(JY19>=1000,JY19=0,$D19+JZ$17-1>120),0,IF(CC19="",0,MIN(CC19,1000))+IF(GA19="",0,MIN(GA19,1000)))* ( 1- VLOOKUP($D19+JZ$17-1,'Mortality Improvement'!$A$3:$C$123,IF(LEFT($B19,1)="F",3,2),0) )^JZ$17,1000),0) -> 165.9864674 | KA19: =IFERROR(MIN(IF(OR(JZ19>=1000,JZ19=0,$D19+KA$17-1>120),0,IF(CD19="",0,MIN(CD19,1000))+IF(GB19="",0,MIN(GB19,1000)))* ( 1- VLOOKUP($D19+KA$17-1,'Mortality Improvement'!$A$3:$C$123,IF(LEFT($B19,1)="F",3,2),0) )^KA$17,1000),0) -> 184.0560823 | KB19: =IFERROR(MIN(IF(OR(KA19>=1000,KA19=0,$D19+KB$17-1>120),0,IF(CE19="",0,MIN(CE19,1000))+IF(GC19="",0,MIN(GC19,1000)))* ( 1- VLOOKUP($D19+KB$17-1,'Mortality Improvement'!$A$3:$C$123,IF(LEFT($B19,1)="F",3,2),0) )^KB$17,1000),0) -> 203.5195565 | KC19: =IFERROR(MIN(IF(OR(KB19>=1000,KB19=0,$D19+KC$17-1>120),0,IF(CF19="",0,MIN(CF19,1000))+IF(GD19="",0,MIN(GD19,1000)))* ( 1- VLOOKUP($D19+KC$17-1,'Mortality Improvement'!$A$3:$C$123,IF(LEFT($B19,1)="F",3,2),0) )^KC$17,1000),0) -> 224.1041663 | KD19: =IFERROR(MIN(IF(OR(KC19>=1000,KC19=0,$D19+KD$17-1>120),0,IF(CG19="",0,MIN(CG19,1000))+IF(GE19="",0,MIN(GE19,1000)))* ( 1- VLOOKUP($D19+KD$17-1,'Mortality Improvement'!$A$3:$C$123,IF(LEFT($B19,1)="F",3,2),0) )^KD$17,1000),0) -> 244.2988132 | KE19: =IFERROR(MIN(IF(OR(KD19>=1000,KD19=0,$D19+KE$17-1>120),0,IF(CH19="",0,MIN(CH19,1000))+IF(GF19="",0,MIN(GF19,1000)))* ( 1- VLOOKUP($D19+KE$17-1,'Mortality Improvement'!$A$3:$C$123,IF(LEFT($B19,1)="F",3,2),0) )^KE$17,1000),0) -> 263.1775733 | KF19: =IFERROR(MIN(IF(OR(KE19>=1000,KE19=0,$D19+KF$17-1>120),0,IF(CI19="",0,MIN(CI19,1000))+IF(GG19="",0,MIN(GG19,1000)))* ( 1- VLOOKUP($D19+KF$17-1,'Mortality Improvement'!$A$3:$C$123,IF(LEFT($B19,1)="F",3,2),0) )^KF$17,1000),0) -> 281.8872965 | KG19: =IFERROR(MIN(IF(OR(KF19>=1000,KF19=0,$D19+KG$17-1>120),0,IF(CJ19="",0,MIN(CJ19,1000))+IF(GH19="",0,MIN(GH19,1000)))* ( 1- VLOOKUP($D19+KG$17-1,'Mortality Improvement'!$A$3:$C$123,IF(LEFT($B19,1)="F",3,2),0) )^KG$17,1000),0) -> 300.1290555 | KH19: =IFERROR(MIN(IF(OR(KG19>=1000,KG19=0,$D19+KH$17-1>120),0,IF(CK19="",0,MIN(CK19,1000))+IF(GI19="",0,MIN(GI19,1000)))* ( 1- VLOOKUP($D19+KH$17-1,'Mortality Improvement'!$A$3:$C$123,IF(LEFT($B19,1)="F",3,2),0) )^KH$17,1000),0) -> 317.6150009 | KI19: =IFERROR(MIN(IF(OR(KH19>=1000,KH19=0,$D19+KI$17-1>120),0,IF(CL19="",0,MIN(CL19,1000))+IF(GJ19="",0,MIN(GJ19,1000)))* ( 1- VLOOKUP($D19+KI$17-1,'Mortality Improvement'!$A$3:$C$123,IF(LEFT($B19,1)="F",3,2),0) )^KI$17,1000),0) -> 334.060178 | KJ19: =IFERROR(MIN(IF(OR(KI19>=1000,KI19=0,$D19+KJ$17-1>120),0,IF(CM19="",0,MIN(CM19,1000))+IF(GK19="",0,MIN(GK19,1000)))* ( 1- VLOOKUP($D19+KJ$17-1,'Mortality Improvement'!$A$3:$C$123,IF(LEFT($B19,1)="F",3,2),0) )^KJ$17,1000),0) -> 349.1744658 | KK19: =IFERROR(MIN(IF(OR(KJ19>=1000,KJ19=0,$D19+KK$17-1>120),0,IF(CN19="",0,MIN(CN19,1000))+IF(GL19="",0,MIN(GL19,1000)))* ( 1- VLOOKUP($D19+KK$17-1,'Mortality Improvement'!$A$3:$C$123,IF(LEFT($B19,1)="F",3,2),0) )^KK$17,1000),0) -> 362.6787057 | KL19: =IFERROR(MIN(IF(OR(KK19>=1000,KK19=0,$D19+KL$17-1>120),0,IF(CO19="",0,MIN(CO19,1000))+IF(GM19="",0,MIN(GM19,1000)))* ( 1- VLOOKUP($D19+KL$17-1,'Mortality Improvement'!$A$3:$C$123,IF(LEFT($B19,1)="F",3,2),0) )^KL$17,1000),0) -> 374.2885761 | KM19: =IFERROR(MIN(IF(OR(KL19>=1000,KL19=0,$D19+KM$17-1>120),0,IF(CP19="",0,MIN(CP19,1000))+IF(GN19="",0,MIN(GN19,1000)))* ( 1- VLOOKUP($D19+KM$17-1,'Mortality Improvement'!$A$3:$C$123,IF(LEFT($B19,1)="F",3,2),0) )^KM$17,1000),0) -> 383.7226586 | KN19: =IFERROR(MIN(IF(OR(KM19>=1000,KM19=0,$D19+KN$17-1>120),0,IF(CQ19="",0,MIN(CQ19,1000))+IF(GO19="",0,MIN(GO19,1000)))* ( 1- VLOOKUP($D19+KN$17-1,'Mortality Improvement'!$A$3:$C$123,IF(LEFT($B19,1)="F",3,2),0) )^KN$17,1000),0) -> 390.7024187 | KO19: =IFERROR(MIN(IF(OR(KN19>=1000,KN19=0,$D19+KO$17-1>120),0,IF(CR19="",0,MIN(CR19,1000))+IF(GP19="",0,MIN(GP19,1000)))* ( 1- VLOOKUP($D19+KO$17-1,'Mortality Improvement'!$A$3:$C$123,IF(LEFT($B19,1)="F",3,2),0) )^KO$17,1000),0) -> 394.9521884 | KP19: =IFERROR(MIN(IF(OR(KO19>=1000,KO19=0,$D19+KP$17-1>120),0,IF(CS19="",0,MIN(CS19,1000))+IF(GQ19="",0,MIN(GQ19,1000)))* ( 1- VLOOKUP($D19+KP$17-1,'Mortality Improvement'!$A$3:$C$123,IF(LEFT($B19,1)="F",3,2),0) )^KP$17,1000),0) -> 396.1595318 | KQ19: =IFERROR(MIN(IF(OR(KP19>=1000,KP19=0,$D19+KQ$17-1>120),0,IF(CT19="",0,MIN(CT19,1000))+IF(GR19="",0,MIN(GR19,1000)))* ( 1- VLOOKUP($D19+KQ$17-1,'Mortality Improvement'!$A$3:$C$123,IF(LEFT($B19,1)="F",3,2),0) )^KQ$17,1000),0) -> 395.1691329 | KR19: =IFERROR(MIN(IF(OR(KQ19>=1000,KQ19=0,$D19+KR$17-1>120),0,IF(CU19="",0,MIN(CU19,1000))+IF(GS19="",0,MIN(GS19,1000)))* ( 1- VLOOKUP($D19+KR$17-1,'Mortality Improvement'!$A$3:$C$123,IF(LEFT($B19,1)="F",3,2),0) )^KR$17,1000),0) -> 394.1812101 | KS19: =IFERROR(MIN(IF(OR(KR19>=1000,KR19=0,$D19+KS$17-1>120),0,IF(CV19="",0,MIN(CV19,1000))+IF(GT19="",0,MIN(GT19,1000)))* ( 1- VLOOKUP($D19+KS$17-1,'Mortality Improvement'!$A$3:$C$123,IF(LEFT($B19,1)="F",3,2),0) )^KS$17,1000),0) -> 393.1957571 | KT19: =IFERROR(MIN(IF(OR(KS19>=1000,KS19=0,$D19+KT$17-1>120),0,IF(CW19="",0,MIN(CW19,1000))+IF(GU19="",0,MIN(GU19,1000)))* ( 1- VLOOKUP($D19+KT$17-1,'Mortality Improvement'!$A$3:$C$123,IF(LEFT($B19,1)="F",3,2),0) )^KT$17,1000),0) -> 392.2127677 | KU19: =IFERROR(MIN(IF(OR(KT19>=1000,KT19=0,$D19+KU$17-1>120),0,IF(CX19="",0,MIN(CX19,1000))+IF(GV19="",0,MIN(GV19,1000)))* ( 1- VLOOKUP($D19+KU$17-1,'Mortality Improvement'!$A$3:$C$123,IF(LEFT($B19,1)="F",3,2),0) )^KU$17,1000),0) -> 391.2322358 | KV19: =IFERROR(MIN(IF(OR(KU19>=1000,KU19=0,$D19+KV$17-1>120),0,IF(CY19="",0,MIN(CY19,1000))+IF(GW19="",0,MIN(GW19,1000)))* ( 1- VLOOKUP($D19+KV$17-1,'Mortality Improvement'!$A$3:$C$123,IF(LEFT($B19,1)="F",3,2),0) )^KV$17,1000),0) -> 390.2541552 | KW19: =IFERROR(MIN(IF(OR(KV19>=1000,KV19=0,$D19+KW$17-1>120),0,IF(CZ19="",0,MIN(CZ19,1000))+IF(GX19="",0,MIN(GX19,1000)))* ( 1- VLOOKUP($D19+KW$17-1,'Mortality Improvement'!$A$3:$C$123,IF(LEFT($B19,1)="F",3,2),0) )^KW$17,1000),0) -> 389.2785198 | KX19: =IFERROR(MIN(IF(OR(KW19>=1000,KW19=0,$D19+KX$17-1>120),0,IF(DA19="",0,MIN(DA19,1000))+IF(GY19="",0,MIN(GY19,1000)))* ( 1- VLOOKUP($D19+KX$17-1,'Mortality Improvement'!$A$3:$C$123,IF(LEFT($B19,1)="F",3,2),0) )^KX$17,1000),0) -> 0 | LA19: =IF(RIGHT($B19,6)="Substd",'Other Assumptions'!$B$8,'Other Assumptions'!$B$7) -> 0.063 | LB19: =IF(OR(LEFT($A$9,3)="Alz",LEFT($A$9,3)="Pol",LEFT($A$9,3)="Myo"),IF(RIGHT($B19,6)="Substd",'Other Assumptions'!$B$25,'Other Assumptions'!$B$24),IF(RIGHT($B19,6)="Substd",'Other Assumptions'!$B$12,'Other Assumptions'!$B$11)) -> 0 | LC19: 1 | LD19: 0.9365278644 | LE19: 0.8770383513 | LF19: 0.8213331793 | LG19: 0.7691858693 | LH19: 0.7203675498 | LI19: 0.6746579275 | LJ19: 0.6318582051 | LK19: 0.5917984921 | LL19: 0.5543012952 | LM19: 0.5191777751 | LN19: 0.4862821471 | LO19: 0.455468984 | LP19: 0.4266066363 | LQ19: 0.3995582573 | LR19: 0.3742080343 | LS19: 0.3504537209 | LT19: 0.3281852489 | LU19: 0.307306671 | LV19: 0.287731161 | LW19: 0.2693775035 | LX19: 0.2521794965 | LY19: 0.2360711528 | LZ19: 0.2209825068 | MA19: 0.2068467422 | MB19: 0.1936018481 | MC19: 0.1812856504 | MD19: 0.1697493972 | ME19: 0.1589428857 | MF19: 0.1488192992 | MG19: 0.1393339887 | MH19: 0.130445497 | MI19: 0.1221153 | MJ19: 0.114306034 | MK19: 0.1069839742 | ML19: 0.1001191579 | MM19: 0.09368408752 | MN19: 0.08765282638 | MO19: 0.08200143695 | MP19: 0.07670627379 | MQ19: 0.07174473352 | MR19: 0.06709532078 | MS19: 0.06273730703 | MT19: 0.05865193444 | MU19: 0.05482148662 | MV19: 0 | MW19: 0 | MX19: 0 | MY19: 0 | MZ19: 0 | NA19: 0 | NB19: 0 | NC19: 0 | ND19: 0 | NE19: 0 | NF19: 0 | NG19: 0 | NH19: 0 | NI19: 0 | NJ19: 0 | NK19: 0 | NL19: 0 | NM19: 0 | NN19: 0 | NO19: 0 | NP19: 0 | NQ19: 0 | NR19: 0 | NS19: 0 | NT19: 0 | NU19: 0 | NV19: 0 | NW19: 0 | NX19: 0 | NY19: 0 | NZ19: 0 | OA19: 0 | OB19: 0 | OC19: 0 | OD19: 0 | OE19: 0 | OF19: 0 | OG19: 0 | OH19: 0 | OI19: 0 | OJ19: 0 | OK19: 0 | OL19: 0 | OM19: 0 | ON19: 0 | OO19: 0 | OP19: 0 | OQ19: 0 | OR19: 0 | OS19: 0 | OT19: 0 | OU19: 0 | OV19: 0 | OW19: 0 | OX19: 0 | OY19: 0 | PB19: =IFERROR(HLOOKUP(D19,'Other Assumptions'!$H$4:$DC$9,IF(LEFT(Condition,4)="Long",IF(LEFT(B19,1)="M",6,5),IF(LEFT(B19,1)="M",3,2)),0),0) -> 0.0307 | PC19: 3085158.388 | PD19: 94714.3625
